Workbook

Sheet Shark Graphing (hidden)
G1: =(Xposition-Xframe_min)/Xframe_range-0.5 -> -0.5 | H1: =(Yposition-Yframe_min)/Yframe_range-0.5 -> 0 | I1: =(Zposition-Zframe_min)/Zframe_range-0.5 -> -0.025 | J1: =SUMPRODUCT($G$1:$I$1,Chart_XRotationVals) -> -0.3535533906 | K1: =SUMPRODUCT($G$1:$I$1,Chart_YRotationVals) -> -0.1854369493
B2: Rotation | C2: Roll | D2: Pitch | E2: Yaw | F2: Make NA | G2: Norm X | H2: Norm Y | I2: Norm Z | J2: X | K2: Y | L2: Shark Testing Y | M2: Picture Name | P2: Shark | Q2: Dist from mid | R2: Radius | S2: # | T2: x | U2: y | V2: z
B3: SharkRPY_-1;-1;-1 | C3: -1 | D3: -1 | E3: -1 | F3: =AND(SharkGraphingTable[[#This Row],[Roll]]=Roll,SharkGraphingTable[[#This Row],[Pitch]]=Pitch,SharkGraphingTable[[#This Row],[Yaw]]=Yaw) -> FALSE | G3: =(Xposition-Xframe_min)/Xframe_range-0.5 -> -0.5 | H3: =(Yposition-Yframe_min)/Yframe_range-0.5 -> 0 | I3: =(Zposition-Zframe_min)/Zframe_range-0.5 -> -0.025 | J3: =IF(SharkGraphingTable[[#This Row],[Make NA]],SUMPRODUCT(SharkGraphingTable[[#This Row],[Norm X]:[Norm Z]],Chart_XRotationVals),NA()) ->  | K3: =IF(SharkGraphingTable[[#This Row],[Make NA]],SUMPRODUCT(SharkGraphingTable[[#This Row],[Norm X]:[Norm Z]],Chart_YRotationVals),NA()) ->  | L3: =IF(AND(SharkGraphingTable[[#This Row],[Roll]]=InputRoll,SharkGraphingTable[[#This Row],[Pitch]]=InputPitch,SharkGraphingTable[[#This Row],[Yaw]]=InputYaw),1,NA()) ->  | M3: ="shark R"&SharkGraphingTable[[#This Row],[Roll]]&" P"&SharkGraphingTable[[#This Row],[Pitch]]&" Y"&SharkGraphingTable[[#This Row],[Yaw]] -> shark R-1 P-1 Y-1 | P3: Head | Q3: =IFERROR(INDEX(SetupConstantsTable[],MATCH($P$2,SetupConstantsTable[Object],0),MATCH(SharkBubbleTable[[#This Row],[Shark]]&" to mid",SetupConstantsTable[#Headers],0)),0) -> 2 | R3: =INDEX(SetupConstantsTable[],MATCH($P$2,SetupConstantsTable[Object],0),MATCH(SharkBubbleTable[[#This Row],[Shark]],SetupConstantsTable[#Headers],0)) -> 2 | S3: 1 | T3: =Xposition+SharkBubbleTable[[#This Row],[Dist from mid]]*COS($R$8*Yaw)*COS($R$8*Pitch) -> 22 | U3: =Yposition+SharkBubbleTable[[#This Row],[Dist from mid]]*SharkBubbleTable[[#This Row],['#]]*SIN($R$8*Yaw) -> 0 | V3: =Zposition+SharkBubbleTable[[#This Row],[Dist from mid]]*SharkBubbleTable[[#This Row],['#]]*SIN($R$8*Pitch) -> -10.5
B4: SharkRPY_-1;-1;0 | C4: -1 | D4: -1 | E4: 0 | F4: =AND(SharkGraphingTable[[#This Row],[Roll]]=Roll,SharkGraphingTable[[#This Row],[Pitch]]=Pitch,SharkGraphingTable[[#This Row],[Yaw]]=Yaw) -> FALSE | G4: -0.5 | H4: 0 | I4: -0.025 | J4: =IF(SharkGraphingTable[[#This Row],[Make NA]],SUMPRODUCT(SharkGraphingTable[[#This Row],[Norm X]:[Norm Z]],Chart_XRotationVals),NA()) ->  | K4: =IF(SharkGraphingTable[[#This Row],[Make NA]],SUMPRODUCT(SharkGraphingTable[[#This Row],[Norm X]:[Norm Z]],Chart_YRotationVals),NA()) ->  | L4: =IF(AND(SharkGraphingTable[[#This Row],[Roll]]=InputRoll,SharkGraphingTable[[#This Row],[Pitch]]=InputPitch,SharkGraphingTable[[#This Row],[Yaw]]=InputYaw),1,NA()) ->  | M4: ="shark R"&SharkGraphingTable[[#This Row],[Roll]]&" P"&SharkGraphingTable[[#This Row],[Pitch]]&" Y"&SharkGraphingTable[[#This Row],[Yaw]] -> shark R-1 P-1 Y0 | P4: Mid | Q4: =IFERROR(INDEX(SetupConstantsTable[],MATCH($P$2,SetupConstantsTable[Object],0),MATCH(SharkBubbleTable[[#This Row],[Shark]]&" to mid",SetupConstantsTable[#Headers],0)),0) -> 0 | R4: =INDEX(SetupConstantsTable[],MATCH($P$2,SetupConstantsTable[Object],0),MATCH(SharkBubbleTable[[#This Row],[Shark]],SetupConstantsTable[#Headers],0)) -> 2 | S4: 0 | T4: =Xposition+SharkBubbleTable[[#This Row],[Dist from mid]]*COS($R$8*Yaw)*COS($R$8*Pitch) -> 20 | U4: =Yposition+SharkBubbleTable[[#This Row],[Dist from mid]]*SharkBubbleTable[[#This Row],['#]]*SIN($R$8*Yaw) -> 0 | V4: =Zposition+SharkBubbleTable[[#This Row],[Dist from mid]]*SharkBubbleTable[[#This Row],['#]]*SIN($R$8*Pitch) -> -10.5
B5: SharkRPY_-1;-1;1 | C5: -1 | D5: -1 | E5: 1 | F5: =AND(SharkGraphingTable[[#This Row],[Roll]]=Roll,SharkGraphingTable[[#This Row],[Pitch]]=Pitch,SharkGraphingTable[[#This Row],[Yaw]]=Yaw) -> FALSE | G5: -0.5 | H5: 0 | I5: -0.025 | J5: =IF(SharkGraphingTable[[#This Row],[Make NA]],SUMPRODUCT(SharkGraphingTable[[#This Row],[Norm X]:[Norm Z]],Chart_XRotationVals),NA()) ->  | K5: =IF(SharkGraphingTable[[#This Row],[Make NA]],SUMPRODUCT(SharkGraphingTable[[#This Row],[Norm X]:[Norm Z]],Chart_YRotationVals),NA()) ->  | L5: =IF(AND(SharkGraphingTable[[#This Row],[Roll]]=InputRoll,SharkGraphingTable[[#This Row],[Pitch]]=InputPitch,SharkGraphingTable[[#This Row],[Yaw]]=InputYaw),1,NA()) ->  | M5: ="shark R"&SharkGraphingTable[[#This Row],[Roll]]&" P"&SharkGraphingTable[[#This Row],[Pitch]]&" Y"&SharkGraphingTable[[#This Row],[Yaw]] -> shark R-1 P-1 Y1 | P5: Tail | Q5: =IFERROR(INDEX(SetupConstantsTable[],MATCH($P$2,SetupConstantsTable[Object],0),MATCH(SharkBubbleTable[[#This Row],[Shark]]&" to mid",SetupConstantsTable[#Headers],0)),0) -> -2 | R5: =INDEX(SetupConstantsTable[],MATCH($P$2,SetupConstantsTable[Object],0),MATCH(SharkBubbleTable[[#This Row],[Shark]],SetupConstantsTable[#Headers],0)) -> 1 | S5: -1 | T5: =Xposition+SharkBubbleTable[[#This Row],[Dist from mid]]*COS($R$8*Yaw)*COS($R$8*Pitch) -> 18 | U5: =Yposition+SharkBubbleTable[[#This Row],[Dist from mid]]*SharkBubbleTable[[#This Row],['#]]*SIN($R$8*Yaw) -> 0 | V5: =Zposition+SharkBubbleTable[[#This Row],[Dist from mid]]*SharkBubbleTable[[#This Row],['#]]*SIN($R$8*Pitch) -> -10.5
B6: SharkRPY_-1;0;-1 | C6: -1 | D6: 0 | E6: -1 | F6: =AND(SharkGraphingTable[[#This Row],[Roll]]=Roll,SharkGraphingTable[[#This Row],[Pitch]]=Pitch,SharkGraphingTable[[#This Row],[Yaw]]=Yaw) -> FALSE | G6: -0.5 | H6: 0 | I6: -0.025 | J6: =IF(SharkGraphingTable[[#This Row],[Make NA]],SUMPRODUCT(SharkGraphingTable[[#This Row],[Norm X]:[Norm Z]],Chart_XRotationVals),NA()) ->  | K6: =IF(SharkGraphingTable[[#This Row],[Make NA]],SUMPRODUCT(SharkGraphingTable[[#This Row],[Norm X]:[Norm Z]],Chart_YRotationVals),NA()) ->  | L6: =IF(AND(SharkGraphingTable[[#This Row],[Roll]]=InputRoll,SharkGraphingTable[[#This Row],[Pitch]]=InputPitch,SharkGraphingTable[[#This Row],[Yaw]]=InputYaw),1,NA()) ->  | M6: ="shark R"&SharkGraphingTable[[#This Row],[Roll]]&" P"&SharkGraphingTable[[#This Row],[Pitch]]&" Y"&SharkGraphingTable[[#This Row],[Yaw]] -> shark R-1 P0 Y-1
B7: SharkRPY_-1;0;0 | C7: -1 | D7: 0 | E7: 0 | F7: =AND(SharkGraphingTable[[#This Row],[Roll]]=Roll,SharkGraphingTable[[#This Row],[Pitch]]=Pitch,SharkGraphingTable[[#This Row],[Yaw]]=Yaw) -> FALSE | G7: -0.5 | H7: 0 | I7: -0.025 | J7: =IF(SharkGraphingTable[[#This Row],[Make NA]],SUMPRODUCT(SharkGraphingTable[[#This Row],[Norm X]:[Norm Z]],Chart_XRotationVals),NA()) ->  | K7: =IF(SharkGraphingTable[[#This Row],[Make NA]],SUMPRODUCT(SharkGraphingTable[[#This Row],[Norm X]:[Norm Z]],Chart_YRotationVals),NA()) ->  | L7: =IF(AND(SharkGraphingTable[[#This Row],[Roll]]=InputRoll,SharkGraphingTable[[#This Row],[Pitch]]=InputPitch,SharkGraphingTable[[#This Row],[Yaw]]=InputYaw),1,NA()) ->  | M7: ="shark R"&SharkGraphingTable[[#This Row],[Roll]]&" P"&SharkGraphingTable[[#This Row],[Pitch]]&" Y"&SharkGraphingTable[[#This Row],[Yaw]] -> shark R-1 P0 Y0
B8: SharkRPY_-1;0;1 | C8: -1 | D8: 0 | E8: 1 | F8: =AND(SharkGraphingTable[[#This Row],[Roll]]=Roll,SharkGraphingTable[[#This Row],[Pitch]]=Pitch,SharkGraphingTable[[#This Row],[Yaw]]=Yaw) -> FALSE | G8: -0.5 | H8: 0 | I8: -0.025 | J8: =IF(SharkGraphingTable[[#This Row],[Make NA]],SUMPRODUCT(SharkGraphingTable[[#This Row],[Norm X]:[Norm Z]],Chart_XRotationVals),NA()) ->  | K8: =IF(SharkGraphingTable[[#This Row],[Make NA]],SUMPRODUCT(SharkGraphingTable[[#This Row],[Norm X]:[Norm Z]],Chart_YRotationVals),NA()) ->  | L8: =IF(AND(SharkGraphingTable[[#This Row],[Roll]]=InputRoll,SharkGraphingTable[[#This Row],[Pitch]]=InputPitch,SharkGraphingTable[[#This Row],[Yaw]]=InputYaw),1,NA()) ->  | M8: ="shark R"&SharkGraphingTable[[#This Row],[Roll]]&" P"&SharkGraphingTable[[#This Row],[Pitch]]&" Y"&SharkGraphingTable[[#This Row],[Yaw]] -> shark R-1 P0 Y1 | P8: Shark turn angle | Q8: 30 | R8: 0.5235987756
B9: SharkRPY_-1;1;-1 | C9: -1 | D9: 1 | E9: -1 | F9: =AND(SharkGraphingTable[[#This Row],[Roll]]=Roll,SharkGraphingTable[[#This Row],[Pitch]]=Pitch,SharkGraphingTable[[#This Row],[Yaw]]=Yaw) -> FALSE | G9: -0.5 | H9: 0 | I9: -0.025 | J9: =IF(SharkGraphingTable[[#This Row],[Make NA]],SUMPRODUCT(SharkGraphingTable[[#This Row],[Norm X]:[Norm Z]],Chart_XRotationVals),NA()) ->  | K9: =IF(SharkGraphingTable[[#This Row],[Make NA]],SUMPRODUCT(SharkGraphingTable[[#This Row],[Norm X]:[Norm Z]],Chart_YRotationVals),NA()) ->  | L9: =IF(AND(SharkGraphingTable[[#This Row],[Roll]]=InputRoll,SharkGraphingTable[[#This Row],[Pitch]]=InputPitch,SharkGraphingTable[[#This Row],[Yaw]]=InputYaw),1,NA()) ->  | M9: ="shark R"&SharkGraphingTable[[#This Row],[Roll]]&" P"&SharkGraphingTable[[#This Row],[Pitch]]&" Y"&SharkGraphingTable[[#This Row],[Yaw]] -> shark R-1 P1 Y-1
B10: SharkRPY_-1;1;0 | C10: -1 | D10: 1 | E10: 0 | F10: =AND(SharkGraphingTable[[#This Row],[Roll]]=Roll,SharkGraphingTable[[#This Row],[Pitch]]=Pitch,SharkGraphingTable[[#This Row],[Yaw]]=Yaw) -> FALSE | G10: -0.5 | H10: 0 | I10: -0.025 | J10: =IF(SharkGraphingTable[[#This Row],[Make NA]],SUMPRODUCT(SharkGraphingTable[[#This Row],[Norm X]:[Norm Z]],Chart_XRotationVals),NA()) ->  | K10: =IF(SharkGraphingTable[[#This Row],[Make NA]],SUMPRODUCT(SharkGraphingTable[[#This Row],[Norm X]:[Norm Z]],Chart_YRotationVals),NA()) ->  | L10: =IF(AND(SharkGraphingTable[[#This Row],[Roll]]=InputRoll,SharkGraphingTable[[#This Row],[Pitch]]=InputPitch,SharkGraphingTable[[#This Row],[Yaw]]=InputYaw),1,NA()) ->  | M10: ="shark R"&SharkGraphingTable[[#This Row],[Roll]]&" P"&SharkGraphingTable[[#This Row],[Pitch]]&" Y"&SharkGraphingTable[[#This Row],[Yaw]] -> shark R-1 P1 Y0
B11: SharkRPY_-1;1;1 | C11: -1 | D11: 1 | E11: 1 | F11: =AND(SharkGraphingTable[[#This Row],[Roll]]=Roll,SharkGraphingTable[[#This Row],[Pitch]]=Pitch,SharkGraphingTable[[#This Row],[Yaw]]=Yaw) -> FALSE | G11: -0.5 | H11: 0 | I11: -0.025 | J11: =IF(SharkGraphingTable[[#This Row],[Make NA]],SUMPRODUCT(SharkGraphingTable[[#This Row],[Norm X]:[Norm Z]],Chart_XRotationVals),NA()) ->  | K11: =IF(SharkGraphingTable[[#This Row],[Make NA]],SUMPRODUCT(SharkGraphingTable[[#This Row],[Norm X]:[Norm Z]],Chart_YRotationVals),NA()) ->  | L11: =IF(AND(SharkGraphingTable[[#This Row],[Roll]]=InputRoll,SharkGraphingTable[[#This Row],[Pitch]]=InputPitch,SharkGraphingTable[[#This Row],[Yaw]]=InputYaw),1,NA()) ->  | M11: ="shark R"&SharkGraphingTable[[#This Row],[Roll]]&" P"&SharkGraphingTable[[#This Row],[Pitch]]&" Y"&SharkGraphingTable[[#This Row],[Yaw]] -> shark R-1 P1 Y1
B12: SharkRPY_0;-1;-1 | C12: 0 | D12: -1 | E12: -1 | F12: =AND(SharkGraphingTable[[#This Row],[Roll]]=Roll,SharkGraphingTable[[#This Row],[Pitch]]=Pitch,SharkGraphingTable[[#This Row],[Yaw]]=Yaw) -> FALSE | G12: -0.5 | H12: 0 | I12: -0.025 | J12: =IF(SharkGraphingTable[[#This Row],[Make NA]],SUMPRODUCT(SharkGraphingTable[[#This Row],[Norm X]:[Norm Z]],Chart_XRotationVals),NA()) ->  | K12: =IF(SharkGraphingTable[[#This Row],[Make NA]],SUMPRODUCT(SharkGraphingTable[[#This Row],[Norm X]:[Norm Z]],Chart_YRotationVals),NA()) ->  | L12: =IF(AND(SharkGraphingTable[[#This Row],[Roll]]=InputRoll,SharkGraphingTable[[#This Row],[Pitch]]=InputPitch,SharkGraphingTable[[#This Row],[Yaw]]=InputYaw),1,NA()) ->  | M12: ="shark R"&SharkGraphingTable[[#This Row],[Roll]]&" P"&SharkGraphingTable[[#This Row],[Pitch]]&" Y"&SharkGraphingTable[[#This Row],[Yaw]] -> shark R0 P-1 Y-1
B13: SharkRPY_0;-1;0 | C13: 0 | D13: -1 | E13: 0 | F13: =AND(SharkGraphingTable[[#This Row],[Roll]]=Roll,SharkGraphingTable[[#This Row],[Pitch]]=Pitch,SharkGraphingTable[[#This Row],[Yaw]]=Yaw) -> FALSE | G13: -0.5 | H13: 0 | I13: -0.025 | J13: =IF(SharkGraphingTable[[#This Row],[Make NA]],SUMPRODUCT(SharkGraphingTable[[#This Row],[Norm X]:[Norm Z]],Chart_XRotationVals),NA()) ->  | K13: =IF(SharkGraphingTable[[#This Row],[Make NA]],SUMPRODUCT(SharkGraphingTable[[#This Row],[Norm X]:[Norm Z]],Chart_YRotationVals),NA()) ->  | L13: =IF(AND(SharkGraphingTable[[#This Row],[Roll]]=InputRoll,SharkGraphingTable[[#This Row],[Pitch]]=InputPitch,SharkGraphingTable[[#This Row],[Yaw]]=InputYaw),1,NA()) ->  | M13: ="shark R"&SharkGraphingTable[[#This Row],[Roll]]&" P"&SharkGraphingTable[[#This Row],[Pitch]]&" Y"&SharkGraphingTable[[#This Row],[Yaw]] -> shark R0 P-1 Y0
B14: SharkRPY_0;-1;1 | C14: 0 | D14: -1 | E14: 1 | F14: =AND(SharkGraphingTable[[#This Row],[Roll]]=Roll,SharkGraphingTable[[#This Row],[Pitch]]=Pitch,SharkGraphingTable[[#This Row],[Yaw]]=Yaw) -> FALSE | G14: -0.5 | H14: 0 | I14: -0.025 | J14: =IF(SharkGraphingTable[[#This Row],[Make NA]],SUMPRODUCT(SharkGraphingTable[[#This Row],[Norm X]:[Norm Z]],Chart_XRotationVals),NA()) ->  | K14: =IF(SharkGraphingTable[[#This Row],[Make NA]],SUMPRODUCT(SharkGraphingTable[[#This Row],[Norm X]:[Norm Z]],Chart_YRotationVals),NA()) ->  | L14: =IF(AND(SharkGraphingTable[[#This Row],[Roll]]=InputRoll,SharkGraphingTable[[#This Row],[Pitch]]=InputPitch,SharkGraphingTable[[#This Row],[Yaw]]=InputYaw),1,NA()) ->  | M14: ="shark R"&SharkGraphingTable[[#This Row],[Roll]]&" P"&SharkGraphingTable[[#This Row],[Pitch]]&" Y"&SharkGraphingTable[[#This Row],[Yaw]] -> shark R0 P-1 Y1 | P14: 21.661 | Q14: 8 | R14: -15 | S14: =(P$14-Xframe_min)/Xframe_range-0.5 -> -0.46678 | T14: =(Q$14-Yframe_min)/Yframe_range-0.5 -> 0.2666666667 | U14: =(R$14-Zframe_min)/Zframe_range-0.5 -> -0.25 | V14: =SUMPRODUCT($S$14:$U$14,Chart_XRotationVals) -> -0.4432003883 | W14: =SUMPRODUCT($S$14:$U$14,Chart_YRotationVals) -> -0.1950656495
B15: SharkRPY_0;0;-1 | C15: 0 | D15: 0 | E15: -1 | F15: =AND(SharkGraphingTable[[#This Row],[Roll]]=Roll,SharkGraphingTable[[#This Row],[Pitch]]=Pitch,SharkGraphingTable[[#This Row],[Yaw]]=Yaw) -> FALSE | G15: -0.5 | H15: 0 | I15: -0.025 | J15: =IF(SharkGraphingTable[[#This Row],[Make NA]],SUMPRODUCT(SharkGraphingTable[[#This Row],[Norm X]:[Norm Z]],Chart_XRotationVals),NA()) ->  | K15: =IF(SharkGraphingTable[[#This Row],[Make NA]],SUMPRODUCT(SharkGraphingTable[[#This Row],[Norm X]:[Norm Z]],Chart_YRotationVals),NA()) ->  | L15: =IF(AND(SharkGraphingTable[[#This Row],[Roll]]=InputRoll,SharkGraphingTable[[#This Row],[Pitch]]=InputPitch,SharkGraphingTable[[#This Row],[Yaw]]=InputYaw),1,NA()) ->  | M15: ="shark R"&SharkGraphingTable[[#This Row],[Roll]]&" P"&SharkGraphingTable[[#This Row],[Pitch]]&" Y"&SharkGraphingTable[[#This Row],[Yaw]] -> shark R0 P0 Y-1 | P15: 20 | Q15: 9 | R15: -16.5
B16: SharkRPY_0;0;0 | C16: 0 | D16: 0 | E16: 0 | F16: =AND(SharkGraphingTable[[#This Row],[Roll]]=Roll,SharkGraphingTable[[#This Row],[Pitch]]=Pitch,SharkGraphingTable[[#This Row],[Yaw]]=Yaw) -> TRUE | G16: -0.5 | H16: 0 | I16: -0.025 | J16: =IF(SharkGraphingTable[[#This Row],[Make NA]],SUMPRODUCT(SharkGraphingTable[[#This Row],[Norm X]:[Norm Z]],Chart_XRotationVals),NA()) -> -0.3535533906 | K16: =IF(SharkGraphingTable[[#This Row],[Make NA]],SUMPRODUCT(SharkGraphingTable[[#This Row],[Norm X]:[Norm Z]],Chart_YRotationVals),NA()) -> -0.1854369493 | L16: =IF(AND(SharkGraphingTable[[#This Row],[Roll]]=InputRoll,SharkGraphingTable[[#This Row],[Pitch]]=InputPitch,SharkGraphingTable[[#This Row],[Yaw]]=InputYaw),1,NA()) -> 1 | M16: ="shark R"&SharkGraphingTable[[#This Row],[Roll]]&" P"&SharkGraphingTable[[#This Row],[Pitch]]&" Y"&SharkGraphingTable[[#This Row],[Yaw]] -> shark R0 P0 Y0
B17: SharkRPY_0;0;1 | C17: 0 | D17: 0 | E17: 1 | F17: =AND(SharkGraphingTable[[#This Row],[Roll]]=Roll,SharkGraphingTable[[#This Row],[Pitch]]=Pitch,SharkGraphingTable[[#This Row],[Yaw]]=Yaw) -> FALSE | G17: -0.5 | H17: 0 | I17: -0.025 | J17: =IF(SharkGraphingTable[[#This Row],[Make NA]],SUMPRODUCT(SharkGraphingTable[[#This Row],[Norm X]:[Norm Z]],Chart_XRotationVals),NA()) ->  | K17: =IF(SharkGraphingTable[[#This Row],[Make NA]],SUMPRODUCT(SharkGraphingTable[[#This Row],[Norm X]:[Norm Z]],Chart_YRotationVals),NA()) ->  | L17: =IF(AND(SharkGraphingTable[[#This Row],[Roll]]=InputRoll,SharkGraphingTable[[#This Row],[Pitch]]=InputPitch,SharkGraphingTable[[#This Row],[Yaw]]=InputYaw),1,NA()) ->  | M17: ="shark R"&SharkGraphingTable[[#This Row],[Roll]]&" P"&SharkGraphingTable[[#This Row],[Pitch]]&" Y"&SharkGraphingTable[[#This Row],[Yaw]] -> shark R0 P0 Y1
B18: SharkRPY_0;1;-1 | C18: 0 | D18: 1 | E18: -1 | F18: =AND(SharkGraphingTable[[#This Row],[Roll]]=Roll,SharkGraphingTable[[#This Row],[Pitch]]=Pitch,SharkGraphingTable[[#This Row],[Yaw]]=Yaw) -> FALSE | G18: -0.5 | H18: 0 | I18: -0.025 | J18: =IF(SharkGraphingTable[[#This Row],[Make NA]],SUMPRODUCT(SharkGraphingTable[[#This Row],[Norm X]:[Norm Z]],Chart_XRotationVals),NA()) ->  | K18: =IF(SharkGraphingTable[[#This Row],[Make NA]],SUMPRODUCT(SharkGraphingTable[[#This Row],[Norm X]:[Norm Z]],Chart_YRotationVals),NA()) ->  | L18: =IF(AND(SharkGraphingTable[[#This Row],[Roll]]=InputRoll,SharkGraphingTable[[#This Row],[Pitch]]=InputPitch,SharkGraphingTable[[#This Row],[Yaw]]=InputYaw),1,NA()) ->  | M18: ="shark R"&SharkGraphingTable[[#This Row],[Roll]]&" P"&SharkGraphingTable[[#This Row],[Pitch]]&" Y"&SharkGraphingTable[[#This Row],[Yaw]] -> shark R0 P1 Y-1
B19: SharkRPY_0;1;0 | C19: 0 | D19: 1 | E19: 0 | F19: =AND(SharkGraphingTable[[#This Row],[Roll]]=Roll,SharkGraphingTable[[#This Row],[Pitch]]=Pitch,SharkGraphingTable[[#This Row],[Yaw]]=Yaw) -> FALSE | G19: -0.5 | H19: 0 | I19: -0.025 | J19: =IF(SharkGraphingTable[[#This Row],[Make NA]],SUMPRODUCT(SharkGraphingTable[[#This Row],[Norm X]:[Norm Z]],Chart_XRotationVals),NA()) ->  | K19: =IF(SharkGraphingTable[[#This Row],[Make NA]],SUMPRODUCT(SharkGraphingTable[[#This Row],[Norm X]:[Norm Z]],Chart_YRotationVals),NA()) ->  | L19: =IF(AND(SharkGraphingTable[[#This Row],[Roll]]=InputRoll,SharkGraphingTable[[#This Row],[Pitch]]=InputPitch,SharkGraphingTable[[#This Row],[Yaw]]=InputYaw),1,NA()) ->  | M19: ="shark R"&SharkGraphingTable[[#This Row],[Roll]]&" P"&SharkGraphingTable[[#This Row],[Pitch]]&" Y"&SharkGraphingTable[[#This Row],[Yaw]] -> shark R0 P1 Y0
B20: SharkRPY_0;1;1 | C20: 0 | D20: 1 | E20: 1 | F20: =AND(SharkGraphingTable[[#This Row],[Roll]]=Roll,SharkGraphingTable[[#This Row],[Pitch]]=Pitch,SharkGraphingTable[[#This Row],[Yaw]]=Yaw) -> FALSE | G20: -0.5 | H20: 0 | I20: -0.025 | J20: =IF(SharkGraphingTable[[#This Row],[Make NA]],SUMPRODUCT(SharkGraphingTable[[#This Row],[Norm X]:[Norm Z]],Chart_XRotationVals),NA()) ->  | K20: =IF(SharkGraphingTable[[#This Row],[Make NA]],SUMPRODUCT(SharkGraphingTable[[#This Row],[Norm X]:[Norm Z]],Chart_YRotationVals),NA()) ->  | L20: =IF(AND(SharkGraphingTable[[#This Row],[Roll]]=InputRoll,SharkGraphingTable[[#This Row],[Pitch]]=InputPitch,SharkGraphingTable[[#This Row],[Yaw]]=InputYaw),1,NA()) ->  | M20: ="shark R"&SharkGraphingTable[[#This Row],[Roll]]&" P"&SharkGraphingTable[[#This Row],[Pitch]]&" Y"&SharkGraphingTable[[#This Row],[Yaw]] -> shark R0 P1 Y1
B21: SharkRPY_1;-1;-1 | C21: 1 | D21: -1 | E21: -1 | F21: =AND(SharkGraphingTable[[#This Row],[Roll]]=Roll,SharkGraphingTable[[#This Row],[Pitch]]=Pitch,SharkGraphingTable[[#This Row],[Yaw]]=Yaw) -> FALSE | G21: -0.5 | H21: 0 | I21: -0.025 | J21: =IF(SharkGraphingTable[[#This Row],[Make NA]],SUMPRODUCT(SharkGraphingTable[[#This Row],[Norm X]:[Norm Z]],Chart_XRotationVals),NA()) ->  | K21: =IF(SharkGraphingTable[[#This Row],[Make NA]],SUMPRODUCT(SharkGraphingTable[[#This Row],[Norm X]:[Norm Z]],Chart_YRotationVals),NA()) ->  | L21: =IF(AND(SharkGraphingTable[[#This Row],[Roll]]=InputRoll,SharkGraphingTable[[#This Row],[Pitch]]=InputPitch,SharkGraphingTable[[#This Row],[Yaw]]=InputYaw),1,NA()) ->  | M21: ="shark R"&SharkGraphingTable[[#This Row],[Roll]]&" P"&SharkGraphingTable[[#This Row],[Pitch]]&" Y"&SharkGraphingTable[[#This Row],[Yaw]] -> shark R1 P-1 Y-1
B22: SharkRPY_1;-1;0 | C22: 1 | D22: -1 | E22: 0 | F22: =AND(SharkGraphingTable[[#This Row],[Roll]]=Roll,SharkGraphingTable[[#This Row],[Pitch]]=Pitch,SharkGraphingTable[[#This Row],[Yaw]]=Yaw) -> FALSE | G22: -0.5 | H22: 0 | I22: -0.025 | J22: =IF(SharkGraphingTable[[#This Row],[Make NA]],SUMPRODUCT(SharkGraphingTable[[#This Row],[Norm X]:[Norm Z]],Chart_XRotationVals),NA()) ->  | K22: =IF(SharkGraphingTable[[#This Row],[Make NA]],SUMPRODUCT(SharkGraphingTable[[#This Row],[Norm X]:[Norm Z]],Chart_YRotationVals),NA()) ->  | L22: =IF(AND(SharkGraphingTable[[#This Row],[Roll]]=InputRoll,SharkGraphingTable[[#This Row],[Pitch]]=InputPitch,SharkGraphingTable[[#This Row],[Yaw]]=InputYaw),1,NA()) ->  | M22: ="shark R"&SharkGraphingTable[[#This Row],[Roll]]&" P"&SharkGraphingTable[[#This Row],[Pitch]]&" Y"&SharkGraphingTable[[#This Row],[Yaw]] -> shark R1 P-1 Y0
B23: SharkRPY_1;-1;1 | C23: 1 | D23: -1 | E23: 1 | F23: =AND(SharkGraphingTable[[#This Row],[Roll]]=Roll,SharkGraphingTable[[#This Row],[Pitch]]=Pitch,SharkGraphingTable[[#This Row],[Yaw]]=Yaw) -> FALSE | G23: -0.5 | H23: 0 | I23: -0.025 | J23: =IF(SharkGraphingTable[[#This Row],[Make NA]],SUMPRODUCT(SharkGraphingTable[[#This Row],[Norm X]:[Norm Z]],Chart_XRotationVals),NA()) ->  | K23: =IF(SharkGraphingTable[[#This Row],[Make NA]],SUMPRODUCT(SharkGraphingTable[[#This Row],[Norm X]:[Norm Z]],Chart_YRotationVals),NA()) ->  | L23: =IF(AND(SharkGraphingTable[[#This Row],[Roll]]=InputRoll,SharkGraphingTable[[#This Row],[Pitch]]=InputPitch,SharkGraphingTable[[#This Row],[Yaw]]=InputYaw),1,NA()) ->  | M23: ="shark R"&SharkGraphingTable[[#This Row],[Roll]]&" P"&SharkGraphingTable[[#This Row],[Pitch]]&" Y"&SharkGraphingTable[[#This Row],[Yaw]] -> shark R1 P-1 Y1
B24: SharkRPY_1;0;-1 | C24: 1 | D24: 0 | E24: -1 | F24: =AND(SharkGraphingTable[[#This Row],[Roll]]=Roll,SharkGraphingTable[[#This Row],[Pitch]]=Pitch,SharkGraphingTable[[#This Row],[Yaw]]=Yaw) -> FALSE | G24: -0.5 | H24: 0 | I24: -0.025 | J24: =IF(SharkGraphingTable[[#This Row],[Make NA]],SUMPRODUCT(SharkGraphingTable[[#This Row],[Norm X]:[Norm Z]],Chart_XRotationVals),NA()) ->  | K24: =IF(SharkGraphingTable[[#This Row],[Make NA]],SUMPRODUCT(SharkGraphingTable[[#This Row],[Norm X]:[Norm Z]],Chart_YRotationVals),NA()) ->  | L24: =IF(AND(SharkGraphingTable[[#This Row],[Roll]]=InputRoll,SharkGraphingTable[[#This Row],[Pitch]]=InputPitch,SharkGraphingTable[[#This Row],[Yaw]]=InputYaw),1,NA()) ->  | M24: ="shark R"&SharkGraphingTable[[#This Row],[Roll]]&" P"&SharkGraphingTable[[#This Row],[Pitch]]&" Y"&SharkGraphingTable[[#This Row],[Yaw]] -> shark R1 P0 Y-1
B25: SharkRPY_1;0;0 | C25: 1 | D25: 0 | E25: 0 | F25: =AND(SharkGraphingTable[[#This Row],[Roll]]=Roll,SharkGraphingTable[[#This Row],[Pitch]]=Pitch,SharkGraphingTable[[#This Row],[Yaw]]=Yaw) -> FALSE | G25: -0.5 | H25: 0 | I25: -0.025 | J25: =IF(SharkGraphingTable[[#This Row],[Make NA]],SUMPRODUCT(SharkGraphingTable[[#This Row],[Norm X]:[Norm Z]],Chart_XRotationVals),NA()) ->  | K25: =IF(SharkGraphingTable[[#This Row],[Make NA]],SUMPRODUCT(SharkGraphingTable[[#This Row],[Norm X]:[Norm Z]],Chart_YRotationVals),NA()) ->  | L25: =IF(AND(SharkGraphingTable[[#This Row],[Roll]]=InputRoll,SharkGraphingTable[[#This Row],[Pitch]]=InputPitch,SharkGraphingTable[[#This Row],[Yaw]]=InputYaw),1,NA()) ->  | M25: ="shark R"&SharkGraphingTable[[#This Row],[Roll]]&" P"&SharkGraphingTable[[#This Row],[Pitch]]&" Y"&SharkGraphingTable[[#This Row],[Yaw]] -> shark R1 P0 Y0
B26: SharkRPY_1;0;1 | C26: 1 | D26: 0 | E26: 1 | F26: =AND(SharkGraphingTable[[#This Row],[Roll]]=Roll,SharkGraphingTable[[#This Row],[Pitch]]=Pitch,SharkGraphingTable[[#This Row],[Yaw]]=Yaw) -> FALSE | G26: -0.5 | H26: 0 | I26: -0.025 | J26: =IF(SharkGraphingTable[[#This Row],[Make NA]],SUMPRODUCT(SharkGraphingTable[[#This Row],[Norm X]:[Norm Z]],Chart_XRotationVals),NA()) ->  | K26: =IF(SharkGraphingTable[[#This Row],[Make NA]],SUMPRODUCT(SharkGraphingTable[[#This Row],[Norm X]:[Norm Z]],Chart_YRotationVals),NA()) ->  | L26: =IF(AND(SharkGraphingTable[[#This Row],[Roll]]=InputRoll,SharkGraphingTable[[#This Row],[Pitch]]=InputPitch,SharkGraphingTable[[#This Row],[Yaw]]=InputYaw),1,NA()) ->  | M26: ="shark R"&SharkGraphingTable[[#This Row],[Roll]]&" P"&SharkGraphingTable[[#This Row],[Pitch]]&" Y"&SharkGraphingTable[[#This Row],[Yaw]] -> shark R1 P0 Y1
B27: SharkRPY_1;1;-1 | C27: 1 | D27: 1 | E27: -1 | F27: =AND(SharkGraphingTable[[#This Row],[Roll]]=Roll,SharkGraphingTable[[#This Row],[Pitch]]=Pitch,SharkGraphingTable[[#This Row],[Yaw]]=Yaw) -> FALSE | G27: -0.5 | H27: 0 | I27: -0.025 | J27: =IF(SharkGraphingTable[[#This Row],[Make NA]],SUMPRODUCT(SharkGraphingTable[[#This Row],[Norm X]:[Norm Z]],Chart_XRotationVals),NA()) ->  | K27: =IF(SharkGraphingTable[[#This Row],[Make NA]],SUMPRODUCT(SharkGraphingTable[[#This Row],[Norm X]:[Norm Z]],Chart_YRotationVals),NA()) ->  | L27: =IF(AND(SharkGraphingTable[[#This Row],[Roll]]=InputRoll,SharkGraphingTable[[#This Row],[Pitch]]=InputPitch,SharkGraphingTable[[#This Row],[Yaw]]=InputYaw),1,NA()) ->  | M27: ="shark R"&SharkGraphingTable[[#This Row],[Roll]]&" P"&SharkGraphingTable[[#This Row],[Pitch]]&" Y"&SharkGraphingTable[[#This Row],[Yaw]] -> shark R1 P1 Y-1
B28: SharkRPY_1;1;0 | C28: 1 | D28: 1 | E28: 0 | F28: =AND(SharkGraphingTable[[#This Row],[Roll]]=Roll,SharkGraphingTable[[#This Row],[Pitch]]=Pitch,SharkGraphingTable[[#This Row],[Yaw]]=Yaw) -> FALSE | G28: -0.5 | H28: 0 | I28: -0.025 | J28: =IF(SharkGraphingTable[[#This Row],[Make NA]],SUMPRODUCT(SharkGraphingTable[[#This Row],[Norm X]:[Norm Z]],Chart_XRotationVals),NA()) ->  | K28: =IF(SharkGraphingTable[[#This Row],[Make NA]],SUMPRODUCT(SharkGraphingTable[[#This Row],[Norm X]:[Norm Z]],Chart_YRotationVals),NA()) ->  | L28: =IF(AND(SharkGraphingTable[[#This Row],[Roll]]=InputRoll,SharkGraphingTable[[#This Row],[Pitch]]=InputPitch,SharkGraphingTable[[#This Row],[Yaw]]=InputYaw),1,NA()) ->  | M28: ="shark R"&SharkGraphingTable[[#This Row],[Roll]]&" P"&SharkGraphingTable[[#This Row],[Pitch]]&" Y"&SharkGraphingTable[[#This Row],[Yaw]] -> shark R1 P1 Y0
B29: SharkRPY_1;1;1 | C29: 1 | D29: 1 | E29: 1 | F29: =AND(SharkGraphingTable[[#This Row],[Roll]]=Roll,SharkGraphingTable[[#This Row],[Pitch]]=Pitch,SharkGraphingTable[[#This Row],[Yaw]]=Yaw) -> FALSE | G29: -0.5 | H29: 0 | I29: -0.025 | J29: =IF(SharkGraphingTable[[#This Row],[Make NA]],SUMPRODUCT(SharkGraphingTable[[#This Row],[Norm X]:[Norm Z]],Chart_XRotationVals),NA()) ->  | K29: =IF(SharkGraphingTable[[#This Row],[Make NA]],SUMPRODUCT(SharkGraphingTable[[#This Row],[Norm X]:[Norm Z]],Chart_YRotationVals),NA()) ->  | L29: =IF(AND(SharkGraphingTable[[#This Row],[Roll]]=InputRoll,SharkGraphingTable[[#This Row],[Pitch]]=InputPitch,SharkGraphingTable[[#This Row],[Yaw]]=InputYaw),1,NA()) ->  | M29: ="shark R"&SharkGraphingTable[[#This Row],[Roll]]&" P"&SharkGraphingTable[[#This Row],[Pitch]]&" Y"&SharkGraphingTable[[#This Row],[Yaw]] -> shark R1 P1 Y1

Sheet Animal Graphing (hidden)
A2: Object | B2: ReferenceID | C2: Image Appearance | D2: Top/Bottom | E2: Version | F2: Velocity at 0 | G2: Cycle position | H2: Starting position | I2: Starting Y lane | J2: Starting Z depth | K2: Calculated position | L2: Offset multiplier | M2: Position offset | N2: X | O2: Y | P2: Z | Q2: y lane randomizer | R2: Norm X | S2: Norm Y | T2: Norm Z | U2: Screen X | V2: Screen Y | W2: Hidden | X2: Closest sphere to Shark | Y2: Hit | Z2: Separation | AA2: X dist | AB2: Y dist | AC2: Z dist | AD2: Number seen
A3: J | B3: =AnimalGraphingTable[[#This Row],[Object]]&AnimalGraphingTable[[#This Row],[Version]]&LEFT(AnimalGraphingTable[[#This Row],[Top/Bottom]],1) -> J1B | C3: =VLOOKUP(AnimalGraphingTable[[#This Row],[Object]],SetupConstantsTable[],2,0)&IF(AnimalGraphingTable[[#This Row],[Top/Bottom]]="Shadow","-"&AnimalGraphingTable[[#This Row],[Top/Bottom]],"") -> Crab | D3: Below Shark | E3: 1 | F3: =INDEX(SetupConstantsTable[],MATCH(AnimalGraphingTable[[#This Row],[Object]],SetupConstantsTable[Object],0),MATCH('Animal Graphing'!F$2,SetupConstantsTable[#Headers],0)) -> -2.5 | G3: =INDEX(SetupConstantsTable[],MATCH(AnimalGraphingTable[[#This Row],[Object]],SetupConstantsTable[Object],0),MATCH('Animal Graphing'!G$2,SetupConstantsTable[#Headers],0)) -> 120 | H3: =INDEX(SetupConstantsTable[],MATCH(AnimalGraphingTable[[#This Row],[Object]],SetupConstantsTable[Object],0),MATCH("X"&AnimalGraphingTable[[#This Row],[Version]],SetupConstantsTable[#Headers],0)) -> 49 | I3: =INDEX(SetupConstantsTable[],MATCH(AnimalGraphingTable[[#This Row],[Object]],SetupConstantsTable[Object],0),MATCH("Y"&AnimalGraphingTable[[#This Row],[Version]],SetupConstantsTable[#Headers],0)) -> -10 | J3: =IF(AnimalGraphingTable[[#This Row],[Top/Bottom]]="Shadow",Setup!$H$25,INDEX(SetupConstantsTable[],MATCH(AnimalGraphingTable[[#This Row],[Object]],SetupConstantsTable[Object],0),MATCH("Z"&AnimalGraphingTable[[#This Row],[Version]],SetupConstantsTable[#Headers],0))) -> -19.6 | K3: =AnimalGraphingTable[[#This Row],[Velocity at 0]]*NetTime+AnimalGraphingTable[[#This Row],[Starting position]] -> 49 | L3: =IF(AnimalGraphingTable[[#This Row],[Calculated position]]>0,0,ROUNDUP(-AnimalGraphingTable[[#This Row],[Calculated position]]/AnimalGraphingTable[[#This Row],[Cycle position]],0)) -> 0 | M3: =AnimalGraphingTable[[#This Row],[Offset multiplier]]*AnimalGraphingTable[[#This Row],[Cycle position]] -> 0 | N3: =AnimalGraphingTable[[#This Row],[Calculated position]]+AnimalGraphingTable[[#This Row],[Position offset]] -> 49 | O3: =IF(AnimalGraphingTable[[#This Row],[Offset multiplier]]=0,AnimalGraphingTable[[#This Row],[Starting Y lane]],MOD(ROUND(0.9*(ROUND(AnimalGraphingTable[[#This Row],[y lane randomizer]],0)-ROUNDDOWN(AnimalGraphingTable[[#This Row],[y lane randomizer]],-2)),0),22)+Yframe_min+4) -> -10 | P3: =AnimalGraphingTable[[#This Row],[Starting Z depth]] -> -19.6 | Q3: =RADIANS(AnimalGraphingTable[[#This Row],[Cycle position]]+AnimalGraphingTable[[#This Row],[Starting Y lane]]-Setup!$G$25+AnimalGraphingTable[[#This Row],[Offset multiplier]]+StartingTime)*100000 -> 77700220.19 | R3: =(AnimalGraphingTable[[#This Row],[X]]-Setup!F$25)/Setup!F$26-0.5 -> 0.08 | S3: =(AnimalGraphingTable[[#This Row],[Y]]-Setup!G$25)/Setup!G$26-0.5 -> -0.3333333333 | T3: =(AnimalGraphingTable[[#This Row],[Z]]-Setup!H$25)/Setup!H$26-0.5 -> -0.48 | U3: =IF(AnimalGraphingTable[[#This Row],[Hidden]],NA(),SUMPRODUCT(AnimalGraphingTable[[#This Row],[Norm X]:[Norm Z]],Chart_XRotationVals)) -> 0.1979898987 | V3: =SUMPRODUCT(AnimalGraphingTable[[#This Row],[Norm X]:[Norm Z]],Chart_YRotationVals) -> -0.2087032844 | W3: =OR(AND(AnimalGraphingTable[[#This Row],[Top/Bottom]]="Above Shark",AnimalGraphingTable[[#This Row],[Z]]<Zposition),AND(AnimalGraphingTable[[#This Row],[Top/Bottom]]="Below Shark",AnimalGraphingTable[[#This Row],[Z]]>Zposition)) -> FALSE | X3: =_xlfn.SWITCH(TRUE(),(AnimalGraphingTable[[#This Row],[X]]+VLOOKUP(AnimalGraphingTable[[#This Row],[Object]],SetupConstantsTable[],4,0))>Xposition+VLOOKUP("Shark",SetupConstantsTable[],4,0),"Head",(AnimalGraphingTable[[#This Row],[X]]+VLOOKUP(AnimalGraphingTable[[#This Row],[Object]],SetupConstantsTable[],5,0))<Xposition+VLOOKUP("Shark",SetupConstantsTable[],5,0),"Tail","Mid") -> Head | Y3: =INDEX(SetupConstantsTable[],MATCH(AnimalGraphingTable[[#This Row],[Object]],SetupConstantsTable[Object],0),MATCH(AnimalGraphingTable[[#This Row],[Closest sphere to Shark]],SetupConstantsTable[#Headers],0))+INDEX(SetupConstantsTable[],MATCH("Shark",SetupConstantsTable[Object],0),MATCH(AnimalGraphingTable[[#This Row],[Closest sphere to Shark]],SetupConstantsTable[#Headers],0))>AnimalGraphingTable[[#This Row],[Separation]] -> FALSE | Z3: =SQRT(AnimalGraphingTable[[#This Row],[X dist]]+AnimalGraphingTable[[#This Row],[Y dist]]+AnimalGraphingTable[[#This Row],[Z dist]]) -> 30.19619181 | AA3: =(_xlfn.IFS(AnimalGraphingTable[[#This Row],[Closest sphere to Shark]]="Head",VLOOKUP(AnimalGraphingTable[[#This Row],[Object]],SetupConstantsTable[],4,0),AnimalGraphingTable[[#This Row],[Closest sphere to Shark]]="Tail",VLOOKUP(AnimalGraphingTable[[#This Row],[Object]],SetupConstantsTable[],5,0),AnimalGraphingTable[[#This Row],[Closest sphere to Shark]]="Mid",0)+AnimalGraphingTable[[#This Row],[X]]-VLOOKUP(AnimalGraphingTable[[#This Row],[Closest sphere to Shark]],SharkBubbleTable[],5,0))^2 -> 729 | AB3: =(AnimalGraphingTable[[#This Row],[Y]]-VLOOKUP(AnimalGraphingTable[[#This Row],[Closest sphere to Shark]],SharkBubbleTable[],6,0))^2 -> 100 | AC3: =(AnimalGraphingTable[[#This Row],[Z]]-VLOOKUP(AnimalGraphingTable[[#This Row],[Closest sphere to Shark]],SharkBubbleTable[],7,0))^2 -> 82.81 | AD3: =IF(AnimalGraphingTable[[#This Row],[Top/Bottom]]="Below Shark",AnimalGraphingTable[[#This Row],[Offset multiplier]]+IF(AnimalGraphingTable[[#This Row],[X]]<50,1,0),0) -> 1
A4: J | B4: =AnimalGraphingTable[[#This Row],[Object]]&AnimalGraphingTable[[#This Row],[Version]]&LEFT(AnimalGraphingTable[[#This Row],[Top/Bottom]],1) -> J2B | C4: =VLOOKUP(AnimalGraphingTable[[#This Row],[Object]],SetupConstantsTable[],2,0)&IF(AnimalGraphingTable[[#This Row],[Top/Bottom]]="Shadow","-"&AnimalGraphingTable[[#This Row],[Top/Bottom]],"") -> Crab | D4: Below Shark | E4: 2 | F4: =INDEX(SetupConstantsTable[],MATCH(AnimalGraphingTable[[#This Row],[Object]],SetupConstantsTable[Object],0),MATCH('Animal Graphing'!F$2,SetupConstantsTable[#Headers],0)) -> -2.5 | G4: =INDEX(SetupConstantsTable[],MATCH(AnimalGraphingTable[[#This Row],[Object]],SetupConstantsTable[Object],0),MATCH('Animal Graphing'!G$2,SetupConstantsTable[#Headers],0)) -> 120 | H4: =INDEX(SetupConstantsTable[],MATCH(AnimalGraphingTable[[#This Row],[Object]],SetupConstantsTable[Object],0),MATCH("X"&AnimalGraphingTable[[#This Row],[Version]],SetupConstantsTable[#Headers],0)) -> 107 | I4: =INDEX(SetupConstantsTable[],MATCH(AnimalGraphingTable[[#This Row],[Object]],SetupConstantsTable[Object],0),MATCH("Y"&AnimalGraphingTable[[#This Row],[Version]],SetupConstantsTable[#Headers],0)) -> -8 | J4: =IF(AnimalGraphingTable[[#This Row],[Top/Bottom]]="Shadow",Setup!$H$25,INDEX(SetupConstantsTable[],MATCH(AnimalGraphingTable[[#This Row],[Object]],SetupConstantsTable[Object],0),MATCH("Z"&AnimalGraphingTable[[#This Row],[Version]],SetupConstantsTable[#Headers],0))) -> -19.6 | K4: =AnimalGraphingTable[[#This Row],[Velocity at 0]]*NetTime+AnimalGraphingTable[[#This Row],[Starting position]] -> 107 | L4: =IF(AnimalGraphingTable[[#This Row],[Calculated position]]>0,0,ROUNDUP(-AnimalGraphingTable[[#This Row],[Calculated position]]/AnimalGraphingTable[[#This Row],[Cycle position]],0)) -> 0 | M4: =AnimalGraphingTable[[#This Row],[Offset multiplier]]*AnimalGraphingTable[[#This Row],[Cycle position]] -> 0 | N4: =AnimalGraphingTable[[#This Row],[Calculated position]]+AnimalGraphingTable[[#This Row],[Position offset]] -> 107 | O4: =IF(AnimalGraphingTable[[#This Row],[Offset multiplier]]=0,AnimalGraphingTable[[#This Row],[Starting Y lane]],MOD(ROUND(0.9*(ROUND(AnimalGraphingTable[[#This Row],[y lane randomizer]],0)-ROUNDDOWN(AnimalGraphingTable[[#This Row],[y lane randomizer]],-2)),0),22)+Yframe_min+4) -> -8 | P4: =AnimalGraphingTable[[#This Row],[Starting Z depth]] -> -19.6 | Q4: =RADIANS(AnimalGraphingTable[[#This Row],[Cycle position]]+AnimalGraphingTable[[#This Row],[Starting Y lane]]-Setup!$G$25+AnimalGraphingTable[[#This Row],[Offset multiplier]]+StartingTime)*100000 -> 77703710.85 | R4: =(AnimalGraphingTable[[#This Row],[X]]-Setup!F$25)/Setup!F$26-0.5 -> 1.24 | S4: =(AnimalGraphingTable[[#This Row],[Y]]-Setup!G$25)/Setup!G$26-0.5 -> -0.2666666667 | T4: =(AnimalGraphingTable[[#This Row],[Z]]-Setup!H$25)/Setup!H$26-0.5 -> -0.48 | U4: =IF(AnimalGraphingTable[[#This Row],[Hidden]],NA(),SUMPRODUCT(AnimalGraphingTable[[#This Row],[Norm X]:[Norm Z]],Chart_XRotationVals)) -> 0.9899494937 | V4: =SUMPRODUCT(AnimalGraphingTable[[#This Row],[Norm X]:[Norm Z]],Chart_YRotationVals) -> 0.2155607843 | W4: =OR(AND(AnimalGraphingTable[[#This Row],[Top/Bottom]]="Above Shark",AnimalGraphingTable[[#This Row],[Z]]<Zposition),AND(AnimalGraphingTable[[#This Row],[Top/Bottom]]="Below Shark",AnimalGraphingTable[[#This Row],[Z]]>Zposition)) -> FALSE | X4: =_xlfn.SWITCH(TRUE(),(AnimalGraphingTable[[#This Row],[X]]+VLOOKUP(AnimalGraphingTable[[#This Row],[Object]],SetupConstantsTable[],4,0))>Xposition+VLOOKUP("Shark",SetupConstantsTable[],4,0),"Head",(AnimalGraphingTable[[#This Row],[X]]+VLOOKUP(AnimalGraphingTable[[#This Row],[Object]],SetupConstantsTable[],5,0))<Xposition+VLOOKUP("Shark",SetupConstantsTable[],5,0),"Tail","Mid") -> Head | Y4: =INDEX(SetupConstantsTable[],MATCH(AnimalGraphingTable[[#This Row],[Object]],SetupConstantsTable[Object],0),MATCH(AnimalGraphingTable[[#This Row],[Closest sphere to Shark]],SetupConstantsTable[#Headers],0))+INDEX(SetupConstantsTable[],MATCH("Shark",SetupConstantsTable[Object],0),MATCH(AnimalGraphingTable[[#This Row],[Closest sphere to Shark]],SetupConstantsTable[#Headers],0))>AnimalGraphingTable[[#This Row],[Separation]] -> FALSE | Z4: =SQRT(AnimalGraphingTable[[#This Row],[X dist]]+AnimalGraphingTable[[#This Row],[Y dist]]+AnimalGraphingTable[[#This Row],[Z dist]]) -> 85.85924528 | AA4: =(_xlfn.IFS(AnimalGraphingTable[[#This Row],[Closest sphere to Shark]]="Head",VLOOKUP(AnimalGraphingTable[[#This Row],[Object]],SetupConstantsTable[],4,0),AnimalGraphingTable[[#This Row],[Closest sphere to Shark]]="Tail",VLOOKUP(AnimalGraphingTable[[#This Row],[Object]],SetupConstantsTable[],5,0),AnimalGraphingTable[[#This Row],[Closest sphere to Shark]]="Mid",0)+AnimalGraphingTable[[#This Row],[X]]-VLOOKUP(AnimalGraphingTable[[#This Row],[Closest sphere to Shark]],SharkBubbleTable[],5,0))^2 -> 7225 | AB4: =(AnimalGraphingTable[[#This Row],[Y]]-VLOOKUP(AnimalGraphingTable[[#This Row],[Closest sphere to Shark]],SharkBubbleTable[],6,0))^2 -> 64 | AC4: =(AnimalGraphingTable[[#This Row],[Z]]-VLOOKUP(AnimalGraphingTable[[#This Row],[Closest sphere to Shark]],SharkBubbleTable[],7,0))^2 -> 82.81 | AD4: =IF(AnimalGraphingTable[[#This Row],[Top/Bottom]]="Below Shark",AnimalGraphingTable[[#This Row],[Offset multiplier]]+IF(AnimalGraphingTable[[#This Row],[X]]<50,1,0),0) -> 0
A5: I | B5: =AnimalGraphingTable[[#This Row],[Object]]&AnimalGraphingTable[[#This Row],[Version]]&LEFT(AnimalGraphingTable[[#This Row],[Top/Bottom]],1) -> I1B | C5: =VLOOKUP(AnimalGraphingTable[[#This Row],[Object]],SetupConstantsTable[],2,0)&IF(AnimalGraphingTable[[#This Row],[Top/Bottom]]="Shadow","-"&AnimalGraphingTable[[#This Row],[Top/Bottom]],"") -> Octopus | D5: Below Shark | E5: 1 | F5: =INDEX(SetupConstantsTable[],MATCH(AnimalGraphingTable[[#This Row],[Object]],SetupConstantsTable[Object],0),MATCH('Animal Graphing'!F$2,SetupConstantsTable[#Headers],0)) -> -2.5 | G5: =INDEX(SetupConstantsTable[],MATCH(AnimalGraphingTable[[#This Row],[Object]],SetupConstantsTable[Object],0),MATCH('Animal Graphing'!G$2,SetupConstantsTable[#Headers],0)) -> 130 | H5: =INDEX(SetupConstantsTable[],MATCH(AnimalGraphingTable[[#This Row],[Object]],SetupConstantsTable[Object],0),MATCH("X"&AnimalGraphingTable[[#This Row],[Version]],SetupConstantsTable[#Headers],0)) -> 39 | I5: =INDEX(SetupConstantsTable[],MATCH(AnimalGraphingTable[[#This Row],[Object]],SetupConstantsTable[Object],0),MATCH("Y"&AnimalGraphingTable[[#This Row],[Version]],SetupConstantsTable[#Headers],0)) -> -6 | J5: =IF(AnimalGraphingTable[[#This Row],[Top/Bottom]]="Shadow",Setup!$H$25,INDEX(SetupConstantsTable[],MATCH(AnimalGraphingTable[[#This Row],[Object]],SetupConstantsTable[Object],0),MATCH("Z"&AnimalGraphingTable[[#This Row],[Version]],SetupConstantsTable[#Headers],0))) -> -17 | K5: =AnimalGraphingTable[[#This Row],[Velocity at 0]]*NetTime+AnimalGraphingTable[[#This Row],[Starting position]] -> 39 | L5: =IF(AnimalGraphingTable[[#This Row],[Calculated position]]>0,0,ROUNDUP(-AnimalGraphingTable[[#This Row],[Calculated position]]/AnimalGraphingTable[[#This Row],[Cycle position]],0)) -> 0 | M5: =AnimalGraphingTable[[#This Row],[Offset multiplier]]*AnimalGraphingTable[[#This Row],[Cycle position]] -> 0 | N5: =AnimalGraphingTable[[#This Row],[Calculated position]]+AnimalGraphingTable[[#This Row],[Position offset]] -> 39 | O5: =IF(AnimalGraphingTable[[#This Row],[Offset multiplier]]=0,AnimalGraphingTable[[#This Row],[Starting Y lane]],MOD(ROUND(0.9*(ROUND(AnimalGraphingTable[[#This Row],[y lane randomizer]],0)-ROUNDDOWN(AnimalGraphingTable[[#This Row],[y lane randomizer]],-2)),0),22)+Yframe_min+4) -> -6 | P5: =AnimalGraphingTable[[#This Row],[Starting Z depth]] -> -17 | Q5: =RADIANS(AnimalGraphingTable[[#This Row],[Cycle position]]+AnimalGraphingTable[[#This Row],[Starting Y lane]]-Setup!$G$25+AnimalGraphingTable[[#This Row],[Offset multiplier]]+StartingTime)*100000 -> 77724654.8 | R5: =(AnimalGraphingTable[[#This Row],[X]]-Setup!F$25)/Setup!F$26-0.5 -> -0.12 | S5: =(AnimalGraphingTable[[#This Row],[Y]]-Setup!G$25)/Setup!G$26-0.5 -> -0.2 | T5: =(AnimalGraphingTable[[#This Row],[Z]]-Setup!H$25)/Setup!H$26-0.5 -> -0.35 | U5: =IF(AnimalGraphingTable[[#This Row],[Hidden]],NA(),SUMPRODUCT(AnimalGraphingTable[[#This Row],[Norm X]:[Norm Z]],Chart_XRotationVals)) -> -1.387778781e-17 | V5: =SUMPRODUCT(AnimalGraphingTable[[#This Row],[Norm X]:[Norm Z]],Chart_YRotationVals) -> -0.2060963703 | W5: =OR(AND(AnimalGraphingTable[[#This Row],[Top/Bottom]]="Above Shark",AnimalGraphingTable[[#This Row],[Z]]<Zposition),AND(AnimalGraphingTable[[#This Row],[Top/Bottom]]="Below Shark",AnimalGraphingTable[[#This Row],[Z]]>Zposition)) -> FALSE | X5: =_xlfn.SWITCH(TRUE(),(AnimalGraphingTable[[#This Row],[X]]+VLOOKUP(AnimalGraphingTable[[#This Row],[Object]],SetupConstantsTable[],4,0))>Xposition+VLOOKUP("Shark",SetupConstantsTable[],4,0),"Head",(AnimalGraphingTable[[#This Row],[X]]+VLOOKUP(AnimalGraphingTable[[#This Row],[Object]],SetupConstantsTable[],5,0))<Xposition+VLOOKUP("Shark",SetupConstantsTable[],5,0),"Tail","Mid") -> Head | Y5: =INDEX(SetupConstantsTable[],MATCH(AnimalGraphingTable[[#This Row],[Object]],SetupConstantsTable[Object],0),MATCH(AnimalGraphingTable[[#This Row],[Closest sphere to Shark]],SetupConstantsTable[#Headers],0))+INDEX(SetupConstantsTable[],MATCH("Shark",SetupConstantsTable[Object],0),MATCH(AnimalGraphingTable[[#This Row],[Closest sphere to Shark]],SetupConstantsTable[#Headers],0))>AnimalGraphingTable[[#This Row],[Separation]] -> FALSE | Z5: =SQRT(AnimalGraphingTable[[#This Row],[X dist]]+AnimalGraphingTable[[#This Row],[Y dist]]+AnimalGraphingTable[[#This Row],[Z dist]]) -> 19.1637679 | AA5: =(_xlfn.IFS(AnimalGraphingTable[[#This Row],[Closest sphere to Shark]]="Head",VLOOKUP(AnimalGraphingTable[[#This Row],[Object]],SetupConstantsTable[],4,0),AnimalGraphingTable[[#This Row],[Closest sphere to Shark]]="Tail",VLOOKUP(AnimalGraphingTable[[#This Row],[Object]],SetupConstantsTable[],5,0),AnimalGraphingTable[[#This Row],[Closest sphere to Shark]]="Mid",0)+AnimalGraphingTable[[#This Row],[X]]-VLOOKUP(AnimalGraphingTable[[#This Row],[Closest sphere to Shark]],SharkBubbleTable[],5,0))^2 -> 289 | AB5: =(AnimalGraphingTable[[#This Row],[Y]]-VLOOKUP(AnimalGraphingTable[[#This Row],[Closest sphere to Shark]],SharkBubbleTable[],6,0))^2 -> 36 | AC5: =(AnimalGraphingTable[[#This Row],[Z]]-VLOOKUP(AnimalGraphingTable[[#This Row],[Closest sphere to Shark]],SharkBubbleTable[],7,0))^2 -> 42.25 | AD5: =IF(AnimalGraphingTable[[#This Row],[Top/Bottom]]="Below Shark",AnimalGraphingTable[[#This Row],[Offset multiplier]]+IF(AnimalGraphingTable[[#This Row],[X]]<50,1,0),0) -> 1
A6: I | B6: =AnimalGraphingTable[[#This Row],[Object]]&AnimalGraphingTable[[#This Row],[Version]]&LEFT(AnimalGraphingTable[[#This Row],[Top/Bottom]],1) -> I2B | C6: =VLOOKUP(AnimalGraphingTable[[#This Row],[Object]],SetupConstantsTable[],2,0)&IF(AnimalGraphingTable[[#This Row],[Top/Bottom]]="Shadow","-"&AnimalGraphingTable[[#This Row],[Top/Bottom]],"") -> Octopus | D6: Below Shark | E6: 2 | F6: =INDEX(SetupConstantsTable[],MATCH(AnimalGraphingTable[[#This Row],[Object]],SetupConstantsTable[Object],0),MATCH('Animal Graphing'!F$2,SetupConstantsTable[#Headers],0)) -> -2.5 | G6: =INDEX(SetupConstantsTable[],MATCH(AnimalGraphingTable[[#This Row],[Object]],SetupConstantsTable[Object],0),MATCH('Animal Graphing'!G$2,SetupConstantsTable[#Headers],0)) -> 130 | H6: =INDEX(SetupConstantsTable[],MATCH(AnimalGraphingTable[[#This Row],[Object]],SetupConstantsTable[Object],0),MATCH("X"&AnimalGraphingTable[[#This Row],[Version]],SetupConstantsTable[#Headers],0)) -> 98 | I6: =INDEX(SetupConstantsTable[],MATCH(AnimalGraphingTable[[#This Row],[Object]],SetupConstantsTable[Object],0),MATCH("Y"&AnimalGraphingTable[[#This Row],[Version]],SetupConstantsTable[#Headers],0)) -> 1 | J6: =IF(AnimalGraphingTable[[#This Row],[Top/Bottom]]="Shadow",Setup!$H$25,INDEX(SetupConstantsTable[],MATCH(AnimalGraphingTable[[#This Row],[Object]],SetupConstantsTable[Object],0),MATCH("Z"&AnimalGraphingTable[[#This Row],[Version]],SetupConstantsTable[#Headers],0))) -> -18 | K6: =AnimalGraphingTable[[#This Row],[Velocity at 0]]*NetTime+AnimalGraphingTable[[#This Row],[Starting position]] -> 98 | L6: =IF(AnimalGraphingTable[[#This Row],[Calculated position]]>0,0,ROUNDUP(-AnimalGraphingTable[[#This Row],[Calculated position]]/AnimalGraphingTable[[#This Row],[Cycle position]],0)) -> 0 | M6: =AnimalGraphingTable[[#This Row],[Offset multiplier]]*AnimalGraphingTable[[#This Row],[Cycle position]] -> 0 | N6: =AnimalGraphingTable[[#This Row],[Calculated position]]+AnimalGraphingTable[[#This Row],[Position offset]] -> 98 | O6: =IF(AnimalGraphingTable[[#This Row],[Offset multiplier]]=0,AnimalGraphingTable[[#This Row],[Starting Y lane]],MOD(ROUND(0.9*(ROUND(AnimalGraphingTable[[#This Row],[y lane randomizer]],0)-ROUNDDOWN(AnimalGraphingTable[[#This Row],[y lane randomizer]],-2)),0),22)+Yframe_min+4) -> 1 | P6: =AnimalGraphingTable[[#This Row],[Starting Z depth]] -> -18 | Q6: =RADIANS(AnimalGraphingTable[[#This Row],[Cycle position]]+AnimalGraphingTable[[#This Row],[Starting Y lane]]-Setup!$G$25+AnimalGraphingTable[[#This Row],[Offset multiplier]]+StartingTime)*100000 -> 77736872.1 | R6: =(AnimalGraphingTable[[#This Row],[X]]-Setup!F$25)/Setup!F$26-0.5 -> 1.06 | S6: =(AnimalGraphingTable[[#This Row],[Y]]-Setup!G$25)/Setup!G$26-0.5 -> 0.03333333333 | T6: =(AnimalGraphingTable[[#This Row],[Z]]-Setup!H$25)/Setup!H$26-0.5 -> -0.4 | U6: =IF(AnimalGraphingTable[[#This Row],[Hidden]],NA(),SUMPRODUCT(AnimalGraphingTable[[#This Row],[Norm X]:[Norm Z]],Chart_XRotationVals)) -> 0.7353910524 | V6: =SUMPRODUCT(AnimalGraphingTable[[#This Row],[Norm X]:[Norm Z]],Chart_YRotationVals) -> 0.2432735972 | W6: =OR(AND(AnimalGraphingTable[[#This Row],[Top/Bottom]]="Above Shark",AnimalGraphingTable[[#This Row],[Z]]<Zposition),AND(AnimalGraphingTable[[#This Row],[Top/Bottom]]="Below Shark",AnimalGraphingTable[[#This Row],[Z]]>Zposition)) -> FALSE | X6: =_xlfn.SWITCH(TRUE(),(AnimalGraphingTable[[#This Row],[X]]+VLOOKUP(AnimalGraphingTable[[#This Row],[Object]],SetupConstantsTable[],4,0))>Xposition+VLOOKUP("Shark",SetupConstantsTable[],4,0),"Head",(AnimalGraphingTable[[#This Row],[X]]+VLOOKUP(AnimalGraphingTable[[#This Row],[Object]],SetupConstantsTable[],5,0))<Xposition+VLOOKUP("Shark",SetupConstantsTable[],5,0),"Tail","Mid") -> Head | Y6: =INDEX(SetupConstantsTable[],MATCH(AnimalGraphingTable[[#This Row],[Object]],SetupConstantsTable[Object],0),MATCH(AnimalGraphingTable[[#This Row],[Closest sphere to Shark]],SetupConstantsTable[#Headers],0))+INDEX(SetupConstantsTable[],MATCH("Shark",SetupConstantsTable[Object],0),MATCH(AnimalGraphingTable[[#This Row],[Closest sphere to Shark]],SetupConstantsTable[#Headers],0))>AnimalGraphingTable[[#This Row],[Separation]] -> FALSE | Z6: =SQRT(AnimalGraphingTable[[#This Row],[X dist]]+AnimalGraphingTable[[#This Row],[Y dist]]+AnimalGraphingTable[[#This Row],[Z dist]]) -> 76.37571604 | AA6: =(_xlfn.IFS(AnimalGraphingTable[[#This Row],[Closest sphere to Shark]]="Head",VLOOKUP(AnimalGraphingTable[[#This Row],[Object]],SetupConstantsTable[],4,0),AnimalGraphingTable[[#This Row],[Closest sphere to Shark]]="Tail",VLOOKUP(AnimalGraphingTable[[#This Row],[Object]],SetupConstantsTable[],5,0),AnimalGraphingTable[[#This Row],[Closest sphere to Shark]]="Mid",0)+AnimalGraphingTable[[#This Row],[X]]-VLOOKUP(AnimalGraphingTable[[#This Row],[Closest sphere to Shark]],SharkBubbleTable[],5,0))^2 -> 5776 | AB6: =(AnimalGraphingTable[[#This Row],[Y]]-VLOOKUP(AnimalGraphingTable[[#This Row],[Closest sphere to Shark]],SharkBubbleTable[],6,0))^2 -> 1 | AC6: =(AnimalGraphingTable[[#This Row],[Z]]-VLOOKUP(AnimalGraphingTable[[#This Row],[Closest sphere to Shark]],SharkBubbleTable[],7,0))^2 -> 56.25 | AD6: =IF(AnimalGraphingTable[[#This Row],[Top/Bottom]]="Below Shark",AnimalGraphingTable[[#This Row],[Offset multiplier]]+IF(AnimalGraphingTable[[#This Row],[X]]<50,1,0),0) -> 0
A7: H | B7: =AnimalGraphingTable[[#This Row],[Object]]&AnimalGraphingTable[[#This Row],[Version]]&LEFT(AnimalGraphingTable[[#This Row],[Top/Bottom]],1) -> H1B | C7: =VLOOKUP(AnimalGraphingTable[[#This Row],[Object]],SetupConstantsTable[],2,0)&IF(AnimalGraphingTable[[#This Row],[Top/Bottom]]="Shadow","-"&AnimalGraphingTable[[#This Row],[Top/Bottom]],"") -> Hammerhead | D7: Below Shark | E7: 1 | F7: =INDEX(SetupConstantsTable[],MATCH(AnimalGraphingTable[[#This Row],[Object]],SetupConstantsTable[Object],0),MATCH('Animal Graphing'!F$2,SetupConstantsTable[#Headers],0)) -> -4.5 | G7: =INDEX(SetupConstantsTable[],MATCH(AnimalGraphingTable[[#This Row],[Object]],SetupConstantsTable[Object],0),MATCH('Animal Graphing'!G$2,SetupConstantsTable[#Headers],0)) -> 170 | H7: =INDEX(SetupConstantsTable[],MATCH(AnimalGraphingTable[[#This Row],[Object]],SetupConstantsTable[Object],0),MATCH("X"&AnimalGraphingTable[[#This Row],[Version]],SetupConstantsTable[#Headers],0)) -> 88 | I7: =INDEX(SetupConstantsTable[],MATCH(AnimalGraphingTable[[#This Row],[Object]],SetupConstantsTable[Object],0),MATCH("Y"&AnimalGraphingTable[[#This Row],[Version]],SetupConstantsTable[#Headers],0)) -> 8 | J7: =IF(AnimalGraphingTable[[#This Row],[Top/Bottom]]="Shadow",Setup!$H$25,INDEX(SetupConstantsTable[],MATCH(AnimalGraphingTable[[#This Row],[Object]],SetupConstantsTable[Object],0),MATCH("Z"&AnimalGraphingTable[[#This Row],[Version]],SetupConstantsTable[#Headers],0))) -> -15 | K7: =AnimalGraphingTable[[#This Row],[Velocity at 0]]*NetTime+AnimalGraphingTable[[#This Row],[Starting position]] -> 88 | L7: =IF(AnimalGraphingTable[[#This Row],[Calculated position]]>0,0,ROUNDUP(-AnimalGraphingTable[[#This Row],[Calculated position]]/AnimalGraphingTable[[#This Row],[Cycle position]],0)) -> 0 | M7: =AnimalGraphingTable[[#This Row],[Offset multiplier]]*AnimalGraphingTable[[#This Row],[Cycle position]] -> 0 | N7: =AnimalGraphingTable[[#This Row],[Calculated position]]+AnimalGraphingTable[[#This Row],[Position offset]] -> 88 | O7: =IF(AnimalGraphingTable[[#This Row],[Offset multiplier]]=0,AnimalGraphingTable[[#This Row],[Starting Y lane]],MOD(ROUND(0.9*(ROUND(AnimalGraphingTable[[#This Row],[y lane randomizer]],0)-ROUNDDOWN(AnimalGraphingTable[[#This Row],[y lane randomizer]],-2)),0),22)+Yframe_min+4) -> 8 | P7: =AnimalGraphingTable[[#This Row],[Starting Z depth]] -> -15 | Q7: =RADIANS(AnimalGraphingTable[[#This Row],[Cycle position]]+AnimalGraphingTable[[#This Row],[Starting Y lane]]-Setup!$G$25+AnimalGraphingTable[[#This Row],[Offset multiplier]]+StartingTime)*100000 -> 77818902.58 | R7: =(AnimalGraphingTable[[#This Row],[X]]-Setup!F$25)/Setup!F$26-0.5 -> 0.86 | S7: =(AnimalGraphingTable[[#This Row],[Y]]-Setup!G$25)/Setup!G$26-0.5 -> 0.2666666667 | T7: =(AnimalGraphingTable[[#This Row],[Z]]-Setup!H$25)/Setup!H$26-0.5 -> -0.25 | U7: =IF(AnimalGraphingTable[[#This Row],[Hidden]],NA(),SUMPRODUCT(AnimalGraphingTable[[#This Row],[Norm X]:[Norm Z]],Chart_XRotationVals)) -> 0.4949747468 | V7: =SUMPRODUCT(AnimalGraphingTable[[#This Row],[Norm X]:[Norm Z]],Chart_YRotationVals) -> 0.274021918 | W7: =OR(AND(AnimalGraphingTable[[#This Row],[Top/Bottom]]="Above Shark",AnimalGraphingTable[[#This Row],[Z]]<Zposition),AND(AnimalGraphingTable[[#This Row],[Top/Bottom]]="Below Shark",AnimalGraphingTable[[#This Row],[Z]]>Zposition)) -> FALSE | X7: =_xlfn.SWITCH(TRUE(),(AnimalGraphingTable[[#This Row],[X]]+VLOOKUP(AnimalGraphingTable[[#This Row],[Object]],SetupConstantsTable[],4,0))>Xposition+VLOOKUP("Shark",SetupConstantsTable[],4,0),"Head",(AnimalGraphingTable[[#This Row],[X]]+VLOOKUP(AnimalGraphingTable[[#This Row],[Object]],SetupConstantsTable[],5,0))<Xposition+VLOOKUP("Shark",SetupConstantsTable[],5,0),"Tail","Mid") -> Head | Y7: =INDEX(SetupConstantsTable[],MATCH(AnimalGraphingTable[[#This Row],[Object]],SetupConstantsTable[Object],0),MATCH(AnimalGraphingTable[[#This Row],[Closest sphere to Shark]],SetupConstantsTable[#Headers],0))+INDEX(SetupConstantsTable[],MATCH("Shark",SetupConstantsTable[Object],0),MATCH(AnimalGraphingTable[[#This Row],[Closest sphere to Shark]],SetupConstantsTable[#Headers],0))>AnimalGraphingTable[[#This Row],[Separation]] -> FALSE | Z7: =SQRT(AnimalGraphingTable[[#This Row],[X dist]]+AnimalGraphingTable[[#This Row],[Y dist]]+AnimalGraphingTable[[#This Row],[Z dist]]) -> 69.60783002 | AA7: =(_xlfn.IFS(AnimalGraphingTable[[#This Row],[Closest sphere to Shark]]="Head",VLOOKUP(AnimalGraphingTable[[#This Row],[Object]],SetupConstantsTable[],4,0),AnimalGraphingTable[[#This Row],[Closest sphere to Shark]]="Tail",VLOOKUP(AnimalGraphingTable[[#This Row],[Object]],SetupConstantsTable[],5,0),AnimalGraphingTable[[#This Row],[Closest sphere to Shark]]="Mid",0)+AnimalGraphingTable[[#This Row],[X]]-VLOOKUP(AnimalGraphingTable[[#This Row],[Closest sphere to Shark]],SharkBubbleTable[],5,0))^2 -> 4761 | AB7: =(AnimalGraphingTable[[#This Row],[Y]]-VLOOKUP(AnimalGraphingTable[[#This Row],[Closest sphere to Shark]],SharkBubbleTable[],6,0))^2 -> 64 | AC7: =(AnimalGraphingTable[[#This Row],[Z]]-VLOOKUP(AnimalGraphingTable[[#This Row],[Closest sphere to Shark]],SharkBubbleTable[],7,0))^2 -> 20.25 | AD7: =IF(AnimalGraphingTable[[#This Row],[Top/Bottom]]="Below Shark",AnimalGraphingTable[[#This Row],[Offset multiplier]]+IF(AnimalGraphingTable[[#This Row],[X]]<50,1,0),0) -> 0
A8: H | B8: =AnimalGraphingTable[[#This Row],[Object]]&AnimalGraphingTable[[#This Row],[Version]]&LEFT(AnimalGraphingTable[[#This Row],[Top/Bottom]],1) -> H2B | C8: =VLOOKUP(AnimalGraphingTable[[#This Row],[Object]],SetupConstantsTable[],2,0)&IF(AnimalGraphingTable[[#This Row],[Top/Bottom]]="Shadow","-"&AnimalGraphingTable[[#This Row],[Top/Bottom]],"") -> Hammerhead | D8: Below Shark | E8: 2 | F8: =INDEX(SetupConstantsTable[],MATCH(AnimalGraphingTable[[#This Row],[Object]],SetupConstantsTable[Object],0),MATCH('Animal Graphing'!F$2,SetupConstantsTable[#Headers],0)) -> -4.5 | G8: =INDEX(SetupConstantsTable[],MATCH(AnimalGraphingTable[[#This Row],[Object]],SetupConstantsTable[Object],0),MATCH('Animal Graphing'!G$2,SetupConstantsTable[#Headers],0)) -> 170 | H8: =INDEX(SetupConstantsTable[],MATCH(AnimalGraphingTable[[#This Row],[Object]],SetupConstantsTable[Object],0),MATCH("X"&AnimalGraphingTable[[#This Row],[Version]],SetupConstantsTable[#Headers],0)) -> 162 | I8: =INDEX(SetupConstantsTable[],MATCH(AnimalGraphingTable[[#This Row],[Object]],SetupConstantsTable[Object],0),MATCH("Y"&AnimalGraphingTable[[#This Row],[Version]],SetupConstantsTable[#Headers],0)) -> -4 | J8: =IF(AnimalGraphingTable[[#This Row],[Top/Bottom]]="Shadow",Setup!$H$25,INDEX(SetupConstantsTable[],MATCH(AnimalGraphingTable[[#This Row],[Object]],SetupConstantsTable[Object],0),MATCH("Z"&AnimalGraphingTable[[#This Row],[Version]],SetupConstantsTable[#Headers],0))) -> -14 | K8: =AnimalGraphingTable[[#This Row],[Velocity at 0]]*NetTime+AnimalGraphingTable[[#This Row],[Starting position]] -> 162 | L8: =IF(AnimalGraphingTable[[#This Row],[Calculated position]]>0,0,ROUNDUP(-AnimalGraphingTable[[#This Row],[Calculated position]]/AnimalGraphingTable[[#This Row],[Cycle position]],0)) -> 0 | M8: =AnimalGraphingTable[[#This Row],[Offset multiplier]]*AnimalGraphingTable[[#This Row],[Cycle position]] -> 0 | N8: =AnimalGraphingTable[[#This Row],[Calculated position]]+AnimalGraphingTable[[#This Row],[Position offset]] -> 162 | O8: =IF(AnimalGraphingTable[[#This Row],[Offset multiplier]]=0,AnimalGraphingTable[[#This Row],[Starting Y lane]],MOD(ROUND(0.9*(ROUND(AnimalGraphingTable[[#This Row],[y lane randomizer]],0)-ROUNDDOWN(AnimalGraphingTable[[#This Row],[y lane randomizer]],-2)),0),22)+Yframe_min+4) -> -4 | P8: =AnimalGraphingTable[[#This Row],[Starting Z depth]] -> -14 | Q8: =RADIANS(AnimalGraphingTable[[#This Row],[Cycle position]]+AnimalGraphingTable[[#This Row],[Starting Y lane]]-Setup!$G$25+AnimalGraphingTable[[#This Row],[Offset multiplier]]+StartingTime)*100000 -> 77797958.63 | R8: =(AnimalGraphingTable[[#This Row],[X]]-Setup!F$25)/Setup!F$26-0.5 -> 2.34 | S8: =(AnimalGraphingTable[[#This Row],[Y]]-Setup!G$25)/Setup!G$26-0.5 -> -0.1333333333 | T8: =(AnimalGraphingTable[[#This Row],[Z]]-Setup!H$25)/Setup!H$26-0.5 -> -0.2 | U8: =IF(AnimalGraphingTable[[#This Row],[Hidden]],NA(),SUMPRODUCT(AnimalGraphingTable[[#This Row],[Norm X]:[Norm Z]],Chart_XRotationVals)) -> 1.71119841 | V8: =SUMPRODUCT(AnimalGraphingTable[[#This Row],[Norm X]:[Norm Z]],Chart_YRotationVals) -> 0.7297486304 | W8: =OR(AND(AnimalGraphingTable[[#This Row],[Top/Bottom]]="Above Shark",AnimalGraphingTable[[#This Row],[Z]]<Zposition),AND(AnimalGraphingTable[[#This Row],[Top/Bottom]]="Below Shark",AnimalGraphingTable[[#This Row],[Z]]>Zposition)) -> FALSE | X8: =_xlfn.SWITCH(TRUE(),(AnimalGraphingTable[[#This Row],[X]]+VLOOKUP(AnimalGraphingTable[[#This Row],[Object]],SetupConstantsTable[],4,0))>Xposition+VLOOKUP("Shark",SetupConstantsTable[],4,0),"Head",(AnimalGraphingTable[[#This Row],[X]]+VLOOKUP(AnimalGraphingTable[[#This Row],[Object]],SetupConstantsTable[],5,0))<Xposition+VLOOKUP("Shark",SetupConstantsTable[],5,0),"Tail","Mid") -> Head | Y8: =INDEX(SetupConstantsTable[],MATCH(AnimalGraphingTable[[#This Row],[Object]],SetupConstantsTable[Object],0),MATCH(AnimalGraphingTable[[#This Row],[Closest sphere to Shark]],SetupConstantsTable[#Headers],0))+INDEX(SetupConstantsTable[],MATCH("Shark",SetupConstantsTable[Object],0),MATCH(AnimalGraphingTable[[#This Row],[Closest sphere to Shark]],SetupConstantsTable[#Headers],0))>AnimalGraphingTable[[#This Row],[Separation]] -> FALSE | Z8: =SQRT(AnimalGraphingTable[[#This Row],[X dist]]+AnimalGraphingTable[[#This Row],[Y dist]]+AnimalGraphingTable[[#This Row],[Z dist]]) -> 143.0987421 | AA8: =(_xlfn.IFS(AnimalGraphingTable[[#This Row],[Closest sphere to Shark]]="Head",VLOOKUP(AnimalGraphingTable[[#This Row],[Object]],SetupConstantsTable[],4,0),AnimalGraphingTable[[#This Row],[Closest sphere to Shark]]="Tail",VLOOKUP(AnimalGraphingTable[[#This Row],[Object]],SetupConstantsTable[],5,0),AnimalGraphingTable[[#This Row],[Closest sphere to Shark]]="Mid",0)+AnimalGraphingTable[[#This Row],[X]]-VLOOKUP(AnimalGraphingTable[[#This Row],[Closest sphere to Shark]],SharkBubbleTable[],5,0))^2 -> 20449 | AB8: =(AnimalGraphingTable[[#This Row],[Y]]-VLOOKUP(AnimalGraphingTable[[#This Row],[Closest sphere to Shark]],SharkBubbleTable[],6,0))^2 -> 16 | AC8: =(AnimalGraphingTable[[#This Row],[Z]]-VLOOKUP(AnimalGraphingTable[[#This Row],[Closest sphere to Shark]],SharkBubbleTable[],7,0))^2 -> 12.25 | AD8: =IF(AnimalGraphingTable[[#This Row],[Top/Bottom]]="Below Shark",AnimalGraphingTable[[#This Row],[Offset multiplier]]+IF(AnimalGraphingTable[[#This Row],[X]]<50,1,0),0) -> 0
A9: F | B9: =AnimalGraphingTable[[#This Row],[Object]]&AnimalGraphingTable[[#This Row],[Version]]&LEFT(AnimalGraphingTable[[#This Row],[Top/Bottom]],1) -> F1B | C9: =VLOOKUP(AnimalGraphingTable[[#This Row],[Object]],SetupConstantsTable[],2,0)&IF(AnimalGraphingTable[[#This Row],[Top/Bottom]]="Shadow","-"&AnimalGraphingTable[[#This Row],[Top/Bottom]],"") -> Turtle | D9: Below Shark | E9: 1 | F9: =INDEX(SetupConstantsTable[],MATCH(AnimalGraphingTable[[#This Row],[Object]],SetupConstantsTable[Object],0),MATCH('Animal Graphing'!F$2,SetupConstantsTable[#Headers],0)) -> -2.5 | G9: =INDEX(SetupConstantsTable[],MATCH(AnimalGraphingTable[[#This Row],[Object]],SetupConstantsTable[Object],0),MATCH('Animal Graphing'!G$2,SetupConstantsTable[#Headers],0)) -> 140 | H9: =INDEX(SetupConstantsTable[],MATCH(AnimalGraphingTable[[#This Row],[Object]],SetupConstantsTable[Object],0),MATCH("X"&AnimalGraphingTable[[#This Row],[Version]],SetupConstantsTable[#Headers],0)) -> 42 | I9: =INDEX(SetupConstantsTable[],MATCH(AnimalGraphingTable[[#This Row],[Object]],SetupConstantsTable[Object],0),MATCH("Y"&AnimalGraphingTable[[#This Row],[Version]],SetupConstantsTable[#Headers],0)) -> 9 | J9: =IF(AnimalGraphingTable[[#This Row],[Top/Bottom]]="Shadow",Setup!$H$25,INDEX(SetupConstantsTable[],MATCH(AnimalGraphingTable[[#This Row],[Object]],SetupConstantsTable[Object],0),MATCH("Z"&AnimalGraphingTable[[#This Row],[Version]],SetupConstantsTable[#Headers],0))) -> -11 | K9: =AnimalGraphingTable[[#This Row],[Velocity at 0]]*NetTime+AnimalGraphingTable[[#This Row],[Starting position]] -> 42 | L9: =IF(AnimalGraphingTable[[#This Row],[Calculated position]]>0,0,ROUNDUP(-AnimalGraphingTable[[#This Row],[Calculated position]]/AnimalGraphingTable[[#This Row],[Cycle position]],0)) -> 0 | M9: =AnimalGraphingTable[[#This Row],[Offset multiplier]]*AnimalGraphingTable[[#This Row],[Cycle position]] -> 0 | N9: =AnimalGraphingTable[[#This Row],[Calculated position]]+AnimalGraphingTable[[#This Row],[Position offset]] -> 42 | O9: =IF(AnimalGraphingTable[[#This Row],[Offset multiplier]]=0,AnimalGraphingTable[[#This Row],[Starting Y lane]],MOD(ROUND(0.9*(ROUND(AnimalGraphingTable[[#This Row],[y lane randomizer]],0)-ROUNDDOWN(AnimalGraphingTable[[#This Row],[y lane randomizer]],-2)),0),22)+Yframe_min+4) -> 9 | P9: =AnimalGraphingTable[[#This Row],[Starting Z depth]] -> -11 | Q9: =RADIANS(AnimalGraphingTable[[#This Row],[Cycle position]]+AnimalGraphingTable[[#This Row],[Starting Y lane]]-Setup!$G$25+AnimalGraphingTable[[#This Row],[Offset multiplier]]+StartingTime)*100000 -> 77768288.03 | R9: =(AnimalGraphingTable[[#This Row],[X]]-Setup!F$25)/Setup!F$26-0.5 -> -0.06 | S9: =(AnimalGraphingTable[[#This Row],[Y]]-Setup!G$25)/Setup!G$26-0.5 -> 0.3 | T9: =(AnimalGraphingTable[[#This Row],[Z]]-Setup!H$25)/Setup!H$26-0.5 -> -0.05 | U9: =IF(AnimalGraphingTable[[#This Row],[Hidden]],NA(),SUMPRODUCT(AnimalGraphingTable[[#This Row],[Norm X]:[Norm Z]],Chart_XRotationVals)) -> -0.1697056275 | V9: =SUMPRODUCT(AnimalGraphingTable[[#This Row],[Norm X]:[Norm Z]],Chart_YRotationVals) -> 0.0251058988 | W9: =OR(AND(AnimalGraphingTable[[#This Row],[Top/Bottom]]="Above Shark",AnimalGraphingTable[[#This Row],[Z]]<Zposition),AND(AnimalGraphingTable[[#This Row],[Top/Bottom]]="Below Shark",AnimalGraphingTable[[#This Row],[Z]]>Zposition)) -> FALSE | X9: =_xlfn.SWITCH(TRUE(),(AnimalGraphingTable[[#This Row],[X]]+VLOOKUP(AnimalGraphingTable[[#This Row],[Object]],SetupConstantsTable[],4,0))>Xposition+VLOOKUP("Shark",SetupConstantsTable[],4,0),"Head",(AnimalGraphingTable[[#This Row],[X]]+VLOOKUP(AnimalGraphingTable[[#This Row],[Object]],SetupConstantsTable[],5,0))<Xposition+VLOOKUP("Shark",SetupConstantsTable[],5,0),"Tail","Mid") -> Head | Y9: =INDEX(SetupConstantsTable[],MATCH(AnimalGraphingTable[[#This Row],[Object]],SetupConstantsTable[Object],0),MATCH(AnimalGraphingTable[[#This Row],[Closest sphere to Shark]],SetupConstantsTable[#Headers],0))+INDEX(SetupConstantsTable[],MATCH("Shark",SetupConstantsTable[Object],0),MATCH(AnimalGraphingTable[[#This Row],[Closest sphere to Shark]],SetupConstantsTable[#Headers],0))>AnimalGraphingTable[[#This Row],[Separation]] -> FALSE | Z9: =SQRT(AnimalGraphingTable[[#This Row],[X dist]]+AnimalGraphingTable[[#This Row],[Y dist]]+AnimalGraphingTable[[#This Row],[Z dist]]) -> 21.93741097 | AA9: =(_xlfn.IFS(AnimalGraphingTable[[#This Row],[Closest sphere to Shark]]="Head",VLOOKUP(AnimalGraphingTable[[#This Row],[Object]],SetupConstantsTable[],4,0),AnimalGraphingTable[[#This Row],[Closest sphere to Shark]]="Tail",VLOOKUP(AnimalGraphingTable[[#This Row],[Object]],SetupConstantsTable[],5,0),AnimalGraphingTable[[#This Row],[Closest sphere to Shark]]="Mid",0)+AnimalGraphingTable[[#This Row],[X]]-VLOOKUP(AnimalGraphingTable[[#This Row],[Closest sphere to Shark]],SharkBubbleTable[],5,0))^2 -> 400 | AB9: =(AnimalGraphingTable[[#This Row],[Y]]-VLOOKUP(AnimalGraphingTable[[#This Row],[Closest sphere to Shark]],SharkBubbleTable[],6,0))^2 -> 81 | AC9: =(AnimalGraphingTable[[#This Row],[Z]]-VLOOKUP(AnimalGraphingTable[[#This Row],[Closest sphere to Shark]],SharkBubbleTable[],7,0))^2 -> 0.25 | AD9: =IF(AnimalGraphingTable[[#This Row],[Top/Bottom]]="Below Shark",AnimalGraphingTable[[#This Row],[Offset multiplier]]+IF(AnimalGraphingTable[[#This Row],[X]]<50,1,0),0) -> 1
A10: F | B10: =AnimalGraphingTable[[#This Row],[Object]]&AnimalGraphingTable[[#This Row],[Version]]&LEFT(AnimalGraphingTable[[#This Row],[Top/Bottom]],1) -> F2B | C10: =VLOOKUP(AnimalGraphingTable[[#This Row],[Object]],SetupConstantsTable[],2,0)&IF(AnimalGraphingTable[[#This Row],[Top/Bottom]]="Shadow","-"&AnimalGraphingTable[[#This Row],[Top/Bottom]],"") -> Turtle | D10: Below Shark | E10: 2 | F10: =INDEX(SetupConstantsTable[],MATCH(AnimalGraphingTable[[#This Row],[Object]],SetupConstantsTable[Object],0),MATCH('Animal Graphing'!F$2,SetupConstantsTable[#Headers],0)) -> -2.5 | G10: =INDEX(SetupConstantsTable[],MATCH(AnimalGraphingTable[[#This Row],[Object]],SetupConstantsTable[Object],0),MATCH('Animal Graphing'!G$2,SetupConstantsTable[#Headers],0)) -> 140 | H10: =INDEX(SetupConstantsTable[],MATCH(AnimalGraphingTable[[#This Row],[Object]],SetupConstantsTable[Object],0),MATCH("X"&AnimalGraphingTable[[#This Row],[Version]],SetupConstantsTable[#Headers],0)) -> 97 | I10: =INDEX(SetupConstantsTable[],MATCH(AnimalGraphingTable[[#This Row],[Object]],SetupConstantsTable[Object],0),MATCH("Y"&AnimalGraphingTable[[#This Row],[Version]],SetupConstantsTable[#Headers],0)) -> 7 | J10: =IF(AnimalGraphingTable[[#This Row],[Top/Bottom]]="Shadow",Setup!$H$25,INDEX(SetupConstantsTable[],MATCH(AnimalGraphingTable[[#This Row],[Object]],SetupConstantsTable[Object],0),MATCH("Z"&AnimalGraphingTable[[#This Row],[Version]],SetupConstantsTable[#Headers],0))) -> -12 | K10: =AnimalGraphingTable[[#This Row],[Velocity at 0]]*NetTime+AnimalGraphingTable[[#This Row],[Starting position]] -> 97 | L10: =IF(AnimalGraphingTable[[#This Row],[Calculated position]]>0,0,ROUNDUP(-AnimalGraphingTable[[#This Row],[Calculated position]]/AnimalGraphingTable[[#This Row],[Cycle position]],0)) -> 0 | M10: =AnimalGraphingTable[[#This Row],[Offset multiplier]]*AnimalGraphingTable[[#This Row],[Cycle position]] -> 0 | N10: =AnimalGraphingTable[[#This Row],[Calculated position]]+AnimalGraphingTable[[#This Row],[Position offset]] -> 97 | O10: =IF(AnimalGraphingTable[[#This Row],[Offset multiplier]]=0,AnimalGraphingTable[[#This Row],[Starting Y lane]],MOD(ROUND(0.9*(ROUND(AnimalGraphingTable[[#This Row],[y lane randomizer]],0)-ROUNDDOWN(AnimalGraphingTable[[#This Row],[y lane randomizer]],-2)),0),22)+Yframe_min+4) -> 7 | P10: =AnimalGraphingTable[[#This Row],[Starting Z depth]] -> -12 | Q10: =RADIANS(AnimalGraphingTable[[#This Row],[Cycle position]]+AnimalGraphingTable[[#This Row],[Starting Y lane]]-Setup!$G$25+AnimalGraphingTable[[#This Row],[Offset multiplier]]+StartingTime)*100000 -> 77764797.37 | R10: =(AnimalGraphingTable[[#This Row],[X]]-Setup!F$25)/Setup!F$26-0.5 -> 1.04 | S10: =(AnimalGraphingTable[[#This Row],[Y]]-Setup!G$25)/Setup!G$26-0.5 -> 0.2333333333 | T10: =(AnimalGraphingTable[[#This Row],[Z]]-Setup!H$25)/Setup!H$26-0.5 -> -0.1 | U10: =IF(AnimalGraphingTable[[#This Row],[Hidden]],NA(),SUMPRODUCT(AnimalGraphingTable[[#This Row],[Norm X]:[Norm Z]],Chart_XRotationVals)) -> 0.6363961031 | V10: =SUMPRODUCT(AnimalGraphingTable[[#This Row],[Norm X]:[Norm Z]],Chart_YRotationVals) -> 0.3825519847 | W10: =OR(AND(AnimalGraphingTable[[#This Row],[Top/Bottom]]="Above Shark",AnimalGraphingTable[[#This Row],[Z]]<Zposition),AND(AnimalGraphingTable[[#This Row],[Top/Bottom]]="Below Shark",AnimalGraphingTable[[#This Row],[Z]]>Zposition)) -> FALSE | X10: =_xlfn.SWITCH(TRUE(),(AnimalGraphingTable[[#This Row],[X]]+VLOOKUP(AnimalGraphingTable[[#This Row],[Object]],SetupConstantsTable[],4,0))>Xposition+VLOOKUP("Shark",SetupConstantsTable[],4,0),"Head",(AnimalGraphingTable[[#This Row],[X]]+VLOOKUP(AnimalGraphingTable[[#This Row],[Object]],SetupConstantsTable[],5,0))<Xposition+VLOOKUP("Shark",SetupConstantsTable[],5,0),"Tail","Mid") -> Head | Y10: =INDEX(SetupConstantsTable[],MATCH(AnimalGraphingTable[[#This Row],[Object]],SetupConstantsTable[Object],0),MATCH(AnimalGraphingTable[[#This Row],[Closest sphere to Shark]],SetupConstantsTable[#Headers],0))+INDEX(SetupConstantsTable[],MATCH("Shark",SetupConstantsTable[Object],0),MATCH(AnimalGraphingTable[[#This Row],[Closest sphere to Shark]],SetupConstantsTable[#Headers],0))>AnimalGraphingTable[[#This Row],[Separation]] -> FALSE | Z10: =SQRT(AnimalGraphingTable[[#This Row],[X dist]]+AnimalGraphingTable[[#This Row],[Y dist]]+AnimalGraphingTable[[#This Row],[Z dist]]) -> 75.34089195 | AA10: =(_xlfn.IFS(AnimalGraphingTable[[#This Row],[Closest sphere to Shark]]="Head",VLOOKUP(AnimalGraphingTable[[#This Row],[Object]],SetupConstantsTable[],4,0),AnimalGraphingTable[[#This Row],[Closest sphere to Shark]]="Tail",VLOOKUP(AnimalGraphingTable[[#This Row],[Object]],SetupConstantsTable[],5,0),AnimalGraphingTable[[#This Row],[Closest sphere to Shark]]="Mid",0)+AnimalGraphingTable[[#This Row],[X]]-VLOOKUP(AnimalGraphingTable[[#This Row],[Closest sphere to Shark]],SharkBubbleTable[],5,0))^2 -> 5625 | AB10: =(AnimalGraphingTable[[#This Row],[Y]]-VLOOKUP(AnimalGraphingTable[[#This Row],[Closest sphere to Shark]],SharkBubbleTable[],6,0))^2 -> 49 | AC10: =(AnimalGraphingTable[[#This Row],[Z]]-VLOOKUP(AnimalGraphingTable[[#This Row],[Closest sphere to Shark]],SharkBubbleTable[],7,0))^2 -> 2.25 | AD10: =IF(AnimalGraphingTable[[#This Row],[Top/Bottom]]="Below Shark",AnimalGraphingTable[[#This Row],[Offset multiplier]]+IF(AnimalGraphingTable[[#This Row],[X]]<50,1,0),0) -> 0
A11: D | B11: =AnimalGraphingTable[[#This Row],[Object]]&AnimalGraphingTable[[#This Row],[Version]]&LEFT(AnimalGraphingTable[[#This Row],[Top/Bottom]],1) -> D1B | C11: =VLOOKUP(AnimalGraphingTable[[#This Row],[Object]],SetupConstantsTable[],2,0)&IF(AnimalGraphingTable[[#This Row],[Top/Bottom]]="Shadow","-"&AnimalGraphingTable[[#This Row],[Top/Bottom]],"") -> Jellyfish | D11: Below Shark | E11: 1 | F11: =INDEX(SetupConstantsTable[],MATCH(AnimalGraphingTable[[#This Row],[Object]],SetupConstantsTable[Object],0),MATCH('Animal Graphing'!F$2,SetupConstantsTable[#Headers],0)) -> -2.5 | G11: =INDEX(SetupConstantsTable[],MATCH(AnimalGraphingTable[[#This Row],[Object]],SetupConstantsTable[Object],0),MATCH('Animal Graphing'!G$2,SetupConstantsTable[#Headers],0)) -> 165 | H11: =INDEX(SetupConstantsTable[],MATCH(AnimalGraphingTable[[#This Row],[Object]],SetupConstantsTable[Object],0),MATCH("X"&AnimalGraphingTable[[#This Row],[Version]],SetupConstantsTable[#Headers],0)) -> 50 | I11: =INDEX(SetupConstantsTable[],MATCH(AnimalGraphingTable[[#This Row],[Object]],SetupConstantsTable[Object],0),MATCH("Y"&AnimalGraphingTable[[#This Row],[Version]],SetupConstantsTable[#Headers],0)) -> 9 | J11: =IF(AnimalGraphingTable[[#This Row],[Top/Bottom]]="Shadow",Setup!$H$25,INDEX(SetupConstantsTable[],MATCH(AnimalGraphingTable[[#This Row],[Object]],SetupConstantsTable[Object],0),MATCH("Z"&AnimalGraphingTable[[#This Row],[Version]],SetupConstantsTable[#Headers],0))) -> -10 | K11: =AnimalGraphingTable[[#This Row],[Velocity at 0]]*NetTime+AnimalGraphingTable[[#This Row],[Starting position]] -> 50 | L11: =IF(AnimalGraphingTable[[#This Row],[Calculated position]]>0,0,ROUNDUP(-AnimalGraphingTable[[#This Row],[Calculated position]]/AnimalGraphingTable[[#This Row],[Cycle position]],0)) -> 0 | M11: =AnimalGraphingTable[[#This Row],[Offset multiplier]]*AnimalGraphingTable[[#This Row],[Cycle position]] -> 0 | N11: =AnimalGraphingTable[[#This Row],[Calculated position]]+AnimalGraphingTable[[#This Row],[Position offset]] -> 50 | O11: =IF(AnimalGraphingTable[[#This Row],[Offset multiplier]]=0,AnimalGraphingTable[[#This Row],[Starting Y lane]],MOD(ROUND(0.9*(ROUND(AnimalGraphingTable[[#This Row],[y lane randomizer]],0)-ROUNDDOWN(AnimalGraphingTable[[#This Row],[y lane randomizer]],-2)),0),22)+Yframe_min+4) -> 9 | P11: =AnimalGraphingTable[[#This Row],[Starting Z depth]] -> -10 | Q11: =RADIANS(AnimalGraphingTable[[#This Row],[Cycle position]]+AnimalGraphingTable[[#This Row],[Starting Y lane]]-Setup!$G$25+AnimalGraphingTable[[#This Row],[Offset multiplier]]+StartingTime)*100000 -> 77811921.26 | R11: =(AnimalGraphingTable[[#This Row],[X]]-Setup!F$25)/Setup!F$26-0.5 -> 0.1 | S11: =(AnimalGraphingTable[[#This Row],[Y]]-Setup!G$25)/Setup!G$26-0.5 -> 0.3 | T11: =(AnimalGraphingTable[[#This Row],[Z]]-Setup!H$25)/Setup!H$26-0.5 -> 0 | U11: =IF(AnimalGraphingTable[[#This Row],[Hidden]],NA(),SUMPRODUCT(AnimalGraphingTable[[#This Row],[Norm X]:[Norm Z]],Chart_XRotationVals)) ->  | V11: =SUMPRODUCT(AnimalGraphingTable[[#This Row],[Norm X]:[Norm Z]],Chart_YRotationVals) -> 0.09899494937 | W11: =OR(AND(AnimalGraphingTable[[#This Row],[Top/Bottom]]="Above Shark",AnimalGraphingTable[[#This Row],[Z]]<Zposition),AND(AnimalGraphingTable[[#This Row],[Top/Bottom]]="Below Shark",AnimalGraphingTable[[#This Row],[Z]]>Zposition)) -> TRUE | X11: =_xlfn.SWITCH(TRUE(),(AnimalGraphingTable[[#This Row],[X]]+VLOOKUP(AnimalGraphingTable[[#This Row],[Object]],SetupConstantsTable[],4,0))>Xposition+VLOOKUP("Shark",SetupConstantsTable[],4,0),"Head",(AnimalGraphingTable[[#This Row],[X]]+VLOOKUP(AnimalGraphingTable[[#This Row],[Object]],SetupConstantsTable[],5,0))<Xposition+VLOOKUP("Shark",SetupConstantsTable[],5,0),"Tail","Mid") -> Head | Y11: =INDEX(SetupConstantsTable[],MATCH(AnimalGraphingTable[[#This Row],[Object]],SetupConstantsTable[Object],0),MATCH(AnimalGraphingTable[[#This Row],[Closest sphere to Shark]],SetupConstantsTable[#Headers],0))+INDEX(SetupConstantsTable[],MATCH("Shark",SetupConstantsTable[Object],0),MATCH(AnimalGraphingTable[[#This Row],[Closest sphere to Shark]],SetupConstantsTable[#Headers],0))>AnimalGraphingTable[[#This Row],[Separation]] -> FALSE | Z11: =SQRT(AnimalGraphingTable[[#This Row],[X dist]]+AnimalGraphingTable[[#This Row],[Y dist]]+AnimalGraphingTable[[#This Row],[Z dist]]) -> 29.41513216 | AA11: =(_xlfn.IFS(AnimalGraphingTable[[#This Row],[Closest sphere to Shark]]="Head",VLOOKUP(AnimalGraphingTable[[#This Row],[Object]],SetupConstantsTable[],4,0),AnimalGraphingTable[[#This Row],[Closest sphere to Shark]]="Tail",VLOOKUP(AnimalGraphingTable[[#This Row],[Object]],SetupConstantsTable[],5,0),AnimalGraphingTable[[#This Row],[Closest sphere to Shark]]="Mid",0)+AnimalGraphingTable[[#This Row],[X]]-VLOOKUP(AnimalGraphingTable[[#This Row],[Closest sphere to Shark]],SharkBubbleTable[],5,0))^2 -> 784 | AB11: =(AnimalGraphingTable[[#This Row],[Y]]-VLOOKUP(AnimalGraphingTable[[#This Row],[Closest sphere to Shark]],SharkBubbleTable[],6,0))^2 -> 81 | AC11: =(AnimalGraphingTable[[#This Row],[Z]]-VLOOKUP(AnimalGraphingTable[[#This Row],[Closest sphere to Shark]],SharkBubbleTable[],7,0))^2 -> 0.25 | AD11: =IF(AnimalGraphingTable[[#This Row],[Top/Bottom]]="Below Shark",AnimalGraphingTable[[#This Row],[Offset multiplier]]+IF(AnimalGraphingTable[[#This Row],[X]]<50,1,0),0) -> 0
A12: D | B12: =AnimalGraphingTable[[#This Row],[Object]]&AnimalGraphingTable[[#This Row],[Version]]&LEFT(AnimalGraphingTable[[#This Row],[Top/Bottom]],1) -> D2B | C12: =VLOOKUP(AnimalGraphingTable[[#This Row],[Object]],SetupConstantsTable[],2,0)&IF(AnimalGraphingTable[[#This Row],[Top/Bottom]]="Shadow","-"&AnimalGraphingTable[[#This Row],[Top/Bottom]],"") -> Jellyfish | D12: Below Shark | E12: 2 | F12: =INDEX(SetupConstantsTable[],MATCH(AnimalGraphingTable[[#This Row],[Object]],SetupConstantsTable[Object],0),MATCH('Animal Graphing'!F$2,SetupConstantsTable[#Headers],0)) -> -2.5 | G12: =INDEX(SetupConstantsTable[],MATCH(AnimalGraphingTable[[#This Row],[Object]],SetupConstantsTable[Object],0),MATCH('Animal Graphing'!G$2,SetupConstantsTable[#Headers],0)) -> 165 | H12: =INDEX(SetupConstantsTable[],MATCH(AnimalGraphingTable[[#This Row],[Object]],SetupConstantsTable[Object],0),MATCH("X"&AnimalGraphingTable[[#This Row],[Version]],SetupConstantsTable[#Headers],0)) -> 99 | I12: =INDEX(SetupConstantsTable[],MATCH(AnimalGraphingTable[[#This Row],[Object]],SetupConstantsTable[Object],0),MATCH("Y"&AnimalGraphingTable[[#This Row],[Version]],SetupConstantsTable[#Headers],0)) -> 6 | J12: =IF(AnimalGraphingTable[[#This Row],[Top/Bottom]]="Shadow",Setup!$H$25,INDEX(SetupConstantsTable[],MATCH(AnimalGraphingTable[[#This Row],[Object]],SetupConstantsTable[Object],0),MATCH("Z"&AnimalGraphingTable[[#This Row],[Version]],SetupConstantsTable[#Headers],0))) -> -9 | K12: =AnimalGraphingTable[[#This Row],[Velocity at 0]]*NetTime+AnimalGraphingTable[[#This Row],[Starting position]] -> 99 | L12: =IF(AnimalGraphingTable[[#This Row],[Calculated position]]>0,0,ROUNDUP(-AnimalGraphingTable[[#This Row],[Calculated position]]/AnimalGraphingTable[[#This Row],[Cycle position]],0)) -> 0 | M12: =AnimalGraphingTable[[#This Row],[Offset multiplier]]*AnimalGraphingTable[[#This Row],[Cycle position]] -> 0 | N12: =AnimalGraphingTable[[#This Row],[Calculated position]]+AnimalGraphingTable[[#This Row],[Position offset]] -> 99 | O12: =IF(AnimalGraphingTable[[#This Row],[Offset multiplier]]=0,AnimalGraphingTable[[#This Row],[Starting Y lane]],MOD(ROUND(0.9*(ROUND(AnimalGraphingTable[[#This Row],[y lane randomizer]],0)-ROUNDDOWN(AnimalGraphingTable[[#This Row],[y lane randomizer]],-2)),0),22)+Yframe_min+4) -> 6 | P12: =AnimalGraphingTable[[#This Row],[Starting Z depth]] -> -9 | Q12: =RADIANS(AnimalGraphingTable[[#This Row],[Cycle position]]+AnimalGraphingTable[[#This Row],[Starting Y lane]]-Setup!$G$25+AnimalGraphingTable[[#This Row],[Offset multiplier]]+StartingTime)*100000 -> 77806685.27 | R12: =(AnimalGraphingTable[[#This Row],[X]]-Setup!F$25)/Setup!F$26-0.5 -> 1.08 | S12: =(AnimalGraphingTable[[#This Row],[Y]]-Setup!G$25)/Setup!G$26-0.5 -> 0.2 | T12: =(AnimalGraphingTable[[#This Row],[Z]]-Setup!H$25)/Setup!H$26-0.5 -> 0.05 | U12: =IF(AnimalGraphingTable[[#This Row],[Hidden]],NA(),SUMPRODUCT(AnimalGraphingTable[[#This Row],[Norm X]:[Norm Z]],Chart_XRotationVals)) ->  | V12: =SUMPRODUCT(AnimalGraphingTable[[#This Row],[Norm X]:[Norm Z]],Chart_YRotationVals) -> 0.4415845768 | W12: =OR(AND(AnimalGraphingTable[[#This Row],[Top/Bottom]]="Above Shark",AnimalGraphingTable[[#This Row],[Z]]<Zposition),AND(AnimalGraphingTable[[#This Row],[Top/Bottom]]="Below Shark",AnimalGraphingTable[[#This Row],[Z]]>Zposition)) -> TRUE | X12: =_xlfn.SWITCH(TRUE(),(AnimalGraphingTable[[#This Row],[X]]+VLOOKUP(AnimalGraphingTable[[#This Row],[Object]],SetupConstantsTable[],4,0))>Xposition+VLOOKUP("Shark",SetupConstantsTable[],4,0),"Head",(AnimalGraphingTable[[#This Row],[X]]+VLOOKUP(AnimalGraphingTable[[#This Row],[Object]],SetupConstantsTable[],5,0))<Xposition+VLOOKUP("Shark",SetupConstantsTable[],5,0),"Tail","Mid") -> Head | Y12: =INDEX(SetupConstantsTable[],MATCH(AnimalGraphingTable[[#This Row],[Object]],SetupConstantsTable[Object],0),MATCH(AnimalGraphingTable[[#This Row],[Closest sphere to Shark]],SetupConstantsTable[#Headers],0))+INDEX(SetupConstantsTable[],MATCH("Shark",SetupConstantsTable[Object],0),MATCH(AnimalGraphingTable[[#This Row],[Closest sphere to Shark]],SetupConstantsTable[#Headers],0))>AnimalGraphingTable[[#This Row],[Separation]] -> FALSE | Z12: =SQRT(AnimalGraphingTable[[#This Row],[X dist]]+AnimalGraphingTable[[#This Row],[Y dist]]+AnimalGraphingTable[[#This Row],[Z dist]]) -> 77.24797732 | AA12: =(_xlfn.IFS(AnimalGraphingTable[[#This Row],[Closest sphere to Shark]]="Head",VLOOKUP(AnimalGraphingTable[[#This Row],[Object]],SetupConstantsTable[],4,0),AnimalGraphingTable[[#This Row],[Closest sphere to Shark]]="Tail",VLOOKUP(AnimalGraphingTable[[#This Row],[Object]],SetupConstantsTable[],5,0),AnimalGraphingTable[[#This Row],[Closest sphere to Shark]]="Mid",0)+AnimalGraphingTable[[#This Row],[X]]-VLOOKUP(AnimalGraphingTable[[#This Row],[Closest sphere to Shark]],SharkBubbleTable[],5,0))^2 -> 5929 | AB12: =(AnimalGraphingTable[[#This Row],[Y]]-VLOOKUP(AnimalGraphingTable[[#This Row],[Closest sphere to Shark]],SharkBubbleTable[],6,0))^2 -> 36 | AC12: =(AnimalGraphingTable[[#This Row],[Z]]-VLOOKUP(AnimalGraphingTable[[#This Row],[Closest sphere to Shark]],SharkBubbleTable[],7,0))^2 -> 2.25 | AD12: =IF(AnimalGraphingTable[[#This Row],[Top/Bottom]]="Below Shark",AnimalGraphingTable[[#This Row],[Offset multiplier]]+IF(AnimalGraphingTable[[#This Row],[X]]<50,1,0),0) -> 0
A13: C | B13: =AnimalGraphingTable[[#This Row],[Object]]&AnimalGraphingTable[[#This Row],[Version]]&LEFT(AnimalGraphingTable[[#This Row],[Top/Bottom]],1) -> C1B | C13: =VLOOKUP(AnimalGraphingTable[[#This Row],[Object]],SetupConstantsTable[],2,0)&IF(AnimalGraphingTable[[#This Row],[Top/Bottom]]="Shadow","-"&AnimalGraphingTable[[#This Row],[Top/Bottom]],"") -> Orca | D13: Below Shark | E13: 1 | F13: =INDEX(SetupConstantsTable[],MATCH(AnimalGraphingTable[[#This Row],[Object]],SetupConstantsTable[Object],0),MATCH('Animal Graphing'!F$2,SetupConstantsTable[#Headers],0)) -> -5 | G13: =INDEX(SetupConstantsTable[],MATCH(AnimalGraphingTable[[#This Row],[Object]],SetupConstantsTable[Object],0),MATCH('Animal Graphing'!G$2,SetupConstantsTable[#Headers],0)) -> 260 | H13: =INDEX(SetupConstantsTable[],MATCH(AnimalGraphingTable[[#This Row],[Object]],SetupConstantsTable[Object],0),MATCH("X"&AnimalGraphingTable[[#This Row],[Version]],SetupConstantsTable[#Headers],0)) -> 67 | I13: =INDEX(SetupConstantsTable[],MATCH(AnimalGraphingTable[[#This Row],[Object]],SetupConstantsTable[Object],0),MATCH("Y"&AnimalGraphingTable[[#This Row],[Version]],SetupConstantsTable[#Headers],0)) -> -7 | J13: =IF(AnimalGraphingTable[[#This Row],[Top/Bottom]]="Shadow",Setup!$H$25,INDEX(SetupConstantsTable[],MATCH(AnimalGraphingTable[[#This Row],[Object]],SetupConstantsTable[Object],0),MATCH("Z"&AnimalGraphingTable[[#This Row],[Version]],SetupConstantsTable[#Headers],0))) -> -6 | K13: =AnimalGraphingTable[[#This Row],[Velocity at 0]]*NetTime+AnimalGraphingTable[[#This Row],[Starting position]] -> 67 | L13: =IF(AnimalGraphingTable[[#This Row],[Calculated position]]>0,0,ROUNDUP(-AnimalGraphingTable[[#This Row],[Calculated position]]/AnimalGraphingTable[[#This Row],[Cycle position]],0)) -> 0 | M13: =AnimalGraphingTable[[#This Row],[Offset multiplier]]*AnimalGraphingTable[[#This Row],[Cycle position]] -> 0 | N13: =AnimalGraphingTable[[#This Row],[Calculated position]]+AnimalGraphingTable[[#This Row],[Position offset]] -> 67 | O13: =IF(AnimalGraphingTable[[#This Row],[Offset multiplier]]=0,AnimalGraphingTable[[#This Row],[Starting Y lane]],MOD(ROUND(0.9*(ROUND(AnimalGraphingTable[[#This Row],[y lane randomizer]],0)-ROUNDDOWN(AnimalGraphingTable[[#This Row],[y lane randomizer]],-2)),0),22)+Yframe_min+4) -> -7 | P13: =AnimalGraphingTable[[#This Row],[Starting Z depth]] -> -6 | Q13: =RADIANS(AnimalGraphingTable[[#This Row],[Cycle position]]+AnimalGraphingTable[[#This Row],[Starting Y lane]]-Setup!$G$25+AnimalGraphingTable[[#This Row],[Offset multiplier]]+StartingTime)*100000 -> 77949802.27 | R13: =(AnimalGraphingTable[[#This Row],[X]]-Setup!F$25)/Setup!F$26-0.5 -> 0.44 | S13: =(AnimalGraphingTable[[#This Row],[Y]]-Setup!G$25)/Setup!G$26-0.5 -> -0.2333333333 | T13: =(AnimalGraphingTable[[#This Row],[Z]]-Setup!H$25)/Setup!H$26-0.5 -> 0.2 | U13: =IF(AnimalGraphingTable[[#This Row],[Hidden]],NA(),SUMPRODUCT(AnimalGraphingTable[[#This Row],[Norm X]:[Norm Z]],Chart_XRotationVals)) ->  | V13: =SUMPRODUCT(AnimalGraphingTable[[#This Row],[Norm X]:[Norm Z]],Chart_YRotationVals) -> 0.1753480495 | W13: =OR(AND(AnimalGraphingTable[[#This Row],[Top/Bottom]]="Above Shark",AnimalGraphingTable[[#This Row],[Z]]<Zposition),AND(AnimalGraphingTable[[#This Row],[Top/Bottom]]="Below Shark",AnimalGraphingTable[[#This Row],[Z]]>Zposition)) -> TRUE | X13: =_xlfn.SWITCH(TRUE(),(AnimalGraphingTable[[#This Row],[X]]+VLOOKUP(AnimalGraphingTable[[#This Row],[Object]],SetupConstantsTable[],4,0))>Xposition+VLOOKUP("Shark",SetupConstantsTable[],4,0),"Head",(AnimalGraphingTable[[#This Row],[X]]+VLOOKUP(AnimalGraphingTable[[#This Row],[Object]],SetupConstantsTable[],5,0))<Xposition+VLOOKUP("Shark",SetupConstantsTable[],5,0),"Tail","Mid") -> Head | Y13: =INDEX(SetupConstantsTable[],MATCH(AnimalGraphingTable[[#This Row],[Object]],SetupConstantsTable[Object],0),MATCH(AnimalGraphingTable[[#This Row],[Closest sphere to Shark]],SetupConstantsTable[#Headers],0))+INDEX(SetupConstantsTable[],MATCH("Shark",SetupConstantsTable[Object],0),MATCH(AnimalGraphingTable[[#This Row],[Closest sphere to Shark]],SetupConstantsTable[#Headers],0))>AnimalGraphingTable[[#This Row],[Separation]] -> FALSE | Z13: =SQRT(AnimalGraphingTable[[#This Row],[X dist]]+AnimalGraphingTable[[#This Row],[Y dist]]+AnimalGraphingTable[[#This Row],[Z dist]]) -> 41.83598929 | AA13: =(_xlfn.IFS(AnimalGraphingTable[[#This Row],[Closest sphere to Shark]]="Head",VLOOKUP(AnimalGraphingTable[[#This Row],[Object]],SetupConstantsTable[],4,0),AnimalGraphingTable[[#This Row],[Closest sphere to Shark]]="Tail",VLOOKUP(AnimalGraphingTable[[#This Row],[Object]],SetupConstantsTable[],5,0),AnimalGraphingTable[[#This Row],[Closest sphere to Shark]]="Mid",0)+AnimalGraphingTable[[#This Row],[X]]-VLOOKUP(AnimalGraphingTable[[#This Row],[Closest sphere to Shark]],SharkBubbleTable[],5,0))^2 -> 1681 | AB13: =(AnimalGraphingTable[[#This Row],[Y]]-VLOOKUP(AnimalGraphingTable[[#This Row],[Closest sphere to Shark]],SharkBubbleTable[],6,0))^2 -> 49 | AC13: =(AnimalGraphingTable[[#This Row],[Z]]-VLOOKUP(AnimalGraphingTable[[#This Row],[Closest sphere to Shark]],SharkBubbleTable[],7,0))^2 -> 20.25 | AD13: =IF(AnimalGraphingTable[[#This Row],[Top/Bottom]]="Below Shark",AnimalGraphingTable[[#This Row],[Offset multiplier]]+IF(AnimalGraphingTable[[#This Row],[X]]<50,1,0),0) -> 0
A14: C | B14: =AnimalGraphingTable[[#This Row],[Object]]&AnimalGraphingTable[[#This Row],[Version]]&LEFT(AnimalGraphingTable[[#This Row],[Top/Bottom]],1) -> C2B | C14: =VLOOKUP(AnimalGraphingTable[[#This Row],[Object]],SetupConstantsTable[],2,0)&IF(AnimalGraphingTable[[#This Row],[Top/Bottom]]="Shadow","-"&AnimalGraphingTable[[#This Row],[Top/Bottom]],"") -> Orca | D14: Below Shark | E14: 2 | F14: =INDEX(SetupConstantsTable[],MATCH(AnimalGraphingTable[[#This Row],[Object]],SetupConstantsTable[Object],0),MATCH('Animal Graphing'!F$2,SetupConstantsTable[#Headers],0)) -> -5 | G14: =INDEX(SetupConstantsTable[],MATCH(AnimalGraphingTable[[#This Row],[Object]],SetupConstantsTable[Object],0),MATCH('Animal Graphing'!G$2,SetupConstantsTable[#Headers],0)) -> 260 | H14: =INDEX(SetupConstantsTable[],MATCH(AnimalGraphingTable[[#This Row],[Object]],SetupConstantsTable[Object],0),MATCH("X"&AnimalGraphingTable[[#This Row],[Version]],SetupConstantsTable[#Headers],0)) -> 195 | I14: =INDEX(SetupConstantsTable[],MATCH(AnimalGraphingTable[[#This Row],[Object]],SetupConstantsTable[Object],0),MATCH("Y"&AnimalGraphingTable[[#This Row],[Version]],SetupConstantsTable[#Headers],0)) -> -1 | J14: =IF(AnimalGraphingTable[[#This Row],[Top/Bottom]]="Shadow",Setup!$H$25,INDEX(SetupConstantsTable[],MATCH(AnimalGraphingTable[[#This Row],[Object]],SetupConstantsTable[Object],0),MATCH("Z"&AnimalGraphingTable[[#This Row],[Version]],SetupConstantsTable[#Headers],0))) -> -7 | K14: =AnimalGraphingTable[[#This Row],[Velocity at 0]]*NetTime+AnimalGraphingTable[[#This Row],[Starting position]] -> 195 | L14: =IF(AnimalGraphingTable[[#This Row],[Calculated position]]>0,0,ROUNDUP(-AnimalGraphingTable[[#This Row],[Calculated position]]/AnimalGraphingTable[[#This Row],[Cycle position]],0)) -> 0 | M14: =AnimalGraphingTable[[#This Row],[Offset multiplier]]*AnimalGraphingTable[[#This Row],[Cycle position]] -> 0 | N14: =AnimalGraphingTable[[#This Row],[Calculated position]]+AnimalGraphingTable[[#This Row],[Position offset]] -> 195 | O14: =IF(AnimalGraphingTable[[#This Row],[Offset multiplier]]=0,AnimalGraphingTable[[#This Row],[Starting Y lane]],MOD(ROUND(0.9*(ROUND(AnimalGraphingTable[[#This Row],[y lane randomizer]],0)-ROUNDDOWN(AnimalGraphingTable[[#This Row],[y lane randomizer]],-2)),0),22)+Yframe_min+4) -> -1 | P14: =AnimalGraphingTable[[#This Row],[Starting Z depth]] -> -7 | Q14: =RADIANS(AnimalGraphingTable[[#This Row],[Cycle position]]+AnimalGraphingTable[[#This Row],[Starting Y lane]]-Setup!$G$25+AnimalGraphingTable[[#This Row],[Offset multiplier]]+StartingTime)*100000 -> 77960274.25 | R14: =(AnimalGraphingTable[[#This Row],[X]]-Setup!F$25)/Setup!F$26-0.5 -> 3 | S14: =(AnimalGraphingTable[[#This Row],[Y]]-Setup!G$25)/Setup!G$26-0.5 -> -0.03333333333 | T14: =(AnimalGraphingTable[[#This Row],[Z]]-Setup!H$25)/Setup!H$26-0.5 -> 0.15 | U14: =IF(AnimalGraphingTable[[#This Row],[Hidden]],NA(),SUMPRODUCT(AnimalGraphingTable[[#This Row],[Norm X]:[Norm Z]],Chart_XRotationVals)) ->  | V14: =SUMPRODUCT(AnimalGraphingTable[[#This Row],[Norm X]:[Norm Z]],Chart_YRotationVals) -> 1.105550628 | W14: =OR(AND(AnimalGraphingTable[[#This Row],[Top/Bottom]]="Above Shark",AnimalGraphingTable[[#This Row],[Z]]<Zposition),AND(AnimalGraphingTable[[#This Row],[Top/Bottom]]="Below Shark",AnimalGraphingTable[[#This Row],[Z]]>Zposition)) -> TRUE | X14: =_xlfn.SWITCH(TRUE(),(AnimalGraphingTable[[#This Row],[X]]+VLOOKUP(AnimalGraphingTable[[#This Row],[Object]],SetupConstantsTable[],4,0))>Xposition+VLOOKUP("Shark",SetupConstantsTable[],4,0),"Head",(AnimalGraphingTable[[#This Row],[X]]+VLOOKUP(AnimalGraphingTable[[#This Row],[Object]],SetupConstantsTable[],5,0))<Xposition+VLOOKUP("Shark",SetupConstantsTable[],5,0),"Tail","Mid") -> Head | Y14: =INDEX(SetupConstantsTable[],MATCH(AnimalGraphingTable[[#This Row],[Object]],SetupConstantsTable[Object],0),MATCH(AnimalGraphingTable[[#This Row],[Closest sphere to Shark]],SetupConstantsTable[#Headers],0))+INDEX(SetupConstantsTable[],MATCH("Shark",SetupConstantsTable[Object],0),MATCH(AnimalGraphingTable[[#This Row],[Closest sphere to Shark]],SetupConstantsTable[#Headers],0))>AnimalGraphingTable[[#This Row],[Separation]] -> FALSE | Z14: =SQRT(AnimalGraphingTable[[#This Row],[X dist]]+AnimalGraphingTable[[#This Row],[Y dist]]+AnimalGraphingTable[[#This Row],[Z dist]]) -> 169.0391966 | AA14: =(_xlfn.IFS(AnimalGraphingTable[[#This Row],[Closest sphere to Shark]]="Head",VLOOKUP(AnimalGraphingTable[[#This Row],[Object]],SetupConstantsTable[],4,0),AnimalGraphingTable[[#This Row],[Closest sphere to Shark]]="Tail",VLOOKUP(AnimalGraphingTable[[#This Row],[Object]],SetupConstantsTable[],5,0),AnimalGraphingTable[[#This Row],[Closest sphere to Shark]]="Mid",0)+AnimalGraphingTable[[#This Row],[X]]-VLOOKUP(AnimalGraphingTable[[#This Row],[Closest sphere to Shark]],SharkBubbleTable[],5,0))^2 -> 28561 | AB14: =(AnimalGraphingTable[[#This Row],[Y]]-VLOOKUP(AnimalGraphingTable[[#This Row],[Closest sphere to Shark]],SharkBubbleTable[],6,0))^2 -> 1 | AC14: =(AnimalGraphingTable[[#This Row],[Z]]-VLOOKUP(AnimalGraphingTable[[#This Row],[Closest sphere to Shark]],SharkBubbleTable[],7,0))^2 -> 12.25 | AD14: =IF(AnimalGraphingTable[[#This Row],[Top/Bottom]]="Below Shark",AnimalGraphingTable[[#This Row],[Offset multiplier]]+IF(AnimalGraphingTable[[#This Row],[X]]<50,1,0),0) -> 0
A15: B | B15: =AnimalGraphingTable[[#This Row],[Object]]&AnimalGraphingTable[[#This Row],[Version]]&LEFT(AnimalGraphingTable[[#This Row],[Top/Bottom]],1) -> B1B | C15: =VLOOKUP(AnimalGraphingTable[[#This Row],[Object]],SetupConstantsTable[],2,0)&IF(AnimalGraphingTable[[#This Row],[Top/Bottom]]="Shadow","-"&AnimalGraphingTable[[#This Row],[Top/Bottom]],"") -> Sting Ray | D15: Below Shark | E15: 1 | F15: =INDEX(SetupConstantsTable[],MATCH(AnimalGraphingTable[[#This Row],[Object]],SetupConstantsTable[Object],0),MATCH('Animal Graphing'!F$2,SetupConstantsTable[#Headers],0)) -> -3.5 | G15: =INDEX(SetupConstantsTable[],MATCH(AnimalGraphingTable[[#This Row],[Object]],SetupConstantsTable[Object],0),MATCH('Animal Graphing'!G$2,SetupConstantsTable[#Headers],0)) -> 110 | H15: =INDEX(SetupConstantsTable[],MATCH(AnimalGraphingTable[[#This Row],[Object]],SetupConstantsTable[Object],0),MATCH("X"&AnimalGraphingTable[[#This Row],[Version]],SetupConstantsTable[#Headers],0)) -> 25 | I15: =INDEX(SetupConstantsTable[],MATCH(AnimalGraphingTable[[#This Row],[Object]],SetupConstantsTable[Object],0),MATCH("Y"&AnimalGraphingTable[[#This Row],[Version]],SetupConstantsTable[#Headers],0)) -> 6 | J15: =IF(AnimalGraphingTable[[#This Row],[Top/Bottom]]="Shadow",Setup!$H$25,INDEX(SetupConstantsTable[],MATCH(AnimalGraphingTable[[#This Row],[Object]],SetupConstantsTable[Object],0),MATCH("Z"&AnimalGraphingTable[[#This Row],[Version]],SetupConstantsTable[#Headers],0))) -> -3 | K15: =AnimalGraphingTable[[#This Row],[Velocity at 0]]*NetTime+AnimalGraphingTable[[#This Row],[Starting position]] -> 25 | L15: =IF(AnimalGraphingTable[[#This Row],[Calculated position]]>0,0,ROUNDUP(-AnimalGraphingTable[[#This Row],[Calculated position]]/AnimalGraphingTable[[#This Row],[Cycle position]],0)) -> 0 | M15: =AnimalGraphingTable[[#This Row],[Offset multiplier]]*AnimalGraphingTable[[#This Row],[Cycle position]] -> 0 | N15: =AnimalGraphingTable[[#This Row],[Calculated position]]+AnimalGraphingTable[[#This Row],[Position offset]] -> 25 | O15: =IF(AnimalGraphingTable[[#This Row],[Offset multiplier]]=0,AnimalGraphingTable[[#This Row],[Starting Y lane]],MOD(ROUND(0.9*(ROUND(AnimalGraphingTable[[#This Row],[y lane randomizer]],0)-ROUNDDOWN(AnimalGraphingTable[[#This Row],[y lane randomizer]],-2)),0),22)+Yframe_min+4) -> 6 | P15: =AnimalGraphingTable[[#This Row],[Starting Z depth]] -> -3 | Q15: =RADIANS(AnimalGraphingTable[[#This Row],[Cycle position]]+AnimalGraphingTable[[#This Row],[Starting Y lane]]-Setup!$G$25+AnimalGraphingTable[[#This Row],[Offset multiplier]]+StartingTime)*100000 -> 77710692.16 | R15: =(AnimalGraphingTable[[#This Row],[X]]-Setup!F$25)/Setup!F$26-0.5 -> -0.4 | S15: =(AnimalGraphingTable[[#This Row],[Y]]-Setup!G$25)/Setup!G$26-0.5 -> 0.2 | T15: =(AnimalGraphingTable[[#This Row],[Z]]-Setup!H$25)/Setup!H$26-0.5 -> 0.35 | U15: =IF(AnimalGraphingTable[[#This Row],[Hidden]],NA(),SUMPRODUCT(AnimalGraphingTable[[#This Row],[Norm X]:[Norm Z]],Chart_XRotationVals)) ->  | V15: =SUMPRODUCT(AnimalGraphingTable[[#This Row],[Norm X]:[Norm Z]],Chart_YRotationVals) -> 0.02224860716 | W15: =OR(AND(AnimalGraphingTable[[#This Row],[Top/Bottom]]="Above Shark",AnimalGraphingTable[[#This Row],[Z]]<Zposition),AND(AnimalGraphingTable[[#This Row],[Top/Bottom]]="Below Shark",AnimalGraphingTable[[#This Row],[Z]]>Zposition)) -> TRUE | X15: =_xlfn.SWITCH(TRUE(),(AnimalGraphingTable[[#This Row],[X]]+VLOOKUP(AnimalGraphingTable[[#This Row],[Object]],SetupConstantsTable[],4,0))>Xposition+VLOOKUP("Shark",SetupConstantsTable[],4,0),"Head",(AnimalGraphingTable[[#This Row],[X]]+VLOOKUP(AnimalGraphingTable[[#This Row],[Object]],SetupConstantsTable[],5,0))<Xposition+VLOOKUP("Shark",SetupConstantsTable[],5,0),"Tail","Mid") -> Head | Y15: =INDEX(SetupConstantsTable[],MATCH(AnimalGraphingTable[[#This Row],[Object]],SetupConstantsTable[Object],0),MATCH(AnimalGraphingTable[[#This Row],[Closest sphere to Shark]],SetupConstantsTable[#Headers],0))+INDEX(SetupConstantsTable[],MATCH("Shark",SetupConstantsTable[Object],0),MATCH(AnimalGraphingTable[[#This Row],[Closest sphere to Shark]],SetupConstantsTable[#Headers],0))>AnimalGraphingTable[[#This Row],[Separation]] -> FALSE | Z15: =SQRT(AnimalGraphingTable[[#This Row],[X dist]]+AnimalGraphingTable[[#This Row],[Y dist]]+AnimalGraphingTable[[#This Row],[Z dist]]) -> 10.40432602 | AA15: =(_xlfn.IFS(AnimalGraphingTable[[#This Row],[Closest sphere to Shark]]="Head",VLOOKUP(AnimalGraphingTable[[#This Row],[Object]],SetupConstantsTable[],4,0),AnimalGraphingTable[[#This Row],[Closest sphere to Shark]]="Tail",VLOOKUP(AnimalGraphingTable[[#This Row],[Object]],SetupConstantsTable[],5,0),AnimalGraphingTable[[#This Row],[Closest sphere to Shark]]="Mid",0)+AnimalGraphingTable[[#This Row],[X]]-VLOOKUP(AnimalGraphingTable[[#This Row],[Closest sphere to Shark]],SharkBubbleTable[],5,0))^2 -> 16 | AB15: =(AnimalGraphingTable[[#This Row],[Y]]-VLOOKUP(AnimalGraphingTable[[#This Row],[Closest sphere to Shark]],SharkBubbleTable[],6,0))^2 -> 36 | AC15: =(AnimalGraphingTable[[#This Row],[Z]]-VLOOKUP(AnimalGraphingTable[[#This Row],[Closest sphere to Shark]],SharkBubbleTable[],7,0))^2 -> 56.25 | AD15: =IF(AnimalGraphingTable[[#This Row],[Top/Bottom]]="Below Shark",AnimalGraphingTable[[#This Row],[Offset multiplier]]+IF(AnimalGraphingTable[[#This Row],[X]]<50,1,0),0) -> 1
A16: B | B16: =AnimalGraphingTable[[#This Row],[Object]]&AnimalGraphingTable[[#This Row],[Version]]&LEFT(AnimalGraphingTable[[#This Row],[Top/Bottom]],1) -> B2B | C16: =VLOOKUP(AnimalGraphingTable[[#This Row],[Object]],SetupConstantsTable[],2,0)&IF(AnimalGraphingTable[[#This Row],[Top/Bottom]]="Shadow","-"&AnimalGraphingTable[[#This Row],[Top/Bottom]],"") -> Sting Ray | D16: Below Shark | E16: 2 | F16: =INDEX(SetupConstantsTable[],MATCH(AnimalGraphingTable[[#This Row],[Object]],SetupConstantsTable[Object],0),MATCH('Animal Graphing'!F$2,SetupConstantsTable[#Headers],0)) -> -3.5 | G16: =INDEX(SetupConstantsTable[],MATCH(AnimalGraphingTable[[#This Row],[Object]],SetupConstantsTable[Object],0),MATCH('Animal Graphing'!G$2,SetupConstantsTable[#Headers],0)) -> 110 | H16: =INDEX(SetupConstantsTable[],MATCH(AnimalGraphingTable[[#This Row],[Object]],SetupConstantsTable[Object],0),MATCH("X"&AnimalGraphingTable[[#This Row],[Version]],SetupConstantsTable[#Headers],0)) -> 78 | I16: =INDEX(SetupConstantsTable[],MATCH(AnimalGraphingTable[[#This Row],[Object]],SetupConstantsTable[Object],0),MATCH("Y"&AnimalGraphingTable[[#This Row],[Version]],SetupConstantsTable[#Headers],0)) -> 10 | J16: =IF(AnimalGraphingTable[[#This Row],[Top/Bottom]]="Shadow",Setup!$H$25,INDEX(SetupConstantsTable[],MATCH(AnimalGraphingTable[[#This Row],[Object]],SetupConstantsTable[Object],0),MATCH("Z"&AnimalGraphingTable[[#This Row],[Version]],SetupConstantsTable[#Headers],0))) -> -4 | K16: =AnimalGraphingTable[[#This Row],[Velocity at 0]]*NetTime+AnimalGraphingTable[[#This Row],[Starting position]] -> 78 | L16: =IF(AnimalGraphingTable[[#This Row],[Calculated position]]>0,0,ROUNDUP(-AnimalGraphingTable[[#This Row],[Calculated position]]/AnimalGraphingTable[[#This Row],[Cycle position]],0)) -> 0 | M16: =AnimalGraphingTable[[#This Row],[Offset multiplier]]*AnimalGraphingTable[[#This Row],[Cycle position]] -> 0 | N16: =AnimalGraphingTable[[#This Row],[Calculated position]]+AnimalGraphingTable[[#This Row],[Position offset]] -> 78 | O16: =IF(AnimalGraphingTable[[#This Row],[Offset multiplier]]=0,AnimalGraphingTable[[#This Row],[Starting Y lane]],MOD(ROUND(0.9*(ROUND(AnimalGraphingTable[[#This Row],[y lane randomizer]],0)-ROUNDDOWN(AnimalGraphingTable[[#This Row],[y lane randomizer]],-2)),0),22)+Yframe_min+4) -> 10 | P16: =AnimalGraphingTable[[#This Row],[Starting Z depth]] -> -4 | Q16: =RADIANS(AnimalGraphingTable[[#This Row],[Cycle position]]+AnimalGraphingTable[[#This Row],[Starting Y lane]]-Setup!$G$25+AnimalGraphingTable[[#This Row],[Offset multiplier]]+StartingTime)*100000 -> 77717673.48 | R16: =(AnimalGraphingTable[[#This Row],[X]]-Setup!F$25)/Setup!F$26-0.5 -> 0.66 | S16: =(AnimalGraphingTable[[#This Row],[Y]]-Setup!G$25)/Setup!G$26-0.5 -> 0.3333333333 | T16: =(AnimalGraphingTable[[#This Row],[Z]]-Setup!H$25)/Setup!H$26-0.5 -> 0.3 | U16: =IF(AnimalGraphingTable[[#This Row],[Hidden]],NA(),SUMPRODUCT(AnimalGraphingTable[[#This Row],[Norm X]:[Norm Z]],Chart_XRotationVals)) ->  | V16: =SUMPRODUCT(AnimalGraphingTable[[#This Row],[Norm X]:[Norm Z]],Chart_YRotationVals) -> 0.4079789644 | W16: =OR(AND(AnimalGraphingTable[[#This Row],[Top/Bottom]]="Above Shark",AnimalGraphingTable[[#This Row],[Z]]<Zposition),AND(AnimalGraphingTable[[#This Row],[Top/Bottom]]="Below Shark",AnimalGraphingTable[[#This Row],[Z]]>Zposition)) -> TRUE | X16: =_xlfn.SWITCH(TRUE(),(AnimalGraphingTable[[#This Row],[X]]+VLOOKUP(AnimalGraphingTable[[#This Row],[Object]],SetupConstantsTable[],4,0))>Xposition+VLOOKUP("Shark",SetupConstantsTable[],4,0),"Head",(AnimalGraphingTable[[#This Row],[X]]+VLOOKUP(AnimalGraphingTable[[#This Row],[Object]],SetupConstantsTable[],5,0))<Xposition+VLOOKUP("Shark",SetupConstantsTable[],5,0),"Tail","Mid") -> Head | Y16: =INDEX(SetupConstantsTable[],MATCH(AnimalGraphingTable[[#This Row],[Object]],SetupConstantsTable[Object],0),MATCH(AnimalGraphingTable[[#This Row],[Closest sphere to Shark]],SetupConstantsTable[#Headers],0))+INDEX(SetupConstantsTable[],MATCH("Shark",SetupConstantsTable[Object],0),MATCH(AnimalGraphingTable[[#This Row],[Closest sphere to Shark]],SetupConstantsTable[#Headers],0))>AnimalGraphingTable[[#This Row],[Separation]] -> FALSE | Z16: =SQRT(AnimalGraphingTable[[#This Row],[X dist]]+AnimalGraphingTable[[#This Row],[Y dist]]+AnimalGraphingTable[[#This Row],[Z dist]]) -> 58.23443998 | AA16: =(_xlfn.IFS(AnimalGraphingTable[[#This Row],[Closest sphere to Shark]]="Head",VLOOKUP(AnimalGraphingTable[[#This Row],[Object]],SetupConstantsTable[],4,0),AnimalGraphingTable[[#This Row],[Closest sphere to Shark]]="Tail",VLOOKUP(AnimalGraphingTable[[#This Row],[Object]],SetupConstantsTable[],5,0),AnimalGraphingTable[[#This Row],[Closest sphere to Shark]]="Mid",0)+AnimalGraphingTable[[#This Row],[X]]-VLOOKUP(AnimalGraphingTable[[#This Row],[Closest sphere to Shark]],SharkBubbleTable[],5,0))^2 -> 3249 | AB16: =(AnimalGraphingTable[[#This Row],[Y]]-VLOOKUP(AnimalGraphingTable[[#This Row],[Closest sphere to Shark]],SharkBubbleTable[],6,0))^2 -> 100 | AC16: =(AnimalGraphingTable[[#This Row],[Z]]-VLOOKUP(AnimalGraphingTable[[#This Row],[Closest sphere to Shark]],SharkBubbleTable[],7,0))^2 -> 42.25 | AD16: =IF(AnimalGraphingTable[[#This Row],[Top/Bottom]]="Below Shark",AnimalGraphingTable[[#This Row],[Offset multiplier]]+IF(AnimalGraphingTable[[#This Row],[X]]<50,1,0),0) -> 0
A17: A | B17: =AnimalGraphingTable[[#This Row],[Object]]&AnimalGraphingTable[[#This Row],[Version]]&LEFT(AnimalGraphingTable[[#This Row],[Top/Bottom]],1) -> A1B | C17: =VLOOKUP(AnimalGraphingTable[[#This Row],[Object]],SetupConstantsTable[],2,0)&IF(AnimalGraphingTable[[#This Row],[Top/Bottom]]="Shadow","-"&AnimalGraphingTable[[#This Row],[Top/Bottom]],"") -> Dolphin | D17: Below Shark | E17: 1 | F17: =INDEX(SetupConstantsTable[],MATCH(AnimalGraphingTable[[#This Row],[Object]],SetupConstantsTable[Object],0),MATCH('Animal Graphing'!F$2,SetupConstantsTable[#Headers],0)) -> -6 | G17: =INDEX(SetupConstantsTable[],MATCH(AnimalGraphingTable[[#This Row],[Object]],SetupConstantsTable[Object],0),MATCH('Animal Graphing'!G$2,SetupConstantsTable[#Headers],0)) -> 150 | H17: =INDEX(SetupConstantsTable[],MATCH(AnimalGraphingTable[[#This Row],[Object]],SetupConstantsTable[Object],0),MATCH("X"&AnimalGraphingTable[[#This Row],[Version]],SetupConstantsTable[#Headers],0)) -> 30 | I17: =INDEX(SetupConstantsTable[],MATCH(AnimalGraphingTable[[#This Row],[Object]],SetupConstantsTable[Object],0),MATCH("Y"&AnimalGraphingTable[[#This Row],[Version]],SetupConstantsTable[#Headers],0)) -> -3 | J17: =IF(AnimalGraphingTable[[#This Row],[Top/Bottom]]="Shadow",Setup!$H$25,INDEX(SetupConstantsTable[],MATCH(AnimalGraphingTable[[#This Row],[Object]],SetupConstantsTable[Object],0),MATCH("Z"&AnimalGraphingTable[[#This Row],[Version]],SetupConstantsTable[#Headers],0))) -> -1 | K17: =AnimalGraphingTable[[#This Row],[Velocity at 0]]*NetTime+AnimalGraphingTable[[#This Row],[Starting position]] -> 30 | L17: =IF(AnimalGraphingTable[[#This Row],[Calculated position]]>0,0,ROUNDUP(-AnimalGraphingTable[[#This Row],[Calculated position]]/AnimalGraphingTable[[#This Row],[Cycle position]],0)) -> 0 | M17: =AnimalGraphingTable[[#This Row],[Offset multiplier]]*AnimalGraphingTable[[#This Row],[Cycle position]] -> 0 | N17: =AnimalGraphingTable[[#This Row],[Calculated position]]+AnimalGraphingTable[[#This Row],[Position offset]] -> 30 | O17: =IF(AnimalGraphingTable[[#This Row],[Offset multiplier]]=0,AnimalGraphingTable[[#This Row],[Starting Y lane]],MOD(ROUND(0.9*(ROUND(AnimalGraphingTable[[#This Row],[y lane randomizer]],0)-ROUNDDOWN(AnimalGraphingTable[[#This Row],[y lane randomizer]],-2)),0),22)+Yframe_min+4) -> -3 | P17: =AnimalGraphingTable[[#This Row],[Starting Z depth]] -> -1 | Q17: =RADIANS(AnimalGraphingTable[[#This Row],[Cycle position]]+AnimalGraphingTable[[#This Row],[Starting Y lane]]-Setup!$G$25+AnimalGraphingTable[[#This Row],[Offset multiplier]]+StartingTime)*100000 -> 77764797.37 | R17: =(AnimalGraphingTable[[#This Row],[X]]-Setup!F$25)/Setup!F$26-0.5 -> -0.3 | S17: =(AnimalGraphingTable[[#This Row],[Y]]-Setup!G$25)/Setup!G$26-0.5 -> -0.1 | T17: =(AnimalGraphingTable[[#This Row],[Z]]-Setup!H$25)/Setup!H$26-0.5 -> 0.45 | U17: =IF(AnimalGraphingTable[[#This Row],[Hidden]],NA(),SUMPRODUCT(AnimalGraphingTable[[#This Row],[Norm X]:[Norm Z]],Chart_XRotationVals)) ->  | V17: =SUMPRODUCT(AnimalGraphingTable[[#This Row],[Norm X]:[Norm Z]],Chart_YRotationVals) -> 0.02860535207 | W17: =OR(AND(AnimalGraphingTable[[#This Row],[Top/Bottom]]="Above Shark",AnimalGraphingTable[[#This Row],[Z]]<Zposition),AND(AnimalGraphingTable[[#This Row],[Top/Bottom]]="Below Shark",AnimalGraphingTable[[#This Row],[Z]]>Zposition)) -> TRUE | X17: =_xlfn.SWITCH(TRUE(),(AnimalGraphingTable[[#This Row],[X]]+VLOOKUP(AnimalGraphingTable[[#This Row],[Object]],SetupConstantsTable[],4,0))>Xposition+VLOOKUP("Shark",SetupConstantsTable[],4,0),"Head",(AnimalGraphingTable[[#This Row],[X]]+VLOOKUP(AnimalGraphingTable[[#This Row],[Object]],SetupConstantsTable[],5,0))<Xposition+VLOOKUP("Shark",SetupConstantsTable[],5,0),"Tail","Mid") -> Head | Y17: =INDEX(SetupConstantsTable[],MATCH(AnimalGraphingTable[[#This Row],[Object]],SetupConstantsTable[Object],0),MATCH(AnimalGraphingTable[[#This Row],[Closest sphere to Shark]],SetupConstantsTable[#Headers],0))+INDEX(SetupConstantsTable[],MATCH("Shark",SetupConstantsTable[Object],0),MATCH(AnimalGraphingTable[[#This Row],[Closest sphere to Shark]],SetupConstantsTable[#Headers],0))>AnimalGraphingTable[[#This Row],[Separation]] -> FALSE | Z17: =SQRT(AnimalGraphingTable[[#This Row],[X dist]]+AnimalGraphingTable[[#This Row],[Y dist]]+AnimalGraphingTable[[#This Row],[Z dist]]) -> 11.62970335 | AA17: =(_xlfn.IFS(AnimalGraphingTable[[#This Row],[Closest sphere to Shark]]="Head",VLOOKUP(AnimalGraphingTable[[#This Row],[Object]],SetupConstantsTable[],4,0),AnimalGraphingTable[[#This Row],[Closest sphere to Shark]]="Tail",VLOOKUP(AnimalGraphingTable[[#This Row],[Object]],SetupConstantsTable[],5,0),AnimalGraphingTable[[#This Row],[Closest sphere to Shark]]="Mid",0)+AnimalGraphingTable[[#This Row],[X]]-VLOOKUP(AnimalGraphingTable[[#This Row],[Closest sphere to Shark]],SharkBubbleTable[],5,0))^2 -> 36 | AB17: =(AnimalGraphingTable[[#This Row],[Y]]-VLOOKUP(AnimalGraphingTable[[#This Row],[Closest sphere to Shark]],SharkBubbleTable[],6,0))^2 -> 9 | AC17: =(AnimalGraphingTable[[#This Row],[Z]]-VLOOKUP(AnimalGraphingTable[[#This Row],[Closest sphere to Shark]],SharkBubbleTable[],7,0))^2 -> 90.25 | AD17: =IF(AnimalGraphingTable[[#This Row],[Top/Bottom]]="Below Shark",AnimalGraphingTable[[#This Row],[Offset multiplier]]+IF(AnimalGraphingTable[[#This Row],[X]]<50,1,0),0) -> 1
A18: A | B18: =AnimalGraphingTable[[#This Row],[Object]]&AnimalGraphingTable[[#This Row],[Version]]&LEFT(AnimalGraphingTable[[#This Row],[Top/Bottom]],1) -> A2B | C18: =VLOOKUP(AnimalGraphingTable[[#This Row],[Object]],SetupConstantsTable[],2,0)&IF(AnimalGraphingTable[[#This Row],[Top/Bottom]]="Shadow","-"&AnimalGraphingTable[[#This Row],[Top/Bottom]],"") -> Dolphin | D18: Below Shark | E18: 2 | F18: =INDEX(SetupConstantsTable[],MATCH(AnimalGraphingTable[[#This Row],[Object]],SetupConstantsTable[Object],0),MATCH('Animal Graphing'!F$2,SetupConstantsTable[#Headers],0)) -> -6 | G18: =INDEX(SetupConstantsTable[],MATCH(AnimalGraphingTable[[#This Row],[Object]],SetupConstantsTable[Object],0),MATCH('Animal Graphing'!G$2,SetupConstantsTable[#Headers],0)) -> 150 | H18: =INDEX(SetupConstantsTable[],MATCH(AnimalGraphingTable[[#This Row],[Object]],SetupConstantsTable[Object],0),MATCH("X"&AnimalGraphingTable[[#This Row],[Version]],SetupConstantsTable[#Headers],0)) -> 105 | I18: =INDEX(SetupConstantsTable[],MATCH(AnimalGraphingTable[[#This Row],[Object]],SetupConstantsTable[Object],0),MATCH("Y"&AnimalGraphingTable[[#This Row],[Version]],SetupConstantsTable[#Headers],0)) -> -7 | J18: =IF(AnimalGraphingTable[[#This Row],[Top/Bottom]]="Shadow",Setup!$H$25,INDEX(SetupConstantsTable[],MATCH(AnimalGraphingTable[[#This Row],[Object]],SetupConstantsTable[Object],0),MATCH("Z"&AnimalGraphingTable[[#This Row],[Version]],SetupConstantsTable[#Headers],0))) -> -2 | K18: =AnimalGraphingTable[[#This Row],[Velocity at 0]]*NetTime+AnimalGraphingTable[[#This Row],[Starting position]] -> 105 | L18: =IF(AnimalGraphingTable[[#This Row],[Calculated position]]>0,0,ROUNDUP(-AnimalGraphingTable[[#This Row],[Calculated position]]/AnimalGraphingTable[[#This Row],[Cycle position]],0)) -> 0 | M18: =AnimalGraphingTable[[#This Row],[Offset multiplier]]*AnimalGraphingTable[[#This Row],[Cycle position]] -> 0 | N18: =AnimalGraphingTable[[#This Row],[Calculated position]]+AnimalGraphingTable[[#This Row],[Position offset]] -> 105 | O18: =IF(AnimalGraphingTable[[#This Row],[Offset multiplier]]=0,AnimalGraphingTable[[#This Row],[Starting Y lane]],MOD(ROUND(0.9*(ROUND(AnimalGraphingTable[[#This Row],[y lane randomizer]],0)-ROUNDDOWN(AnimalGraphingTable[[#This Row],[y lane randomizer]],-2)),0),22)+Yframe_min+4) -> -7 | P18: =AnimalGraphingTable[[#This Row],[Starting Z depth]] -> -2 | Q18: =RADIANS(AnimalGraphingTable[[#This Row],[Cycle position]]+AnimalGraphingTable[[#This Row],[Starting Y lane]]-Setup!$G$25+AnimalGraphingTable[[#This Row],[Offset multiplier]]+StartingTime)*100000 -> 77757816.05 | R18: =(AnimalGraphingTable[[#This Row],[X]]-Setup!F$25)/Setup!F$26-0.5 -> 1.2 | S18: =(AnimalGraphingTable[[#This Row],[Y]]-Setup!G$25)/Setup!G$26-0.5 -> -0.2333333333 | T18: =(AnimalGraphingTable[[#This Row],[Z]]-Setup!H$25)/Setup!H$26-0.5 -> 0.4 | U18: =IF(AnimalGraphingTable[[#This Row],[Hidden]],NA(),SUMPRODUCT(AnimalGraphingTable[[#This Row],[Norm X]:[Norm Z]],Chart_XRotationVals)) ->  | V18: =SUMPRODUCT(AnimalGraphingTable[[#This Row],[Norm X]:[Norm Z]],Chart_YRotationVals) -> 0.5133306586 | W18: =OR(AND(AnimalGraphingTable[[#This Row],[Top/Bottom]]="Above Shark",AnimalGraphingTable[[#This Row],[Z]]<Zposition),AND(AnimalGraphingTable[[#This Row],[Top/Bottom]]="Below Shark",AnimalGraphingTable[[#This Row],[Z]]>Zposition)) -> TRUE | X18: =_xlfn.SWITCH(TRUE(),(AnimalGraphingTable[[#This Row],[X]]+VLOOKUP(AnimalGraphingTable[[#This Row],[Object]],SetupConstantsTable[],4,0))>Xposition+VLOOKUP("Shark",SetupConstantsTable[],4,0),"Head",(AnimalGraphingTable[[#This Row],[X]]+VLOOKUP(AnimalGraphingTable[[#This Row],[Object]],SetupConstantsTable[],5,0))<Xposition+VLOOKUP("Shark",SetupConstantsTable[],5,0),"Tail","Mid") -> Head | Y18: =INDEX(SetupConstantsTable[],MATCH(AnimalGraphingTable[[#This Row],[Object]],SetupConstantsTable[Object],0),MATCH(AnimalGraphingTable[[#This Row],[Closest sphere to Shark]],SetupConstantsTable[#Headers],0))+INDEX(SetupConstantsTable[],MATCH("Shark",SetupConstantsTable[Object],0),MATCH(AnimalGraphingTable[[#This Row],[Closest sphere to Shark]],SetupConstantsTable[#Headers],0))>AnimalGraphingTable[[#This Row],[Separation]] -> FALSE | Z18: =SQRT(AnimalGraphingTable[[#This Row],[X dist]]+AnimalGraphingTable[[#This Row],[Y dist]]+AnimalGraphingTable[[#This Row],[Z dist]]) -> 81.74503043 | AA18: =(_xlfn.IFS(AnimalGraphingTable[[#This Row],[Closest sphere to Shark]]="Head",VLOOKUP(AnimalGraphingTable[[#This Row],[Object]],SetupConstantsTable[],4,0),AnimalGraphingTable[[#This Row],[Closest sphere to Shark]]="Tail",VLOOKUP(AnimalGraphingTable[[#This Row],[Object]],SetupConstantsTable[],5,0),AnimalGraphingTable[[#This Row],[Closest sphere to Shark]]="Mid",0)+AnimalGraphingTable[[#This Row],[X]]-VLOOKUP(AnimalGraphingTable[[#This Row],[Closest sphere to Shark]],SharkBubbleTable[],5,0))^2 -> 6561 | AB18: =(AnimalGraphingTable[[#This Row],[Y]]-VLOOKUP(AnimalGraphingTable[[#This Row],[Closest sphere to Shark]],SharkBubbleTable[],6,0))^2 -> 49 | AC18: =(AnimalGraphingTable[[#This Row],[Z]]-VLOOKUP(AnimalGraphingTable[[#This Row],[Closest sphere to Shark]],SharkBubbleTable[],7,0))^2 -> 72.25 | AD18: =IF(AnimalGraphingTable[[#This Row],[Top/Bottom]]="Below Shark",AnimalGraphingTable[[#This Row],[Offset multiplier]]+IF(AnimalGraphingTable[[#This Row],[X]]<50,1,0),0) -> 0
A19: J | B19: =AnimalGraphingTable[[#This Row],[Object]]&AnimalGraphingTable[[#This Row],[Version]]&LEFT(AnimalGraphingTable[[#This Row],[Top/Bottom]],1) -> J1A | C19: =VLOOKUP(AnimalGraphingTable[[#This Row],[Object]],SetupConstantsTable[],2,0)&IF(AnimalGraphingTable[[#This Row],[Top/Bottom]]="Shadow","-"&AnimalGraphingTable[[#This Row],[Top/Bottom]],"") -> Crab | D19: Above Shark | E19: 1 | F19: =INDEX(SetupConstantsTable[],MATCH(AnimalGraphingTable[[#This Row],[Object]],SetupConstantsTable[Object],0),MATCH('Animal Graphing'!F$2,SetupConstantsTable[#Headers],0)) -> -2.5 | G19: =INDEX(SetupConstantsTable[],MATCH(AnimalGraphingTable[[#This Row],[Object]],SetupConstantsTable[Object],0),MATCH('Animal Graphing'!G$2,SetupConstantsTable[#Headers],0)) -> 120 | H19: =INDEX(SetupConstantsTable[],MATCH(AnimalGraphingTable[[#This Row],[Object]],SetupConstantsTable[Object],0),MATCH("X"&AnimalGraphingTable[[#This Row],[Version]],SetupConstantsTable[#Headers],0)) -> 49 | I19: =INDEX(SetupConstantsTable[],MATCH(AnimalGraphingTable[[#This Row],[Object]],SetupConstantsTable[Object],0),MATCH("Y"&AnimalGraphingTable[[#This Row],[Version]],SetupConstantsTable[#Headers],0)) -> -10 | J19: =IF(AnimalGraphingTable[[#This Row],[Top/Bottom]]="Shadow",Setup!$H$25,INDEX(SetupConstantsTable[],MATCH(AnimalGraphingTable[[#This Row],[Object]],SetupConstantsTable[Object],0),MATCH("Z"&AnimalGraphingTable[[#This Row],[Version]],SetupConstantsTable[#Headers],0))) -> -19.6 | K19: =AnimalGraphingTable[[#This Row],[Velocity at 0]]*NetTime+AnimalGraphingTable[[#This Row],[Starting position]] -> 49 | L19: =IF(AnimalGraphingTable[[#This Row],[Calculated position]]>0,0,ROUNDUP(-AnimalGraphingTable[[#This Row],[Calculated position]]/AnimalGraphingTable[[#This Row],[Cycle position]],0)) -> 0 | M19: =AnimalGraphingTable[[#This Row],[Offset multiplier]]*AnimalGraphingTable[[#This Row],[Cycle position]] -> 0 | N19: =AnimalGraphingTable[[#This Row],[Calculated position]]+AnimalGraphingTable[[#This Row],[Position offset]] -> 49 | O19: =IF(AnimalGraphingTable[[#This Row],[Offset multiplier]]=0,AnimalGraphingTable[[#This Row],[Starting Y lane]],MOD(ROUND(0.9*(ROUND(AnimalGraphingTable[[#This Row],[y lane randomizer]],0)-ROUNDDOWN(AnimalGraphingTable[[#This Row],[y lane randomizer]],-2)),0),22)+Yframe_min+4) -> -10 | P19: =AnimalGraphingTable[[#This Row],[Starting Z depth]] -> -19.6 | Q19: =RADIANS(AnimalGraphingTable[[#This Row],[Cycle position]]+AnimalGraphingTable[[#This Row],[Starting Y lane]]-Setup!$G$25+AnimalGraphingTable[[#This Row],[Offset multiplier]]+StartingTime)*100000 -> 77700220.19 | R19: =(AnimalGraphingTable[[#This Row],[X]]-Setup!F$25)/Setup!F$26-0.5 -> 0.08 | S19: =(AnimalGraphingTable[[#This Row],[Y]]-Setup!G$25)/Setup!G$26-0.5 -> -0.3333333333 | T19: =(AnimalGraphingTable[[#This Row],[Z]]-Setup!H$25)/Setup!H$26-0.5 -> -0.48 | U19: =IF(AnimalGraphingTable[[#This Row],[Hidden]],NA(),SUMPRODUCT(AnimalGraphingTable[[#This Row],[Norm X]:[Norm Z]],Chart_XRotationVals)) ->  | V19: =SUMPRODUCT(AnimalGraphingTable[[#This Row],[Norm X]:[Norm Z]],Chart_YRotationVals) -> -0.2087032844 | W19: =OR(AND(AnimalGraphingTable[[#This Row],[Top/Bottom]]="Above Shark",AnimalGraphingTable[[#This Row],[Z]]<Zposition),AND(AnimalGraphingTable[[#This Row],[Top/Bottom]]="Below Shark",AnimalGraphingTable[[#This Row],[Z]]>Zposition)) -> TRUE | X19: =_xlfn.SWITCH(TRUE(),(AnimalGraphingTable[[#This Row],[X]]+VLOOKUP(AnimalGraphingTable[[#This Row],[Object]],SetupConstantsTable[],4,0))>Xposition+VLOOKUP("Shark",SetupConstantsTable[],4,0),"Head",(AnimalGraphingTable[[#This Row],[X]]+VLOOKUP(AnimalGraphingTable[[#This Row],[Object]],SetupConstantsTable[],5,0))<Xposition+VLOOKUP("Shark",SetupConstantsTable[],5,0),"Tail","Mid") -> Head | Y19: =INDEX(SetupConstantsTable[],MATCH(AnimalGraphingTable[[#This Row],[Object]],SetupConstantsTable[Object],0),MATCH(AnimalGraphingTable[[#This Row],[Closest sphere to Shark]],SetupConstantsTable[#Headers],0))+INDEX(SetupConstantsTable[],MATCH("Shark",SetupConstantsTable[Object],0),MATCH(AnimalGraphingTable[[#This Row],[Closest sphere to Shark]],SetupConstantsTable[#Headers],0))>AnimalGraphingTable[[#This Row],[Separation]] -> FALSE | Z19: =SQRT(AnimalGraphingTable[[#This Row],[X dist]]+AnimalGraphingTable[[#This Row],[Y dist]]+AnimalGraphingTable[[#This Row],[Z dist]]) -> 30.19619181 | AA19: =(_xlfn.IFS(AnimalGraphingTable[[#This Row],[Closest sphere to Shark]]="Head",VLOOKUP(AnimalGraphingTable[[#This Row],[Object]],SetupConstantsTable[],4,0),AnimalGraphingTable[[#This Row],[Closest sphere to Shark]]="Tail",VLOOKUP(AnimalGraphingTable[[#This Row],[Object]],SetupConstantsTable[],5,0),AnimalGraphingTable[[#This Row],[Closest sphere to Shark]]="Mid",0)+AnimalGraphingTable[[#This Row],[X]]-VLOOKUP(AnimalGraphingTable[[#This Row],[Closest sphere to Shark]],SharkBubbleTable[],5,0))^2 -> 729 | AB19: =(AnimalGraphingTable[[#This Row],[Y]]-VLOOKUP(AnimalGraphingTable[[#This Row],[Closest sphere to Shark]],SharkBubbleTable[],6,0))^2 -> 100 | AC19: =(AnimalGraphingTable[[#This Row],[Z]]-VLOOKUP(AnimalGraphingTable[[#This Row],[Closest sphere to Shark]],SharkBubbleTable[],7,0))^2 -> 82.81 | AD19: =IF(AnimalGraphingTable[[#This Row],[Top/Bottom]]="Below Shark",AnimalGraphingTable[[#This Row],[Offset multiplier]]+IF(AnimalGraphingTable[[#This Row],[X]]<50,1,0),0) -> 0
A20: J | B20: =AnimalGraphingTable[[#This Row],[Object]]&AnimalGraphingTable[[#This Row],[Version]]&LEFT(AnimalGraphingTable[[#This Row],[Top/Bottom]],1) -> J2A | C20: =VLOOKUP(AnimalGraphingTable[[#This Row],[Object]],SetupConstantsTable[],2,0)&IF(AnimalGraphingTable[[#This Row],[Top/Bottom]]="Shadow","-"&AnimalGraphingTable[[#This Row],[Top/Bottom]],"") -> Crab | D20: Above Shark | E20: 2 | F20: =INDEX(SetupConstantsTable[],MATCH(AnimalGraphingTable[[#This Row],[Object]],SetupConstantsTable[Object],0),MATCH('Animal Graphing'!F$2,SetupConstantsTable[#Headers],0)) -> -2.5 | G20: =INDEX(SetupConstantsTable[],MATCH(AnimalGraphingTable[[#This Row],[Object]],SetupConstantsTable[Object],0),MATCH('Animal Graphing'!G$2,SetupConstantsTable[#Headers],0)) -> 120 | H20: =INDEX(SetupConstantsTable[],MATCH(AnimalGraphingTable[[#This Row],[Object]],SetupConstantsTable[Object],0),MATCH("X"&AnimalGraphingTable[[#This Row],[Version]],SetupConstantsTable[#Headers],0)) -> 107 | I20: =INDEX(SetupConstantsTable[],MATCH(AnimalGraphingTable[[#This Row],[Object]],SetupConstantsTable[Object],0),MATCH("Y"&AnimalGraphingTable[[#This Row],[Version]],SetupConstantsTable[#Headers],0)) -> -8 | J20: =IF(AnimalGraphingTable[[#This Row],[Top/Bottom]]="Shadow",Setup!$H$25,INDEX(SetupConstantsTable[],MATCH(AnimalGraphingTable[[#This Row],[Object]],SetupConstantsTable[Object],0),MATCH("Z"&AnimalGraphingTable[[#This Row],[Version]],SetupConstantsTable[#Headers],0))) -> -19.6 | K20: =AnimalGraphingTable[[#This Row],[Velocity at 0]]*NetTime+AnimalGraphingTable[[#This Row],[Starting position]] -> 107 | L20: =IF(AnimalGraphingTable[[#This Row],[Calculated position]]>0,0,ROUNDUP(-AnimalGraphingTable[[#This Row],[Calculated position]]/AnimalGraphingTable[[#This Row],[Cycle position]],0)) -> 0 | M20: =AnimalGraphingTable[[#This Row],[Offset multiplier]]*AnimalGraphingTable[[#This Row],[Cycle position]] -> 0 | N20: =AnimalGraphingTable[[#This Row],[Calculated position]]+AnimalGraphingTable[[#This Row],[Position offset]] -> 107 | O20: =IF(AnimalGraphingTable[[#This Row],[Offset multiplier]]=0,AnimalGraphingTable[[#This Row],[Starting Y lane]],MOD(ROUND(0.9*(ROUND(AnimalGraphingTable[[#This Row],[y lane randomizer]],0)-ROUNDDOWN(AnimalGraphingTable[[#This Row],[y lane randomizer]],-2)),0),22)+Yframe_min+4) -> -8 | P20: =AnimalGraphingTable[[#This Row],[Starting Z depth]] -> -19.6 | Q20: =RADIANS(AnimalGraphingTable[[#This Row],[Cycle position]]+AnimalGraphingTable[[#This Row],[Starting Y lane]]-Setup!$G$25+AnimalGraphingTable[[#This Row],[Offset multiplier]]+StartingTime)*100000 -> 77703710.85 | R20: =(AnimalGraphingTable[[#This Row],[X]]-Setup!F$25)/Setup!F$26-0.5 -> 1.24 | S20: =(AnimalGraphingTable[[#This Row],[Y]]-Setup!G$25)/Setup!G$26-0.5 -> -0.2666666667 | T20: =(AnimalGraphingTable[[#This Row],[Z]]-Setup!H$25)/Setup!H$26-0.5 -> -0.48 | U20: =IF(AnimalGraphingTable[[#This Row],[Hidden]],NA(),SUMPRODUCT(AnimalGraphingTable[[#This Row],[Norm X]:[Norm Z]],Chart_XRotationVals)) ->  | V20: =SUMPRODUCT(AnimalGraphingTable[[#This Row],[Norm X]:[Norm Z]],Chart_YRotationVals) -> 0.2155607843 | W20: =OR(AND(AnimalGraphingTable[[#This Row],[Top/Bottom]]="Above Shark",AnimalGraphingTable[[#This Row],[Z]]<Zposition),AND(AnimalGraphingTable[[#This Row],[Top/Bottom]]="Below Shark",AnimalGraphingTable[[#This Row],[Z]]>Zposition)) -> TRUE | X20: =_xlfn.SWITCH(TRUE(),(AnimalGraphingTable[[#This Row],[X]]+VLOOKUP(AnimalGraphingTable[[#This Row],[Object]],SetupConstantsTable[],4,0))>Xposition+VLOOKUP("Shark",SetupConstantsTable[],4,0),"Head",(AnimalGraphingTable[[#This Row],[X]]+VLOOKUP(AnimalGraphingTable[[#This Row],[Object]],SetupConstantsTable[],5,0))<Xposition+VLOOKUP("Shark",SetupConstantsTable[],5,0),"Tail","Mid") -> Head | Y20: =INDEX(SetupConstantsTable[],MATCH(AnimalGraphingTable[[#This Row],[Object]],SetupConstantsTable[Object],0),MATCH(AnimalGraphingTable[[#This Row],[Closest sphere to Shark]],SetupConstantsTable[#Headers],0))+INDEX(SetupConstantsTable[],MATCH("Shark",SetupConstantsTable[Object],0),MATCH(AnimalGraphingTable[[#This Row],[Closest sphere to Shark]],SetupConstantsTable[#Headers],0))>AnimalGraphingTable[[#This Row],[Separation]] -> FALSE | Z20: =SQRT(AnimalGraphingTable[[#This Row],[X dist]]+AnimalGraphingTable[[#This Row],[Y dist]]+AnimalGraphingTable[[#This Row],[Z dist]]) -> 85.85924528 | AA20: =(_xlfn.IFS(AnimalGraphingTable[[#This Row],[Closest sphere to Shark]]="Head",VLOOKUP(AnimalGraphingTable[[#This Row],[Object]],SetupConstantsTable[],4,0),AnimalGraphingTable[[#This Row],[Closest sphere to Shark]]="Tail",VLOOKUP(AnimalGraphingTable[[#This Row],[Object]],SetupConstantsTable[],5,0),AnimalGraphingTable[[#This Row],[Closest sphere to Shark]]="Mid",0)+AnimalGraphingTable[[#This Row],[X]]-VLOOKUP(AnimalGraphingTable[[#This Row],[Closest sphere to Shark]],SharkBubbleTable[],5,0))^2 -> 7225 | AB20: =(AnimalGraphingTable[[#This Row],[Y]]-VLOOKUP(AnimalGraphingTable[[#This Row],[Closest sphere to Shark]],SharkBubbleTable[],6,0))^2 -> 64 | AC20: =(AnimalGraphingTable[[#This Row],[Z]]-VLOOKUP(AnimalGraphingTable[[#This Row],[Closest sphere to Shark]],SharkBubbleTable[],7,0))^2 -> 82.81 | AD20: =IF(AnimalGraphingTable[[#This Row],[Top/Bottom]]="Below Shark",AnimalGraphingTable[[#This Row],[Offset multiplier]]+IF(AnimalGraphingTable[[#This Row],[X]]<50,1,0),0) -> 0
A21: I | B21: =AnimalGraphingTable[[#This Row],[Object]]&AnimalGraphingTable[[#This Row],[Version]]&LEFT(AnimalGraphingTable[[#This Row],[Top/Bottom]],1) -> I1A | C21: =VLOOKUP(AnimalGraphingTable[[#This Row],[Object]],SetupConstantsTable[],2,0)&IF(AnimalGraphingTable[[#This Row],[Top/Bottom]]="Shadow","-"&AnimalGraphingTable[[#This Row],[Top/Bottom]],"") -> Octopus | D21: Above Shark | E21: 1 | F21: =INDEX(SetupConstantsTable[],MATCH(AnimalGraphingTable[[#This Row],[Object]],SetupConstantsTable[Object],0),MATCH('Animal Graphing'!F$2,SetupConstantsTable[#Headers],0)) -> -2.5 | G21: =INDEX(SetupConstantsTable[],MATCH(AnimalGraphingTable[[#This Row],[Object]],SetupConstantsTable[Object],0),MATCH('Animal Graphing'!G$2,SetupConstantsTable[#Headers],0)) -> 130 | H21: =INDEX(SetupConstantsTable[],MATCH(AnimalGraphingTable[[#This Row],[Object]],SetupConstantsTable[Object],0),MATCH("X"&AnimalGraphingTable[[#This Row],[Version]],SetupConstantsTable[#Headers],0)) -> 39 | I21: =INDEX(SetupConstantsTable[],MATCH(AnimalGraphingTable[[#This Row],[Object]],SetupConstantsTable[Object],0),MATCH("Y"&AnimalGraphingTable[[#This Row],[Version]],SetupConstantsTable[#Headers],0)) -> -6 | J21: =IF(AnimalGraphingTable[[#This Row],[Top/Bottom]]="Shadow",Setup!$H$25,INDEX(SetupConstantsTable[],MATCH(AnimalGraphingTable[[#This Row],[Object]],SetupConstantsTable[Object],0),MATCH("Z"&AnimalGraphingTable[[#This Row],[Version]],SetupConstantsTable[#Headers],0))) -> -17 | K21: =AnimalGraphingTable[[#This Row],[Velocity at 0]]*NetTime+AnimalGraphingTable[[#This Row],[Starting position]] -> 39 | L21: =IF(AnimalGraphingTable[[#This Row],[Calculated position]]>0,0,ROUNDUP(-AnimalGraphingTable[[#This Row],[Calculated position]]/AnimalGraphingTable[[#This Row],[Cycle position]],0)) -> 0 | M21: =AnimalGraphingTable[[#This Row],[Offset multiplier]]*AnimalGraphingTable[[#This Row],[Cycle position]] -> 0 | N21: =AnimalGraphingTable[[#This Row],[Calculated position]]+AnimalGraphingTable[[#This Row],[Position offset]] -> 39 | O21: =IF(AnimalGraphingTable[[#This Row],[Offset multiplier]]=0,AnimalGraphingTable[[#This Row],[Starting Y lane]],MOD(ROUND(0.9*(ROUND(AnimalGraphingTable[[#This Row],[y lane randomizer]],0)-ROUNDDOWN(AnimalGraphingTable[[#This Row],[y lane randomizer]],-2)),0),22)+Yframe_min+4) -> -6 | P21: =AnimalGraphingTable[[#This Row],[Starting Z depth]] -> -17 | Q21: =RADIANS(AnimalGraphingTable[[#This Row],[Cycle position]]+AnimalGraphingTable[[#This Row],[Starting Y lane]]-Setup!$G$25+AnimalGraphingTable[[#This Row],[Offset multiplier]]+StartingTime)*100000 -> 77724654.8 | R21: =(AnimalGraphingTable[[#This Row],[X]]-Setup!F$25)/Setup!F$26-0.5 -> -0.12 | S21: =(AnimalGraphingTable[[#This Row],[Y]]-Setup!G$25)/Setup!G$26-0.5 -> -0.2 | T21: =(AnimalGraphingTable[[#This Row],[Z]]-Setup!H$25)/Setup!H$26-0.5 -> -0.35 | U21: =IF(AnimalGraphingTable[[#This Row],[Hidden]],NA(),SUMPRODUCT(AnimalGraphingTable[[#This Row],[Norm X]:[Norm Z]],Chart_XRotationVals)) ->  | V21: =SUMPRODUCT(AnimalGraphingTable[[#This Row],[Norm X]:[Norm Z]],Chart_YRotationVals) -> -0.2060963703 | W21: =OR(AND(AnimalGraphingTable[[#This Row],[Top/Bottom]]="Above Shark",AnimalGraphingTable[[#This Row],[Z]]<Zposition),AND(AnimalGraphingTable[[#This Row],[Top/Bottom]]="Below Shark",AnimalGraphingTable[[#This Row],[Z]]>Zposition)) -> TRUE | X21: =_xlfn.SWITCH(TRUE(),(AnimalGraphingTable[[#This Row],[X]]+VLOOKUP(AnimalGraphingTable[[#This Row],[Object]],SetupConstantsTable[],4,0))>Xposition+VLOOKUP("Shark",SetupConstantsTable[],4,0),"Head",(AnimalGraphingTable[[#This Row],[X]]+VLOOKUP(AnimalGraphingTable[[#This Row],[Object]],SetupConstantsTable[],5,0))<Xposition+VLOOKUP("Shark",SetupConstantsTable[],5,0),"Tail","Mid") -> Head | Y21: =INDEX(SetupConstantsTable[],MATCH(AnimalGraphingTable[[#This Row],[Object]],SetupConstantsTable[Object],0),MATCH(AnimalGraphingTable[[#This Row],[Closest sphere to Shark]],SetupConstantsTable[#Headers],0))+INDEX(SetupConstantsTable[],MATCH("Shark",SetupConstantsTable[Object],0),MATCH(AnimalGraphingTable[[#This Row],[Closest sphere to Shark]],SetupConstantsTable[#Headers],0))>AnimalGraphingTable[[#This Row],[Separation]] -> FALSE | Z21: =SQRT(AnimalGraphingTable[[#This Row],[X dist]]+AnimalGraphingTable[[#This Row],[Y dist]]+AnimalGraphingTable[[#This Row],[Z dist]]) -> 19.1637679 | AA21: =(_xlfn.IFS(AnimalGraphingTable[[#This Row],[Closest sphere to Shark]]="Head",VLOOKUP(AnimalGraphingTable[[#This Row],[Object]],SetupConstantsTable[],4,0),AnimalGraphingTable[[#This Row],[Closest sphere to Shark]]="Tail",VLOOKUP(AnimalGraphingTable[[#This Row],[Object]],SetupConstantsTable[],5,0),AnimalGraphingTable[[#This Row],[Closest sphere to Shark]]="Mid",0)+AnimalGraphingTable[[#This Row],[X]]-VLOOKUP(AnimalGraphingTable[[#This Row],[Closest sphere to Shark]],SharkBubbleTable[],5,0))^2 -> 289 | AB21: =(AnimalGraphingTable[[#This Row],[Y]]-VLOOKUP(AnimalGraphingTable[[#This Row],[Closest sphere to Shark]],SharkBubbleTable[],6,0))^2 -> 36 | AC21: =(AnimalGraphingTable[[#This Row],[Z]]-VLOOKUP(AnimalGraphingTable[[#This Row],[Closest sphere to Shark]],SharkBubbleTable[],7,0))^2 -> 42.25 | AD21: =IF(AnimalGraphingTable[[#This Row],[Top/Bottom]]="Below Shark",AnimalGraphingTable[[#This Row],[Offset multiplier]]+IF(AnimalGraphingTable[[#This Row],[X]]<50,1,0),0) -> 0
A22: I | B22: =AnimalGraphingTable[[#This Row],[Object]]&AnimalGraphingTable[[#This Row],[Version]]&LEFT(AnimalGraphingTable[[#This Row],[Top/Bottom]],1) -> I2A | C22: =VLOOKUP(AnimalGraphingTable[[#This Row],[Object]],SetupConstantsTable[],2,0)&IF(AnimalGraphingTable[[#This Row],[Top/Bottom]]="Shadow","-"&AnimalGraphingTable[[#This Row],[Top/Bottom]],"") -> Octopus | D22: Above Shark | E22: 2 | F22: =INDEX(SetupConstantsTable[],MATCH(AnimalGraphingTable[[#This Row],[Object]],SetupConstantsTable[Object],0),MATCH('Animal Graphing'!F$2,SetupConstantsTable[#Headers],0)) -> -2.5 | G22: =INDEX(SetupConstantsTable[],MATCH(AnimalGraphingTable[[#This Row],[Object]],SetupConstantsTable[Object],0),MATCH('Animal Graphing'!G$2,SetupConstantsTable[#Headers],0)) -> 130 | H22: =INDEX(SetupConstantsTable[],MATCH(AnimalGraphingTable[[#This Row],[Object]],SetupConstantsTable[Object],0),MATCH("X"&AnimalGraphingTable[[#This Row],[Version]],SetupConstantsTable[#Headers],0)) -> 98 | I22: =INDEX(SetupConstantsTable[],MATCH(AnimalGraphingTable[[#This Row],[Object]],SetupConstantsTable[Object],0),MATCH("Y"&AnimalGraphingTable[[#This Row],[Version]],SetupConstantsTable[#Headers],0)) -> 1 | J22: =IF(AnimalGraphingTable[[#This Row],[Top/Bottom]]="Shadow",Setup!$H$25,INDEX(SetupConstantsTable[],MATCH(AnimalGraphingTable[[#This Row],[Object]],SetupConstantsTable[Object],0),MATCH("Z"&AnimalGraphingTable[[#This Row],[Version]],SetupConstantsTable[#Headers],0))) -> -18 | K22: =AnimalGraphingTable[[#This Row],[Velocity at 0]]*NetTime+AnimalGraphingTable[[#This Row],[Starting position]] -> 98 | L22: =IF(AnimalGraphingTable[[#This Row],[Calculated position]]>0,0,ROUNDUP(-AnimalGraphingTable[[#This Row],[Calculated position]]/AnimalGraphingTable[[#This Row],[Cycle position]],0)) -> 0 | M22: =AnimalGraphingTable[[#This Row],[Offset multiplier]]*AnimalGraphingTable[[#This Row],[Cycle position]] -> 0 | N22: =AnimalGraphingTable[[#This Row],[Calculated position]]+AnimalGraphingTable[[#This Row],[Position offset]] -> 98 | O22: =IF(AnimalGraphingTable[[#This Row],[Offset multiplier]]=0,AnimalGraphingTable[[#This Row],[Starting Y lane]],MOD(ROUND(0.9*(ROUND(AnimalGraphingTable[[#This Row],[y lane randomizer]],0)-ROUNDDOWN(AnimalGraphingTable[[#This Row],[y lane randomizer]],-2)),0),22)+Yframe_min+4) -> 1 | P22: =AnimalGraphingTable[[#This Row],[Starting Z depth]] -> -18 | Q22: =RADIANS(AnimalGraphingTable[[#This Row],[Cycle position]]+AnimalGraphingTable[[#This Row],[Starting Y lane]]-Setup!$G$25+AnimalGraphingTable[[#This Row],[Offset multiplier]]+StartingTime)*100000 -> 77736872.1 | R22: =(AnimalGraphingTable[[#This Row],[X]]-Setup!F$25)/Setup!F$26-0.5 -> 1.06 | S22: =(AnimalGraphingTable[[#This Row],[Y]]-Setup!G$25)/Setup!G$26-0.5 -> 0.03333333333 | T22: =(AnimalGraphingTable[[#This Row],[Z]]-Setup!H$25)/Setup!H$26-0.5 -> -0.4 | U22: =IF(AnimalGraphingTable[[#This Row],[Hidden]],NA(),SUMPRODUCT(AnimalGraphingTable[[#This Row],[Norm X]:[Norm Z]],Chart_XRotationVals)) ->  | V22: =SUMPRODUCT(AnimalGraphingTable[[#This Row],[Norm X]:[Norm Z]],Chart_YRotationVals) -> 0.2432735972 | W22: =OR(AND(AnimalGraphingTable[[#This Row],[Top/Bottom]]="Above Shark",AnimalGraphingTable[[#This Row],[Z]]<Zposition),AND(AnimalGraphingTable[[#This Row],[Top/Bottom]]="Below Shark",AnimalGraphingTable[[#This Row],[Z]]>Zposition)) -> TRUE | X22: =_xlfn.SWITCH(TRUE(),(AnimalGraphingTable[[#This Row],[X]]+VLOOKUP(AnimalGraphingTable[[#This Row],[Object]],SetupConstantsTable[],4,0))>Xposition+VLOOKUP("Shark",SetupConstantsTable[],4,0),"Head",(AnimalGraphingTable[[#This Row],[X]]+VLOOKUP(AnimalGraphingTable[[#This Row],[Object]],SetupConstantsTable[],5,0))<Xposition+VLOOKUP("Shark",SetupConstantsTable[],5,0),"Tail","Mid") -> Head | Y22: =INDEX(SetupConstantsTable[],MATCH(AnimalGraphingTable[[#This Row],[Object]],SetupConstantsTable[Object],0),MATCH(AnimalGraphingTable[[#This Row],[Closest sphere to Shark]],SetupConstantsTable[#Headers],0))+INDEX(SetupConstantsTable[],MATCH("Shark",SetupConstantsTable[Object],0),MATCH(AnimalGraphingTable[[#This Row],[Closest sphere to Shark]],SetupConstantsTable[#Headers],0))>AnimalGraphingTable[[#This Row],[Separation]] -> FALSE | Z22: =SQRT(AnimalGraphingTable[[#This Row],[X dist]]+AnimalGraphingTable[[#This Row],[Y dist]]+AnimalGraphingTable[[#This Row],[Z dist]]) -> 76.37571604 | AA22: =(_xlfn.IFS(AnimalGraphingTable[[#This Row],[Closest sphere to Shark]]="Head",VLOOKUP(AnimalGraphingTable[[#This Row],[Object]],SetupConstantsTable[],4,0),AnimalGraphingTable[[#This Row],[Closest sphere to Shark]]="Tail",VLOOKUP(AnimalGraphingTable[[#This Row],[Object]],SetupConstantsTable[],5,0),AnimalGraphingTable[[#This Row],[Closest sphere to Shark]]="Mid",0)+AnimalGraphingTable[[#This Row],[X]]-VLOOKUP(AnimalGraphingTable[[#This Row],[Closest sphere to Shark]],SharkBubbleTable[],5,0))^2 -> 5776 | AB22: =(AnimalGraphingTable[[#This Row],[Y]]-VLOOKUP(AnimalGraphingTable[[#This Row],[Closest sphere to Shark]],SharkBubbleTable[],6,0))^2 -> 1 | AC22: =(AnimalGraphingTable[[#This Row],[Z]]-VLOOKUP(AnimalGraphingTable[[#This Row],[Closest sphere to Shark]],SharkBubbleTable[],7,0))^2 -> 56.25 | AD22: =IF(AnimalGraphingTable[[#This Row],[Top/Bottom]]="Below Shark",AnimalGraphingTable[[#This Row],[Offset multiplier]]+IF(AnimalGraphingTable[[#This Row],[X]]<50,1,0),0) -> 0
A23: H | B23: =AnimalGraphingTable[[#This Row],[Object]]&AnimalGraphingTable[[#This Row],[Version]]&LEFT(AnimalGraphingTable[[#This Row],[Top/Bottom]],1) -> H1A | C23: =VLOOKUP(AnimalGraphingTable[[#This Row],[Object]],SetupConstantsTable[],2,0)&IF(AnimalGraphingTable[[#This Row],[Top/Bottom]]="Shadow","-"&AnimalGraphingTable[[#This Row],[Top/Bottom]],"") -> Hammerhead | D23: Above Shark | E23: 1 | F23: =INDEX(SetupConstantsTable[],MATCH(AnimalGraphingTable[[#This Row],[Object]],SetupConstantsTable[Object],0),MATCH('Animal Graphing'!F$2,SetupConstantsTable[#Headers],0)) -> -4.5 | G23: =INDEX(SetupConstantsTable[],MATCH(AnimalGraphingTable[[#This Row],[Object]],SetupConstantsTable[Object],0),MATCH('Animal Graphing'!G$2,SetupConstantsTable[#Headers],0)) -> 170 | H23: =INDEX(SetupConstantsTable[],MATCH(AnimalGraphingTable[[#This Row],[Object]],SetupConstantsTable[Object],0),MATCH("X"&AnimalGraphingTable[[#This Row],[Version]],SetupConstantsTable[#Headers],0)) -> 88 | I23: =INDEX(SetupConstantsTable[],MATCH(AnimalGraphingTable[[#This Row],[Object]],SetupConstantsTable[Object],0),MATCH("Y"&AnimalGraphingTable[[#This Row],[Version]],SetupConstantsTable[#Headers],0)) -> 8 | J23: =IF(AnimalGraphingTable[[#This Row],[Top/Bottom]]="Shadow",Setup!$H$25,INDEX(SetupConstantsTable[],MATCH(AnimalGraphingTable[[#This Row],[Object]],SetupConstantsTable[Object],0),MATCH("Z"&AnimalGraphingTable[[#This Row],[Version]],SetupConstantsTable[#Headers],0))) -> -15 | K23: =AnimalGraphingTable[[#This Row],[Velocity at 0]]*NetTime+AnimalGraphingTable[[#This Row],[Starting position]] -> 88 | L23: =IF(AnimalGraphingTable[[#This Row],[Calculated position]]>0,0,ROUNDUP(-AnimalGraphingTable[[#This Row],[Calculated position]]/AnimalGraphingTable[[#This Row],[Cycle position]],0)) -> 0 | M23: =AnimalGraphingTable[[#This Row],[Offset multiplier]]*AnimalGraphingTable[[#This Row],[Cycle position]] -> 0 | N23: =AnimalGraphingTable[[#This Row],[Calculated position]]+AnimalGraphingTable[[#This Row],[Position offset]] -> 88 | O23: =IF(AnimalGraphingTable[[#This Row],[Offset multiplier]]=0,AnimalGraphingTable[[#This Row],[Starting Y lane]],MOD(ROUND(0.9*(ROUND(AnimalGraphingTable[[#This Row],[y lane randomizer]],0)-ROUNDDOWN(AnimalGraphingTable[[#This Row],[y lane randomizer]],-2)),0),22)+Yframe_min+4) -> 8 | P23: =AnimalGraphingTable[[#This Row],[Starting Z depth]] -> -15 | Q23: =RADIANS(AnimalGraphingTable[[#This Row],[Cycle position]]+AnimalGraphingTable[[#This Row],[Starting Y lane]]-Setup!$G$25+AnimalGraphingTable[[#This Row],[Offset multiplier]]+StartingTime)*100000 -> 77818902.58 | R23: =(AnimalGraphingTable[[#This Row],[X]]-Setup!F$25)/Setup!F$26-0.5 -> 0.86 | S23: =(AnimalGraphingTable[[#This Row],[Y]]-Setup!G$25)/Setup!G$26-0.5 -> 0.2666666667 | T23: =(AnimalGraphingTable[[#This Row],[Z]]-Setup!H$25)/Setup!H$26-0.5 -> -0.25 | U23: =IF(AnimalGraphingTable[[#This Row],[Hidden]],NA(),SUMPRODUCT(AnimalGraphingTable[[#This Row],[Norm X]:[Norm Z]],Chart_XRotationVals)) ->  | V23: =SUMPRODUCT(AnimalGraphingTable[[#This Row],[Norm X]:[Norm Z]],Chart_YRotationVals) -> 0.274021918 | W23: =OR(AND(AnimalGraphingTable[[#This Row],[Top/Bottom]]="Above Shark",AnimalGraphingTable[[#This Row],[Z]]<Zposition),AND(AnimalGraphingTable[[#This Row],[Top/Bottom]]="Below Shark",AnimalGraphingTable[[#This Row],[Z]]>Zposition)) -> TRUE | X23: =_xlfn.SWITCH(TRUE(),(AnimalGraphingTable[[#This Row],[X]]+VLOOKUP(AnimalGraphingTable[[#This Row],[Object]],SetupConstantsTable[],4,0))>Xposition+VLOOKUP("Shark",SetupConstantsTable[],4,0),"Head",(AnimalGraphingTable[[#This Row],[X]]+VLOOKUP(AnimalGraphingTable[[#This Row],[Object]],SetupConstantsTable[],5,0))<Xposition+VLOOKUP("Shark",SetupConstantsTable[],5,0),"Tail","Mid") -> Head | Y23: =INDEX(SetupConstantsTable[],MATCH(AnimalGraphingTable[[#This Row],[Object]],SetupConstantsTable[Object],0),MATCH(AnimalGraphingTable[[#This Row],[Closest sphere to Shark]],SetupConstantsTable[#Headers],0))+INDEX(SetupConstantsTable[],MATCH("Shark",SetupConstantsTable[Object],0),MATCH(AnimalGraphingTable[[#This Row],[Closest sphere to Shark]],SetupConstantsTable[#Headers],0))>AnimalGraphingTable[[#This Row],[Separation]] -> FALSE | Z23: =SQRT(AnimalGraphingTable[[#This Row],[X dist]]+AnimalGraphingTable[[#This Row],[Y dist]]+AnimalGraphingTable[[#This Row],[Z dist]]) -> 69.60783002 | AA23: =(_xlfn.IFS(AnimalGraphingTable[[#This Row],[Closest sphere to Shark]]="Head",VLOOKUP(AnimalGraphingTable[[#This Row],[Object]],SetupConstantsTable[],4,0),AnimalGraphingTable[[#This Row],[Closest sphere to Shark]]="Tail",VLOOKUP(AnimalGraphingTable[[#This Row],[Object]],SetupConstantsTable[],5,0),AnimalGraphingTable[[#This Row],[Closest sphere to Shark]]="Mid",0)+AnimalGraphingTable[[#This Row],[X]]-VLOOKUP(AnimalGraphingTable[[#This Row],[Closest sphere to Shark]],SharkBubbleTable[],5,0))^2 -> 4761 | AB23: =(AnimalGraphingTable[[#This Row],[Y]]-VLOOKUP(AnimalGraphingTable[[#This Row],[Closest sphere to Shark]],SharkBubbleTable[],6,0))^2 -> 64 | AC23: =(AnimalGraphingTable[[#This Row],[Z]]-VLOOKUP(AnimalGraphingTable[[#This Row],[Closest sphere to Shark]],SharkBubbleTable[],7,0))^2 -> 20.25 | AD23: =IF(AnimalGraphingTable[[#This Row],[Top/Bottom]]="Below Shark",AnimalGraphingTable[[#This Row],[Offset multiplier]]+IF(AnimalGraphingTable[[#This Row],[X]]<50,1,0),0) -> 0
A24: H | B24: =AnimalGraphingTable[[#This Row],[Object]]&AnimalGraphingTable[[#This Row],[Version]]&LEFT(AnimalGraphingTable[[#This Row],[Top/Bottom]],1) -> H2A | C24: =VLOOKUP(AnimalGraphingTable[[#This Row],[Object]],SetupConstantsTable[],2,0)&IF(AnimalGraphingTable[[#This Row],[Top/Bottom]]="Shadow","-"&AnimalGraphingTable[[#This Row],[Top/Bottom]],"") -> Hammerhead | D24: Above Shark | E24: 2 | F24: =INDEX(SetupConstantsTable[],MATCH(AnimalGraphingTable[[#This Row],[Object]],SetupConstantsTable[Object],0),MATCH('Animal Graphing'!F$2,SetupConstantsTable[#Headers],0)) -> -4.5 | G24: =INDEX(SetupConstantsTable[],MATCH(AnimalGraphingTable[[#This Row],[Object]],SetupConstantsTable[Object],0),MATCH('Animal Graphing'!G$2,SetupConstantsTable[#Headers],0)) -> 170 | H24: =INDEX(SetupConstantsTable[],MATCH(AnimalGraphingTable[[#This Row],[Object]],SetupConstantsTable[Object],0),MATCH("X"&AnimalGraphingTable[[#This Row],[Version]],SetupConstantsTable[#Headers],0)) -> 162 | I24: =INDEX(SetupConstantsTable[],MATCH(AnimalGraphingTable[[#This Row],[Object]],SetupConstantsTable[Object],0),MATCH("Y"&AnimalGraphingTable[[#This Row],[Version]],SetupConstantsTable[#Headers],0)) -> -4 | J24: =IF(AnimalGraphingTable[[#This Row],[Top/Bottom]]="Shadow",Setup!$H$25,INDEX(SetupConstantsTable[],MATCH(AnimalGraphingTable[[#This Row],[Object]],SetupConstantsTable[Object],0),MATCH("Z"&AnimalGraphingTable[[#This Row],[Version]],SetupConstantsTable[#Headers],0))) -> -14 | K24: =AnimalGraphingTable[[#This Row],[Velocity at 0]]*NetTime+AnimalGraphingTable[[#This Row],[Starting position]] -> 162 | L24: =IF(AnimalGraphingTable[[#This Row],[Calculated position]]>0,0,ROUNDUP(-AnimalGraphingTable[[#This Row],[Calculated position]]/AnimalGraphingTable[[#This Row],[Cycle position]],0)) -> 0 | M24: =AnimalGraphingTable[[#This Row],[Offset multiplier]]*AnimalGraphingTable[[#This Row],[Cycle position]] -> 0 | N24: =AnimalGraphingTable[[#This Row],[Calculated position]]+AnimalGraphingTable[[#This Row],[Position offset]] -> 162 | O24: =IF(AnimalGraphingTable[[#This Row],[Offset multiplier]]=0,AnimalGraphingTable[[#This Row],[Starting Y lane]],MOD(ROUND(0.9*(ROUND(AnimalGraphingTable[[#This Row],[y lane randomizer]],0)-ROUNDDOWN(AnimalGraphingTable[[#This Row],[y lane randomizer]],-2)),0),22)+Yframe_min+4) -> -4 | P24: =AnimalGraphingTable[[#This Row],[Starting Z depth]] -> -14 | Q24: =RADIANS(AnimalGraphingTable[[#This Row],[Cycle position]]+AnimalGraphingTable[[#This Row],[Starting Y lane]]-Setup!$G$25+AnimalGraphingTable[[#This Row],[Offset multiplier]]+StartingTime)*100000 -> 77797958.63 | R24: =(AnimalGraphingTable[[#This Row],[X]]-Setup!F$25)/Setup!F$26-0.5 -> 2.34 | S24: =(AnimalGraphingTable[[#This Row],[Y]]-Setup!G$25)/Setup!G$26-0.5 -> -0.1333333333 | T24: =(AnimalGraphingTable[[#This Row],[Z]]-Setup!H$25)/Setup!H$26-0.5 -> -0.2 | U24: =IF(AnimalGraphingTable[[#This Row],[Hidden]],NA(),SUMPRODUCT(AnimalGraphingTable[[#This Row],[Norm X]:[Norm Z]],Chart_XRotationVals)) ->  | V24: =SUMPRODUCT(AnimalGraphingTable[[#This Row],[Norm X]:[Norm Z]],Chart_YRotationVals) -> 0.7297486304 | W24: =OR(AND(AnimalGraphingTable[[#This Row],[Top/Bottom]]="Above Shark",AnimalGraphingTable[[#This Row],[Z]]<Zposition),AND(AnimalGraphingTable[[#This Row],[Top/Bottom]]="Below Shark",AnimalGraphingTable[[#This Row],[Z]]>Zposition)) -> TRUE | X24: =_xlfn.SWITCH(TRUE(),(AnimalGraphingTable[[#This Row],[X]]+VLOOKUP(AnimalGraphingTable[[#This Row],[Object]],SetupConstantsTable[],4,0))>Xposition+VLOOKUP("Shark",SetupConstantsTable[],4,0),"Head",(AnimalGraphingTable[[#This Row],[X]]+VLOOKUP(AnimalGraphingTable[[#This Row],[Object]],SetupConstantsTable[],5,0))<Xposition+VLOOKUP("Shark",SetupConstantsTable[],5,0),"Tail","Mid") -> Head | Y24: =INDEX(SetupConstantsTable[],MATCH(AnimalGraphingTable[[#This Row],[Object]],SetupConstantsTable[Object],0),MATCH(AnimalGraphingTable[[#This Row],[Closest sphere to Shark]],SetupConstantsTable[#Headers],0))+INDEX(SetupConstantsTable[],MATCH("Shark",SetupConstantsTable[Object],0),MATCH(AnimalGraphingTable[[#This Row],[Closest sphere to Shark]],SetupConstantsTable[#Headers],0))>AnimalGraphingTable[[#This Row],[Separation]] -> FALSE | Z24: =SQRT(AnimalGraphingTable[[#This Row],[X dist]]+AnimalGraphingTable[[#This Row],[Y dist]]+AnimalGraphingTable[[#This Row],[Z dist]]) -> 143.0987421 | AA24: =(_xlfn.IFS(AnimalGraphingTable[[#This Row],[Closest sphere to Shark]]="Head",VLOOKUP(AnimalGraphingTable[[#This Row],[Object]],SetupConstantsTable[],4,0),AnimalGraphingTable[[#This Row],[Closest sphere to Shark]]="Tail",VLOOKUP(AnimalGraphingTable[[#This Row],[Object]],SetupConstantsTable[],5,0),AnimalGraphingTable[[#This Row],[Closest sphere to Shark]]="Mid",0)+AnimalGraphingTable[[#This Row],[X]]-VLOOKUP(AnimalGraphingTable[[#This Row],[Closest sphere to Shark]],SharkBubbleTable[],5,0))^2 -> 20449 | AB24: =(AnimalGraphingTable[[#This Row],[Y]]-VLOOKUP(AnimalGraphingTable[[#This Row],[Closest sphere to Shark]],SharkBubbleTable[],6,0))^2 -> 16 | AC24: =(AnimalGraphingTable[[#This Row],[Z]]-VLOOKUP(AnimalGraphingTable[[#This Row],[Closest sphere to Shark]],SharkBubbleTable[],7,0))^2 -> 12.25 | AD24: =IF(AnimalGraphingTable[[#This Row],[Top/Bottom]]="Below Shark",AnimalGraphingTable[[#This Row],[Offset multiplier]]+IF(AnimalGraphingTable[[#This Row],[X]]<50,1,0),0) -> 0
A25: F | B25: =AnimalGraphingTable[[#This Row],[Object]]&AnimalGraphingTable[[#This Row],[Version]]&LEFT(AnimalGraphingTable[[#This Row],[Top/Bottom]],1) -> F1A | C25: =VLOOKUP(AnimalGraphingTable[[#This Row],[Object]],SetupConstantsTable[],2,0)&IF(AnimalGraphingTable[[#This Row],[Top/Bottom]]="Shadow","-"&AnimalGraphingTable[[#This Row],[Top/Bottom]],"") -> Turtle | D25: Above Shark | E25: 1 | F25: =INDEX(SetupConstantsTable[],MATCH(AnimalGraphingTable[[#This Row],[Object]],SetupConstantsTable[Object],0),MATCH('Animal Graphing'!F$2,SetupConstantsTable[#Headers],0)) -> -2.5 | G25: =INDEX(SetupConstantsTable[],MATCH(AnimalGraphingTable[[#This Row],[Object]],SetupConstantsTable[Object],0),MATCH('Animal Graphing'!G$2,SetupConstantsTable[#Headers],0)) -> 140 | H25: =INDEX(SetupConstantsTable[],MATCH(AnimalGraphingTable[[#This Row],[Object]],SetupConstantsTable[Object],0),MATCH("X"&AnimalGraphingTable[[#This Row],[Version]],SetupConstantsTable[#Headers],0)) -> 42 | I25: =INDEX(SetupConstantsTable[],MATCH(AnimalGraphingTable[[#This Row],[Object]],SetupConstantsTable[Object],0),MATCH("Y"&AnimalGraphingTable[[#This Row],[Version]],SetupConstantsTable[#Headers],0)) -> 9 | J25: =IF(AnimalGraphingTable[[#This Row],[Top/Bottom]]="Shadow",Setup!$H$25,INDEX(SetupConstantsTable[],MATCH(AnimalGraphingTable[[#This Row],[Object]],SetupConstantsTable[Object],0),MATCH("Z"&AnimalGraphingTable[[#This Row],[Version]],SetupConstantsTable[#Headers],0))) -> -11 | K25: =AnimalGraphingTable[[#This Row],[Velocity at 0]]*NetTime+AnimalGraphingTable[[#This Row],[Starting position]] -> 42 | L25: =IF(AnimalGraphingTable[[#This Row],[Calculated position]]>0,0,ROUNDUP(-AnimalGraphingTable[[#This Row],[Calculated position]]/AnimalGraphingTable[[#This Row],[Cycle position]],0)) -> 0 | M25: =AnimalGraphingTable[[#This Row],[Offset multiplier]]*AnimalGraphingTable[[#This Row],[Cycle position]] -> 0 | N25: =AnimalGraphingTable[[#This Row],[Calculated position]]+AnimalGraphingTable[[#This Row],[Position offset]] -> 42 | O25: =IF(AnimalGraphingTable[[#This Row],[Offset multiplier]]=0,AnimalGraphingTable[[#This Row],[Starting Y lane]],MOD(ROUND(0.9*(ROUND(AnimalGraphingTable[[#This Row],[y lane randomizer]],0)-ROUNDDOWN(AnimalGraphingTable[[#This Row],[y lane randomizer]],-2)),0),22)+Yframe_min+4) -> 9 | P25: =AnimalGraphingTable[[#This Row],[Starting Z depth]] -> -11 | Q25: =RADIANS(AnimalGraphingTable[[#This Row],[Cycle position]]+AnimalGraphingTable[[#This Row],[Starting Y lane]]-Setup!$G$25+AnimalGraphingTable[[#This Row],[Offset multiplier]]+StartingTime)*100000 -> 77768288.03 | R25: =(AnimalGraphingTable[[#This Row],[X]]-Setup!F$25)/Setup!F$26-0.5 -> -0.06 | S25: =(AnimalGraphingTable[[#This Row],[Y]]-Setup!G$25)/Setup!G$26-0.5 -> 0.3 | T25: =(AnimalGraphingTable[[#This Row],[Z]]-Setup!H$25)/Setup!H$26-0.5 -> -0.05 | U25: =IF(AnimalGraphingTable[[#This Row],[Hidden]],NA(),SUMPRODUCT(AnimalGraphingTable[[#This Row],[Norm X]:[Norm Z]],Chart_XRotationVals)) ->  | V25: =SUMPRODUCT(AnimalGraphingTable[[#This Row],[Norm X]:[Norm Z]],Chart_YRotationVals) -> 0.0251058988 | W25: =OR(AND(AnimalGraphingTable[[#This Row],[Top/Bottom]]="Above Shark",AnimalGraphingTable[[#This Row],[Z]]<Zposition),AND(AnimalGraphingTable[[#This Row],[Top/Bottom]]="Below Shark",AnimalGraphingTable[[#This Row],[Z]]>Zposition)) -> TRUE | X25: =_xlfn.SWITCH(TRUE(),(AnimalGraphingTable[[#This Row],[X]]+VLOOKUP(AnimalGraphingTable[[#This Row],[Object]],SetupConstantsTable[],4,0))>Xposition+VLOOKUP("Shark",SetupConstantsTable[],4,0),"Head",(AnimalGraphingTable[[#This Row],[X]]+VLOOKUP(AnimalGraphingTable[[#This Row],[Object]],SetupConstantsTable[],5,0))<Xposition+VLOOKUP("Shark",SetupConstantsTable[],5,0),"Tail","Mid") -> Head | Y25: =INDEX(SetupConstantsTable[],MATCH(AnimalGraphingTable[[#This Row],[Object]],SetupConstantsTable[Object],0),MATCH(AnimalGraphingTable[[#This Row],[Closest sphere to Shark]],SetupConstantsTable[#Headers],0))+INDEX(SetupConstantsTable[],MATCH("Shark",SetupConstantsTable[Object],0),MATCH(AnimalGraphingTable[[#This Row],[Closest sphere to Shark]],SetupConstantsTable[#Headers],0))>AnimalGraphingTable[[#This Row],[Separation]] -> FALSE | Z25: =SQRT(AnimalGraphingTable[[#This Row],[X dist]]+AnimalGraphingTable[[#This Row],[Y dist]]+AnimalGraphingTable[[#This Row],[Z dist]]) -> 21.93741097 | AA25: =(_xlfn.IFS(AnimalGraphingTable[[#This Row],[Closest sphere to Shark]]="Head",VLOOKUP(AnimalGraphingTable[[#This Row],[Object]],SetupConstantsTable[],4,0),AnimalGraphingTable[[#This Row],[Closest sphere to Shark]]="Tail",VLOOKUP(AnimalGraphingTable[[#This Row],[Object]],SetupConstantsTable[],5,0),AnimalGraphingTable[[#This Row],[Closest sphere to Shark]]="Mid",0)+AnimalGraphingTable[[#This Row],[X]]-VLOOKUP(AnimalGraphingTable[[#This Row],[Closest sphere to Shark]],SharkBubbleTable[],5,0))^2 -> 400 | AB25: =(AnimalGraphingTable[[#This Row],[Y]]-VLOOKUP(AnimalGraphingTable[[#This Row],[Closest sphere to Shark]],SharkBubbleTable[],6,0))^2 -> 81 | AC25: =(AnimalGraphingTable[[#This Row],[Z]]-VLOOKUP(AnimalGraphingTable[[#This Row],[Closest sphere to Shark]],SharkBubbleTable[],7,0))^2 -> 0.25 | AD25: =IF(AnimalGraphingTable[[#This Row],[Top/Bottom]]="Below Shark",AnimalGraphingTable[[#This Row],[Offset multiplier]]+IF(AnimalGraphingTable[[#This Row],[X]]<50,1,0),0) -> 0
A26: F | B26: =AnimalGraphingTable[[#This Row],[Object]]&AnimalGraphingTable[[#This Row],[Version]]&LEFT(AnimalGraphingTable[[#This Row],[Top/Bottom]],1) -> F2A | C26: =VLOOKUP(AnimalGraphingTable[[#This Row],[Object]],SetupConstantsTable[],2,0)&IF(AnimalGraphingTable[[#This Row],[Top/Bottom]]="Shadow","-"&AnimalGraphingTable[[#This Row],[Top/Bottom]],"") -> Turtle | D26: Above Shark | E26: 2 | F26: =INDEX(SetupConstantsTable[],MATCH(AnimalGraphingTable[[#This Row],[Object]],SetupConstantsTable[Object],0),MATCH('Animal Graphing'!F$2,SetupConstantsTable[#Headers],0)) -> -2.5 | G26: =INDEX(SetupConstantsTable[],MATCH(AnimalGraphingTable[[#This Row],[Object]],SetupConstantsTable[Object],0),MATCH('Animal Graphing'!G$2,SetupConstantsTable[#Headers],0)) -> 140 | H26: =INDEX(SetupConstantsTable[],MATCH(AnimalGraphingTable[[#This Row],[Object]],SetupConstantsTable[Object],0),MATCH("X"&AnimalGraphingTable[[#This Row],[Version]],SetupConstantsTable[#Headers],0)) -> 97 | I26: =INDEX(SetupConstantsTable[],MATCH(AnimalGraphingTable[[#This Row],[Object]],SetupConstantsTable[Object],0),MATCH("Y"&AnimalGraphingTable[[#This Row],[Version]],SetupConstantsTable[#Headers],0)) -> 7 | J26: =IF(AnimalGraphingTable[[#This Row],[Top/Bottom]]="Shadow",Setup!$H$25,INDEX(SetupConstantsTable[],MATCH(AnimalGraphingTable[[#This Row],[Object]],SetupConstantsTable[Object],0),MATCH("Z"&AnimalGraphingTable[[#This Row],[Version]],SetupConstantsTable[#Headers],0))) -> -12 | K26: =AnimalGraphingTable[[#This Row],[Velocity at 0]]*NetTime+AnimalGraphingTable[[#This Row],[Starting position]] -> 97 | L26: =IF(AnimalGraphingTable[[#This Row],[Calculated position]]>0,0,ROUNDUP(-AnimalGraphingTable[[#This Row],[Calculated position]]/AnimalGraphingTable[[#This Row],[Cycle position]],0)) -> 0 | M26: =AnimalGraphingTable[[#This Row],[Offset multiplier]]*AnimalGraphingTable[[#This Row],[Cycle position]] -> 0 | N26: =AnimalGraphingTable[[#This Row],[Calculated position]]+AnimalGraphingTable[[#This Row],[Position offset]] -> 97 | O26: =IF(AnimalGraphingTable[[#This Row],[Offset multiplier]]=0,AnimalGraphingTable[[#This Row],[Starting Y lane]],MOD(ROUND(0.9*(ROUND(AnimalGraphingTable[[#This Row],[y lane randomizer]],0)-ROUNDDOWN(AnimalGraphingTable[[#This Row],[y lane randomizer]],-2)),0),22)+Yframe_min+4) -> 7 | P26: =AnimalGraphingTable[[#This Row],[Starting Z depth]] -> -12 | Q26: =RADIANS(AnimalGraphingTable[[#This Row],[Cycle position]]+AnimalGraphingTable[[#This Row],[Starting Y lane]]-Setup!$G$25+AnimalGraphingTable[[#This Row],[Offset multiplier]]+StartingTime)*100000 -> 77764797.37 | R26: =(AnimalGraphingTable[[#This Row],[X]]-Setup!F$25)/Setup!F$26-0.5 -> 1.04 | S26: =(AnimalGraphingTable[[#This Row],[Y]]-Setup!G$25)/Setup!G$26-0.5 -> 0.2333333333 | T26: =(AnimalGraphingTable[[#This Row],[Z]]-Setup!H$25)/Setup!H$26-0.5 -> -0.1 | U26: =IF(AnimalGraphingTable[[#This Row],[Hidden]],NA(),SUMPRODUCT(AnimalGraphingTable[[#This Row],[Norm X]:[Norm Z]],Chart_XRotationVals)) ->  | V26: =SUMPRODUCT(AnimalGraphingTable[[#This Row],[Norm X]:[Norm Z]],Chart_YRotationVals) -> 0.3825519847 | W26: =OR(AND(AnimalGraphingTable[[#This Row],[Top/Bottom]]="Above Shark",AnimalGraphingTable[[#This Row],[Z]]<Zposition),AND(AnimalGraphingTable[[#This Row],[Top/Bottom]]="Below Shark",AnimalGraphingTable[[#This Row],[Z]]>Zposition)) -> TRUE | X26: =_xlfn.SWITCH(TRUE(),(AnimalGraphingTable[[#This Row],[X]]+VLOOKUP(AnimalGraphingTable[[#This Row],[Object]],SetupConstantsTable[],4,0))>Xposition+VLOOKUP("Shark",SetupConstantsTable[],4,0),"Head",(AnimalGraphingTable[[#This Row],[X]]+VLOOKUP(AnimalGraphingTable[[#This Row],[Object]],SetupConstantsTable[],5,0))<Xposition+VLOOKUP("Shark",SetupConstantsTable[],5,0),"Tail","Mid") -> Head | Y26: =INDEX(SetupConstantsTable[],MATCH(AnimalGraphingTable[[#This Row],[Object]],SetupConstantsTable[Object],0),MATCH(AnimalGraphingTable[[#This Row],[Closest sphere to Shark]],SetupConstantsTable[#Headers],0))+INDEX(SetupConstantsTable[],MATCH("Shark",SetupConstantsTable[Object],0),MATCH(AnimalGraphingTable[[#This Row],[Closest sphere to Shark]],SetupConstantsTable[#Headers],0))>AnimalGraphingTable[[#This Row],[Separation]] -> FALSE | Z26: =SQRT(AnimalGraphingTable[[#This Row],[X dist]]+AnimalGraphingTable[[#This Row],[Y dist]]+AnimalGraphingTable[[#This Row],[Z dist]]) -> 75.34089195 | AA26: =(_xlfn.IFS(AnimalGraphingTable[[#This Row],[Closest sphere to Shark]]="Head",VLOOKUP(AnimalGraphingTable[[#This Row],[Object]],SetupConstantsTable[],4,0),AnimalGraphingTable[[#This Row],[Closest sphere to Shark]]="Tail",VLOOKUP(AnimalGraphingTable[[#This Row],[Object]],SetupConstantsTable[],5,0),AnimalGraphingTable[[#This Row],[Closest sphere to Shark]]="Mid",0)+AnimalGraphingTable[[#This Row],[X]]-VLOOKUP(AnimalGraphingTable[[#This Row],[Closest sphere to Shark]],SharkBubbleTable[],5,0))^2 -> 5625 | AB26: =(AnimalGraphingTable[[#This Row],[Y]]-VLOOKUP(AnimalGraphingTable[[#This Row],[Closest sphere to Shark]],SharkBubbleTable[],6,0))^2 -> 49 | AC26: =(AnimalGraphingTable[[#This Row],[Z]]-VLOOKUP(AnimalGraphingTable[[#This Row],[Closest sphere to Shark]],SharkBubbleTable[],7,0))^2 -> 2.25 | AD26: =IF(AnimalGraphingTable[[#This Row],[Top/Bottom]]="Below Shark",AnimalGraphingTable[[#This Row],[Offset multiplier]]+IF(AnimalGraphingTable[[#This Row],[X]]<50,1,0),0) -> 0
A27: D | B27: =AnimalGraphingTable[[#This Row],[Object]]&AnimalGraphingTable[[#This Row],[Version]]&LEFT(AnimalGraphingTable[[#This Row],[Top/Bottom]],1) -> D1A | C27: =VLOOKUP(AnimalGraphingTable[[#This Row],[Object]],SetupConstantsTable[],2,0)&IF(AnimalGraphingTable[[#This Row],[Top/Bottom]]="Shadow","-"&AnimalGraphingTable[[#This Row],[Top/Bottom]],"") -> Jellyfish | D27: Above Shark | E27: 1 | F27: =INDEX(SetupConstantsTable[],MATCH(AnimalGraphingTable[[#This Row],[Object]],SetupConstantsTable[Object],0),MATCH('Animal Graphing'!F$2,SetupConstantsTable[#Headers],0)) -> -2.5 | G27: =INDEX(SetupConstantsTable[],MATCH(AnimalGraphingTable[[#This Row],[Object]],SetupConstantsTable[Object],0),MATCH('Animal Graphing'!G$2,SetupConstantsTable[#Headers],0)) -> 165 | H27: =INDEX(SetupConstantsTable[],MATCH(AnimalGraphingTable[[#This Row],[Object]],SetupConstantsTable[Object],0),MATCH("X"&AnimalGraphingTable[[#This Row],[Version]],SetupConstantsTable[#Headers],0)) -> 50 | I27: =INDEX(SetupConstantsTable[],MATCH(AnimalGraphingTable[[#This Row],[Object]],SetupConstantsTable[Object],0),MATCH("Y"&AnimalGraphingTable[[#This Row],[Version]],SetupConstantsTable[#Headers],0)) -> 9 | J27: =IF(AnimalGraphingTable[[#This Row],[Top/Bottom]]="Shadow",Setup!$H$25,INDEX(SetupConstantsTable[],MATCH(AnimalGraphingTable[[#This Row],[Object]],SetupConstantsTable[Object],0),MATCH("Z"&AnimalGraphingTable[[#This Row],[Version]],SetupConstantsTable[#Headers],0))) -> -10 | K27: =AnimalGraphingTable[[#This Row],[Velocity at 0]]*NetTime+AnimalGraphingTable[[#This Row],[Starting position]] -> 50 | L27: =IF(AnimalGraphingTable[[#This Row],[Calculated position]]>0,0,ROUNDUP(-AnimalGraphingTable[[#This Row],[Calculated position]]/AnimalGraphingTable[[#This Row],[Cycle position]],0)) -> 0 | M27: =AnimalGraphingTable[[#This Row],[Offset multiplier]]*AnimalGraphingTable[[#This Row],[Cycle position]] -> 0 | N27: =AnimalGraphingTable[[#This Row],[Calculated position]]+AnimalGraphingTable[[#This Row],[Position offset]] -> 50 | O27: =IF(AnimalGraphingTable[[#This Row],[Offset multiplier]]=0,AnimalGraphingTable[[#This Row],[Starting Y lane]],MOD(ROUND(0.9*(ROUND(AnimalGraphingTable[[#This Row],[y lane randomizer]],0)-ROUNDDOWN(AnimalGraphingTable[[#This Row],[y lane randomizer]],-2)),0),22)+Yframe_min+4) -> 9 | P27: =AnimalGraphingTable[[#This Row],[Starting Z depth]] -> -10 | Q27: =RADIANS(AnimalGraphingTable[[#This Row],[Cycle position]]+AnimalGraphingTable[[#This Row],[Starting Y lane]]-Setup!$G$25+AnimalGraphingTable[[#This Row],[Offset multiplier]]+StartingTime)*100000 -> 77811921.26 | R27: =(AnimalGraphingTable[[#This Row],[X]]-Setup!F$25)/Setup!F$26-0.5 -> 0.1 | S27: =(AnimalGraphingTable[[#This Row],[Y]]-Setup!G$25)/Setup!G$26-0.5 -> 0.3 | T27: =(AnimalGraphingTable[[#This Row],[Z]]-Setup!H$25)/Setup!H$26-0.5 -> 0 | U27: =IF(AnimalGraphingTable[[#This Row],[Hidden]],NA(),SUMPRODUCT(AnimalGraphingTable[[#This Row],[Norm X]:[Norm Z]],Chart_XRotationVals)) -> -0.05656854249 | V27: =SUMPRODUCT(AnimalGraphingTable[[#This Row],[Norm X]:[Norm Z]],Chart_YRotationVals) -> 0.09899494937 | W27: =OR(AND(AnimalGraphingTable[[#This Row],[Top/Bottom]]="Above Shark",AnimalGraphingTable[[#This Row],[Z]]<Zposition),AND(AnimalGraphingTable[[#This Row],[Top/Bottom]]="Below Shark",AnimalGraphingTable[[#This Row],[Z]]>Zposition)) -> FALSE | X27: =_xlfn.SWITCH(TRUE(),(AnimalGraphingTable[[#This Row],[X]]+VLOOKUP(AnimalGraphingTable[[#This Row],[Object]],SetupConstantsTable[],4,0))>Xposition+VLOOKUP("Shark",SetupConstantsTable[],4,0),"Head",(AnimalGraphingTable[[#This Row],[X]]+VLOOKUP(AnimalGraphingTable[[#This Row],[Object]],SetupConstantsTable[],5,0))<Xposition+VLOOKUP("Shark",SetupConstantsTable[],5,0),"Tail","Mid") -> Head | Y27: =INDEX(SetupConstantsTable[],MATCH(AnimalGraphingTable[[#This Row],[Object]],SetupConstantsTable[Object],0),MATCH(AnimalGraphingTable[[#This Row],[Closest sphere to Shark]],SetupConstantsTable[#Headers],0))+INDEX(SetupConstantsTable[],MATCH("Shark",SetupConstantsTable[Object],0),MATCH(AnimalGraphingTable[[#This Row],[Closest sphere to Shark]],SetupConstantsTable[#Headers],0))>AnimalGraphingTable[[#This Row],[Separation]] -> FALSE | Z27: =SQRT(AnimalGraphingTable[[#This Row],[X dist]]+AnimalGraphingTable[[#This Row],[Y dist]]+AnimalGraphingTable[[#This Row],[Z dist]]) -> 29.41513216 | AA27: =(_xlfn.IFS(AnimalGraphingTable[[#This Row],[Closest sphere to Shark]]="Head",VLOOKUP(AnimalGraphingTable[[#This Row],[Object]],SetupConstantsTable[],4,0),AnimalGraphingTable[[#This Row],[Closest sphere to Shark]]="Tail",VLOOKUP(AnimalGraphingTable[[#This Row],[Object]],SetupConstantsTable[],5,0),AnimalGraphingTable[[#This Row],[Closest sphere to Shark]]="Mid",0)+AnimalGraphingTable[[#This Row],[X]]-VLOOKUP(AnimalGraphingTable[[#This Row],[Closest sphere to Shark]],SharkBubbleTable[],5,0))^2 -> 784 | AB27: =(AnimalGraphingTable[[#This Row],[Y]]-VLOOKUP(AnimalGraphingTable[[#This Row],[Closest sphere to Shark]],SharkBubbleTable[],6,0))^2 -> 81 | AC27: =(AnimalGraphingTable[[#This Row],[Z]]-VLOOKUP(AnimalGraphingTable[[#This Row],[Closest sphere to Shark]],SharkBubbleTable[],7,0))^2 -> 0.25 | AD27: =IF(AnimalGraphingTable[[#This Row],[Top/Bottom]]="Below Shark",AnimalGraphingTable[[#This Row],[Offset multiplier]]+IF(AnimalGraphingTable[[#This Row],[X]]<50,1,0),0) -> 0
A28: D | B28: =AnimalGraphingTable[[#This Row],[Object]]&AnimalGraphingTable[[#This Row],[Version]]&LEFT(AnimalGraphingTable[[#This Row],[Top/Bottom]],1) -> D2A | C28: =VLOOKUP(AnimalGraphingTable[[#This Row],[Object]],SetupConstantsTable[],2,0)&IF(AnimalGraphingTable[[#This Row],[Top/Bottom]]="Shadow","-"&AnimalGraphingTable[[#This Row],[Top/Bottom]],"") -> Jellyfish | D28: Above Shark | E28: 2 | F28: =INDEX(SetupConstantsTable[],MATCH(AnimalGraphingTable[[#This Row],[Object]],SetupConstantsTable[Object],0),MATCH('Animal Graphing'!F$2,SetupConstantsTable[#Headers],0)) -> -2.5 | G28: =INDEX(SetupConstantsTable[],MATCH(AnimalGraphingTable[[#This Row],[Object]],SetupConstantsTable[Object],0),MATCH('Animal Graphing'!G$2,SetupConstantsTable[#Headers],0)) -> 165 | H28: =INDEX(SetupConstantsTable[],MATCH(AnimalGraphingTable[[#This Row],[Object]],SetupConstantsTable[Object],0),MATCH("X"&AnimalGraphingTable[[#This Row],[Version]],SetupConstantsTable[#Headers],0)) -> 99 | I28: =INDEX(SetupConstantsTable[],MATCH(AnimalGraphingTable[[#This Row],[Object]],SetupConstantsTable[Object],0),MATCH("Y"&AnimalGraphingTable[[#This Row],[Version]],SetupConstantsTable[#Headers],0)) -> 6 | J28: =IF(AnimalGraphingTable[[#This Row],[Top/Bottom]]="Shadow",Setup!$H$25,INDEX(SetupConstantsTable[],MATCH(AnimalGraphingTable[[#This Row],[Object]],SetupConstantsTable[Object],0),MATCH("Z"&AnimalGraphingTable[[#This Row],[Version]],SetupConstantsTable[#Headers],0))) -> -9 | K28: =AnimalGraphingTable[[#This Row],[Velocity at 0]]*NetTime+AnimalGraphingTable[[#This Row],[Starting position]] -> 99 | L28: =IF(AnimalGraphingTable[[#This Row],[Calculated position]]>0,0,ROUNDUP(-AnimalGraphingTable[[#This Row],[Calculated position]]/AnimalGraphingTable[[#This Row],[Cycle position]],0)) -> 0 | M28: =AnimalGraphingTable[[#This Row],[Offset multiplier]]*AnimalGraphingTable[[#This Row],[Cycle position]] -> 0 | N28: =AnimalGraphingTable[[#This Row],[Calculated position]]+AnimalGraphingTable[[#This Row],[Position offset]] -> 99 | O28: =IF(AnimalGraphingTable[[#This Row],[Offset multiplier]]=0,AnimalGraphingTable[[#This Row],[Starting Y lane]],MOD(ROUND(0.9*(ROUND(AnimalGraphingTable[[#This Row],[y lane randomizer]],0)-ROUNDDOWN(AnimalGraphingTable[[#This Row],[y lane randomizer]],-2)),0),22)+Yframe_min+4) -> 6 | P28: =AnimalGraphingTable[[#This Row],[Starting Z depth]] -> -9 | Q28: =RADIANS(AnimalGraphingTable[[#This Row],[Cycle position]]+AnimalGraphingTable[[#This Row],[Starting Y lane]]-Setup!$G$25+AnimalGraphingTable[[#This Row],[Offset multiplier]]+StartingTime)*100000 -> 77806685.27 | R28: =(AnimalGraphingTable[[#This Row],[X]]-Setup!F$25)/Setup!F$26-0.5 -> 1.08 | S28: =(AnimalGraphingTable[[#This Row],[Y]]-Setup!G$25)/Setup!G$26-0.5 -> 0.2 | T28: =(AnimalGraphingTable[[#This Row],[Z]]-Setup!H$25)/Setup!H$26-0.5 -> 0.05 | U28: =IF(AnimalGraphingTable[[#This Row],[Hidden]],NA(),SUMPRODUCT(AnimalGraphingTable[[#This Row],[Norm X]:[Norm Z]],Chart_XRotationVals)) -> 0.6788225099 | V28: =SUMPRODUCT(AnimalGraphingTable[[#This Row],[Norm X]:[Norm Z]],Chart_YRotationVals) -> 0.4415845768 | W28: =OR(AND(AnimalGraphingTable[[#This Row],[Top/Bottom]]="Above Shark",AnimalGraphingTable[[#This Row],[Z]]<Zposition),AND(AnimalGraphingTable[[#This Row],[Top/Bottom]]="Below Shark",AnimalGraphingTable[[#This Row],[Z]]>Zposition)) -> FALSE | X28: =_xlfn.SWITCH(TRUE(),(AnimalGraphingTable[[#This Row],[X]]+VLOOKUP(AnimalGraphingTable[[#This Row],[Object]],SetupConstantsTable[],4,0))>Xposition+VLOOKUP("Shark",SetupConstantsTable[],4,0),"Head",(AnimalGraphingTable[[#This Row],[X]]+VLOOKUP(AnimalGraphingTable[[#This Row],[Object]],SetupConstantsTable[],5,0))<Xposition+VLOOKUP("Shark",SetupConstantsTable[],5,0),"Tail","Mid") -> Head | Y28: =INDEX(SetupConstantsTable[],MATCH(AnimalGraphingTable[[#This Row],[Object]],SetupConstantsTable[Object],0),MATCH(AnimalGraphingTable[[#This Row],[Closest sphere to Shark]],SetupConstantsTable[#Headers],0))+INDEX(SetupConstantsTable[],MATCH("Shark",SetupConstantsTable[Object],0),MATCH(AnimalGraphingTable[[#This Row],[Closest sphere to Shark]],SetupConstantsTable[#Headers],0))>AnimalGraphingTable[[#This Row],[Separation]] -> FALSE | Z28: =SQRT(AnimalGraphingTable[[#This Row],[X dist]]+AnimalGraphingTable[[#This Row],[Y dist]]+AnimalGraphingTable[[#This Row],[Z dist]]) -> 77.24797732 | AA28: =(_xlfn.IFS(AnimalGraphingTable[[#This Row],[Closest sphere to Shark]]="Head",VLOOKUP(AnimalGraphingTable[[#This Row],[Object]],SetupConstantsTable[],4,0),AnimalGraphingTable[[#This Row],[Closest sphere to Shark]]="Tail",VLOOKUP(AnimalGraphingTable[[#This Row],[Object]],SetupConstantsTable[],5,0),AnimalGraphingTable[[#This Row],[Closest sphere to Shark]]="Mid",0)+AnimalGraphingTable[[#This Row],[X]]-VLOOKUP(AnimalGraphingTable[[#This Row],[Closest sphere to Shark]],SharkBubbleTable[],5,0))^2 -> 5929 | AB28: =(AnimalGraphingTable[[#This Row],[Y]]-VLOOKUP(AnimalGraphingTable[[#This Row],[Closest sphere to Shark]],SharkBubbleTable[],6,0))^2 -> 36 | AC28: =(AnimalGraphingTable[[#This Row],[Z]]-VLOOKUP(AnimalGraphingTable[[#This Row],[Closest sphere to Shark]],SharkBubbleTable[],7,0))^2 -> 2.25 | AD28: =IF(AnimalGraphingTable[[#This Row],[Top/Bottom]]="Below Shark",AnimalGraphingTable[[#This Row],[Offset multiplier]]+IF(AnimalGraphingTable[[#This Row],[X]]<50,1,0),0) -> 0
A29: C | B29: =AnimalGraphingTable[[#This Row],[Object]]&AnimalGraphingTable[[#This Row],[Version]]&LEFT(AnimalGraphingTable[[#This Row],[Top/Bottom]],1) -> C1A | C29: =VLOOKUP(AnimalGraphingTable[[#This Row],[Object]],SetupConstantsTable[],2,0)&IF(AnimalGraphingTable[[#This Row],[Top/Bottom]]="Shadow","-"&AnimalGraphingTable[[#This Row],[Top/Bottom]],"") -> Orca | D29: Above Shark | E29: 1 | F29: =INDEX(SetupConstantsTable[],MATCH(AnimalGraphingTable[[#This Row],[Object]],SetupConstantsTable[Object],0),MATCH('Animal Graphing'!F$2,SetupConstantsTable[#Headers],0)) -> -5 | G29: =INDEX(SetupConstantsTable[],MATCH(AnimalGraphingTable[[#This Row],[Object]],SetupConstantsTable[Object],0),MATCH('Animal Graphing'!G$2,SetupConstantsTable[#Headers],0)) -> 260 | H29: =INDEX(SetupConstantsTable[],MATCH(AnimalGraphingTable[[#This Row],[Object]],SetupConstantsTable[Object],0),MATCH("X"&AnimalGraphingTable[[#This Row],[Version]],SetupConstantsTable[#Headers],0)) -> 67 | I29: =INDEX(SetupConstantsTable[],MATCH(AnimalGraphingTable[[#This Row],[Object]],SetupConstantsTable[Object],0),MATCH("Y"&AnimalGraphingTable[[#This Row],[Version]],SetupConstantsTable[#Headers],0)) -> -7 | J29: =IF(AnimalGraphingTable[[#This Row],[Top/Bottom]]="Shadow",Setup!$H$25,INDEX(SetupConstantsTable[],MATCH(AnimalGraphingTable[[#This Row],[Object]],SetupConstantsTable[Object],0),MATCH("Z"&AnimalGraphingTable[[#This Row],[Version]],SetupConstantsTable[#Headers],0))) -> -6 | K29: =AnimalGraphingTable[[#This Row],[Velocity at 0]]*NetTime+AnimalGraphingTable[[#This Row],[Starting position]] -> 67 | L29: =IF(AnimalGraphingTable[[#This Row],[Calculated position]]>0,0,ROUNDUP(-AnimalGraphingTable[[#This Row],[Calculated position]]/AnimalGraphingTable[[#This Row],[Cycle position]],0)) -> 0 | M29: =AnimalGraphingTable[[#This Row],[Offset multiplier]]*AnimalGraphingTable[[#This Row],[Cycle position]] -> 0 | N29: =AnimalGraphingTable[[#This Row],[Calculated position]]+AnimalGraphingTable[[#This Row],[Position offset]] -> 67 | O29: =IF(AnimalGraphingTable[[#This Row],[Offset multiplier]]=0,AnimalGraphingTable[[#This Row],[Starting Y lane]],MOD(ROUND(0.9*(ROUND(AnimalGraphingTable[[#This Row],[y lane randomizer]],0)-ROUNDDOWN(AnimalGraphingTable[[#This Row],[y lane randomizer]],-2)),0),22)+Yframe_min+4) -> -7 | P29: =AnimalGraphingTable[[#This Row],[Starting Z depth]] -> -6 | Q29: =RADIANS(AnimalGraphingTable[[#This Row],[Cycle position]]+AnimalGraphingTable[[#This Row],[Starting Y lane]]-Setup!$G$25+AnimalGraphingTable[[#This Row],[Offset multiplier]]+StartingTime)*100000 -> 77949802.27 | R29: =(AnimalGraphingTable[[#This Row],[X]]-Setup!F$25)/Setup!F$26-0.5 -> 0.44 | S29: =(AnimalGraphingTable[[#This Row],[Y]]-Setup!G$25)/Setup!G$26-0.5 -> -0.2333333333 | T29: =(AnimalGraphingTable[[#This Row],[Z]]-Setup!H$25)/Setup!H$26-0.5 -> 0.2 | U29: =IF(AnimalGraphingTable[[#This Row],[Hidden]],NA(),SUMPRODUCT(AnimalGraphingTable[[#This Row],[Norm X]:[Norm Z]],Chart_XRotationVals)) -> 0.4101219331 | V29: =SUMPRODUCT(AnimalGraphingTable[[#This Row],[Norm X]:[Norm Z]],Chart_YRotationVals) -> 0.1753480495 | W29: =OR(AND(AnimalGraphingTable[[#This Row],[Top/Bottom]]="Above Shark",AnimalGraphingTable[[#This Row],[Z]]<Zposition),AND(AnimalGraphingTable[[#This Row],[Top/Bottom]]="Below Shark",AnimalGraphingTable[[#This Row],[Z]]>Zposition)) -> FALSE | X29: =_xlfn.SWITCH(TRUE(),(AnimalGraphingTable[[#This Row],[X]]+VLOOKUP(AnimalGraphingTable[[#This Row],[Object]],SetupConstantsTable[],4,0))>Xposition+VLOOKUP("Shark",SetupConstantsTable[],4,0),"Head",(AnimalGraphingTable[[#This Row],[X]]+VLOOKUP(AnimalGraphingTable[[#This Row],[Object]],SetupConstantsTable[],5,0))<Xposition+VLOOKUP("Shark",SetupConstantsTable[],5,0),"Tail","Mid") -> Head | Y29: =INDEX(SetupConstantsTable[],MATCH(AnimalGraphingTable[[#This Row],[Object]],SetupConstantsTable[Object],0),MATCH(AnimalGraphingTable[[#This Row],[Closest sphere to Shark]],SetupConstantsTable[#Headers],0))+INDEX(SetupConstantsTable[],MATCH("Shark",SetupConstantsTable[Object],0),MATCH(AnimalGraphingTable[[#This Row],[Closest sphere to Shark]],SetupConstantsTable[#Headers],0))>AnimalGraphingTable[[#This Row],[Separation]] -> FALSE | Z29: =SQRT(AnimalGraphingTable[[#This Row],[X dist]]+AnimalGraphingTable[[#This Row],[Y dist]]+AnimalGraphingTable[[#This Row],[Z dist]]) -> 41.83598929 | AA29: =(_xlfn.IFS(AnimalGraphingTable[[#This Row],[Closest sphere to Shark]]="Head",VLOOKUP(AnimalGraphingTable[[#This Row],[Object]],SetupConstantsTable[],4,0),AnimalGraphingTable[[#This Row],[Closest sphere to Shark]]="Tail",VLOOKUP(AnimalGraphingTable[[#This Row],[Object]],SetupConstantsTable[],5,0),AnimalGraphingTable[[#This Row],[Closest sphere to Shark]]="Mid",0)+AnimalGraphingTable[[#This Row],[X]]-VLOOKUP(AnimalGraphingTable[[#This Row],[Closest sphere to Shark]],SharkBubbleTable[],5,0))^2 -> 1681 | AB29: =(AnimalGraphingTable[[#This Row],[Y]]-VLOOKUP(AnimalGraphingTable[[#This Row],[Closest sphere to Shark]],SharkBubbleTable[],6,0))^2 -> 49 | AC29: =(AnimalGraphingTable[[#This Row],[Z]]-VLOOKUP(AnimalGraphingTable[[#This Row],[Closest sphere to Shark]],SharkBubbleTable[],7,0))^2 -> 20.25 | AD29: =IF(AnimalGraphingTable[[#This Row],[Top/Bottom]]="Below Shark",AnimalGraphingTable[[#This Row],[Offset multiplier]]+IF(AnimalGraphingTable[[#This Row],[X]]<50,1,0),0) -> 0
A30: C | B30: =AnimalGraphingTable[[#This Row],[Object]]&AnimalGraphingTable[[#This Row],[Version]]&LEFT(AnimalGraphingTable[[#This Row],[Top/Bottom]],1) -> C2A | C30: =VLOOKUP(AnimalGraphingTable[[#This Row],[Object]],SetupConstantsTable[],2,0)&IF(AnimalGraphingTable[[#This Row],[Top/Bottom]]="Shadow","-"&AnimalGraphingTable[[#This Row],[Top/Bottom]],"") -> Orca | D30: Above Shark | E30: 2 | F30: =INDEX(SetupConstantsTable[],MATCH(AnimalGraphingTable[[#This Row],[Object]],SetupConstantsTable[Object],0),MATCH('Animal Graphing'!F$2,SetupConstantsTable[#Headers],0)) -> -5 | G30: =INDEX(SetupConstantsTable[],MATCH(AnimalGraphingTable[[#This Row],[Object]],SetupConstantsTable[Object],0),MATCH('Animal Graphing'!G$2,SetupConstantsTable[#Headers],0)) -> 260 | H30: =INDEX(SetupConstantsTable[],MATCH(AnimalGraphingTable[[#This Row],[Object]],SetupConstantsTable[Object],0),MATCH("X"&AnimalGraphingTable[[#This Row],[Version]],SetupConstantsTable[#Headers],0)) -> 195 | I30: =INDEX(SetupConstantsTable[],MATCH(AnimalGraphingTable[[#This Row],[Object]],SetupConstantsTable[Object],0),MATCH("Y"&AnimalGraphingTable[[#This Row],[Version]],SetupConstantsTable[#Headers],0)) -> -1 | J30: =IF(AnimalGraphingTable[[#This Row],[Top/Bottom]]="Shadow",Setup!$H$25,INDEX(SetupConstantsTable[],MATCH(AnimalGraphingTable[[#This Row],[Object]],SetupConstantsTable[Object],0),MATCH("Z"&AnimalGraphingTable[[#This Row],[Version]],SetupConstantsTable[#Headers],0))) -> -7 | K30: =AnimalGraphingTable[[#This Row],[Velocity at 0]]*NetTime+AnimalGraphingTable[[#This Row],[Starting position]] -> 195 | L30: =IF(AnimalGraphingTable[[#This Row],[Calculated position]]>0,0,ROUNDUP(-AnimalGraphingTable[[#This Row],[Calculated position]]/AnimalGraphingTable[[#This Row],[Cycle position]],0)) -> 0 | M30: =AnimalGraphingTable[[#This Row],[Offset multiplier]]*AnimalGraphingTable[[#This Row],[Cycle position]] -> 0 | N30: =AnimalGraphingTable[[#This Row],[Calculated position]]+AnimalGraphingTable[[#This Row],[Position offset]] -> 195 | O30: =IF(AnimalGraphingTable[[#This Row],[Offset multiplier]]=0,AnimalGraphingTable[[#This Row],[Starting Y lane]],MOD(ROUND(0.9*(ROUND(AnimalGraphingTable[[#This Row],[y lane randomizer]],0)-ROUNDDOWN(AnimalGraphingTable[[#This Row],[y lane randomizer]],-2)),0),22)+Yframe_min+4) -> -1 | P30: =AnimalGraphingTable[[#This Row],[Starting Z depth]] -> -7 | Q30: =RADIANS(AnimalGraphingTable[[#This Row],[Cycle position]]+AnimalGraphingTable[[#This Row],[Starting Y lane]]-Setup!$G$25+AnimalGraphingTable[[#This Row],[Offset multiplier]]+StartingTime)*100000 -> 77960274.25 | R30: =(AnimalGraphingTable[[#This Row],[X]]-Setup!F$25)/Setup!F$26-0.5 -> 3 | S30: =(AnimalGraphingTable[[#This Row],[Y]]-Setup!G$25)/Setup!G$26-0.5 -> -0.03333333333 | T30: =(AnimalGraphingTable[[#This Row],[Z]]-Setup!H$25)/Setup!H$26-0.5 -> 0.15 | U30: =IF(AnimalGraphingTable[[#This Row],[Hidden]],NA(),SUMPRODUCT(AnimalGraphingTable[[#This Row],[Norm X]:[Norm Z]],Chart_XRotationVals)) -> 2.135462479 | V30: =SUMPRODUCT(AnimalGraphingTable[[#This Row],[Norm X]:[Norm Z]],Chart_YRotationVals) -> 1.105550628 | W30: =OR(AND(AnimalGraphingTable[[#This Row],[Top/Bottom]]="Above Shark",AnimalGraphingTable[[#This Row],[Z]]<Zposition),AND(AnimalGraphingTable[[#This Row],[Top/Bottom]]="Below Shark",AnimalGraphingTable[[#This Row],[Z]]>Zposition)) -> FALSE | X30: =_xlfn.SWITCH(TRUE(),(AnimalGraphingTable[[#This Row],[X]]+VLOOKUP(AnimalGraphingTable[[#This Row],[Object]],SetupConstantsTable[],4,0))>Xposition+VLOOKUP("Shark",SetupConstantsTable[],4,0),"Head",(AnimalGraphingTable[[#This Row],[X]]+VLOOKUP(AnimalGraphingTable[[#This Row],[Object]],SetupConstantsTable[],5,0))<Xposition+VLOOKUP("Shark",SetupConstantsTable[],5,0),"Tail","Mid") -> Head | Y30: =INDEX(SetupConstantsTable[],MATCH(AnimalGraphingTable[[#This Row],[Object]],SetupConstantsTable[Object],0),MATCH(AnimalGraphingTable[[#This Row],[Closest sphere to Shark]],SetupConstantsTable[#Headers],0))+INDEX(SetupConstantsTable[],MATCH("Shark",SetupConstantsTable[Object],0),MATCH(AnimalGraphingTable[[#This Row],[Closest sphere to Shark]],SetupConstantsTable[#Headers],0))>AnimalGraphingTable[[#This Row],[Separation]] -> FALSE | Z30: =SQRT(AnimalGraphingTable[[#This Row],[X dist]]+AnimalGraphingTable[[#This Row],[Y dist]]+AnimalGraphingTable[[#This Row],[Z dist]]) -> 169.0391966 | AA30: =(_xlfn.IFS(AnimalGraphingTable[[#This Row],[Closest sphere to Shark]]="Head",VLOOKUP(AnimalGraphingTable[[#This Row],[Object]],SetupConstantsTable[],4,0),AnimalGraphingTable[[#This Row],[Closest sphere to Shark]]="Tail",VLOOKUP(AnimalGraphingTable[[#This Row],[Object]],SetupConstantsTable[],5,0),AnimalGraphingTable[[#This Row],[Closest sphere to Shark]]="Mid",0)+AnimalGraphingTable[[#This Row],[X]]-VLOOKUP(AnimalGraphingTable[[#This Row],[Closest sphere to Shark]],SharkBubbleTable[],5,0))^2 -> 28561 | AB30: =(AnimalGraphingTable[[#This Row],[Y]]-VLOOKUP(AnimalGraphingTable[[#This Row],[Closest sphere to Shark]],SharkBubbleTable[],6,0))^2 -> 1 | AC30: =(AnimalGraphingTable[[#This Row],[Z]]-VLOOKUP(AnimalGraphingTable[[#This Row],[Closest sphere to Shark]],SharkBubbleTable[],7,0))^2 -> 12.25 | AD30: =IF(AnimalGraphingTable[[#This Row],[Top/Bottom]]="Below Shark",AnimalGraphingTable[[#This Row],[Offset multiplier]]+IF(AnimalGraphingTable[[#This Row],[X]]<50,1,0),0) -> 0
A31: B | B31: =AnimalGraphingTable[[#This Row],[Object]]&AnimalGraphingTable[[#This Row],[Version]]&LEFT(AnimalGraphingTable[[#This Row],[Top/Bottom]],1) -> B1A | C31: =VLOOKUP(AnimalGraphingTable[[#This Row],[Object]],SetupConstantsTable[],2,0)&IF(AnimalGraphingTable[[#This Row],[Top/Bottom]]="Shadow","-"&AnimalGraphingTable[[#This Row],[Top/Bottom]],"") -> Sting Ray | D31: Above Shark | E31: 1 | F31: =INDEX(SetupConstantsTable[],MATCH(AnimalGraphingTable[[#This Row],[Object]],SetupConstantsTable[Object],0),MATCH('Animal Graphing'!F$2,SetupConstantsTable[#Headers],0)) -> -3.5 | G31: =INDEX(SetupConstantsTable[],MATCH(AnimalGraphingTable[[#This Row],[Object]],SetupConstantsTable[Object],0),MATCH('Animal Graphing'!G$2,SetupConstantsTable[#Headers],0)) -> 110 | H31: =INDEX(SetupConstantsTable[],MATCH(AnimalGraphingTable[[#This Row],[Object]],SetupConstantsTable[Object],0),MATCH("X"&AnimalGraphingTable[[#This Row],[Version]],SetupConstantsTable[#Headers],0)) -> 25 | I31: =INDEX(SetupConstantsTable[],MATCH(AnimalGraphingTable[[#This Row],[Object]],SetupConstantsTable[Object],0),MATCH("Y"&AnimalGraphingTable[[#This Row],[Version]],SetupConstantsTable[#Headers],0)) -> 6 | J31: =IF(AnimalGraphingTable[[#This Row],[Top/Bottom]]="Shadow",Setup!$H$25,INDEX(SetupConstantsTable[],MATCH(AnimalGraphingTable[[#This Row],[Object]],SetupConstantsTable[Object],0),MATCH("Z"&AnimalGraphingTable[[#This Row],[Version]],SetupConstantsTable[#Headers],0))) -> -3 | K31: =AnimalGraphingTable[[#This Row],[Velocity at 0]]*NetTime+AnimalGraphingTable[[#This Row],[Starting position]] -> 25 | L31: =IF(AnimalGraphingTable[[#This Row],[Calculated position]]>0,0,ROUNDUP(-AnimalGraphingTable[[#This Row],[Calculated position]]/AnimalGraphingTable[[#This Row],[Cycle position]],0)) -> 0 | M31: =AnimalGraphingTable[[#This Row],[Offset multiplier]]*AnimalGraphingTable[[#This Row],[Cycle position]] -> 0 | N31: =AnimalGraphingTable[[#This Row],[Calculated position]]+AnimalGraphingTable[[#This Row],[Position offset]] -> 25 | O31: =IF(AnimalGraphingTable[[#This Row],[Offset multiplier]]=0,AnimalGraphingTable[[#This Row],[Starting Y lane]],MOD(ROUND(0.9*(ROUND(AnimalGraphingTable[[#This Row],[y lane randomizer]],0)-ROUNDDOWN(AnimalGraphingTable[[#This Row],[y lane randomizer]],-2)),0),22)+Yframe_min+4) -> 6 | P31: =AnimalGraphingTable[[#This Row],[Starting Z depth]] -> -3 | Q31: =RADIANS(AnimalGraphingTable[[#This Row],[Cycle position]]+AnimalGraphingTable[[#This Row],[Starting Y lane]]-Setup!$G$25+AnimalGraphingTable[[#This Row],[Offset multiplier]]+StartingTime)*100000 -> 77710692.16 | R31: =(AnimalGraphingTable[[#This Row],[X]]-Setup!F$25)/Setup!F$26-0.5 -> -0.4 | S31: =(AnimalGraphingTable[[#This Row],[Y]]-Setup!G$25)/Setup!G$26-0.5 -> 0.2 | T31: =(AnimalGraphingTable[[#This Row],[Z]]-Setup!H$25)/Setup!H$26-0.5 -> 0.35 | U31: =IF(AnimalGraphingTable[[#This Row],[Hidden]],NA(),SUMPRODUCT(AnimalGraphingTable[[#This Row],[Norm X]:[Norm Z]],Chart_XRotationVals)) -> -0.3676955262 | V31: =SUMPRODUCT(AnimalGraphingTable[[#This Row],[Norm X]:[Norm Z]],Chart_YRotationVals) -> 0.02224860716 | W31: =OR(AND(AnimalGraphingTable[[#This Row],[Top/Bottom]]="Above Shark",AnimalGraphingTable[[#This Row],[Z]]<Zposition),AND(AnimalGraphingTable[[#This Row],[Top/Bottom]]="Below Shark",AnimalGraphingTable[[#This Row],[Z]]>Zposition)) -> FALSE | X31: =_xlfn.SWITCH(TRUE(),(AnimalGraphingTable[[#This Row],[X]]+VLOOKUP(AnimalGraphingTable[[#This Row],[Object]],SetupConstantsTable[],4,0))>Xposition+VLOOKUP("Shark",SetupConstantsTable[],4,0),"Head",(AnimalGraphingTable[[#This Row],[X]]+VLOOKUP(AnimalGraphingTable[[#This Row],[Object]],SetupConstantsTable[],5,0))<Xposition+VLOOKUP("Shark",SetupConstantsTable[],5,0),"Tail","Mid") -> Head | Y31: =INDEX(SetupConstantsTable[],MATCH(AnimalGraphingTable[[#This Row],[Object]],SetupConstantsTable[Object],0),MATCH(AnimalGraphingTable[[#This Row],[Closest sphere to Shark]],SetupConstantsTable[#Headers],0))+INDEX(SetupConstantsTable[],MATCH("Shark",SetupConstantsTable[Object],0),MATCH(AnimalGraphingTable[[#This Row],[Closest sphere to Shark]],SetupConstantsTable[#Headers],0))>AnimalGraphingTable[[#This Row],[Separation]] -> FALSE | Z31: =SQRT(AnimalGraphingTable[[#This Row],[X dist]]+AnimalGraphingTable[[#This Row],[Y dist]]+AnimalGraphingTable[[#This Row],[Z dist]]) -> 10.40432602 | AA31: =(_xlfn.IFS(AnimalGraphingTable[[#This Row],[Closest sphere to Shark]]="Head",VLOOKUP(AnimalGraphingTable[[#This Row],[Object]],SetupConstantsTable[],4,0),AnimalGraphingTable[[#This Row],[Closest sphere to Shark]]="Tail",VLOOKUP(AnimalGraphingTable[[#This Row],[Object]],SetupConstantsTable[],5,0),AnimalGraphingTable[[#This Row],[Closest sphere to Shark]]="Mid",0)+AnimalGraphingTable[[#This Row],[X]]-VLOOKUP(AnimalGraphingTable[[#This Row],[Closest sphere to Shark]],SharkBubbleTable[],5,0))^2 -> 16 | AB31: =(AnimalGraphingTable[[#This Row],[Y]]-VLOOKUP(AnimalGraphingTable[[#This Row],[Closest sphere to Shark]],SharkBubbleTable[],6,0))^2 -> 36 | AC31: =(AnimalGraphingTable[[#This Row],[Z]]-VLOOKUP(AnimalGraphingTable[[#This Row],[Closest sphere to Shark]],SharkBubbleTable[],7,0))^2 -> 56.25 | AD31: =IF(AnimalGraphingTable[[#This Row],[Top/Bottom]]="Below Shark",AnimalGraphingTable[[#This Row],[Offset multiplier]]+IF(AnimalGraphingTable[[#This Row],[X]]<50,1,0),0) -> 0
A32: B | B32: =AnimalGraphingTable[[#This Row],[Object]]&AnimalGraphingTable[[#This Row],[Version]]&LEFT(AnimalGraphingTable[[#This Row],[Top/Bottom]],1) -> B2A | C32: =VLOOKUP(AnimalGraphingTable[[#This Row],[Object]],SetupConstantsTable[],2,0)&IF(AnimalGraphingTable[[#This Row],[Top/Bottom]]="Shadow","-"&AnimalGraphingTable[[#This Row],[Top/Bottom]],"") -> Sting Ray | D32: Above Shark | E32: 2 | F32: =INDEX(SetupConstantsTable[],MATCH(AnimalGraphingTable[[#This Row],[Object]],SetupConstantsTable[Object],0),MATCH('Animal Graphing'!F$2,SetupConstantsTable[#Headers],0)) -> -3.5 | G32: =INDEX(SetupConstantsTable[],MATCH(AnimalGraphingTable[[#This Row],[Object]],SetupConstantsTable[Object],0),MATCH('Animal Graphing'!G$2,SetupConstantsTable[#Headers],0)) -> 110 | H32: =INDEX(SetupConstantsTable[],MATCH(AnimalGraphingTable[[#This Row],[Object]],SetupConstantsTable[Object],0),MATCH("X"&AnimalGraphingTable[[#This Row],[Version]],SetupConstantsTable[#Headers],0)) -> 78 | I32: =INDEX(SetupConstantsTable[],MATCH(AnimalGraphingTable[[#This Row],[Object]],SetupConstantsTable[Object],0),MATCH("Y"&AnimalGraphingTable[[#This Row],[Version]],SetupConstantsTable[#Headers],0)) -> 10 | J32: =IF(AnimalGraphingTable[[#This Row],[Top/Bottom]]="Shadow",Setup!$H$25,INDEX(SetupConstantsTable[],MATCH(AnimalGraphingTable[[#This Row],[Object]],SetupConstantsTable[Object],0),MATCH("Z"&AnimalGraphingTable[[#This Row],[Version]],SetupConstantsTable[#Headers],0))) -> -4 | K32: =AnimalGraphingTable[[#This Row],[Velocity at 0]]*NetTime+AnimalGraphingTable[[#This Row],[Starting position]] -> 78 | L32: =IF(AnimalGraphingTable[[#This Row],[Calculated position]]>0,0,ROUNDUP(-AnimalGraphingTable[[#This Row],[Calculated position]]/AnimalGraphingTable[[#This Row],[Cycle position]],0)) -> 0 | M32: =AnimalGraphingTable[[#This Row],[Offset multiplier]]*AnimalGraphingTable[[#This Row],[Cycle position]] -> 0 | N32: =AnimalGraphingTable[[#This Row],[Calculated position]]+AnimalGraphingTable[[#This Row],[Position offset]] -> 78 | O32: =IF(AnimalGraphingTable[[#This Row],[Offset multiplier]]=0,AnimalGraphingTable[[#This Row],[Starting Y lane]],MOD(ROUND(0.9*(ROUND(AnimalGraphingTable[[#This Row],[y lane randomizer]],0)-ROUNDDOWN(AnimalGraphingTable[[#This Row],[y lane randomizer]],-2)),0),22)+Yframe_min+4) -> 10 | P32: =AnimalGraphingTable[[#This Row],[Starting Z depth]] -> -4 | Q32: =RADIANS(AnimalGraphingTable[[#This Row],[Cycle position]]+AnimalGraphingTable[[#This Row],[Starting Y lane]]-Setup!$G$25+AnimalGraphingTable[[#This Row],[Offset multiplier]]+StartingTime)*100000 -> 77717673.48 | R32: =(AnimalGraphingTable[[#This Row],[X]]-Setup!F$25)/Setup!F$26-0.5 -> 0.66 | S32: =(AnimalGraphingTable[[#This Row],[Y]]-Setup!G$25)/Setup!G$26-0.5 -> 0.3333333333 | T32: =(AnimalGraphingTable[[#This Row],[Z]]-Setup!H$25)/Setup!H$26-0.5 -> 0.3 | U32: =IF(AnimalGraphingTable[[#This Row],[Hidden]],NA(),SUMPRODUCT(AnimalGraphingTable[[#This Row],[Norm X]:[Norm Z]],Chart_XRotationVals)) -> 0.3252691193 | V32: =SUMPRODUCT(AnimalGraphingTable[[#This Row],[Norm X]:[Norm Z]],Chart_YRotationVals) -> 0.4079789644 | W32: =OR(AND(AnimalGraphingTable[[#This Row],[Top/Bottom]]="Above Shark",AnimalGraphingTable[[#This Row],[Z]]<Zposition),AND(AnimalGraphingTable[[#This Row],[Top/Bottom]]="Below Shark",AnimalGraphingTable[[#This Row],[Z]]>Zposition)) -> FALSE | X32: =_xlfn.SWITCH(TRUE(),(AnimalGraphingTable[[#This Row],[X]]+VLOOKUP(AnimalGraphingTable[[#This Row],[Object]],SetupConstantsTable[],4,0))>Xposition+VLOOKUP("Shark",SetupConstantsTable[],4,0),"Head",(AnimalGraphingTable[[#This Row],[X]]+VLOOKUP(AnimalGraphingTable[[#This Row],[Object]],SetupConstantsTable[],5,0))<Xposition+VLOOKUP("Shark",SetupConstantsTable[],5,0),"Tail","Mid") -> Head | Y32: =INDEX(SetupConstantsTable[],MATCH(AnimalGraphingTable[[#This Row],[Object]],SetupConstantsTable[Object],0),MATCH(AnimalGraphingTable[[#This Row],[Closest sphere to Shark]],SetupConstantsTable[#Headers],0))+INDEX(SetupConstantsTable[],MATCH("Shark",SetupConstantsTable[Object],0),MATCH(AnimalGraphingTable[[#This Row],[Closest sphere to Shark]],SetupConstantsTable[#Headers],0))>AnimalGraphingTable[[#This Row],[Separation]] -> FALSE | Z32: =SQRT(AnimalGraphingTable[[#This Row],[X dist]]+AnimalGraphingTable[[#This Row],[Y dist]]+AnimalGraphingTable[[#This Row],[Z dist]]) -> 58.23443998 | AA32: =(_xlfn.IFS(AnimalGraphingTable[[#This Row],[Closest sphere to Shark]]="Head",VLOOKUP(AnimalGraphingTable[[#This Row],[Object]],SetupConstantsTable[],4,0),AnimalGraphingTable[[#This Row],[Closest sphere to Shark]]="Tail",VLOOKUP(AnimalGraphingTable[[#This Row],[Object]],SetupConstantsTable[],5,0),AnimalGraphingTable[[#This Row],[Closest sphere to Shark]]="Mid",0)+AnimalGraphingTable[[#This Row],[X]]-VLOOKUP(AnimalGraphingTable[[#This Row],[Closest sphere to Shark]],SharkBubbleTable[],5,0))^2 -> 3249 | AB32: =(AnimalGraphingTable[[#This Row],[Y]]-VLOOKUP(AnimalGraphingTable[[#This Row],[Closest sphere to Shark]],SharkBubbleTable[],6,0))^2 -> 100 | AC32: =(AnimalGraphingTable[[#This Row],[Z]]-VLOOKUP(AnimalGraphingTable[[#This Row],[Closest sphere to Shark]],SharkBubbleTable[],7,0))^2 -> 42.25 | AD32: =IF(AnimalGraphingTable[[#This Row],[Top/Bottom]]="Below Shark",AnimalGraphingTable[[#This Row],[Offset multiplier]]+IF(AnimalGraphingTable[[#This Row],[X]]<50,1,0),0) -> 0
A33: A | B33: =AnimalGraphingTable[[#This Row],[Object]]&AnimalGraphingTable[[#This Row],[Version]]&LEFT(AnimalGraphingTable[[#This Row],[Top/Bottom]],1) -> A1A | C33: =VLOOKUP(AnimalGraphingTable[[#This Row],[Object]],SetupConstantsTable[],2,0)&IF(AnimalGraphingTable[[#This Row],[Top/Bottom]]="Shadow","-"&AnimalGraphingTable[[#This Row],[Top/Bottom]],"") -> Dolphin | D33: Above Shark | E33: 1 | F33: =INDEX(SetupConstantsTable[],MATCH(AnimalGraphingTable[[#This Row],[Object]],SetupConstantsTable[Object],0),MATCH('Animal Graphing'!F$2,SetupConstantsTable[#Headers],0)) -> -6 | G33: =INDEX(SetupConstantsTable[],MATCH(AnimalGraphingTable[[#This Row],[Object]],SetupConstantsTable[Object],0),MATCH('Animal Graphing'!G$2,SetupConstantsTable[#Headers],0)) -> 150 | H33: =INDEX(SetupConstantsTable[],MATCH(AnimalGraphingTable[[#This Row],[Object]],SetupConstantsTable[Object],0),MATCH("X"&AnimalGraphingTable[[#This Row],[Version]],SetupConstantsTable[#Headers],0)) -> 30 | I33: =INDEX(SetupConstantsTable[],MATCH(AnimalGraphingTable[[#This Row],[Object]],SetupConstantsTable[Object],0),MATCH("Y"&AnimalGraphingTable[[#This Row],[Version]],SetupConstantsTable[#Headers],0)) -> -3 | J33: =IF(AnimalGraphingTable[[#This Row],[Top/Bottom]]="Shadow",Setup!$H$25,INDEX(SetupConstantsTable[],MATCH(AnimalGraphingTable[[#This Row],[Object]],SetupConstantsTable[Object],0),MATCH("Z"&AnimalGraphingTable[[#This Row],[Version]],SetupConstantsTable[#Headers],0))) -> -1 | K33: =AnimalGraphingTable[[#This Row],[Velocity at 0]]*NetTime+AnimalGraphingTable[[#This Row],[Starting position]] -> 30 | L33: =IF(AnimalGraphingTable[[#This Row],[Calculated position]]>0,0,ROUNDUP(-AnimalGraphingTable[[#This Row],[Calculated position]]/AnimalGraphingTable[[#This Row],[Cycle position]],0)) -> 0 | M33: =AnimalGraphingTable[[#This Row],[Offset multiplier]]*AnimalGraphingTable[[#This Row],[Cycle position]] -> 0 | N33: =AnimalGraphingTable[[#This Row],[Calculated position]]+AnimalGraphingTable[[#This Row],[Position offset]] -> 30 | O33: =IF(AnimalGraphingTable[[#This Row],[Offset multiplier]]=0,AnimalGraphingTable[[#This Row],[Starting Y lane]],MOD(ROUND(0.9*(ROUND(AnimalGraphingTable[[#This Row],[y lane randomizer]],0)-ROUNDDOWN(AnimalGraphingTable[[#This Row],[y lane randomizer]],-2)),0),22)+Yframe_min+4) -> -3 | P33: =AnimalGraphingTable[[#This Row],[Starting Z depth]] -> -1 | Q33: =RADIANS(AnimalGraphingTable[[#This Row],[Cycle position]]+AnimalGraphingTable[[#This Row],[Starting Y lane]]-Setup!$G$25+AnimalGraphingTable[[#This Row],[Offset multiplier]]+StartingTime)*100000 -> 77764797.37 | R33: =(AnimalGraphingTable[[#This Row],[X]]-Setup!F$25)/Setup!F$26-0.5 -> -0.3 | S33: =(AnimalGraphingTable[[#This Row],[Y]]-Setup!G$25)/Setup!G$26-0.5 -> -0.1 | T33: =(AnimalGraphingTable[[#This Row],[Z]]-Setup!H$25)/Setup!H$26-0.5 -> 0.45 | U33: =IF(AnimalGraphingTable[[#This Row],[Hidden]],NA(),SUMPRODUCT(AnimalGraphingTable[[#This Row],[Norm X]:[Norm Z]],Chart_XRotationVals)) -> -0.1697056275 | V33: =SUMPRODUCT(AnimalGraphingTable[[#This Row],[Norm X]:[Norm Z]],Chart_YRotationVals) -> 0.02860535207 | W33: =OR(AND(AnimalGraphingTable[[#This Row],[Top/Bottom]]="Above Shark",AnimalGraphingTable[[#This Row],[Z]]<Zposition),AND(AnimalGraphingTable[[#This Row],[Top/Bottom]]="Below Shark",AnimalGraphingTable[[#This Row],[Z]]>Zposition)) -> FALSE | X33: =_xlfn.SWITCH(TRUE(),(AnimalGraphingTable[[#This Row],[X]]+VLOOKUP(AnimalGraphingTable[[#This Row],[Object]],SetupConstantsTable[],4,0))>Xposition+VLOOKUP("Shark",SetupConstantsTable[],4,0),"Head",(AnimalGraphingTable[[#This Row],[X]]+VLOOKUP(AnimalGraphingTable[[#This Row],[Object]],SetupConstantsTable[],5,0))<Xposition+VLOOKUP("Shark",SetupConstantsTable[],5,0),"Tail","Mid") -> Head | Y33: =INDEX(SetupConstantsTable[],MATCH(AnimalGraphingTable[[#This Row],[Object]],SetupConstantsTable[Object],0),MATCH(AnimalGraphingTable[[#This Row],[Closest sphere to Shark]],SetupConstantsTable[#Headers],0))+INDEX(SetupConstantsTable[],MATCH("Shark",SetupConstantsTable[Object],0),MATCH(AnimalGraphingTable[[#This Row],[Closest sphere to Shark]],SetupConstantsTable[#Headers],0))>AnimalGraphingTable[[#This Row],[Separation]] -> FALSE | Z33: =SQRT(AnimalGraphingTable[[#This Row],[X dist]]+AnimalGraphingTable[[#This Row],[Y dist]]+AnimalGraphingTable[[#This Row],[Z dist]]) -> 11.62970335 | AA33: =(_xlfn.IFS(AnimalGraphingTable[[#This Row],[Closest sphere to Shark]]="Head",VLOOKUP(AnimalGraphingTable[[#This Row],[Object]],SetupConstantsTable[],4,0),AnimalGraphingTable[[#This Row],[Closest sphere to Shark]]="Tail",VLOOKUP(AnimalGraphingTable[[#This Row],[Object]],SetupConstantsTable[],5,0),AnimalGraphingTable[[#This Row],[Closest sphere to Shark]]="Mid",0)+AnimalGraphingTable[[#This Row],[X]]-VLOOKUP(AnimalGraphingTable[[#This Row],[Closest sphere to Shark]],SharkBubbleTable[],5,0))^2 -> 36 | AB33: =(AnimalGraphingTable[[#This Row],[Y]]-VLOOKUP(AnimalGraphingTable[[#This Row],[Closest sphere to Shark]],SharkBubbleTable[],6,0))^2 -> 9 | AC33: =(AnimalGraphingTable[[#This Row],[Z]]-VLOOKUP(AnimalGraphingTable[[#This Row],[Closest sphere to Shark]],SharkBubbleTable[],7,0))^2 -> 90.25 | AD33: =IF(AnimalGraphingTable[[#This Row],[Top/Bottom]]="Below Shark",AnimalGraphingTable[[#This Row],[Offset multiplier]]+IF(AnimalGraphingTable[[#This Row],[X]]<50,1,0),0) -> 0
A34: A | B34: =AnimalGraphingTable[[#This Row],[Object]]&AnimalGraphingTable[[#This Row],[Version]]&LEFT(AnimalGraphingTable[[#This Row],[Top/Bottom]],1) -> A2A | C34: =VLOOKUP(AnimalGraphingTable[[#This Row],[Object]],SetupConstantsTable[],2,0)&IF(AnimalGraphingTable[[#This Row],[Top/Bottom]]="Shadow","-"&AnimalGraphingTable[[#This Row],[Top/Bottom]],"") -> Dolphin | D34: Above Shark | E34: 2 | F34: =INDEX(SetupConstantsTable[],MATCH(AnimalGraphingTable[[#This Row],[Object]],SetupConstantsTable[Object],0),MATCH('Animal Graphing'!F$2,SetupConstantsTable[#Headers],0)) -> -6 | G34: =INDEX(SetupConstantsTable[],MATCH(AnimalGraphingTable[[#This Row],[Object]],SetupConstantsTable[Object],0),MATCH('Animal Graphing'!G$2,SetupConstantsTable[#Headers],0)) -> 150 | H34: =INDEX(SetupConstantsTable[],MATCH(AnimalGraphingTable[[#This Row],[Object]],SetupConstantsTable[Object],0),MATCH("X"&AnimalGraphingTable[[#This Row],[Version]],SetupConstantsTable[#Headers],0)) -> 105 | I34: =INDEX(SetupConstantsTable[],MATCH(AnimalGraphingTable[[#This Row],[Object]],SetupConstantsTable[Object],0),MATCH("Y"&AnimalGraphingTable[[#This Row],[Version]],SetupConstantsTable[#Headers],0)) -> -7 | J34: =IF(AnimalGraphingTable[[#This Row],[Top/Bottom]]="Shadow",Setup!$H$25,INDEX(SetupConstantsTable[],MATCH(AnimalGraphingTable[[#This Row],[Object]],SetupConstantsTable[Object],0),MATCH("Z"&AnimalGraphingTable[[#This Row],[Version]],SetupConstantsTable[#Headers],0))) -> -2 | K34: =AnimalGraphingTable[[#This Row],[Velocity at 0]]*NetTime+AnimalGraphingTable[[#This Row],[Starting position]] -> 105 | L34: =IF(AnimalGraphingTable[[#This Row],[Calculated position]]>0,0,ROUNDUP(-AnimalGraphingTable[[#This Row],[Calculated position]]/AnimalGraphingTable[[#This Row],[Cycle position]],0)) -> 0 | M34: =AnimalGraphingTable[[#This Row],[Offset multiplier]]*AnimalGraphingTable[[#This Row],[Cycle position]] -> 0 | N34: =AnimalGraphingTable[[#This Row],[Calculated position]]+AnimalGraphingTable[[#This Row],[Position offset]] -> 105 | O34: =IF(AnimalGraphingTable[[#This Row],[Offset multiplier]]=0,AnimalGraphingTable[[#This Row],[Starting Y lane]],MOD(ROUND(0.9*(ROUND(AnimalGraphingTable[[#This Row],[y lane randomizer]],0)-ROUNDDOWN(AnimalGraphingTable[[#This Row],[y lane randomizer]],-2)),0),22)+Yframe_min+4) -> -7 | P34: =AnimalGraphingTable[[#This Row],[Starting Z depth]] -> -2 | Q34: =RADIANS(AnimalGraphingTable[[#This Row],[Cycle position]]+AnimalGraphingTable[[#This Row],[Starting Y lane]]-Setup!$G$25+AnimalGraphingTable[[#This Row],[Offset multiplier]]+StartingTime)*100000 -> 77757816.05 | R34: =(AnimalGraphingTable[[#This Row],[X]]-Setup!F$25)/Setup!F$26-0.5 -> 1.2 | S34: =(AnimalGraphingTable[[#This Row],[Y]]-Setup!G$25)/Setup!G$26-0.5 -> -0.2333333333 | T34: =(AnimalGraphingTable[[#This Row],[Z]]-Setup!H$25)/Setup!H$26-0.5 -> 0.4 | U34: =IF(AnimalGraphingTable[[#This Row],[Hidden]],NA(),SUMPRODUCT(AnimalGraphingTable[[#This Row],[Norm X]:[Norm Z]],Chart_XRotationVals)) -> 0.9475230868 | V34: =SUMPRODUCT(AnimalGraphingTable[[#This Row],[Norm X]:[Norm Z]],Chart_YRotationVals) -> 0.5133306586 | W34: =OR(AND(AnimalGraphingTable[[#This Row],[Top/Bottom]]="Above Shark",AnimalGraphingTable[[#This Row],[Z]]<Zposition),AND(AnimalGraphingTable[[#This Row],[Top/Bottom]]="Below Shark",AnimalGraphingTable[[#This Row],[Z]]>Zposition)) -> FALSE | X34: =_xlfn.SWITCH(TRUE(),(AnimalGraphingTable[[#This Row],[X]]+VLOOKUP(AnimalGraphingTable[[#This Row],[Object]],SetupConstantsTable[],4,0))>Xposition+VLOOKUP("Shark",SetupConstantsTable[],4,0),"Head",(AnimalGraphingTable[[#This Row],[X]]+VLOOKUP(AnimalGraphingTable[[#This Row],[Object]],SetupConstantsTable[],5,0))<Xposition+VLOOKUP("Shark",SetupConstantsTable[],5,0),"Tail","Mid") -> Head | Y34: =INDEX(SetupConstantsTable[],MATCH(AnimalGraphingTable[[#This Row],[Object]],SetupConstantsTable[Object],0),MATCH(AnimalGraphingTable[[#This Row],[Closest sphere to Shark]],SetupConstantsTable[#Headers],0))+INDEX(SetupConstantsTable[],MATCH("Shark",SetupConstantsTable[Object],0),MATCH(AnimalGraphingTable[[#This Row],[Closest sphere to Shark]],SetupConstantsTable[#Headers],0))>AnimalGraphingTable[[#This Row],[Separation]] -> FALSE | Z34: =SQRT(AnimalGraphingTable[[#This Row],[X dist]]+AnimalGraphingTable[[#This Row],[Y dist]]+AnimalGraphingTable[[#This Row],[Z dist]]) -> 81.74503043 | AA34: =(_xlfn.IFS(AnimalGraphingTable[[#This Row],[Closest sphere to Shark]]="Head",VLOOKUP(AnimalGraphingTable[[#This Row],[Object]],SetupConstantsTable[],4,0),AnimalGraphingTable[[#This Row],[Closest sphere to Shark]]="Tail",VLOOKUP(AnimalGraphingTable[[#This Row],[Object]],SetupConstantsTable[],5,0),AnimalGraphingTable[[#This Row],[Closest sphere to Shark]]="Mid",0)+AnimalGraphingTable[[#This Row],[X]]-VLOOKUP(AnimalGraphingTable[[#This Row],[Closest sphere to Shark]],SharkBubbleTable[],5,0))^2 -> 6561 | AB34: =(AnimalGraphingTable[[#This Row],[Y]]-VLOOKUP(AnimalGraphingTable[[#This Row],[Closest sphere to Shark]],SharkBubbleTable[],6,0))^2 -> 49 | AC34: =(AnimalGraphingTable[[#This Row],[Z]]-VLOOKUP(AnimalGraphingTable[[#This Row],[Closest sphere to Shark]],SharkBubbleTable[],7,0))^2 -> 72.25 | AD34: =IF(AnimalGraphingTable[[#This Row],[Top/Bottom]]="Below Shark",AnimalGraphingTable[[#This Row],[Offset multiplier]]+IF(AnimalGraphingTable[[#This Row],[X]]<50,1,0),0) -> 0
T42: IF(OR([@[Top/Bottom]]="Shadow",[@[Offset | U42: multiplier]]=0),[@[Starting | V42: Z | W42: depth]],

Sheet Shadow Graphing (hidden)
B2: Object | C2: Image Appearance | D2: Version | E2: Norm X | F2: Norm Y | G2: Norm Z | H2: Screen X | I2: Screen Y
B3: Shadow;Yaw-1 | C3: =IFERROR(VLOOKUP(AnimalShadows[[#This Row],[Object]],SetupConstantsTable[],2,0)&"-Shadow",AnimalShadows[[#This Row],[Object]]) -> Shadow;Yaw-1 | D3: -1 | E3: =IFERROR(INDEX(AnimalGraphingTable[],MATCH(AnimalShadows[[#This Row],[Object]]&AnimalShadows[[#This Row],[Version]]&"A",AnimalGraphingTable[ReferenceID],0),MATCH(E$2,AnimalGraphingTable[#Headers],0)),IF(AnimalShadows[[#This Row],[Version]]=Yaw,(Xposition-Setup!$F$25)/Setup!$F$26-0.5,NA())) ->  | F3: =IFERROR(INDEX(AnimalGraphingTable[],MATCH(AnimalShadows[[#This Row],[Object]]&AnimalShadows[[#This Row],[Version]]&"A",AnimalGraphingTable[ReferenceID],0),MATCH(F$2,AnimalGraphingTable[#Headers],0)),(Yposition-Setup!$G$25)/Setup!$G$26-0.5) -> 0 | G3: =-0.5 -> -0.5 | H3: =SUMPRODUCT(AnimalShadows[[#This Row],[Norm X]:[Norm Z]],Chart_XRotationVals) ->  | I3: =SUMPRODUCT(AnimalShadows[[#This Row],[Norm X]:[Norm Z]],Chart_YRotationVals) -> 
B4: Shadow;Yaw0 | C4: =IFERROR(VLOOKUP(AnimalShadows[[#This Row],[Object]],SetupConstantsTable[],2,0)&"-Shadow",AnimalShadows[[#This Row],[Object]]) -> Shadow;Yaw0 | D4: 0 | E4: =IFERROR(INDEX(AnimalGraphingTable[],MATCH(AnimalShadows[[#This Row],[Object]]&AnimalShadows[[#This Row],[Version]]&"A",AnimalGraphingTable[ReferenceID],0),MATCH(E$2,AnimalGraphingTable[#Headers],0)),IF(AnimalShadows[[#This Row],[Version]]=Yaw,(Xposition-Setup!$F$25)/Setup!$F$26-0.5,NA())) -> -0.5 | F4: =IFERROR(INDEX(AnimalGraphingTable[],MATCH(AnimalShadows[[#This Row],[Object]]&AnimalShadows[[#This Row],[Version]]&"A",AnimalGraphingTable[ReferenceID],0),MATCH(F$2,AnimalGraphingTable[#Headers],0)),(Yposition-Setup!$G$25)/Setup!$G$26-0.5) -> 0 | G4: =-0.5 -> -0.5 | H4: =SUMPRODUCT(AnimalShadows[[#This Row],[Norm X]:[Norm Z]],Chart_XRotationVals) -> -0.3535533906 | I4: =SUMPRODUCT(AnimalShadows[[#This Row],[Norm X]:[Norm Z]],Chart_YRotationVals) -> -0.3499817761
B5: Shadow;Yaw1 | C5: =IFERROR(VLOOKUP(AnimalShadows[[#This Row],[Object]],SetupConstantsTable[],2,0)&"-Shadow",AnimalShadows[[#This Row],[Object]]) -> Shadow;Yaw1 | D5: 1 | E5: =IFERROR(INDEX(AnimalGraphingTable[],MATCH(AnimalShadows[[#This Row],[Object]]&AnimalShadows[[#This Row],[Version]]&"A",AnimalGraphingTable[ReferenceID],0),MATCH(E$2,AnimalGraphingTable[#Headers],0)),IF(AnimalShadows[[#This Row],[Version]]=Yaw,(Xposition-Setup!$F$25)/Setup!$F$26-0.5,NA())) ->  | F5: =IFERROR(INDEX(AnimalGraphingTable[],MATCH(AnimalShadows[[#This Row],[Object]]&AnimalShadows[[#This Row],[Version]]&"A",AnimalGraphingTable[ReferenceID],0),MATCH(F$2,AnimalGraphingTable[#Headers],0)),(Yposition-Setup!$G$25)/Setup!$G$26-0.5) -> 0 | G5: =-0.5 -> -0.5 | H5: =SUMPRODUCT(AnimalShadows[[#This Row],[Norm X]:[Norm Z]],Chart_XRotationVals) ->  | I5: =SUMPRODUCT(AnimalShadows[[#This Row],[Norm X]:[Norm Z]],Chart_YRotationVals) -> 
B6: J | C6: =IFERROR(VLOOKUP(AnimalShadows[[#This Row],[Object]],SetupConstantsTable[],2,0)&"-Shadow",AnimalShadows[[#This Row],[Object]]) -> Crab-Shadow | D6: 1 | E6: =IFERROR(INDEX(AnimalGraphingTable[],MATCH(AnimalShadows[[#This Row],[Object]]&AnimalShadows[[#This Row],[Version]]&"A",AnimalGraphingTable[ReferenceID],0),MATCH(E$2,AnimalGraphingTable[#Headers],0)),IF(AnimalShadows[[#This Row],[Version]]=Yaw,(Xposition-Setup!$F$25)/Setup!$F$26-0.5,NA())) -> 0.08 | F6: =IFERROR(INDEX(AnimalGraphingTable[],MATCH(AnimalShadows[[#This Row],[Object]]&AnimalShadows[[#This Row],[Version]]&"A",AnimalGraphingTable[ReferenceID],0),MATCH(F$2,AnimalGraphingTable[#Headers],0)),(Yposition-Setup!$G$25)/Setup!$G$26-0.5) -> -0.3333333333 | G6: =-0.5 -> -0.5 | H6: =SUMPRODUCT(AnimalShadows[[#This Row],[Norm X]:[Norm Z]],Chart_XRotationVals) -> 0.1979898987 | I6: =SUMPRODUCT(AnimalShadows[[#This Row],[Norm X]:[Norm Z]],Chart_YRotationVals) -> -0.2156314876
B7: J | C7: =IFERROR(VLOOKUP(AnimalShadows[[#This Row],[Object]],SetupConstantsTable[],2,0)&"-Shadow",AnimalShadows[[#This Row],[Object]]) -> Crab-Shadow | D7: 2 | E7: =IFERROR(INDEX(AnimalGraphingTable[],MATCH(AnimalShadows[[#This Row],[Object]]&AnimalShadows[[#This Row],[Version]]&"A",AnimalGraphingTable[ReferenceID],0),MATCH(E$2,AnimalGraphingTable[#Headers],0)),IF(AnimalShadows[[#This Row],[Version]]=Yaw,(Xposition-Setup!$F$25)/Setup!$F$26-0.5,NA())) -> 1.24 | F7: =IFERROR(INDEX(AnimalGraphingTable[],MATCH(AnimalShadows[[#This Row],[Object]]&AnimalShadows[[#This Row],[Version]]&"A",AnimalGraphingTable[ReferenceID],0),MATCH(F$2,AnimalGraphingTable[#Headers],0)),(Yposition-Setup!$G$25)/Setup!$G$26-0.5) -> -0.2666666667 | G7: -0.5 | H7: =SUMPRODUCT(AnimalShadows[[#This Row],[Norm X]:[Norm Z]],Chart_XRotationVals) -> 0.9899494937 | I7: =SUMPRODUCT(AnimalShadows[[#This Row],[Norm X]:[Norm Z]],Chart_YRotationVals) -> 0.2086325811
B8: I | C8: =IFERROR(VLOOKUP(AnimalShadows[[#This Row],[Object]],SetupConstantsTable[],2,0)&"-Shadow",AnimalShadows[[#This Row],[Object]]) -> Octopus-Shadow | D8: 1 | E8: =IFERROR(INDEX(AnimalGraphingTable[],MATCH(AnimalShadows[[#This Row],[Object]]&AnimalShadows[[#This Row],[Version]]&"A",AnimalGraphingTable[ReferenceID],0),MATCH(E$2,AnimalGraphingTable[#Headers],0)),IF(AnimalShadows[[#This Row],[Version]]=Yaw,(Xposition-Setup!$F$25)/Setup!$F$26-0.5,NA())) -> -0.12 | F8: =IFERROR(INDEX(AnimalGraphingTable[],MATCH(AnimalShadows[[#This Row],[Object]]&AnimalShadows[[#This Row],[Version]]&"A",AnimalGraphingTable[ReferenceID],0),MATCH(F$2,AnimalGraphingTable[#Headers],0)),(Yposition-Setup!$G$25)/Setup!$G$26-0.5) -> -0.2 | G8: -0.5 | H8: =SUMPRODUCT(AnimalShadows[[#This Row],[Norm X]:[Norm Z]],Chart_XRotationVals) -> -1.387778781e-17 | I8: =SUMPRODUCT(AnimalShadows[[#This Row],[Norm X]:[Norm Z]],Chart_YRotationVals) -> -0.2580578945
B9: I | C9: =IFERROR(VLOOKUP(AnimalShadows[[#This Row],[Object]],SetupConstantsTable[],2,0)&"-Shadow",AnimalShadows[[#This Row],[Object]]) -> Octopus-Shadow | D9: 2 | E9: =IFERROR(INDEX(AnimalGraphingTable[],MATCH(AnimalShadows[[#This Row],[Object]]&AnimalShadows[[#This Row],[Version]]&"A",AnimalGraphingTable[ReferenceID],0),MATCH(E$2,AnimalGraphingTable[#Headers],0)),IF(AnimalShadows[[#This Row],[Version]]=Yaw,(Xposition-Setup!$F$25)/Setup!$F$26-0.5,NA())) -> 1.06 | F9: =IFERROR(INDEX(AnimalGraphingTable[],MATCH(AnimalShadows[[#This Row],[Object]]&AnimalShadows[[#This Row],[Version]]&"A",AnimalGraphingTable[ReferenceID],0),MATCH(F$2,AnimalGraphingTable[#Headers],0)),(Yposition-Setup!$G$25)/Setup!$G$26-0.5) -> 0.03333333333 | G9: -0.5 | H9: =SUMPRODUCT(AnimalShadows[[#This Row],[Norm X]:[Norm Z]],Chart_XRotationVals) -> 0.7353910524 | I9: =SUMPRODUCT(AnimalShadows[[#This Row],[Norm X]:[Norm Z]],Chart_YRotationVals) -> 0.2086325811
B10: H | C10: =IFERROR(VLOOKUP(AnimalShadows[[#This Row],[Object]],SetupConstantsTable[],2,0)&"-Shadow",AnimalShadows[[#This Row],[Object]]) -> Hammerhead-Shadow | D10: 1 | E10: =IFERROR(INDEX(AnimalGraphingTable[],MATCH(AnimalShadows[[#This Row],[Object]]&AnimalShadows[[#This Row],[Version]]&"A",AnimalGraphingTable[ReferenceID],0),MATCH(E$2,AnimalGraphingTable[#Headers],0)),IF(AnimalShadows[[#This Row],[Version]]=Yaw,(Xposition-Setup!$F$25)/Setup!$F$26-0.5,NA())) -> 0.86 | F10: =IFERROR(INDEX(AnimalGraphingTable[],MATCH(AnimalShadows[[#This Row],[Object]]&AnimalShadows[[#This Row],[Version]]&"A",AnimalGraphingTable[ReferenceID],0),MATCH(F$2,AnimalGraphingTable[#Headers],0)),(Yposition-Setup!$G$25)/Setup!$G$26-0.5) -> 0.2666666667 | G10: -0.5 | H10: =SUMPRODUCT(AnimalShadows[[#This Row],[Norm X]:[Norm Z]],Chart_XRotationVals) -> 0.4949747468 | I10: =SUMPRODUCT(AnimalShadows[[#This Row],[Norm X]:[Norm Z]],Chart_YRotationVals) -> 0.1874193776
B11: H | C11: =IFERROR(VLOOKUP(AnimalShadows[[#This Row],[Object]],SetupConstantsTable[],2,0)&"-Shadow",AnimalShadows[[#This Row],[Object]]) -> Hammerhead-Shadow | D11: 2 | E11: =IFERROR(INDEX(AnimalGraphingTable[],MATCH(AnimalShadows[[#This Row],[Object]]&AnimalShadows[[#This Row],[Version]]&"A",AnimalGraphingTable[ReferenceID],0),MATCH(E$2,AnimalGraphingTable[#Headers],0)),IF(AnimalShadows[[#This Row],[Version]]=Yaw,(Xposition-Setup!$F$25)/Setup!$F$26-0.5,NA())) -> 2.34 | F11: =IFERROR(INDEX(AnimalGraphingTable[],MATCH(AnimalShadows[[#This Row],[Object]]&AnimalShadows[[#This Row],[Version]]&"A",AnimalGraphingTable[ReferenceID],0),MATCH(F$2,AnimalGraphingTable[#Headers],0)),(Yposition-Setup!$G$25)/Setup!$G$26-0.5) -> -0.1333333333 | G11: -0.5 | H11: =SUMPRODUCT(AnimalShadows[[#This Row],[Norm X]:[Norm Z]],Chart_XRotationVals) -> 1.71119841 | I11: =SUMPRODUCT(AnimalShadows[[#This Row],[Norm X]:[Norm Z]],Chart_YRotationVals) -> 0.625825582
B12: G | C12: =IFERROR(VLOOKUP(AnimalShadows[[#This Row],[Object]],SetupConstantsTable[],2,0)&"-Shadow",AnimalShadows[[#This Row],[Object]]) -> Seahorse-Shadow | D12: 1
B13: G | C13: =IFERROR(VLOOKUP(AnimalShadows[[#This Row],[Object]],SetupConstantsTable[],2,0)&"-Shadow",AnimalShadows[[#This Row],[Object]]) -> Seahorse-Shadow | D13: 2
B14: F | C14: =IFERROR(VLOOKUP(AnimalShadows[[#This Row],[Object]],SetupConstantsTable[],2,0)&"-Shadow",AnimalShadows[[#This Row],[Object]]) -> Turtle-Shadow | D14: 1 | E14: =IFERROR(INDEX(AnimalGraphingTable[],MATCH(AnimalShadows[[#This Row],[Object]]&AnimalShadows[[#This Row],[Version]]&"A",AnimalGraphingTable[ReferenceID],0),MATCH(E$2,AnimalGraphingTable[#Headers],0)),IF(AnimalShadows[[#This Row],[Version]]=Yaw,(Xposition-Setup!$F$25)/Setup!$F$26-0.5,NA())) -> -0.06 | F14: =IFERROR(INDEX(AnimalGraphingTable[],MATCH(AnimalShadows[[#This Row],[Object]]&AnimalShadows[[#This Row],[Version]]&"A",AnimalGraphingTable[ReferenceID],0),MATCH(F$2,AnimalGraphingTable[#Headers],0)),(Yposition-Setup!$G$25)/Setup!$G$26-0.5) -> 0.3 | G14: -0.5 | H14: =SUMPRODUCT(AnimalShadows[[#This Row],[Norm X]:[Norm Z]],Chart_XRotationVals) -> -0.1697056275 | I14: =SUMPRODUCT(AnimalShadows[[#This Row],[Norm X]:[Norm Z]],Chart_YRotationVals) -> -0.1307786739
B15: F | C15: =IFERROR(VLOOKUP(AnimalShadows[[#This Row],[Object]],SetupConstantsTable[],2,0)&"-Shadow",AnimalShadows[[#This Row],[Object]]) -> Turtle-Shadow | D15: 2 | E15: =IFERROR(INDEX(AnimalGraphingTable[],MATCH(AnimalShadows[[#This Row],[Object]]&AnimalShadows[[#This Row],[Version]]&"A",AnimalGraphingTable[ReferenceID],0),MATCH(E$2,AnimalGraphingTable[#Headers],0)),IF(AnimalShadows[[#This Row],[Version]]=Yaw,(Xposition-Setup!$F$25)/Setup!$F$26-0.5,NA())) -> 1.04 | F15: =IFERROR(INDEX(AnimalGraphingTable[],MATCH(AnimalShadows[[#This Row],[Object]]&AnimalShadows[[#This Row],[Version]]&"A",AnimalGraphingTable[ReferenceID],0),MATCH(F$2,AnimalGraphingTable[#Headers],0)),(Yposition-Setup!$G$25)/Setup!$G$26-0.5) -> 0.2333333333 | G15: -0.5 | H15: =SUMPRODUCT(AnimalShadows[[#This Row],[Norm X]:[Norm Z]],Chart_XRotationVals) -> 0.6363961031 | I15: =SUMPRODUCT(AnimalShadows[[#This Row],[Norm X]:[Norm Z]],Chart_YRotationVals) -> 0.2439879201
B16: E | C16: =IFERROR(VLOOKUP(AnimalShadows[[#This Row],[Object]],SetupConstantsTable[],2,0)&"-Shadow",AnimalShadows[[#This Row],[Object]]) -> Whale-Shadow | D16: 1
B17: E | C17: =IFERROR(VLOOKUP(AnimalShadows[[#This Row],[Object]],SetupConstantsTable[],2,0)&"-Shadow",AnimalShadows[[#This Row],[Object]]) -> Whale-Shadow | D17: 2
B18: D | C18: =IFERROR(VLOOKUP(AnimalShadows[[#This Row],[Object]],SetupConstantsTable[],2,0)&"-Shadow",AnimalShadows[[#This Row],[Object]]) -> Jellyfish-Shadow | D18: 1 | E18: =IFERROR(INDEX(AnimalGraphingTable[],MATCH(AnimalShadows[[#This Row],[Object]]&AnimalShadows[[#This Row],[Version]]&"A",AnimalGraphingTable[ReferenceID],0),MATCH(E$2,AnimalGraphingTable[#Headers],0)),IF(AnimalShadows[[#This Row],[Version]]=Yaw,(Xposition-Setup!$F$25)/Setup!$F$26-0.5,NA())) -> 0.1 | F18: =IFERROR(INDEX(AnimalGraphingTable[],MATCH(AnimalShadows[[#This Row],[Object]]&AnimalShadows[[#This Row],[Version]]&"A",AnimalGraphingTable[ReferenceID],0),MATCH(F$2,AnimalGraphingTable[#Headers],0)),(Yposition-Setup!$G$25)/Setup!$G$26-0.5) -> 0.3 | G18: -0.5 | H18: =SUMPRODUCT(AnimalShadows[[#This Row],[Norm X]:[Norm Z]],Chart_XRotationVals) -> -0.05656854249 | I18: =SUMPRODUCT(AnimalShadows[[#This Row],[Norm X]:[Norm Z]],Chart_YRotationVals) -> -0.07421013139
B19: D | C19: =IFERROR(VLOOKUP(AnimalShadows[[#This Row],[Object]],SetupConstantsTable[],2,0)&"-Shadow",AnimalShadows[[#This Row],[Object]]) -> Jellyfish-Shadow | D19: 2 | E19: =IFERROR(INDEX(AnimalGraphingTable[],MATCH(AnimalShadows[[#This Row],[Object]]&AnimalShadows[[#This Row],[Version]]&"A",AnimalGraphingTable[ReferenceID],0),MATCH(E$2,AnimalGraphingTable[#Headers],0)),IF(AnimalShadows[[#This Row],[Version]]=Yaw,(Xposition-Setup!$F$25)/Setup!$F$26-0.5,NA())) -> 1.08 | F19: =IFERROR(INDEX(AnimalGraphingTable[],MATCH(AnimalShadows[[#This Row],[Object]]&AnimalShadows[[#This Row],[Version]]&"A",AnimalGraphingTable[ReferenceID],0),MATCH(F$2,AnimalGraphingTable[#Headers],0)),(Yposition-Setup!$G$25)/Setup!$G$26-0.5) -> 0.2 | G19: -0.5 | H19: =SUMPRODUCT(AnimalShadows[[#This Row],[Norm X]:[Norm Z]],Chart_XRotationVals) -> 0.6788225099 | I19: =SUMPRODUCT(AnimalShadows[[#This Row],[Norm X]:[Norm Z]],Chart_YRotationVals) -> 0.251058988
B20: C | C20: =IFERROR(VLOOKUP(AnimalShadows[[#This Row],[Object]],SetupConstantsTable[],2,0)&"-Shadow",AnimalShadows[[#This Row],[Object]]) -> Orca-Shadow | D20: 1 | E20: =IFERROR(INDEX(AnimalGraphingTable[],MATCH(AnimalShadows[[#This Row],[Object]]&AnimalShadows[[#This Row],[Version]]&"A",AnimalGraphingTable[ReferenceID],0),MATCH(E$2,AnimalGraphingTable[#Headers],0)),IF(AnimalShadows[[#This Row],[Version]]=Yaw,(Xposition-Setup!$F$25)/Setup!$F$26-0.5,NA())) -> 0.44 | F20: =IFERROR(INDEX(AnimalGraphingTable[],MATCH(AnimalShadows[[#This Row],[Object]]&AnimalShadows[[#This Row],[Version]]&"A",AnimalGraphingTable[ReferenceID],0),MATCH(F$2,AnimalGraphingTable[#Headers],0)),(Yposition-Setup!$G$25)/Setup!$G$26-0.5) -> -0.2333333333 | G20: -0.5 | H20: =SUMPRODUCT(AnimalShadows[[#This Row],[Norm X]:[Norm Z]],Chart_XRotationVals) -> 0.4101219331 | I20: =SUMPRODUCT(AnimalShadows[[#This Row],[Norm X]:[Norm Z]],Chart_YRotationVals) -> -0.06713906358
B21: C | C21: =IFERROR(VLOOKUP(AnimalShadows[[#This Row],[Object]],SetupConstantsTable[],2,0)&"-Shadow",AnimalShadows[[#This Row],[Object]]) -> Orca-Shadow | D21: 2 | E21: =IFERROR(INDEX(AnimalGraphingTable[],MATCH(AnimalShadows[[#This Row],[Object]]&AnimalShadows[[#This Row],[Version]]&"A",AnimalGraphingTable[ReferenceID],0),MATCH(E$2,AnimalGraphingTable[#Headers],0)),IF(AnimalShadows[[#This Row],[Version]]=Yaw,(Xposition-Setup!$F$25)/Setup!$F$26-0.5,NA())) -> 3 | F21: =IFERROR(INDEX(AnimalGraphingTable[],MATCH(AnimalShadows[[#This Row],[Object]]&AnimalShadows[[#This Row],[Version]]&"A",AnimalGraphingTable[ReferenceID],0),MATCH(F$2,AnimalGraphingTable[#Headers],0)),(Yposition-Setup!$G$25)/Setup!$G$26-0.5) -> -0.03333333333 | G21: =-0.5 -> -0.5 | H21: =SUMPRODUCT(AnimalShadows[[#This Row],[Norm X]:[Norm Z]],Chart_XRotationVals) -> 2.135462479 | I21: =SUMPRODUCT(AnimalShadows[[#This Row],[Norm X]:[Norm Z]],Chart_YRotationVals) -> 0.8803840232
B22: B | C22: =IFERROR(VLOOKUP(AnimalShadows[[#This Row],[Object]],SetupConstantsTable[],2,0)&"-Shadow",AnimalShadows[[#This Row],[Object]]) -> Sting Ray-Shadow | D22: 1 | E22: =IFERROR(INDEX(AnimalGraphingTable[],MATCH(AnimalShadows[[#This Row],[Object]]&AnimalShadows[[#This Row],[Version]]&"A",AnimalGraphingTable[ReferenceID],0),MATCH(E$2,AnimalGraphingTable[#Headers],0)),IF(AnimalShadows[[#This Row],[Version]]=Yaw,(Xposition-Setup!$F$25)/Setup!$F$26-0.5,NA())) -> -0.4 | F22: =IFERROR(INDEX(AnimalGraphingTable[],MATCH(AnimalShadows[[#This Row],[Object]]&AnimalShadows[[#This Row],[Version]]&"A",AnimalGraphingTable[ReferenceID],0),MATCH(F$2,AnimalGraphingTable[#Headers],0)),(Yposition-Setup!$G$25)/Setup!$G$26-0.5) -> 0.2 | G22: =-0.5 -> -0.5 | H22: =SUMPRODUCT(AnimalShadows[[#This Row],[Norm X]:[Norm Z]],Chart_XRotationVals) -> -0.3676955262 | I22: =SUMPRODUCT(AnimalShadows[[#This Row],[Norm X]:[Norm Z]],Chart_YRotationVals) -> -0.2722000301
B23: B | C23: =IFERROR(VLOOKUP(AnimalShadows[[#This Row],[Object]],SetupConstantsTable[],2,0)&"-Shadow",AnimalShadows[[#This Row],[Object]]) -> Sting Ray-Shadow | D23: 2 | E23: =IFERROR(INDEX(AnimalGraphingTable[],MATCH(AnimalShadows[[#This Row],[Object]]&AnimalShadows[[#This Row],[Version]]&"A",AnimalGraphingTable[ReferenceID],0),MATCH(E$2,AnimalGraphingTable[#Headers],0)),IF(AnimalShadows[[#This Row],[Version]]=Yaw,(Xposition-Setup!$F$25)/Setup!$F$26-0.5,NA())) -> 0.66 | F23: =IFERROR(INDEX(AnimalGraphingTable[],MATCH(AnimalShadows[[#This Row],[Object]]&AnimalShadows[[#This Row],[Version]]&"A",AnimalGraphingTable[ReferenceID],0),MATCH(F$2,AnimalGraphingTable[#Headers],0)),(Yposition-Setup!$G$25)/Setup!$G$26-0.5) -> 0.3333333333 | G23: =-0.5 -> -0.5 | H23: =SUMPRODUCT(AnimalShadows[[#This Row],[Norm X]:[Norm Z]],Chart_XRotationVals) -> 0.3252691193 | I23: =SUMPRODUCT(AnimalShadows[[#This Row],[Norm X]:[Norm Z]],Chart_YRotationVals) -> 0.1308508352
B24: A | C24: =IFERROR(VLOOKUP(AnimalShadows[[#This Row],[Object]],SetupConstantsTable[],2,0)&"-Shadow",AnimalShadows[[#This Row],[Object]]) -> Dolphin-Shadow | D24: 1 | E24: =IFERROR(INDEX(AnimalGraphingTable[],MATCH(AnimalShadows[[#This Row],[Object]]&AnimalShadows[[#This Row],[Version]]&"A",AnimalGraphingTable[ReferenceID],0),MATCH(E$2,AnimalGraphingTable[#Headers],0)),IF(AnimalShadows[[#This Row],[Version]]=Yaw,(Xposition-Setup!$F$25)/Setup!$F$26-0.5,NA())) -> -0.3 | F24: =IFERROR(INDEX(AnimalGraphingTable[],MATCH(AnimalShadows[[#This Row],[Object]]&AnimalShadows[[#This Row],[Version]]&"A",AnimalGraphingTable[ReferenceID],0),MATCH(F$2,AnimalGraphingTable[#Headers],0)),(Yposition-Setup!$G$25)/Setup!$G$26-0.5) -> -0.1 | G24: =-0.5 -> -0.5 | H24: =SUMPRODUCT(AnimalShadows[[#This Row],[Norm X]:[Norm Z]],Chart_XRotationVals) -> -0.1697056275 | I24: =SUMPRODUCT(AnimalShadows[[#This Row],[Norm X]:[Norm Z]],Chart_YRotationVals) -> -0.3004843014
B25: A | C25: =IFERROR(VLOOKUP(AnimalShadows[[#This Row],[Object]],SetupConstantsTable[],2,0)&"-Shadow",AnimalShadows[[#This Row],[Object]]) -> Dolphin-Shadow | D25: 2 | E25: =IFERROR(INDEX(AnimalGraphingTable[],MATCH(AnimalShadows[[#This Row],[Object]]&AnimalShadows[[#This Row],[Version]]&"A",AnimalGraphingTable[ReferenceID],0),MATCH(E$2,AnimalGraphingTable[#Headers],0)),IF(AnimalShadows[[#This Row],[Version]]=Yaw,(Xposition-Setup!$F$25)/Setup!$F$26-0.5,NA())) -> 1.2 | F25: =IFERROR(INDEX(AnimalGraphingTable[],MATCH(AnimalShadows[[#This Row],[Object]]&AnimalShadows[[#This Row],[Version]]&"A",AnimalGraphingTable[ReferenceID],0),MATCH(F$2,AnimalGraphingTable[#Headers],0)),(Yposition-Setup!$G$25)/Setup!$G$26-0.5) -> -0.2333333333 | G25: =-0.5 -> -0.5 | H25: =SUMPRODUCT(AnimalShadows[[#This Row],[Norm X]:[Norm Z]],Chart_XRotationVals) -> 0.9475230868 | I25: =SUMPRODUCT(AnimalShadows[[#This Row],[Norm X]:[Norm Z]],Chart_YRotationVals) -> 0.2015615133

Sheet Background Graphing (hidden)
B2: Cliff Y | C2: =Setup!$G$25+Setup!$G$26 -> 15
B3: Floor Z | C3: =Setup!$H$25 -> -20
B4: Background cycle | C4: 195.6
B5: Background acceleration | C5: 0
B6: Background velocity | C6: -2
B8: Version | C8: Starting position | D8: Calculated position | E8: Offset multiplier | F8: X | G8: Y | H8: Z | I8: Norm X | J8: Norm Y | K8: Norm Z | L8: Screen X | M8: Screen Y
B9: Rock1_1 | C9: 20 | D9: =0.5*BackgroundAcceleration*NetTime^2+BackgroundVelocity*NetTime+BackgroundGraphingTable[[#This Row],[Starting position]] -> 20 | E9: =IF(BackgroundGraphingTable[[#This Row],[Calculated position]]>0,0,ROUNDUP(-BackgroundGraphingTable[[#This Row],[Calculated position]]/BackgroundCycle,0)) -> 0 | F9: =BackgroundGraphingTable[[#This Row],[Offset multiplier]]*BackgroundCycle+BackgroundGraphingTable[[#This Row],[Calculated position]] -> 20 | G9: 2 | H9: =-20 -> -20 | I9: =(BackgroundGraphingTable[[#This Row],[X]]-Xframe_min)/Xframe_range-0.5 -> -0.5 | J9: =(BackgroundGraphingTable[[#This Row],[Y]]-Yframe_min)/Yframe_range-0.5 -> 0.06666666667 | K9: =(BackgroundGraphingTable[[#This Row],[Z]]-Zframe_min)/Zframe_range-0.5 -> -0.5 | L9: =SUMPRODUCT(BackgroundGraphingTable[[#This Row],[Norm X]:[Norm Z]],Chart_XRotationVals) -> -0.3818376618 | M9: =SUMPRODUCT(BackgroundGraphingTable[[#This Row],[Norm X]:[Norm Z]],Chart_YRotationVals) -> -0.3358396404
B10: Rock1_2 | C10: 113 | D10: =0.5*BackgroundAcceleration*NetTime^2+BackgroundVelocity*NetTime+BackgroundGraphingTable[[#This Row],[Starting position]] -> 113 | E10: =IF(BackgroundGraphingTable[[#This Row],[Calculated position]]>0,0,ROUNDUP(-BackgroundGraphingTable[[#This Row],[Calculated position]]/BackgroundCycle,0)) -> 0 | F10: =BackgroundGraphingTable[[#This Row],[Offset multiplier]]*BackgroundCycle+BackgroundGraphingTable[[#This Row],[Calculated position]] -> 113 | G10: 2 | H10: -20 | I10: =(BackgroundGraphingTable[[#This Row],[X]]-Xframe_min)/Xframe_range-0.5 -> 1.36 | J10: =(BackgroundGraphingTable[[#This Row],[Y]]-Yframe_min)/Yframe_range-0.5 -> 0.06666666667 | K10: =(BackgroundGraphingTable[[#This Row],[Z]]-Zframe_min)/Zframe_range-0.5 -> -0.5 | L10: =SUMPRODUCT(BackgroundGraphingTable[[#This Row],[Norm X]:[Norm Z]],Chart_XRotationVals) -> 0.9333809512 | M10: =SUMPRODUCT(BackgroundGraphingTable[[#This Row],[Norm X]:[Norm Z]],Chart_YRotationVals) -> 0.3217696661
B11: Rock1_3 | C11: 182 | D11: =0.5*BackgroundAcceleration*NetTime^2+BackgroundVelocity*NetTime+BackgroundGraphingTable[[#This Row],[Starting position]] -> 182 | E11: =IF(BackgroundGraphingTable[[#This Row],[Calculated position]]>0,0,ROUNDUP(-BackgroundGraphingTable[[#This Row],[Calculated position]]/BackgroundCycle,0)) -> 0 | F11: =BackgroundGraphingTable[[#This Row],[Offset multiplier]]*BackgroundCycle+BackgroundGraphingTable[[#This Row],[Calculated position]] -> 182 | G11: -4 | H11: =-20 -> -20 | I11: =(BackgroundGraphingTable[[#This Row],[X]]-Xframe_min)/Xframe_range-0.5 -> 2.74 | J11: =(BackgroundGraphingTable[[#This Row],[Y]]-Yframe_min)/Yframe_range-0.5 -> -0.1333333333 | K11: =(BackgroundGraphingTable[[#This Row],[Z]]-Zframe_min)/Zframe_range-0.5 -> -0.5 | L11: =SUMPRODUCT(BackgroundGraphingTable[[#This Row],[Norm X]:[Norm Z]],Chart_XRotationVals) -> 1.994041123 | M11: =SUMPRODUCT(BackgroundGraphingTable[[#This Row],[Norm X]:[Norm Z]],Chart_YRotationVals) -> 0.7672469382
B12: Rock2_1 | C12: 43 | D12: =0.5*BackgroundAcceleration*NetTime^2+BackgroundVelocity*NetTime+BackgroundGraphingTable[[#This Row],[Starting position]] -> 43 | E12: =IF(BackgroundGraphingTable[[#This Row],[Calculated position]]>0,0,ROUNDUP(-BackgroundGraphingTable[[#This Row],[Calculated position]]/BackgroundCycle,0)) -> 0 | F12: =BackgroundGraphingTable[[#This Row],[Offset multiplier]]*BackgroundCycle+BackgroundGraphingTable[[#This Row],[Calculated position]] -> 43 | G12: 8 | H12: -20 | I12: =(BackgroundGraphingTable[[#This Row],[X]]-Xframe_min)/Xframe_range-0.5 -> -0.04 | J12: =(BackgroundGraphingTable[[#This Row],[Y]]-Yframe_min)/Yframe_range-0.5 -> 0.2666666667 | K12: =(BackgroundGraphingTable[[#This Row],[Z]]-Zframe_min)/Zframe_range-0.5 -> -0.5 | L12: =SUMPRODUCT(BackgroundGraphingTable[[#This Row],[Norm X]:[Norm Z]],Chart_XRotationVals) -> -0.1414213562 | M12: =SUMPRODUCT(BackgroundGraphingTable[[#This Row],[Norm X]:[Norm Z]],Chart_YRotationVals) -> -0.1307786739
B13: Rock2_2 | C13: 66 | D13: =0.5*BackgroundAcceleration*NetTime^2+BackgroundVelocity*NetTime+BackgroundGraphingTable[[#This Row],[Starting position]] -> 66 | E13: =IF(BackgroundGraphingTable[[#This Row],[Calculated position]]>0,0,ROUNDUP(-BackgroundGraphingTable[[#This Row],[Calculated position]]/BackgroundCycle,0)) -> 0 | F13: =BackgroundGraphingTable[[#This Row],[Offset multiplier]]*BackgroundCycle+BackgroundGraphingTable[[#This Row],[Calculated position]] -> 66 | G13: 7 | H13: -20 | I13: =(BackgroundGraphingTable[[#This Row],[X]]-Xframe_min)/Xframe_range-0.5 -> 0.42 | J13: =(BackgroundGraphingTable[[#This Row],[Y]]-Yframe_min)/Yframe_range-0.5 -> 0.2333333333 | K13: =(BackgroundGraphingTable[[#This Row],[Z]]-Zframe_min)/Zframe_range-0.5 -> -0.5 | L13: =SUMPRODUCT(BackgroundGraphingTable[[#This Row],[Norm X]:[Norm Z]],Chart_XRotationVals) -> 0.1979898987 | M13: =SUMPRODUCT(BackgroundGraphingTable[[#This Row],[Norm X]:[Norm Z]],Chart_YRotationVals) -> 0.02478481798
B14: Rock2_3 | C14: 192 | D14: =0.5*BackgroundAcceleration*NetTime^2+BackgroundVelocity*NetTime+BackgroundGraphingTable[[#This Row],[Starting position]] -> 192 | E14: =IF(BackgroundGraphingTable[[#This Row],[Calculated position]]>0,0,ROUNDUP(-BackgroundGraphingTable[[#This Row],[Calculated position]]/BackgroundCycle,0)) -> 0 | F14: =BackgroundGraphingTable[[#This Row],[Offset multiplier]]*BackgroundCycle+BackgroundGraphingTable[[#This Row],[Calculated position]] -> 192 | G14: -6 | H14: -20 | I14: =(BackgroundGraphingTable[[#This Row],[X]]-Xframe_min)/Xframe_range-0.5 -> 2.94 | J14: =(BackgroundGraphingTable[[#This Row],[Y]]-Yframe_min)/Yframe_range-0.5 -> -0.2 | K14: =(BackgroundGraphingTable[[#This Row],[Z]]-Zframe_min)/Zframe_range-0.5 -> -0.5 | L14: =SUMPRODUCT(BackgroundGraphingTable[[#This Row],[Norm X]:[Norm Z]],Chart_XRotationVals) -> 2.16374675 | M14: =SUMPRODUCT(BackgroundGraphingTable[[#This Row],[Norm X]:[Norm Z]],Chart_YRotationVals) -> 0.8238154807
B15: Rock3_1 | C15: 60 | D15: =0.5*BackgroundAcceleration*NetTime^2+BackgroundVelocity*NetTime+BackgroundGraphingTable[[#This Row],[Starting position]] -> 60 | E15: =IF(BackgroundGraphingTable[[#This Row],[Calculated position]]>0,0,ROUNDUP(-BackgroundGraphingTable[[#This Row],[Calculated position]]/BackgroundCycle,0)) -> 0 | F15: =BackgroundGraphingTable[[#This Row],[Offset multiplier]]*BackgroundCycle+BackgroundGraphingTable[[#This Row],[Calculated position]] -> 60 | G15: -3 | H15: =-20 -> -20 | I15: =(BackgroundGraphingTable[[#This Row],[X]]-Xframe_min)/Xframe_range-0.5 -> 0.3 | J15: =(BackgroundGraphingTable[[#This Row],[Y]]-Yframe_min)/Yframe_range-0.5 -> -0.1 | K15: =(BackgroundGraphingTable[[#This Row],[Z]]-Zframe_min)/Zframe_range-0.5 -> -0.5 | L15: =SUMPRODUCT(BackgroundGraphingTable[[#This Row],[Norm X]:[Norm Z]],Chart_XRotationVals) -> 0.2545584412 | M15: =SUMPRODUCT(BackgroundGraphingTable[[#This Row],[Norm X]:[Norm Z]],Chart_YRotationVals) -> -0.08835226701
B16: Rock3_2 | C16: 127 | D16: =0.5*BackgroundAcceleration*NetTime^2+BackgroundVelocity*NetTime+BackgroundGraphingTable[[#This Row],[Starting position]] -> 127 | E16: =IF(BackgroundGraphingTable[[#This Row],[Calculated position]]>0,0,ROUNDUP(-BackgroundGraphingTable[[#This Row],[Calculated position]]/BackgroundCycle,0)) -> 0 | F16: =BackgroundGraphingTable[[#This Row],[Offset multiplier]]*BackgroundCycle+BackgroundGraphingTable[[#This Row],[Calculated position]] -> 127 | G16: 0 | H16: -20 | I16: =(BackgroundGraphingTable[[#This Row],[X]]-Xframe_min)/Xframe_range-0.5 -> 1.64 | J16: =(BackgroundGraphingTable[[#This Row],[Y]]-Yframe_min)/Yframe_range-0.5 -> 0 | K16: =(BackgroundGraphingTable[[#This Row],[Z]]-Zframe_min)/Zframe_range-0.5 -> -0.5 | L16: =SUMPRODUCT(BackgroundGraphingTable[[#This Row],[Norm X]:[Norm Z]],Chart_XRotationVals) -> 1.159655121 | M16: =SUMPRODUCT(BackgroundGraphingTable[[#This Row],[Norm X]:[Norm Z]],Chart_YRotationVals) -> 0.4066224798
B17: Rock3_3 | C17: 144 | D17: =0.5*BackgroundAcceleration*NetTime^2+BackgroundVelocity*NetTime+BackgroundGraphingTable[[#This Row],[Starting position]] -> 144 | E17: =IF(BackgroundGraphingTable[[#This Row],[Calculated position]]>0,0,ROUNDUP(-BackgroundGraphingTable[[#This Row],[Calculated position]]/BackgroundCycle,0)) -> 0 | F17: =BackgroundGraphingTable[[#This Row],[Offset multiplier]]*BackgroundCycle+BackgroundGraphingTable[[#This Row],[Calculated position]] -> 144 | G17: -9 | H17: -20 | I17: =(BackgroundGraphingTable[[#This Row],[X]]-Xframe_min)/Xframe_range-0.5 -> 1.98 | J17: =(BackgroundGraphingTable[[#This Row],[Y]]-Yframe_min)/Yframe_range-0.5 -> -0.3 | K17: =(BackgroundGraphingTable[[#This Row],[Z]]-Zframe_min)/Zframe_range-0.5 -> -0.5 | L17: =SUMPRODUCT(BackgroundGraphingTable[[#This Row],[Norm X]:[Norm Z]],Chart_XRotationVals) -> 1.527350647 | M17: =SUMPRODUCT(BackgroundGraphingTable[[#This Row],[Norm X]:[Norm Z]],Chart_YRotationVals) -> 0.4631910223
B18: Rock3_4 | C18: 168 | D18: =0.5*BackgroundAcceleration*NetTime^2+BackgroundVelocity*NetTime+BackgroundGraphingTable[[#This Row],[Starting position]] -> 168 | E18: =IF(BackgroundGraphingTable[[#This Row],[Calculated position]]>0,0,ROUNDUP(-BackgroundGraphingTable[[#This Row],[Calculated position]]/BackgroundCycle,0)) -> 0 | F18: =BackgroundGraphingTable[[#This Row],[Offset multiplier]]*BackgroundCycle+BackgroundGraphingTable[[#This Row],[Calculated position]] -> 168 | G18: 6 | H18: -20 | I18: =(BackgroundGraphingTable[[#This Row],[X]]-Xframe_min)/Xframe_range-0.5 -> 2.46 | J18: =(BackgroundGraphingTable[[#This Row],[Y]]-Yframe_min)/Yframe_range-0.5 -> 0.2 | K18: =(BackgroundGraphingTable[[#This Row],[Z]]-Zframe_min)/Zframe_range-0.5 -> -0.5 | L18: =SUMPRODUCT(BackgroundGraphingTable[[#This Row],[Norm X]:[Norm Z]],Chart_XRotationVals) -> 1.654629868 | M18: =SUMPRODUCT(BackgroundGraphingTable[[#This Row],[Norm X]:[Norm Z]],Chart_YRotationVals) -> 0.738962667
B19: Rock4_1 | C19: 31 | D19: =0.5*BackgroundAcceleration*NetTime^2+BackgroundVelocity*NetTime+BackgroundGraphingTable[[#This Row],[Starting position]] -> 31 | E19: =IF(BackgroundGraphingTable[[#This Row],[Calculated position]]>0,0,ROUNDUP(-BackgroundGraphingTable[[#This Row],[Calculated position]]/BackgroundCycle,0)) -> 0 | F19: =BackgroundGraphingTable[[#This Row],[Offset multiplier]]*BackgroundCycle+BackgroundGraphingTable[[#This Row],[Calculated position]] -> 31 | G19: 4 | H19: -20 | I19: =(BackgroundGraphingTable[[#This Row],[X]]-Xframe_min)/Xframe_range-0.5 -> -0.28 | J19: =(BackgroundGraphingTable[[#This Row],[Y]]-Yframe_min)/Yframe_range-0.5 -> 0.1333333333 | K19: =(BackgroundGraphingTable[[#This Row],[Z]]-Zframe_min)/Zframe_range-0.5 -> -0.5 | L19: =SUMPRODUCT(BackgroundGraphingTable[[#This Row],[Norm X]:[Norm Z]],Chart_XRotationVals) -> -0.2545584412 | M19: =SUMPRODUCT(BackgroundGraphingTable[[#This Row],[Norm X]:[Norm Z]],Chart_YRotationVals) -> -0.2439157589
B20: Rock4_2 | C20: 95 | D20: =0.5*BackgroundAcceleration*NetTime^2+BackgroundVelocity*NetTime+BackgroundGraphingTable[[#This Row],[Starting position]] -> 95 | E20: =IF(BackgroundGraphingTable[[#This Row],[Calculated position]]>0,0,ROUNDUP(-BackgroundGraphingTable[[#This Row],[Calculated position]]/BackgroundCycle,0)) -> 0 | F20: =BackgroundGraphingTable[[#This Row],[Offset multiplier]]*BackgroundCycle+BackgroundGraphingTable[[#This Row],[Calculated position]] -> 95 | G20: -5 | H20: -20 | I20: =(BackgroundGraphingTable[[#This Row],[X]]-Xframe_min)/Xframe_range-0.5 -> 1 | J20: =(BackgroundGraphingTable[[#This Row],[Y]]-Yframe_min)/Yframe_range-0.5 -> -0.1666666667 | K20: =(BackgroundGraphingTable[[#This Row],[Z]]-Zframe_min)/Zframe_range-0.5 -> -0.5 | L20: =SUMPRODUCT(BackgroundGraphingTable[[#This Row],[Norm X]:[Norm Z]],Chart_XRotationVals) -> 0.7778174593 | M20: =SUMPRODUCT(BackgroundGraphingTable[[#This Row],[Norm X]:[Norm Z]],Chart_YRotationVals) -> 0.1449929708
B21: Rock4_3 | C21: 173 | D21: =0.5*BackgroundAcceleration*NetTime^2+BackgroundVelocity*NetTime+BackgroundGraphingTable[[#This Row],[Starting position]] -> 173 | E21: =IF(BackgroundGraphingTable[[#This Row],[Calculated position]]>0,0,ROUNDUP(-BackgroundGraphingTable[[#This Row],[Calculated position]]/BackgroundCycle,0)) -> 0 | F21: =BackgroundGraphingTable[[#This Row],[Offset multiplier]]*BackgroundCycle+BackgroundGraphingTable[[#This Row],[Calculated position]] -> 173 | G21: 0 | H21: -20 | I21: =(BackgroundGraphingTable[[#This Row],[X]]-Xframe_min)/Xframe_range-0.5 -> 2.56 | J21: =(BackgroundGraphingTable[[#This Row],[Y]]-Yframe_min)/Yframe_range-0.5 -> 0 | K21: =(BackgroundGraphingTable[[#This Row],[Z]]-Zframe_min)/Zframe_range-0.5 -> -0.5 | L21: =SUMPRODUCT(BackgroundGraphingTable[[#This Row],[Norm X]:[Norm Z]],Chart_XRotationVals) -> 1.81019336 | M21: =SUMPRODUCT(BackgroundGraphingTable[[#This Row],[Norm X]:[Norm Z]],Chart_YRotationVals) -> 0.7318915992
B22: Rock5_1 | C22: 51 | D22: =0.5*BackgroundAcceleration*NetTime^2+BackgroundVelocity*NetTime+BackgroundGraphingTable[[#This Row],[Starting position]] -> 51 | E22: =IF(BackgroundGraphingTable[[#This Row],[Calculated position]]>0,0,ROUNDUP(-BackgroundGraphingTable[[#This Row],[Calculated position]]/BackgroundCycle,0)) -> 0 | F22: =BackgroundGraphingTable[[#This Row],[Offset multiplier]]*BackgroundCycle+BackgroundGraphingTable[[#This Row],[Calculated position]] -> 51 | G22: -7 | H22: -20 | I22: =(BackgroundGraphingTable[[#This Row],[X]]-Xframe_min)/Xframe_range-0.5 -> 0.12 | J22: =(BackgroundGraphingTable[[#This Row],[Y]]-Yframe_min)/Yframe_range-0.5 -> -0.2333333333 | K22: =(BackgroundGraphingTable[[#This Row],[Z]]-Zframe_min)/Zframe_range-0.5 -> -0.5 | L22: =SUMPRODUCT(BackgroundGraphingTable[[#This Row],[Norm X]:[Norm Z]],Chart_XRotationVals) -> 0.1838477631 | M22: =SUMPRODUCT(BackgroundGraphingTable[[#This Row],[Norm X]:[Norm Z]],Chart_YRotationVals) -> -0.1802761486
B23: Rock5_2 | C23: 112 | D23: =0.5*BackgroundAcceleration*NetTime^2+BackgroundVelocity*NetTime+BackgroundGraphingTable[[#This Row],[Starting position]] -> 112 | E23: =IF(BackgroundGraphingTable[[#This Row],[Calculated position]]>0,0,ROUNDUP(-BackgroundGraphingTable[[#This Row],[Calculated position]]/BackgroundCycle,0)) -> 0 | F23: =BackgroundGraphingTable[[#This Row],[Offset multiplier]]*BackgroundCycle+BackgroundGraphingTable[[#This Row],[Calculated position]] -> 112 | G23: -4 | H23: -20 | I23: =(BackgroundGraphingTable[[#This Row],[X]]-Xframe_min)/Xframe_range-0.5 -> 1.34 | J23: =(BackgroundGraphingTable[[#This Row],[Y]]-Yframe_min)/Yframe_range-0.5 -> -0.1333333333 | K23: =(BackgroundGraphingTable[[#This Row],[Z]]-Zframe_min)/Zframe_range-0.5 -> -0.5 | L23: =SUMPRODUCT(BackgroundGraphingTable[[#This Row],[Norm X]:[Norm Z]],Chart_XRotationVals) -> 1.004091629 | M23: =SUMPRODUCT(BackgroundGraphingTable[[#This Row],[Norm X]:[Norm Z]],Chart_YRotationVals) -> 0.2722721914
B24: Rock5_3 | C24: 160 | D24: =0.5*BackgroundAcceleration*NetTime^2+BackgroundVelocity*NetTime+BackgroundGraphingTable[[#This Row],[Starting position]] -> 160 | E24: =IF(BackgroundGraphingTable[[#This Row],[Calculated position]]>0,0,ROUNDUP(-BackgroundGraphingTable[[#This Row],[Calculated position]]/BackgroundCycle,0)) -> 0 | F24: =BackgroundGraphingTable[[#This Row],[Offset multiplier]]*BackgroundCycle+BackgroundGraphingTable[[#This Row],[Calculated position]] -> 160 | G24: -3 | H24: -20 | I24: =(BackgroundGraphingTable[[#This Row],[X]]-Xframe_min)/Xframe_range-0.5 -> 2.3 | J24: =(BackgroundGraphingTable[[#This Row],[Y]]-Yframe_min)/Yframe_range-0.5 -> -0.1 | K24: =(BackgroundGraphingTable[[#This Row],[Z]]-Zframe_min)/Zframe_range-0.5 -> -0.5 | L24: =SUMPRODUCT(BackgroundGraphingTable[[#This Row],[Norm X]:[Norm Z]],Chart_XRotationVals) -> 1.668772004 | M24: =SUMPRODUCT(BackgroundGraphingTable[[#This Row],[Norm X]:[Norm Z]],Chart_YRotationVals) -> 0.6187545142
B25: Rock6_1 | C25: 60 | D25: =0.5*BackgroundAcceleration*NetTime^2+BackgroundVelocity*NetTime+BackgroundGraphingTable[[#This Row],[Starting position]] -> 60 | E25: =IF(BackgroundGraphingTable[[#This Row],[Calculated position]]>0,0,ROUNDUP(-BackgroundGraphingTable[[#This Row],[Calculated position]]/BackgroundCycle,0)) -> 0 | F25: =BackgroundGraphingTable[[#This Row],[Offset multiplier]]*BackgroundCycle+BackgroundGraphingTable[[#This Row],[Calculated position]] -> 60 | G25: 4 | H25: -20 | I25: =(BackgroundGraphingTable[[#This Row],[X]]-Xframe_min)/Xframe_range-0.5 -> 0.3 | J25: =(BackgroundGraphingTable[[#This Row],[Y]]-Yframe_min)/Yframe_range-0.5 -> 0.1333333333 | K25: =(BackgroundGraphingTable[[#This Row],[Z]]-Zframe_min)/Zframe_range-0.5 -> -0.5 | L25: =SUMPRODUCT(BackgroundGraphingTable[[#This Row],[Norm X]:[Norm Z]],Chart_XRotationVals) -> 0.1555634919 | M25: =SUMPRODUCT(BackgroundGraphingTable[[#This Row],[Norm X]:[Norm Z]],Chart_YRotationVals) -> -0.03885479233
B26: Rock6_2 | C26: 135 | D26: =0.5*BackgroundAcceleration*NetTime^2+BackgroundVelocity*NetTime+BackgroundGraphingTable[[#This Row],[Starting position]] -> 135 | E26: =IF(BackgroundGraphingTable[[#This Row],[Calculated position]]>0,0,ROUNDUP(-BackgroundGraphingTable[[#This Row],[Calculated position]]/BackgroundCycle,0)) -> 0 | F26: =BackgroundGraphingTable[[#This Row],[Offset multiplier]]*BackgroundCycle+BackgroundGraphingTable[[#This Row],[Calculated position]] -> 135 | G26: 2 | H26: -20 | I26: =(BackgroundGraphingTable[[#This Row],[X]]-Xframe_min)/Xframe_range-0.5 -> 1.8 | J26: =(BackgroundGraphingTable[[#This Row],[Y]]-Yframe_min)/Yframe_range-0.5 -> 0.06666666667 | K26: =(BackgroundGraphingTable[[#This Row],[Z]]-Zframe_min)/Zframe_range-0.5 -> -0.5 | L26: =SUMPRODUCT(BackgroundGraphingTable[[#This Row],[Norm X]:[Norm Z]],Chart_XRotationVals) -> 1.244507935 | M26: =SUMPRODUCT(BackgroundGraphingTable[[#This Row],[Norm X]:[Norm Z]],Chart_YRotationVals) -> 0.4773331579
B27: Rock6_3 | C27: 5 | D27: =0.5*BackgroundAcceleration*NetTime^2+BackgroundVelocity*NetTime+BackgroundGraphingTable[[#This Row],[Starting position]] -> 5 | E27: =IF(BackgroundGraphingTable[[#This Row],[Calculated position]]>0,0,ROUNDUP(-BackgroundGraphingTable[[#This Row],[Calculated position]]/BackgroundCycle,0)) -> 0 | F27: =BackgroundGraphingTable[[#This Row],[Offset multiplier]]*BackgroundCycle+BackgroundGraphingTable[[#This Row],[Calculated position]] -> 5 | G27: 0 | H27: =-20 -> -20 | I27: =(BackgroundGraphingTable[[#This Row],[X]]-Xframe_min)/Xframe_range-0.5 -> -0.8 | J27: =(BackgroundGraphingTable[[#This Row],[Y]]-Yframe_min)/Yframe_range-0.5 -> 0 | K27: =(BackgroundGraphingTable[[#This Row],[Z]]-Zframe_min)/Zframe_range-0.5 -> -0.5 | L27: =SUMPRODUCT(BackgroundGraphingTable[[#This Row],[Norm X]:[Norm Z]],Chart_XRotationVals) -> -0.5656854249 | M27: =SUMPRODUCT(BackgroundGraphingTable[[#This Row],[Norm X]:[Norm Z]],Chart_YRotationVals) -> -0.4560477932
B28: Rock7_1 | C28: 30 | D28: =0.5*BackgroundAcceleration*NetTime^2+BackgroundVelocity*NetTime+BackgroundGraphingTable[[#This Row],[Starting position]] -> 30 | E28: =IF(BackgroundGraphingTable[[#This Row],[Calculated position]]>0,0,ROUNDUP(-BackgroundGraphingTable[[#This Row],[Calculated position]]/BackgroundCycle,0)) -> 0 | F28: =BackgroundGraphingTable[[#This Row],[Offset multiplier]]*BackgroundCycle+BackgroundGraphingTable[[#This Row],[Calculated position]] -> 30 | G28: -4 | H28: -20 | I28: =(BackgroundGraphingTable[[#This Row],[X]]-Xframe_min)/Xframe_range-0.5 -> -0.3 | J28: =(BackgroundGraphingTable[[#This Row],[Y]]-Yframe_min)/Yframe_range-0.5 -> -0.1333333333 | K28: =(BackgroundGraphingTable[[#This Row],[Z]]-Zframe_min)/Zframe_range-0.5 -> -0.5 | L28: =SUMPRODUCT(BackgroundGraphingTable[[#This Row],[Norm X]:[Norm Z]],Chart_XRotationVals) -> -0.1555634919 | M28: =SUMPRODUCT(BackgroundGraphingTable[[#This Row],[Norm X]:[Norm Z]],Chart_YRotationVals) -> -0.3075553692
B29: Rock7_2 | C29: 175 | D29: =0.5*BackgroundAcceleration*NetTime^2+BackgroundVelocity*NetTime+BackgroundGraphingTable[[#This Row],[Starting position]] -> 175 | E29: =IF(BackgroundGraphingTable[[#This Row],[Calculated position]]>0,0,ROUNDUP(-BackgroundGraphingTable[[#This Row],[Calculated position]]/BackgroundCycle,0)) -> 0 | F29: =BackgroundGraphingTable[[#This Row],[Offset multiplier]]*BackgroundCycle+BackgroundGraphingTable[[#This Row],[Calculated position]] -> 175 | G29: 3 | H29: -20 | I29: =(BackgroundGraphingTable[[#This Row],[X]]-Xframe_min)/Xframe_range-0.5 -> 2.6 | J29: =(BackgroundGraphingTable[[#This Row],[Y]]-Yframe_min)/Yframe_range-0.5 -> 0.1 | K29: =(BackgroundGraphingTable[[#This Row],[Z]]-Zframe_min)/Zframe_range-0.5 -> -0.5 | L29: =SUMPRODUCT(BackgroundGraphingTable[[#This Row],[Norm X]:[Norm Z]],Chart_XRotationVals) -> 1.796051224 | M29: =SUMPRODUCT(BackgroundGraphingTable[[#This Row],[Norm X]:[Norm Z]],Chart_YRotationVals) -> 0.7672469382
B30: Rock7_3 | C30: 90 | D30: =0.5*BackgroundAcceleration*NetTime^2+BackgroundVelocity*NetTime+BackgroundGraphingTable[[#This Row],[Starting position]] -> 90 | E30: =IF(BackgroundGraphingTable[[#This Row],[Calculated position]]>0,0,ROUNDUP(-BackgroundGraphingTable[[#This Row],[Calculated position]]/BackgroundCycle,0)) -> 0 | F30: =BackgroundGraphingTable[[#This Row],[Offset multiplier]]*BackgroundCycle+BackgroundGraphingTable[[#This Row],[Calculated position]] -> 90 | G30: 4 | H30: =-20 -> -20 | I30: =(BackgroundGraphingTable[[#This Row],[X]]-Xframe_min)/Xframe_range-0.5 -> 0.9 | J30: =(BackgroundGraphingTable[[#This Row],[Y]]-Yframe_min)/Yframe_range-0.5 -> 0.1333333333 | K30: =(BackgroundGraphingTable[[#This Row],[Z]]-Zframe_min)/Zframe_range-0.5 -> -0.5 | L30: =SUMPRODUCT(BackgroundGraphingTable[[#This Row],[Norm X]:[Norm Z]],Chart_XRotationVals) -> 0.5798275606 | M30: =SUMPRODUCT(BackgroundGraphingTable[[#This Row],[Norm X]:[Norm Z]],Chart_YRotationVals) -> 0.173277242
B31: Rock8_1 | C31: 80 | D31: =0.5*BackgroundAcceleration*NetTime^2+BackgroundVelocity*NetTime+BackgroundGraphingTable[[#This Row],[Starting position]] -> 80 | E31: =IF(BackgroundGraphingTable[[#This Row],[Calculated position]]>0,0,ROUNDUP(-BackgroundGraphingTable[[#This Row],[Calculated position]]/BackgroundCycle,0)) -> 0 | F31: =BackgroundGraphingTable[[#This Row],[Offset multiplier]]*BackgroundCycle+BackgroundGraphingTable[[#This Row],[Calculated position]] -> 80 | G31: -5 | H31: -20 | I31: =(BackgroundGraphingTable[[#This Row],[X]]-Xframe_min)/Xframe_range-0.5 -> 0.7 | J31: =(BackgroundGraphingTable[[#This Row],[Y]]-Yframe_min)/Yframe_range-0.5 -> -0.1666666667 | K31: =(BackgroundGraphingTable[[#This Row],[Z]]-Zframe_min)/Zframe_range-0.5 -> -0.5 | L31: =SUMPRODUCT(BackgroundGraphingTable[[#This Row],[Norm X]:[Norm Z]],Chart_XRotationVals) -> 0.5656854249 | M31: =SUMPRODUCT(BackgroundGraphingTable[[#This Row],[Norm X]:[Norm Z]],Chart_YRotationVals) -> 0.0389269536
B32: Rock8_2 | C32: 155 | D32: =0.5*BackgroundAcceleration*NetTime^2+BackgroundVelocity*NetTime+BackgroundGraphingTable[[#This Row],[Starting position]] -> 155 | E32: =IF(BackgroundGraphingTable[[#This Row],[Calculated position]]>0,0,ROUNDUP(-BackgroundGraphingTable[[#This Row],[Calculated position]]/BackgroundCycle,0)) -> 0 | F32: =BackgroundGraphingTable[[#This Row],[Offset multiplier]]*BackgroundCycle+BackgroundGraphingTable[[#This Row],[Calculated position]] -> 155 | G32: 5 | H32: -20 | I32: =(BackgroundGraphingTable[[#This Row],[X]]-Xframe_min)/Xframe_range-0.5 -> 2.2 | J32: =(BackgroundGraphingTable[[#This Row],[Y]]-Yframe_min)/Yframe_range-0.5 -> 0.1666666667 | K32: =(BackgroundGraphingTable[[#This Row],[Z]]-Zframe_min)/Zframe_range-0.5 -> -0.5 | L32: =SUMPRODUCT(BackgroundGraphingTable[[#This Row],[Norm X]:[Norm Z]],Chart_XRotationVals) -> 1.48492424 | M32: =SUMPRODUCT(BackgroundGraphingTable[[#This Row],[Norm X]:[Norm Z]],Chart_YRotationVals) -> 0.6399677176
B33: Rock8_3 | C33: 130 | D33: =0.5*BackgroundAcceleration*NetTime^2+BackgroundVelocity*NetTime+BackgroundGraphingTable[[#This Row],[Starting position]] -> 130 | E33: =IF(BackgroundGraphingTable[[#This Row],[Calculated position]]>0,0,ROUNDUP(-BackgroundGraphingTable[[#This Row],[Calculated position]]/BackgroundCycle,0)) -> 0 | F33: =BackgroundGraphingTable[[#This Row],[Offset multiplier]]*BackgroundCycle+BackgroundGraphingTable[[#This Row],[Calculated position]] -> 130 | G33: -4 | H33: =-20 -> -20 | I33: =(BackgroundGraphingTable[[#This Row],[X]]-Xframe_min)/Xframe_range-0.5 -> 1.7 | J33: =(BackgroundGraphingTable[[#This Row],[Y]]-Yframe_min)/Yframe_range-0.5 -> -0.1333333333 | K33: =(BackgroundGraphingTable[[#This Row],[Z]]-Zframe_min)/Zframe_range-0.5 -> -0.5 | L33: =SUMPRODUCT(BackgroundGraphingTable[[#This Row],[Norm X]:[Norm Z]],Chart_XRotationVals) -> 1.258650071 | M33: =SUMPRODUCT(BackgroundGraphingTable[[#This Row],[Norm X]:[Norm Z]],Chart_YRotationVals) -> 0.399551412
B34: Rock9_1 | C34: 5 | D34: =0.5*BackgroundAcceleration*NetTime^2+BackgroundVelocity*NetTime+BackgroundGraphingTable[[#This Row],[Starting position]] -> 5 | E34: =IF(BackgroundGraphingTable[[#This Row],[Calculated position]]>0,0,ROUNDUP(-BackgroundGraphingTable[[#This Row],[Calculated position]]/BackgroundCycle,0)) -> 0 | F34: =BackgroundGraphingTable[[#This Row],[Offset multiplier]]*BackgroundCycle+BackgroundGraphingTable[[#This Row],[Calculated position]] -> 5 | G34: -6 | H34: -20 | I34: =(BackgroundGraphingTable[[#This Row],[X]]-Xframe_min)/Xframe_range-0.5 -> -0.8 | J34: =(BackgroundGraphingTable[[#This Row],[Y]]-Yframe_min)/Yframe_range-0.5 -> -0.2 | K34: =(BackgroundGraphingTable[[#This Row],[Z]]-Zframe_min)/Zframe_range-0.5 -> -0.5 | L34: =SUMPRODUCT(BackgroundGraphingTable[[#This Row],[Norm X]:[Norm Z]],Chart_XRotationVals) -> -0.4808326112 | M34: =SUMPRODUCT(BackgroundGraphingTable[[#This Row],[Norm X]:[Norm Z]],Chart_YRotationVals) -> -0.4984742001
B35: Rock9_2 | C35: 104 | D35: =0.5*BackgroundAcceleration*NetTime^2+BackgroundVelocity*NetTime+BackgroundGraphingTable[[#This Row],[Starting position]] -> 104 | E35: =IF(BackgroundGraphingTable[[#This Row],[Calculated position]]>0,0,ROUNDUP(-BackgroundGraphingTable[[#This Row],[Calculated position]]/BackgroundCycle,0)) -> 0 | F35: =BackgroundGraphingTable[[#This Row],[Offset multiplier]]*BackgroundCycle+BackgroundGraphingTable[[#This Row],[Calculated position]] -> 104 | G35: 5 | H35: -20 | I35: =(BackgroundGraphingTable[[#This Row],[X]]-Xframe_min)/Xframe_range-0.5 -> 1.18 | J35: =(BackgroundGraphingTable[[#This Row],[Y]]-Yframe_min)/Yframe_range-0.5 -> 0.1666666667 | K35: =(BackgroundGraphingTable[[#This Row],[Z]]-Zframe_min)/Zframe_range-0.5 -> -0.5 | L35: =SUMPRODUCT(BackgroundGraphingTable[[#This Row],[Norm X]:[Norm Z]],Chart_XRotationVals) -> 0.7636753237 | M35: =SUMPRODUCT(BackgroundGraphingTable[[#This Row],[Norm X]:[Norm Z]],Chart_YRotationVals) -> 0.2793432592
B36: Rock10_1 | C36: 22 | D36: =0.5*BackgroundAcceleration*NetTime^2+BackgroundVelocity*NetTime+BackgroundGraphingTable[[#This Row],[Starting position]] -> 22 | E36: =IF(BackgroundGraphingTable[[#This Row],[Calculated position]]>0,0,ROUNDUP(-BackgroundGraphingTable[[#This Row],[Calculated position]]/BackgroundCycle,0)) -> 0 | F36: =BackgroundGraphingTable[[#This Row],[Offset multiplier]]*BackgroundCycle+BackgroundGraphingTable[[#This Row],[Calculated position]] -> 22 | G36: -1 | H36: -20 | I36: =(BackgroundGraphingTable[[#This Row],[X]]-Xframe_min)/Xframe_range-0.5 -> -0.46 | J36: =(BackgroundGraphingTable[[#This Row],[Y]]-Yframe_min)/Yframe_range-0.5 -> -0.03333333333 | K36: =(BackgroundGraphingTable[[#This Row],[Z]]-Zframe_min)/Zframe_range-0.5 -> -0.5 | L36: =SUMPRODUCT(BackgroundGraphingTable[[#This Row],[Norm X]:[Norm Z]],Chart_XRotationVals) -> -0.3111269837 | M36: =SUMPRODUCT(BackgroundGraphingTable[[#This Row],[Norm X]:[Norm Z]],Chart_YRotationVals) -> -0.3429107082
B37: Rock10_2 | C37: 83 | D37: =0.5*BackgroundAcceleration*NetTime^2+BackgroundVelocity*NetTime+BackgroundGraphingTable[[#This Row],[Starting position]] -> 83 | E37: =IF(BackgroundGraphingTable[[#This Row],[Calculated position]]>0,0,ROUNDUP(-BackgroundGraphingTable[[#This Row],[Calculated position]]/BackgroundCycle,0)) -> 0 | F37: =BackgroundGraphingTable[[#This Row],[Offset multiplier]]*BackgroundCycle+BackgroundGraphingTable[[#This Row],[Calculated position]] -> 83 | G37: 9 | H37: -20 | I37: =(BackgroundGraphingTable[[#This Row],[X]]-Xframe_min)/Xframe_range-0.5 -> 0.76 | J37: =(BackgroundGraphingTable[[#This Row],[Y]]-Yframe_min)/Yframe_range-0.5 -> 0.3 | K37: =(BackgroundGraphingTable[[#This Row],[Z]]-Zframe_min)/Zframe_range-0.5 -> -0.5 | L37: =SUMPRODUCT(BackgroundGraphingTable[[#This Row],[Norm X]:[Norm Z]],Chart_XRotationVals) -> 0.4101219331 | M37: =SUMPRODUCT(BackgroundGraphingTable[[#This Row],[Norm X]:[Norm Z]],Chart_YRotationVals) -> 0.1591351064
B38: Rock10_3 | C38: 127 | D38: =0.5*BackgroundAcceleration*NetTime^2+BackgroundVelocity*NetTime+BackgroundGraphingTable[[#This Row],[Starting position]] -> 127 | E38: =IF(BackgroundGraphingTable[[#This Row],[Calculated position]]>0,0,ROUNDUP(-BackgroundGraphingTable[[#This Row],[Calculated position]]/BackgroundCycle,0)) -> 0 | F38: =BackgroundGraphingTable[[#This Row],[Offset multiplier]]*BackgroundCycle+BackgroundGraphingTable[[#This Row],[Calculated position]] -> 127 | G38: 8 | H38: -20 | I38: =(BackgroundGraphingTable[[#This Row],[X]]-Xframe_min)/Xframe_range-0.5 -> 1.64 | J38: =(BackgroundGraphingTable[[#This Row],[Y]]-Yframe_min)/Yframe_range-0.5 -> 0.2666666667 | K38: =(BackgroundGraphingTable[[#This Row],[Z]]-Zframe_min)/Zframe_range-0.5 -> -0.5 | L38: =SUMPRODUCT(BackgroundGraphingTable[[#This Row],[Norm X]:[Norm Z]],Chart_XRotationVals) -> 1.046518036 | M38: =SUMPRODUCT(BackgroundGraphingTable[[#This Row],[Norm X]:[Norm Z]],Chart_YRotationVals) -> 0.4631910223
B39: Rock10_4 | C39: 193 | D39: =0.5*BackgroundAcceleration*NetTime^2+BackgroundVelocity*NetTime+BackgroundGraphingTable[[#This Row],[Starting position]] -> 193 | E39: =IF(BackgroundGraphingTable[[#This Row],[Calculated position]]>0,0,ROUNDUP(-BackgroundGraphingTable[[#This Row],[Calculated position]]/BackgroundCycle,0)) -> 0 | F39: =BackgroundGraphingTable[[#This Row],[Offset multiplier]]*BackgroundCycle+BackgroundGraphingTable[[#This Row],[Calculated position]] -> 193 | G39: 3 | H39: -20 | I39: =(BackgroundGraphingTable[[#This Row],[X]]-Xframe_min)/Xframe_range-0.5 -> 2.96 | J39: =(BackgroundGraphingTable[[#This Row],[Y]]-Yframe_min)/Yframe_range-0.5 -> 0.1 | K39: =(BackgroundGraphingTable[[#This Row],[Z]]-Zframe_min)/Zframe_range-0.5 -> -0.5 | L39: =SUMPRODUCT(BackgroundGraphingTable[[#This Row],[Norm X]:[Norm Z]],Chart_XRotationVals) -> 2.050609665 | M39: =SUMPRODUCT(BackgroundGraphingTable[[#This Row],[Norm X]:[Norm Z]],Chart_YRotationVals) -> 0.8945261588
C46: =200/8 -> 25

Sheet Setup (hidden)
A1: Data | B1: Value | E1: Object | F1: Appearance | G1: Cycle position | H1: Head to mid | I1: Tail to mid | J1: Head | K1: Mid | L1: Tail | M1: High Z | N1: Low Z | O1: Acceleration | P1: Velocity at 0 | Q1: X1 | R1: Y1 | S1: Z1 | T1: X2 | U1: Y2 | V1: Z2 | W1: A/an | Z1: Sheet | AA1: Previous | AB1: Next
A2: Reset distance | B2: 100 | E2: A | F2: Dolphin | G2: 150 | H2: -2 | I2: 1 | J2: 1 | K2: 2 | L2: 1 | M2: -1 | N2: -2 | O2: 0 | P2: -6 | Q2: 30 | R2: -3 | S2: -1 | T2: 105 | U2: -7 | V2: -2 | W2: =IF(LEFT(SetupConstantsTable[[#This Row],[Appearance]],1)="O","an","a") -> a | Z2: =SheetName_1 -> Instructions | AA2: =SheetName_1 -> Instructions | AB2: =SheetName_2 -> Joystick Controller Test
A3: Starting Time | B3: 2021-07-16T22:43:27 | E3: B | F3: Sting Ray | G3: 110 | H3: 1 | I3: 2 | J3: 3 | K3: 2 | L3: 1 | M3: -3 | N3: -4 | O3: 0 | P3: -3.5 | Q3: 25 | R3: 6 | S3: -3 | T3: 78 | U3: 10 | V3: -4 | W3: =IF(LEFT(SetupConstantsTable[[#This Row],[Appearance]],1)="O","an","a") -> a | Z3: =SheetName_2 -> Joystick Controller Test | AA3: =SheetName_1 -> Instructions | AB3: =SheetName_3 -> Virtual Marine Environment
A4: Net time | B4: =IF(GameRunning,IF('Data In'!H5=0,('Data In'!A5-IF(StartingTime>'Data In'!A5,'Data In'!A5,StartingTime)),'Data In'!H5)*86400,0) -> 0 | E4: C | F4: Orca | G4: 260 | H4: -4 | I4: 4 | J4: 3 | K4: 3.5 | L4: 1.5 | M4: -6 | N4: -7 | O4: 0 | P4: -5 | Q4: 67 | R4: -7 | S4: -6 | T4: 195 | U4: -1 | V4: -7 | W4: =IF(LEFT(SetupConstantsTable[[#This Row],[Appearance]],1)="O","an","a") -> an | Z4: =SheetName_3 -> Virtual Marine Environment | AA4: =SheetName_2 -> Joystick Controller Test | AB4: =SheetName_3 -> Virtual Marine Environment
A5: Distance traveled | B5: =-BackgroundVelocity*NetTime -> 0 | E5: D | F5: Jellyfish | G5: 165 | H5: 0 | I5: 0 | J5: 1.5 | K5: 1.5 | L5: 1.5 | M5: -9 | N5: -10 | O5: 0 | P5: -2.5 | Q5: 50 | R5: 9 | S5: -10 | T5: 99 | U5: 6 | V5: -9 | W5: =IF(LEFT(SetupConstantsTable[[#This Row],[Appearance]],1)="O","an","a") -> a
A6: Shark length | B6: 5 | E6: E | F6: Whale | G6: 350 | H6: 10 | I6: 12 | J6: 10 | K6: 10 | L6: 5 | O6: 0 | P6: -4.5 | Q6: 120 | R6: 0 | S6: -10 | T6: 290 | U6: -10 | V6: -10 | W6: =IF(LEFT(SetupConstantsTable[[#This Row],[Appearance]],1)="O","an","a") -> a
A7: Shark width | B7: 2 | E7: F | F7: Turtle | G7: 140 | H7: 0 | I7: 0 | J7: 1.5 | K7: 1.5 | L7: 1.5 | M7: -11 | N7: -12 | O7: 0 | P7: -2.5 | Q7: 42 | R7: 9 | S7: -11 | T7: 97 | U7: 7 | V7: -12 | W7: =IF(LEFT(SetupConstantsTable[[#This Row],[Appearance]],1)="O","an","a") -> a
A8: Shark depth | B8: 2 | E8: G | F8: Seahorse | G8: 100 | H8: 0 | I8: 0 | J8: 2 | K8: 2 | L8: 2 | O8: 0 | P8: -2.5 | Q8: 11 | R8: -5 | S8: -14 | T8: 69 | U8: 2 | V8: -15 | W8: =IF(LEFT(SetupConstantsTable[[#This Row],[Appearance]],1)="O","an","a") -> a
A9: Roll | B9: ='Data In'!B5*(-1)^InvertX -> 0 | E9: H | F9: Hammerhead | G9: 170 | H9: 3 | I9: 2.5 | J9: 2 | K9: 2 | L9: 1.5 | M9: -14 | N9: -15 | O9: 0 | P9: -4.5 | Q9: 88 | R9: 8 | S9: -15 | T9: 162 | U9: -4 | V9: -14 | W9: =IF(LEFT(SetupConstantsTable[[#This Row],[Appearance]],1)="O","an","a") -> a
A10: Pitch | B10: ='Data In'!C5*(-1)^InvertY -> 0 | E10: I | F10: Octopus | G10: 130 | H10: 0 | I10: 0 | J10: 3 | K10: 3 | L10: 3 | M10: -17 | N10: -18 | O10: 0 | P10: -2.5 | Q10: 39 | R10: -6 | S10: -17 | T10: 98 | U10: 1 | V10: -18 | W10: =IF(LEFT(SetupConstantsTable[[#This Row],[Appearance]],1)="O","an","a") -> an
A11: Yaw | B11: ='Data In'!D5*(-1)^InvertZ -> 0 | E11: J | F11: Crab | G11: 120 | H11: 0 | I11: 0 | J11: 2 | K11: 2 | L11: 2 | M11: -19.6 | N11: -19.6 | O11: 0 | P11: -2.5 | Q11: 49 | R11: -10 | S11: -19.6 | T11: 107 | U11: -8 | V11: -19.6 | W11: =IF(LEFT(SetupConstantsTable[[#This Row],[Appearance]],1)="O","an","a") -> a
A12: rollΔ | B12: =IF(OR('Data In'!H5>0,NOT(GameRunning)),0,InputRoll) -> 0 | E12: Shark | F12: Shark | H12: 2 | I12: -2 | J12: 2 | K12: 2 | L12: 1 | W12: =IF(LEFT(SetupConstantsTable[[#This Row],[Appearance]],1)="O","an","a") -> a
A13: pitchΔ | B13: =IF(OR(AND(InputPitch=-1,Zpos_last-Zframe_min<1),AND(InputPitch=1,(Zframe_min+Zframe_range)-Zpos_last<1),'Data In'!H5>0,NOT(GameRunning)),0,InputPitch) -> 0
A14: yawΔ | B14: =IF(OR(AND(InputYaw=-1,Ypos_last<=Yframe_min),AND(InputYaw=1,Ypos_last>=(Yframe_min+Yframe_range)),'Data In'!H5>0,NOT(GameRunning)),0,InputYaw) -> 0
A15: Xo | B15: =20 -> 20
A16: Yo | B16: =IF(OR(NOT(GameRunning),'Data In'!F5=""),0,'Data In'!F5) -> 0
A17: Zo | B17: =IF(OR(NOT(GameRunning),'Data In'!G5=""),-10.5,'Data In'!G5) -> -10.5
A18: Xf | B18: =Xpos_last -> 20
A19: Yf | B19: =Ypos_last+Yaw -> 0 | E19: Label | F19: X val | G19: Y val | H19: Z val
A20: Zf | B20: =Zpos_last+Pitch -> -10.5 | E20: rotation | F20: -60 | G20: 0 | H20: 45 | L20: Dolphin | M20: =TT!O52 -> It looks like you stopped to examine a dolphin after seeing
A21: Background acceleration | B21: 0.05 | E21: sin θ | F21: =SIN(RADIANS(Xrot)) -> -0.8660254038 | G21: =SIN(RADIANS(Yrot)) -> 0 | H21: =SIN(RADIANS(Zrot)) -> 0.7071067812 | L21: Sting Ray | M21: =TT!O53 -> It looks like you stopped to examine a sting ray after seeing
A22: Invert Roll (X) | B22: 0 | E22: cos θ | F22: =COS(RADIANS(Xrot)) -> 0.5 | G22: =COS(RADIANS(Yrot)) -> 1 | H22: =COS(RADIANS(Zrot)) -> 0.7071067812 | L22: Orca | M22: =TT!O54 -> It looks like you stopped to examine an orca after seeing
A23: Invert Pitch (Y) | B23: 0 | E23: Rotation for Chart X | F23: =Cos_Yrot*Cos_Zrot*XScaleRatio -> 0.7071067812 | G23: =-Sin_Zrot*Cos_Yrot*YScaleRatio -> -0.4242640687 | H23: =Sin_Yrot*ZScaleRatio -> 0 | L23: Jellyfish | M23: =TT!O55 -> It looks like you stopped to examine a jellyfish after seeing
A24: Invert Yaw (Z) | B24: 0 | E24: Rotation for Chart Y | F24: =(Cos_Zrot*Sin_Yrot*Sin_Xrot+Sin_Zrot*Cos_Xrot)*XScaleRatio -> 0.3535533906 | G24: =(-Sin_Xrot*Sin_Yrot*Sin_Zrot+Cos_Xrot*Cos_Zrot)*YScaleRatio -> 0.2121320344 | H24: =-Cos_Yrot*Sin_Xrot*ZScaleRatio -> 0.3464101615 | L24: Turtle | M24: =TT!O56 -> It looks like you stopped to examine a turtle after seeing
A25: Shark depth for chart | B25: =H26+B20 -> 9.5 | E25: Minimum | F25: 20 | G25: -15 | H25: -20 | L25: Hammerhead | M25: =TT!O57 -> It looks like you stopped to examine a hammerhead after seeing
A26: Creature hit | B26: =IFERROR(INDEX(AnimalGraphingTable[],MATCH(TRUE,AnimalGraphingTable[Hit],0),3),"") ->  | E26: Range | F26: 50 | G26: 30 | H26: 20 | L26: Octopus | M26: =TT!O58 -> It looks like you stopped to examine an octopus after seeing
A27: Hit time | B27: =IF(CreatureHit="",0,IF('Data In'!H5=0,('Data In'!A5-StartingTime),'Data In'!H5)) -> 0 | E27: Scaling ratio | F27: =F26/MAX($F$26:$H$26) -> 1 | G27: =G26/MAX($F$26:$H$26) -> 0.6 | H27: =H26/MAX($F$26:$H$26) -> 0.4 | L27: Crab | M27: =TT!O59 -> It looks like you stopped to examine a crab after seeing
A28: Game Running | B28: TRUE
A29: Hit Dialogue | B29: =IF(CreatureHit="","",VLOOKUP(CreatureHit,$L$20:$M$27,2,0)&SUM('Virtual Marine Environment'!$E$27:$T$27)&" "&TT!$O$60) -> 
A30: Dialogue loc X | B30: 0.4
A31: Dialogue loc Y | B31: -0.4
A32: ActiveTime | B32: =TBL_CUR[TIME] -> 44250.62005

Sheet Cage Graphing (hidden)
B2: Point | C2: X | D2: Y | E2: Z | F2: Screen xs | G2: Screen ys
B3: 1 | C3: -0.5 | D3: 0.5 | E3: -0.5 | F3: =SUMPRODUCT(CageGraphingTable[[#This Row],[X]:[Z]],Chart_XRotationVals) -> -0.5656854249 | G3: =SUMPRODUCT(CageGraphingTable[[#This Row],[X]:[Z]],Chart_YRotationVals) -> -0.2439157589
B4: 2 | C4: 0.5 | D4: 0.5 | E4: -0.5 | F4: =SUMPRODUCT(CageGraphingTable[[#This Row],[X]:[Z]],Chart_XRotationVals) -> 0.1414213562 | G4: =SUMPRODUCT(CageGraphingTable[[#This Row],[X]:[Z]],Chart_YRotationVals) -> 0.1096376317
B5: 3 | C5: 0.5 | D5: -0.5 | E5: -0.5 | F5: =SUMPRODUCT(CageGraphingTable[[#This Row],[X]:[Z]],Chart_XRotationVals) -> 0.5656854249 | G5: =SUMPRODUCT(CageGraphingTable[[#This Row],[X]:[Z]],Chart_YRotationVals) -> -0.1024944026
B6: 4 | C6: -0.5 | D6: -0.5 | E6: -0.5 | F6: =SUMPRODUCT(CageGraphingTable[[#This Row],[X]:[Z]],Chart_XRotationVals) -> -0.1414213562 | G6: =SUMPRODUCT(CageGraphingTable[[#This Row],[X]:[Z]],Chart_YRotationVals) -> -0.4560477932
B7: 5 | C7: -0.5 | D7: 0.5 | E7: -0.5 | F7: =SUMPRODUCT(CageGraphingTable[[#This Row],[X]:[Z]],Chart_XRotationVals) -> -0.5656854249 | G7: =SUMPRODUCT(CageGraphingTable[[#This Row],[X]:[Z]],Chart_YRotationVals) -> -0.2439157589
B8: 6 | C8: -0.5 | D8: 0.5 | E8: 0.5 | F8: =SUMPRODUCT(CageGraphingTable[[#This Row],[X]:[Z]],Chart_XRotationVals) -> -0.5656854249 | G8: =SUMPRODUCT(CageGraphingTable[[#This Row],[X]:[Z]],Chart_YRotationVals) -> 0.1024944026
B9: 7 | C9: 0.5 | D9: 0.5 | E9: 0.5 | F9: =SUMPRODUCT(CageGraphingTable[[#This Row],[X]:[Z]],Chart_XRotationVals) -> 0.1414213562 | G9: =SUMPRODUCT(CageGraphingTable[[#This Row],[X]:[Z]],Chart_YRotationVals) -> 0.4560477932
B10: 8 | C10: 0.5 | D10: -0.5 | E10: 0.5 | F10: =SUMPRODUCT(CageGraphingTable[[#This Row],[X]:[Z]],Chart_XRotationVals) -> 0.5656854249 | G10: =SUMPRODUCT(CageGraphingTable[[#This Row],[X]:[Z]],Chart_YRotationVals) -> 0.2439157589
B11: 9 | C11: 0.5 | D11: -0.5 | E11: -0.5 | F11: =SUMPRODUCT(CageGraphingTable[[#This Row],[X]:[Z]],Chart_XRotationVals) -> 0.5656854249 | G11: =SUMPRODUCT(CageGraphingTable[[#This Row],[X]:[Z]],Chart_YRotationVals) -> -0.1024944026
B12: 10 | C12: 0.5 | D12: 0.5 | E12: -0.5 | F12: =SUMPRODUCT(CageGraphingTable[[#This Row],[X]:[Z]],Chart_XRotationVals) -> 0.1414213562 | G12: =SUMPRODUCT(CageGraphingTable[[#This Row],[X]:[Z]],Chart_YRotationVals) -> 0.1096376317
B13: 11 | C13: 0.5 | D13: 0.5 | E13: 0.5 | F13: =SUMPRODUCT(CageGraphingTable[[#This Row],[X]:[Z]],Chart_XRotationVals) -> 0.1414213562 | G13: =SUMPRODUCT(CageGraphingTable[[#This Row],[X]:[Z]],Chart_YRotationVals) -> 0.4560477932

Sheet Instructions
B1: v. 210714
A2: =RIGHT(CELL("filename",A2),LEN(CELL("filename",A2))-FIND("]",CELL("filename",A2))) -> Instructions | B2: =TT!$O$3 -> Select Language
C4: English
C7: =TT!$O$29 -> Next 

Sheet TT (hidden)
B2: Row | C2: Tab | D2: Location | E2: Language 1 | F2: Language 2 | G2: Language 3 | H2: Language 4 | I2: Language 5 | J2: Language 6 | K2: Language 7 | L2: Language 8 | M2: Language 9 | N2: Language 10 | O2: Display
B3: =ROW() -> 3 | C3: TT | D3: ="Shark2-"&TT[[#This Row],[Tab]] -> Shark2-TT | E3: Select Language | F3: Selecione Idioma | G3: Selecciona el idioma | O3: =INDEX(TT[[#This Row],[Language 1]:[Language 10]],1,LanguageSelect) -> Select Language | R3: Select Language | S3: =Instructions!$C$4 -> English | T3: =INDEX($R$5:$R$14,MATCH($S$3,$S$5:$S$14,0)) -> 1
B4: =ROW() -> 4 | C4: TT | D4: ="Shark2-"&TT[[#This Row],[Tab]] -> Shark2-TT | E4: English | F4: Inglês | G4: Inglés | O4: =INDEX(TT[[#This Row],[Language 1]:[Language 10]],1,LanguageSelect) -> English
B5: =ROW() -> 5 | C5: TT | D5: ="Shark2-"&TT[[#This Row],[Tab]] -> Shark2-TT | E5: Portuguese | F5: Português | G5: Portugués | O5: =INDEX(TT[[#This Row],[Language 1]:[Language 10]],1,LanguageSelect) -> Portuguese | R5: 1 | S5: English
B6: =ROW() -> 6 | C6: TT | D6: ="Shark2-"&TT[[#This Row],[Tab]] -> Shark2-TT | E6: Spanish | F6: Espanhol | G6: Español | O6: =INDEX(TT[[#This Row],[Language 1]:[Language 10]],1,LanguageSelect) -> Spanish | R6: 2 | S6: Português
B7: =ROW() -> 7 | C7: TT | D7: ="Shark2-"&TT[[#This Row],[Tab]] -> Shark2-TT | E7: German | F7: Alemão | G7: Alemán | O7: =INDEX(TT[[#This Row],[Language 1]:[Language 10]],1,LanguageSelect) -> German | R7: 3 | S7: Español
B8: =ROW() -> 8 | C8: TT | D8: ="Shark2-"&TT[[#This Row],[Tab]] -> Shark2-TT | E8: Italian | F8: Italiano | G8: Italiano | O8: =INDEX(TT[[#This Row],[Language 1]:[Language 10]],1,LanguageSelect) -> Italian | R8: 4
B9: =ROW() -> 9 | C9: TT | D9: ="Shark2-"&TT[[#This Row],[Tab]] -> Shark2-TT | E9: Norwegian | F9: Norueguês | G9: Noruego | O9: =INDEX(TT[[#This Row],[Language 1]:[Language 10]],1,LanguageSelect) -> Norwegian | R9: 5
B10: =ROW() -> 10 | C10: TT | D10: ="Shark2-"&TT[[#This Row],[Tab]] -> Shark2-TT | E10: French | F10: Francês | G10: Francés | O10: =INDEX(TT[[#This Row],[Language 1]:[Language 10]],1,LanguageSelect) -> French | R10: 6
B11: =ROW() -> 11 | C11: TT | D11: ="Shark2-"&TT[[#This Row],[Tab]] -> Shark2-TT | O11: =INDEX(TT[[#This Row],[Language 1]:[Language 10]],1,LanguageSelect) -> 0 | R11: 7
B12: =ROW() -> 12 | C12: TT | D12: ="Shark2-"&TT[[#This Row],[Tab]] -> Shark2-TT | O12: =INDEX(TT[[#This Row],[Language 1]:[Language 10]],1,LanguageSelect) -> 0 | R12: 8
B13: =ROW() -> 13 | C13: TT | D13: ="Shark2-"&TT[[#This Row],[Tab]] -> Shark2-TT | O13: =INDEX(TT[[#This Row],[Language 1]:[Language 10]],1,LanguageSelect) -> 0 | R13: 9
B14: =ROW() -> 14 | C14: Instructions | D14: ="Shark2-"&TT[[#This Row],[Tab]] -> Shark2-Instructions | E14: This workbook uses "Macros" (automated Excel commands) to assist in the data collection process | F14: Esta pasta de trabalho usa "Macros" (comandos automatizados do Excel) para auxiliar no processo de coleta de dados | G14: Este libro de trabajo usa "Macros" (comandos de Excel automatizados) para ayudar en el proceso de recopilación de datos | O14: =INDEX(TT[[#This Row],[Language 1]:[Language 10]],1,LanguageSelect) -> This workbook uses "Macros" (automated Excel commands) to assist in the data collection process | R14: 10
B15: =ROW() -> 15 | C15: Instructions | D15: ="Shark2-"&TT[[#This Row],[Tab]] -> Shark2-Instructions | E15: To use these Macros and have buttons on the spreadsheets work, you must "Enable" the Macros | F15: Para usar essas macros e ter botões nas planilhas funcionando, você deve "Ativar" as macros | G15: Para utilizar estas macros y tener botones en las hojas de cálculo, debes “Habilitar” las macros. | O15: =INDEX(TT[[#This Row],[Language 1]:[Language 10]],1,LanguageSelect) -> To use these Macros and have buttons on the spreadsheets work, you must "Enable" the Macros
B16: =ROW() -> 16 | C16: Instructions | D16: ="Shark2-"&TT[[#This Row],[Tab]] -> Shark2-Instructions | E16: Click the "Enable Content" button that appears above when you first open this workbook | F16: Clique no botão "Ativar conteúdo" exibido acima quando você abrir a pasta de trabalho pela primeira vez | G16: Haz clic en el botón “Habilitar contenido” que aparece arriba al abrir este libro de trabajo por primera vez | O16: =INDEX(TT[[#This Row],[Language 1]:[Language 10]],1,LanguageSelect) -> Click the "Enable Content" button that appears above when you first open this workbook
B17: =ROW() -> 17 | C17: Instructions | D17: ="Shark2-"&TT[[#This Row],[Tab]] -> Shark2-Instructions | E17: Once you have enabled macros, you can use the workbook. If you do not see this message, macros are enabled | F17: Depois de habilitar as macros, você poderá usar a pasta de trabalho. Se você não vir essa mensagem, as macros serão ativadas | G17: Una vez que hayas habilitado los macros, puedes usar el libro de trabajo. Si no ves este mensaje, las macros están habilitadas | O17: =INDEX(TT[[#This Row],[Language 1]:[Language 10]],1,LanguageSelect) -> Once you have enabled macros, you can use the workbook. If you do not see this message, macros are enabled
B18: =ROW() -> 18 | C18: Joystick Controller Test | D18: ="Shark2-"&TT[[#This Row],[Tab]] -> Shark2-Joystick Controller Test | E18: Joystick Controller Test | F18: Teste do controlador de joystick | G18: Prueba del Mando | O18: =INDEX(TT[[#This Row],[Language 1]:[Language 10]],1,LanguageSelect) -> Joystick Controller Test
B19: =ROW() -> 19 | C19: Joystick Controller Test | D19: ="Shark2-"&TT[[#This Row],[Tab]] -> Shark2-Joystick Controller Test | E19: ROLL | F19: ROLAGEM | G19: CABECEO | O19: =INDEX(TT[[#This Row],[Language 1]:[Language 10]],1,LanguageSelect) -> ROLL
B20: =ROW() -> 20 | C20: Joystick Controller Test | D20: ="Shark2-"&TT[[#This Row],[Tab]] -> Shark2-Joystick Controller Test | E20: PITCH | F20: Arfagem | G20: BALANCEO | O20: =INDEX(TT[[#This Row],[Language 1]:[Language 10]],1,LanguageSelect) -> PITCH
B21: =ROW() -> 21 | C21: Joystick Controller Test | D21: ="Shark2-"&TT[[#This Row],[Tab]] -> Shark2-Joystick Controller Test | E21: YAW | F21: GUINADA | G21: GUIÑADA | O21: =INDEX(TT[[#This Row],[Language 1]:[Language 10]],1,LanguageSelect) -> YAW
B22: =ROW() -> 22 | C22: Joystick Controller Test | D22: ="Shark2-"&TT[[#This Row],[Tab]] -> Shark2-Joystick Controller Test | E22: Roll 1 (left) | F22: Rolagem 1 (esquerda) | G22: Cabeceo 1 (izquierda) | O22: =INDEX(TT[[#This Row],[Language 1]:[Language 10]],1,LanguageSelect) -> Roll 1 (left)
B23: =ROW() -> 23 | C23: Joystick Controller Test | D23: ="Shark2-"&TT[[#This Row],[Tab]] -> Shark2-Joystick Controller Test | E23: Roll 2 (right) | F23: Rolagem 2 (direita) | G23: Cabeceo 2 (derecha) | O23: =INDEX(TT[[#This Row],[Language 1]:[Language 10]],1,LanguageSelect) -> Roll 2 (right)
B24: =ROW() -> 24 | C24: Joystick Controller Test | D24: ="Shark2-"&TT[[#This Row],[Tab]] -> Shark2-Joystick Controller Test | E24: Pitch 1 (back) | F24: Arfagem 1 (trás) | G24: Balanceo 1 (atrás) | O24: =INDEX(TT[[#This Row],[Language 1]:[Language 10]],1,LanguageSelect) -> Pitch 1 (back)
B25: =ROW() -> 25 | C25: Joystick Controller Test | D25: ="Shark2-"&TT[[#This Row],[Tab]] -> Shark2-Joystick Controller Test | E25: Pitch 2 (forward) | F25: Arfagem 2 (frente) | G25: Balanceo 2 (adelante) | O25: =INDEX(TT[[#This Row],[Language 1]:[Language 10]],1,LanguageSelect) -> Pitch 2 (forward)
B26: =ROW() -> 26 | C26: Joystick Controller Test | D26: ="Shark2-"&TT[[#This Row],[Tab]] -> Shark2-Joystick Controller Test | E26: Yaw 1 (left) | F26: Guinada 1 (esquerda) | G26: Guiñada 1 (izquierda) | O26: =INDEX(TT[[#This Row],[Language 1]:[Language 10]],1,LanguageSelect) -> Yaw 1 (left)
B27: =ROW() -> 27 | C27: Joystick Controller Test | D27: ="Shark2-"&TT[[#This Row],[Tab]] -> Shark2-Joystick Controller Test | E27: Yaw 2 (right) | F27: Guinada 2 (direita) | G27: Guiñada 2 (derecha) | O27: =INDEX(TT[[#This Row],[Language 1]:[Language 10]],1,LanguageSelect) -> Yaw 2 (right)
B28: =ROW() -> 28 | C28: Joystick Controller Test | D28: ="Shark2-"&TT[[#This Row],[Tab]] -> Shark2-Joystick Controller Test | E28: Neutral | F28: Neutro | G28: Neutral | O28: =INDEX(TT[[#This Row],[Language 1]:[Language 10]],1,LanguageSelect) -> Neutral
B29: =ROW() -> 29 | C29: Joystick Controller Test | D29: ="Shark2-"&TT[[#This Row],[Tab]] -> Shark2-Joystick Controller Test | E29: Next  | F29: Próximo  | G29: Siguiente  | O29: =INDEX(TT[[#This Row],[Language 1]:[Language 10]],1,LanguageSelect) -> Next 
B30: =ROW() -> 30 | C30: Joystick Controller Test | D30: ="Shark2-"&TT[[#This Row],[Tab]] -> Shark2-Joystick Controller Test | E30:  Previous | F30:  Anterior | G30:  Anterior | O30: =INDEX(TT[[#This Row],[Language 1]:[Language 10]],1,LanguageSelect) ->  Previous
B31: =ROW() -> 31 | C31: Virtual Marine Environment | D31: ="Shark2-"&TT[[#This Row],[Tab]] -> Shark2-Virtual Marine Environment | E31: Depth | F31: Profundidade | G31: Profundidad | O31: =INDEX(TT[[#This Row],[Language 1]:[Language 10]],1,LanguageSelect) -> Depth
B32: =ROW() -> 32 | C32: Virtual Marine Environment | D32: ="Shark2-"&TT[[#This Row],[Tab]] -> Shark2-Virtual Marine Environment | E32: Virtual Marine Environment | F32: Ambiente Marinho Virtual | G32: Entorno marino virtual | O32: =INDEX(TT[[#This Row],[Language 1]:[Language 10]],1,LanguageSelect) -> Virtual Marine Environment
B33: =ROW() -> 33 | C33: Virtual Marine Environment | D33: ="Shark2-"&TT[[#This Row],[Tab]] -> Shark2-Virtual Marine Environment | E33: Navigation | F33: Navegação | G33: Navegación | O33: =INDEX(TT[[#This Row],[Language 1]:[Language 10]],1,LanguageSelect) -> Navigation
B34: =ROW() -> 34 | C34: Virtual Marine Environment | D34: ="Shark2-"&TT[[#This Row],[Tab]] -> Shark2-Virtual Marine Environment | E34: Marine Life | F34: Vida Marinha | G34: Vida Marina | O34: =INDEX(TT[[#This Row],[Language 1]:[Language 10]],1,LanguageSelect) -> Marine Life
B35: =ROW() -> 35 | C35: Virtual Marine Environment | D35: ="Shark2-"&TT[[#This Row],[Tab]] -> Shark2-Virtual Marine Environment | E35: Dolphin | F35: Golfinho | G35: Delfín | O35: =INDEX(TT[[#This Row],[Language 1]:[Language 10]],1,LanguageSelect) -> Dolphin
B36: =ROW() -> 36 | C36: Virtual Marine Environment | D36: ="Shark2-"&TT[[#This Row],[Tab]] -> Shark2-Virtual Marine Environment | E36: Sting Ray | F36: Arraia | G36: Mantarraya | O36: =INDEX(TT[[#This Row],[Language 1]:[Language 10]],1,LanguageSelect) -> Sting Ray
B37: =ROW() -> 37 | C37: Virtual Marine Environment | D37: ="Shark2-"&TT[[#This Row],[Tab]] -> Shark2-Virtual Marine Environment | E37: Orca | F37: Orca | G37: Orca | O37: =INDEX(TT[[#This Row],[Language 1]:[Language 10]],1,LanguageSelect) -> Orca
B38: =ROW() -> 38 | C38: Virtual Marine Environment | D38: ="Shark2-"&TT[[#This Row],[Tab]] -> Shark2-Virtual Marine Environment | E38: Jellyfish | F38: Água – viva | G38: Medusa | O38: =INDEX(TT[[#This Row],[Language 1]:[Language 10]],1,LanguageSelect) -> Jellyfish
B39: =ROW() -> 39 | C39: Virtual Marine Environment | D39: ="Shark2-"&TT[[#This Row],[Tab]] -> Shark2-Virtual Marine Environment | E39: Turtle | F39: Tartaruga | G39: Tortuga | O39: =INDEX(TT[[#This Row],[Language 1]:[Language 10]],1,LanguageSelect) -> Turtle
B40: =ROW() -> 40 | C40: Virtual Marine Environment | D40: ="Shark2-"&TT[[#This Row],[Tab]] -> Shark2-Virtual Marine Environment | E40: Hammerhead | F40: Tubarão - Martelo | G40: Tiburón martillo | O40: =INDEX(TT[[#This Row],[Language 1]:[Language 10]],1,LanguageSelect) -> Hammerhead
B41: =ROW() -> 41 | C41: Virtual Marine Environment | D41: ="Shark2-"&TT[[#This Row],[Tab]] -> Shark2-Virtual Marine Environment | E41: Octopus | F41: Polvo | G41: Pulpos | O41: =INDEX(TT[[#This Row],[Language 1]:[Language 10]],1,LanguageSelect) -> Octopus
B42: =ROW() -> 42 | C42: Virtual Marine Environment | D42: ="Shark2-"&TT[[#This Row],[Tab]] -> Shark2-Virtual Marine Environment | E42: Crab | F42: Caranguejo | G42: Cangrejo | O42: =INDEX(TT[[#This Row],[Language 1]:[Language 10]],1,LanguageSelect) -> Crab
B43: =ROW() -> 43 | C43: Virtual Marine Environment | D43: ="Shark2-"&TT[[#This Row],[Tab]] -> Shark2-Virtual Marine Environment | E43: Dolphins | F43: Golfinhos | G43: Delfines | O43: =INDEX(TT[[#This Row],[Language 1]:[Language 10]],1,LanguageSelect) -> Dolphins
B44: =ROW() -> 44 | C44: Virtual Marine Environment | D44: ="Shark2-"&TT[[#This Row],[Tab]] -> Shark2-Virtual Marine Environment | E44: Sting Rays | F44: Arraias | G44: Mantarrayas | O44: =INDEX(TT[[#This Row],[Language 1]:[Language 10]],1,LanguageSelect) -> Sting Rays
B45: =ROW() -> 45 | C45: Virtual Marine Environment | D45: ="Shark2-"&TT[[#This Row],[Tab]] -> Shark2-Virtual Marine Environment | E45: Orcas | F45: Orcas | G45: Orcas | O45: =INDEX(TT[[#This Row],[Language 1]:[Language 10]],1,LanguageSelect) -> Orcas
B46: =ROW() -> 46 | C46: Virtual Marine Environment | D46: ="Shark2-"&TT[[#This Row],[Tab]] -> Shark2-Virtual Marine Environment | E46: Jellyfish | F46: Água – viva | G46: Medusa | O46: =INDEX(TT[[#This Row],[Language 1]:[Language 10]],1,LanguageSelect) -> Jellyfish
B47: =ROW() -> 47 | C47: Virtual Marine Environment | D47: ="Shark2-"&TT[[#This Row],[Tab]] -> Shark2-Virtual Marine Environment | E47: Turtles | F47: Tartaguras | G47: Tortugas | O47: =INDEX(TT[[#This Row],[Language 1]:[Language 10]],1,LanguageSelect) -> Turtles
B48: =ROW() -> 48 | C48: Virtual Marine Environment | D48: ="Shark2-"&TT[[#This Row],[Tab]] -> Shark2-Virtual Marine Environment | E48: Hammerheads | F48: Tubarões - Martelo | G48: Tiburones martillo | O48: =INDEX(TT[[#This Row],[Language 1]:[Language 10]],1,LanguageSelect) -> Hammerheads
B49: =ROW() -> 49 | C49: Virtual Marine Environment | D49: ="Shark2-"&TT[[#This Row],[Tab]] -> Shark2-Virtual Marine Environment | E49: Octopi | F49: Polvos | G49: Pulpo | O49: =INDEX(TT[[#This Row],[Language 1]:[Language 10]],1,LanguageSelect) -> Octopi
B50: =ROW() -> 50 | C50: Virtual Marine Environment | D50: ="Shark2-"&TT[[#This Row],[Tab]] -> Shark2-Virtual Marine Environment | E50: Crabs | F50: Caranguejos | G50: Cangrejos | O50: =INDEX(TT[[#This Row],[Language 1]:[Language 10]],1,LanguageSelect) -> Crabs
B51: =ROW() -> 51 | C51: Virtual Marine Environment | D51: ="Shark2-"&TT[[#This Row],[Tab]] -> Shark2-Virtual Marine Environment | E51: Here you can use your robotic shark to explore the ocean. Use your controller to guide its movement. | F51: Aqui você pode usar seu tubarão robótico para explorar o oceano. Use o seu controlador para guiar seu movimento. | G51: Aquí puedes usar tu tiburón robótico para explorar el océano. Usa el control para guiar su movimiento. | O51: =INDEX(TT[[#This Row],[Language 1]:[Language 10]],1,LanguageSelect) -> Here you can use your robotic shark to explore the ocean. Use your controller to guide its movement.
B52: =ROW() -> 52 | C52: Virtual Marine Environment | D52: ="Shark2-"&TT[[#This Row],[Tab]] -> Shark2-Virtual Marine Environment | E52: It looks like you stopped to examine a dolphin after seeing | F52: Parece que você parou para examinar um golfinho depois de ver | G52: Parece que te detuviste a examinar un delfín después de observar | O52: =INDEX(TT[[#This Row],[Language 1]:[Language 10]],1,LanguageSelect) -> It looks like you stopped to examine a dolphin after seeing
B53: =ROW() -> 53 | C53: Virtual Marine Environment | D53: ="Shark2-"&TT[[#This Row],[Tab]] -> Shark2-Virtual Marine Environment | E53: It looks like you stopped to examine a sting ray after seeing | F53: Parece que você parou para examinar uma arraia depois de ver | G53: Parece que te detuviste a examinar una mantarraya después de observar | O53: =INDEX(TT[[#This Row],[Language 1]:[Language 10]],1,LanguageSelect) -> It looks like you stopped to examine a sting ray after seeing
B54: =ROW() -> 54 | C54: Virtual Marine Environment | D54: ="Shark2-"&TT[[#This Row],[Tab]] -> Shark2-Virtual Marine Environment | E54: It looks like you stopped to examine an orca after seeing | F54: Parece que você parou para examinar uma orca depois de ver | G54: Parece que te detuviste a examinar una orca después de observar | O54: =INDEX(TT[[#This Row],[Language 1]:[Language 10]],1,LanguageSelect) -> It looks like you stopped to examine an orca after seeing
B55: =ROW() -> 55 | C55: Virtual Marine Environment | D55: ="Shark2-"&TT[[#This Row],[Tab]] -> Shark2-Virtual Marine Environment | E55: It looks like you stopped to examine a jellyfish after seeing | F55: Parece que você parou para examinar uma água - viva depois de ver | G55: Parece que te detuviste a examinar una medusa después de observar | O55: =INDEX(TT[[#This Row],[Language 1]:[Language 10]],1,LanguageSelect) -> It looks like you stopped to examine a jellyfish after seeing
B56: =ROW() -> 56 | C56: Virtual Marine Environment | D56: ="Shark2-"&TT[[#This Row],[Tab]] -> Shark2-Virtual Marine Environment | E56: It looks like you stopped to examine a turtle after seeing | F56: Parece que você parou para examinar uma tartaruga depois de ver | G56: Parece que te detuviste a examinar una tortuga después de observar | O56: =INDEX(TT[[#This Row],[Language 1]:[Language 10]],1,LanguageSelect) -> It looks like you stopped to examine a turtle after seeing
B57: =ROW() -> 57 | C57: Virtual Marine Environment | D57: ="Shark2-"&TT[[#This Row],[Tab]] -> Shark2-Virtual Marine Environment | E57: It looks like you stopped to examine a hammerhead after seeing | F57: Parece que você parou para examinar um tubarão - martelo depois de ver | G57: Parece que te detuviste a examinar a un tiburón martillo después de observar | O57: =INDEX(TT[[#This Row],[Language 1]:[Language 10]],1,LanguageSelect) -> It looks like you stopped to examine a hammerhead after seeing
B58: =ROW() -> 58 | C58: Virtual Marine Environment | D58: ="Shark2-"&TT[[#This Row],[Tab]] -> Shark2-Virtual Marine Environment | E58: It looks like you stopped to examine an octopus after seeing | F58: Parece que você parou para examinar um polvo depois de ver | G58: Parece que te detuviste a examinar un pulpo después de observar | O58: =INDEX(TT[[#This Row],[Language 1]:[Language 10]],1,LanguageSelect) -> It looks like you stopped to examine an octopus after seeing
B59: =ROW() -> 59 | C59: Virtual Marine Environment | D59: ="Shark2-"&TT[[#This Row],[Tab]] -> Shark2-Virtual Marine Environment | E59: It looks like you stopped to examine a crab after seeing | F59: Parece que você parou para examinar um caranguejo depois de ver | G59: Parece que te detuviste a examinar un cangrejo después de observar | O59: =INDEX(TT[[#This Row],[Language 1]:[Language 10]],1,LanguageSelect) -> It looks like you stopped to examine a crab after seeing
B60: =ROW() -> 60 | C60: Virtual Marine Environment | D60: ="Shark2-"&TT[[#This Row],[Tab]] -> Shark2-Virtual Marine Environment | E60: other marine creatures | F60: outras criaturas marinhas | G60: otras criaturas marinas | O60: =INDEX(TT[[#This Row],[Language 1]:[Language 10]],1,LanguageSelect) -> other marine creatures
B61: =ROW() -> 61 | C61: Virtual Marine Environment | D61: ="Shark2-"&TT[[#This Row],[Tab]] -> Shark2-Virtual Marine Environment | E61: Shark | F61: Tubarão | G61: Tiburón | O61: =INDEX(TT[[#This Row],[Language 1]:[Language 10]],1,LanguageSelect) -> Shark
B62: =ROW() -> 62 | C62: Virtual Marine Environment | D62: ="Shark2-"&TT[[#This Row],[Tab]] -> Shark2-Virtual Marine Environment | E62: Start Exploring > | F62: Iniciar exploração > | G62: Comienza a explorar > | O62: =INDEX(TT[[#This Row],[Language 1]:[Language 10]],1,LanguageSelect) -> Start Exploring >
B63: =ROW() -> 63 | C63: Setup | D63: ="Shark2-"&TT[[#This Row],[Tab]] -> Shark2-Setup | E63: rotation | F63: Rotação | G63: Rotación | O63: =INDEX(TT[[#This Row],[Language 1]:[Language 10]],1,LanguageSelect) -> rotation
B64: =ROW() -> 64 | C64: Setup | D64: ="Shark2-"&TT[[#This Row],[Tab]] -> Shark2-Setup | E64: sin θ | F64: sin θ | G64: seno θ | O64: =INDEX(TT[[#This Row],[Language 1]:[Language 10]],1,LanguageSelect) -> sin θ
B65: =ROW() -> 65 | C65: Setup | D65: ="Shark2-"&TT[[#This Row],[Tab]] -> Shark2-Setup | E65: cos θ | F65: cos θ | G65: cos θ | O65: =INDEX(TT[[#This Row],[Language 1]:[Language 10]],1,LanguageSelect) -> cos θ
B66: =ROW() -> 66 | C66: Setup | D66: ="Shark2-"&TT[[#This Row],[Tab]] -> Shark2-Setup | E66: X rotation for Chart | F66: Rotação X para gráfico | G66: Rotación X para el gráfico | O66: =INDEX(TT[[#This Row],[Language 1]:[Language 10]],1,LanguageSelect) -> X rotation for Chart
B67: =ROW() -> 67 | C67: Setup | D67: ="Shark2-"&TT[[#This Row],[Tab]] -> Shark2-Setup | E67: Y rotation for Chart | F67: Rotação Y para gráfico | G67: Rotación Y para el gráfico | O67: =INDEX(TT[[#This Row],[Language 1]:[Language 10]],1,LanguageSelect) -> Y rotation for Chart
B68: =ROW() -> 68 | C68: Setup | D68: ="Shark2-"&TT[[#This Row],[Tab]] -> Shark2-Setup | E68: Minimum | F68: Mínimo | G68: Mínimo | O68: =INDEX(TT[[#This Row],[Language 1]:[Language 10]],1,LanguageSelect) -> Minimum
B69: =ROW() -> 69 | C69: Setup | D69: ="Shark2-"&TT[[#This Row],[Tab]] -> Shark2-Setup | E69: Range | F69: Extensão | G69: Gama | O69: =INDEX(TT[[#This Row],[Language 1]:[Language 10]],1,LanguageSelect) -> Range
B70: =ROW() -> 70 | C70: Setup | D70: ="Shark2-"&TT[[#This Row],[Tab]] -> Shark2-Setup | E70: Scaling ratio | F70: Taxa de escala | G70: Relación de escala | O70: =INDEX(TT[[#This Row],[Language 1]:[Language 10]],1,LanguageSelect) -> Scaling ratio
B71: =ROW() -> 71 | C71: Data In | D71: ="Shark2-"&TT[[#This Row],[Tab]] -> Shark2-Data In | E71: Data In (From Source) | F71: Entrada de Dados (Da Fonte) | G71: Datos entrantes (desde la fuente) | O71: =INDEX(TT[[#This Row],[Language 1]:[Language 10]],1,LanguageSelect) -> Data In (From Source)
B72: =ROW() -> 72 | C72: Data In | D72: ="Shark2-"&TT[[#This Row],[Tab]] -> Shark2-Data In | E72: Data coming from the current data source will appear below as it is received. | F72: Os dados provenientes da fonte de dados atual aparecerão abaixo conforme são recebidos. | G72: Los datos procedentes de la fuente de datos actual aparecerán a continuación a medida que se reciban. | O72: =INDEX(TT[[#This Row],[Language 1]:[Language 10]],1,LanguageSelect) -> Data coming from the current data source will appear below as it is received.
B73: =ROW() -> 73 | C73: Data In | D73: ="Shark2-"&TT[[#This Row],[Tab]] -> Shark2-Data In | E73: Current Data | F73: Dados atuais | G73: Datos actuales | O73: =INDEX(TT[[#This Row],[Language 1]:[Language 10]],1,LanguageSelect) -> Current Data
B74: =ROW() -> 74 | C74: Data In | D74: ="Shark2-"&TT[[#This Row],[Tab]] -> Shark2-Data In | E74: Time | F74: Tempo | G74: Tiempo | O74: =INDEX(TT[[#This Row],[Language 1]:[Language 10]],1,LanguageSelect) -> Time
B75: =ROW() -> 75 | C75: Data In | D75: ="Shark2-"&TT[[#This Row],[Tab]] -> Shark2-Data In | E75: X Rotation | F75: Rotação X | G75: Rotación X | O75: =INDEX(TT[[#This Row],[Language 1]:[Language 10]],1,LanguageSelect) -> X Rotation
B76: =ROW() -> 76 | C76: Data In | D76: ="Shark2-"&TT[[#This Row],[Tab]] -> Shark2-Data In | E76: Y Rotation | F76: Rotação Y | G76: Rotación Y | O76: =INDEX(TT[[#This Row],[Language 1]:[Language 10]],1,LanguageSelect) -> Y Rotation
B77: =ROW() -> 77 | C77: Data In | D77: ="Shark2-"&TT[[#This Row],[Tab]] -> Shark2-Data In | E77: Z Rotation | F77: Rotação Z | G77: Rotación Z | O77: =INDEX(TT[[#This Row],[Language 1]:[Language 10]],1,LanguageSelect) -> Z Rotation
B78: =ROW() -> 78 | C78: Data In | D78: ="Shark2-"&TT[[#This Row],[Tab]] -> Shark2-Data In | E78: X Position | F78: X Posição | G78: X Posición | O78: =INDEX(TT[[#This Row],[Language 1]:[Language 10]],1,LanguageSelect) -> X Position
B79: =ROW() -> 79 | C79: Data In | D79: ="Shark2-"&TT[[#This Row],[Tab]] -> Shark2-Data In | E79: Y Position | F79: Y Posição | G79: Y Posición | O79: =INDEX(TT[[#This Row],[Language 1]:[Language 10]],1,LanguageSelect) -> Y Position
B80: =ROW() -> 80 | C80: Data In | D80: ="Shark2-"&TT[[#This Row],[Tab]] -> Shark2-Data In | E80: Z Position | F80: Z Posição | G80: Z Posición | O80: =INDEX(TT[[#This Row],[Language 1]:[Language 10]],1,LanguageSelect) -> Z Position
B81: =ROW() -> 81 | C81: Data In | D81: ="Shark2-"&TT[[#This Row],[Tab]] -> Shark2-Data In | E81: End Time | F81: Fim do tempo | G81: Hora de finalización | O81: =INDEX(TT[[#This Row],[Language 1]:[Language 10]],1,LanguageSelect) -> End Time
B82: =ROW() -> 82 | C82: Data In | D82: ="Shark2-"&TT[[#This Row],[Tab]] -> Shark2-Data In | E82: ◀ Newest | F82: O mais novo | G82: ◀ El más nuevo | O82: =INDEX(TT[[#This Row],[Language 1]:[Language 10]],1,LanguageSelect) -> ◀ Newest
B83: =ROW() -> 83 | C83: Data Out | D83: ="Shark2-"&TT[[#This Row],[Tab]] -> Shark2-Data Out | E83: Data Out (To Device) | F83: Saída de dados (para o dispositivo) | G83: Datos de salida (al dispositivo) | O83: =INDEX(TT[[#This Row],[Language 1]:[Language 10]],1,LanguageSelect) -> Data Out (To Device)
B84: =ROW() -> 84 | C84: Data Out | D84: ="Shark2-"&TT[[#This Row],[Tab]] -> Shark2-Data Out | E84: Data entered into the channels below will be sent to the currently connected device as a comma-delimited string. | F84: Os dados inseridos nos canais abaixo serão enviados para o dispositivo conectado no momento como uma corda delimitada por vírgula | G84: Los datos ingresados en los siguientes canales se enviarán al dispositivo actualmente conectado | O84: =INDEX(TT[[#This Row],[Language 1]:[Language 10]],1,LanguageSelect) -> Data entered into the channels below will be sent to the currently connected device as a comma-delimited string.
B85: =ROW() -> 85 | C85: Data Out | D85: ="Shark2-"&TT[[#This Row],[Tab]] -> Shark2-Data Out | E85: Reset | F85: Redefinir | G85: Reiniciar | O85: =INDEX(TT[[#This Row],[Language 1]:[Language 10]],1,LanguageSelect) -> Reset
B86: =ROW() -> 86 | C86: Settings | D86: ="Shark2-"&TT[[#This Row],[Tab]] -> Shark2-Settings | E86: Workbook Settings | F86: Configurações de pasta de trabalho | G86: Configuración del libro | O86: =INDEX(TT[[#This Row],[Language 1]:[Language 10]],1,LanguageSelect) -> Workbook Settings
B87: =ROW() -> 87 | C87: Settings | D87: ="Shark2-"&TT[[#This Row],[Tab]] -> Shark2-Settings | E87: Settings below will affect how data is read into the current workbook from data sources. Clear a field's contents to revert to its default setting. | F87: As configurações abaixo afetarão como os dados são lidos na pasta de trabalho atual a partir de fontes de dados. Limpe o conteúdo de um campo para reverter para sua configuração padrão. | G87: Los siguientes ajustes afectarán la forma en que se leen los datos en el libro actual a partir de las fuentes de datos. Borra los contenidos de un campo para volver a la configuración predeterminada. | O87: =INDEX(TT[[#This Row],[Language 1]:[Language 10]],1,LanguageSelect) -> Settings below will affect how data is read into the current workbook from data sources. Clear a field's contents to revert to its default setting.
B88: =ROW() -> 88 | C88: Settings | D88: ="Shark2-"&TT[[#This Row],[Tab]] -> Shark2-Settings | E88: Data interval (ms): | F88: Intervalo de dados (ms): | G88: Intervalo de datos (ms): | O88: =INDEX(TT[[#This Row],[Language 1]:[Language 10]],1,LanguageSelect) -> Data interval (ms):
B89: =ROW() -> 89 | C89: Settings | D89: ="Shark2-"&TT[[#This Row],[Tab]] -> Shark2-Settings | E89: Data rows: | F89: Linhas de dados | G89: Filas de datos: | O89: =INDEX(TT[[#This Row],[Language 1]:[Language 10]],1,LanguageSelect) -> Data rows:
B90: =ROW() -> 90 | C90: Settings | D90: ="Shark2-"&TT[[#This Row],[Tab]] -> Shark2-Settings | E90: Data channels: | F90: Canais de Dados | G90: Canales de datos: | O90: =INDEX(TT[[#This Row],[Language 1]:[Language 10]],1,LanguageSelect) -> Data channels:
B91: =ROW() -> 91 | C91: Settings | D91: ="Shark2-"&TT[[#This Row],[Tab]] -> Shark2-Settings | E91: Data Orientation: | F91: Orientação de Dados | G91: Orientación de datos: | O91: =INDEX(TT[[#This Row],[Language 1]:[Language 10]],1,LanguageSelect) -> Data Orientation:
B92: =ROW() -> 92 | C92: Settings | D92: ="Shark2-"&TT[[#This Row],[Tab]] -> Shark2-Settings | E92: WARNING: Changing settings may result in the loss of content and/or custom formatting in the Data In and Data Out worksheets. Always save before changing values. | F92: WARNING: Changing settings may result in the loss of content and/or custom formatting in the Data In and Data Out worksheets. Always save before changing values. | G92: ADVERTENCIA: El cambio de configuraciones puede ocasionar la pérdida de contenido y/o formato personalizado en las hojas de trabajo de entrada y salida de datos. Siempre guarda antes de cambiar los valores. | O92: =INDEX(TT[[#This Row],[Language 1]:[Language 10]],1,LanguageSelect) -> WARNING: Changing settings may result in the loss of content and/or custom formatting in the Data In and Data Out worksheets. Always save before changing values.
B93: =ROW() -> 93 | C93: Animal Graphing | D93: ="Shark2-"&TT[[#This Row],[Tab]] -> Shark2-Animal Graphing | E93: Above Shark | F93: Acima do tubarão | G93: Arriba de los Tiburones | O93: =INDEX(TT[[#This Row],[Language 1]:[Language 10]],1,LanguageSelect) -> Above Shark
B94: =ROW() -> 94 | C94: Animal Graphing | D94: ="Shark2-"&TT[[#This Row],[Tab]] -> Shark2-Animal Graphing | E94: Below Shark | F94: Abaixo do tubarão | G94: Debajo de los Tiburones | O94: =INDEX(TT[[#This Row],[Language 1]:[Language 10]],1,LanguageSelect) -> Below Shark
B95: =ROW() -> 95 | C95: Animal Graphing | D95: ="Shark2-"&TT[[#This Row],[Tab]] -> Shark2-Animal Graphing | E95: Head | F95: Cabeça | G95: Cabeza | O95: =INDEX(TT[[#This Row],[Language 1]:[Language 10]],1,LanguageSelect) -> Head
B96: =ROW() -> 96 | C96: Animal Graphing | D96: ="Shark2-"&TT[[#This Row],[Tab]] -> Shark2-Animal Graphing | E96: Middle | F96: Meio | G96: Medio | O96: =INDEX(TT[[#This Row],[Language 1]:[Language 10]],1,LanguageSelect) -> Middle
B97: =ROW() -> 97 | C97: Animal Graphing | D97: ="Shark2-"&TT[[#This Row],[Tab]] -> Shark2-Animal Graphing | E97: Tail | F97: Cauda | G97: Cola | O97: =INDEX(TT[[#This Row],[Language 1]:[Language 10]],1,LanguageSelect) -> Tail
B98: =ROW() -> 98 | C98: Data In | D98: ="Shark2-"&TT[[#This Row],[Tab]] -> Shark2-Data In | E98: Historical Data | F98: Histórico de Dados | G98: Información histórica | O98: =INDEX(TT[[#This Row],[Language 1]:[Language 10]],1,LanguageSelect) -> Historical Data

Sheet Joystick Controller Test
A2: =RIGHT(CELL("filename",A2),LEN(CELL("filename",A2))-FIND("]",CELL("filename",A2))) -> Joystick Controller Test | B2: =TT!$O$18 -> Joystick Controller Test
G18: =TT!$O19 -> ROLL | H18: =_xlfn.SWITCH(InputRoll,1,TT!$O22,0,TT!$O$28,-1,TT!$O$23) -> Neutral
G19: =TT!$O20 -> PITCH | H19: =_xlfn.SWITCH(InputPitch,1,TT!$O$24,0,TT!$O$28,-1,TT!$O$25) -> Neutral
G20: =TT!$O21 -> YAW | H20: =_xlfn.SWITCH(InputYaw,1,TT!$O$26,0,TT!$O$28,-1,TT!$O$27) -> Neutral
B23: =TT!$O$30 ->  Previous | M23: =TT!$O$29 -> Next 

Sheet Virtual Marine Environment
A2: =RIGHT(CELL("filename",A2),LEN(CELL("filename",A2))-FIND("]",CELL("filename",A2))) -> Virtual Marine Environment | B2: =TT!$O$31 -> Depth | D2: =TT!$O$32 -> Virtual Marine Environment | W2: =TT!$O$33 -> Navigation
AT4: =HitDialogue -> 
W15: =TT!$O$34 -> Marine Life
X17: =TT!$O$51 -> Here you can use your robotic shark to explore the ocean. Use your controller to guide its movement.
X23: =HitDialogue -> 
E27: =SUMIFS(AnimalGraphingTable[Number seen],AnimalGraphingTable[Image Appearance],Setup!$F2) -> 1 | G27: =SUMIFS(AnimalGraphingTable[Number seen],AnimalGraphingTable[Image Appearance],Setup!$F3) -> 1 | I27: =SUMIFS(AnimalGraphingTable[Number seen],AnimalGraphingTable[Image Appearance],Setup!$F4) -> 0 | K27: =SUMIFS(AnimalGraphingTable[Number seen],AnimalGraphingTable[Image Appearance],Setup!$F5)*3 -> 0 | M27: =SUMIFS(AnimalGraphingTable[Number seen],AnimalGraphingTable[Image Appearance],Setup!$F7) -> 1 | O27: =SUMIFS(AnimalGraphingTable[Number seen],AnimalGraphingTable[Image Appearance],Setup!$F9) -> 0 | Q27: =SUMIFS(AnimalGraphingTable[Number seen],AnimalGraphingTable[Image Appearance],Setup!$F10) -> 1 | S27: =SUMIFS(AnimalGraphingTable[Number seen],AnimalGraphingTable[Image Appearance],Setup!$F11)*3 -> 3
E28: =IF(E27>1,TT!$O$43,TT!$O$35) -> Dolphin | G28: =IF(G27>1,TT!$O$44,TT!$O$36) -> Sting Ray | I28: =IF(I27>1,TT!$O$45,TT!$O$37) -> Orca | K28: =IF(K27>1,TT!$O$46,TT!$O$38) -> Jellyfish | M28: =IF(M27>1,TT!$O$47,TT!$O$39) -> Turtle | O28: =IF(O27>1,TT!$O$48,TT!$O$40) -> Hammerhead | Q28: =IF(Q27>1,TT!$O$49,TT!$O$41) -> Octopus | S28: =IF(S27>1,TT!$O$50,TT!$O$42) -> Crabs
D30: =TT!$O$30 ->  Previous

Sheet Data In
A1: Data In (From USB Serial Device (COM5))
A2: Data coming from the current data source will appear below as it is received.
A3: Current Data
A4: TIME | B4: X Rotation | C4: Y Rotation | D4: Z Rotation | E4: X Position | F4: Y Position | G4: Z Position | H4: End Time
A5: 44250.62005 | B5: 0 | C5: 0 | D5: 0 | F5: 0 | G5: -10.5 | H5: 0
A6: Historical Data
A7: TIME | B7: X Rotation | C7: Y Rotation | D7: Z Rotation | E7: X Position | F7: Y Position | G7: Z Position | H7: End Time
I57: ◀ Newest

Sheet Data Out
A1: Data Out (To Device) | K1: update
A2: Data entered into the channels below will be sent to the currently connected device as a comma-delimited string.
A4: =TT!$O$78 -> X Position | B4: =TT!$O$79 -> Y Position | C4: =TT!$O$80 -> Z Position | D4: =TT!$O$81 -> End Time | E4: CH5 | F4: CH6 | G4: CH7 | H4: CH8 | I4: CH9 | J4: CH10
B5: =Yposition -> 0 | C5: =Zposition -> -10.5 | D5: =HitTime -> 0

Sheet Settings
A1: Workbook Settings
A2: Settings below will affect how data is read into the current workbook from data sources. Clear a field's contents to revert to its default setting.
A4: Data interval (ms) | B4: 150 | C4: 150
A6: Data rows | B6: 15 | C6: 1
A8: Data channels | B8: 10 | C8: 7
A10: Data orientation | B10: Newest last | C10: Newest last
A13: WARNING: Changing settings may result in the loss of content and/or custom formatting in the Data In and Data Out worksheets. Always save before changing values.

Sheet Gauge Work (hidden)
A1: Name | B1: Roll | C1: Pitch | D1: Visible | E1: Test Visible
A2: Pitch down | B2: 0 | C2: -1 | D2: =IF(AND(Table1[[#This Row],[Roll]]=Roll,Pitch=Table1[[#This Row],[Pitch]]),1,NA()) ->  | E2: =IF(AND(Table1[[#This Row],[Roll]]=InputRoll,InputPitch=Table1[[#This Row],[Pitch]]),1,NA()) -> 
A3: Roll left | B3: 1 | C3: 0 | D3: =IF(AND(Table1[[#This Row],[Roll]]=Roll,Pitch=Table1[[#This Row],[Pitch]]),1,NA()) ->  | E3: =IF(AND(Table1[[#This Row],[Roll]]=InputRoll,InputPitch=Table1[[#This Row],[Pitch]]),1,NA()) -> 
A4: Flat | B4: 0 | C4: 0 | D4: =IF(AND(Table1[[#This Row],[Roll]]=Roll,Pitch=Table1[[#This Row],[Pitch]]),1,NA()) -> 1 | E4: =IF(AND(Table1[[#This Row],[Roll]]=InputRoll,InputPitch=Table1[[#This Row],[Pitch]]),1,NA()) -> 1
A5: Roll right | B5: -1 | C5: 0 | D5: =IF(AND(Table1[[#This Row],[Roll]]=Roll,Pitch=Table1[[#This Row],[Pitch]]),1,NA()) ->  | E5: =IF(AND(Table1[[#This Row],[Roll]]=InputRoll,InputPitch=Table1[[#This Row],[Pitch]]),1,NA()) -> 
A6: Pitch up | B6: 0 | C6: 1 | D6: =IF(AND(Table1[[#This Row],[Roll]]=Roll,Pitch=Table1[[#This Row],[Pitch]]),1,NA()) ->  | E6: =IF(AND(Table1[[#This Row],[Roll]]=InputRoll,InputPitch=Table1[[#This Row],[Pitch]]),1,NA()) -> 
A7: Roll left Pitch down | B7: 1 | C7: -1 | D7: =IF(AND(Table1[[#This Row],[Roll]]=Roll,Pitch=Table1[[#This Row],[Pitch]]),1,NA()) ->  | E7: =IF(AND(Table1[[#This Row],[Roll]]=InputRoll,InputPitch=Table1[[#This Row],[Pitch]]),1,NA()) -> 
A8: Roll left Pitch up | B8: 1 | C8: 1 | D8: =IF(AND(Table1[[#This Row],[Roll]]=Roll,Pitch=Table1[[#This Row],[Pitch]]),1,NA()) ->  | E8: =IF(AND(Table1[[#This Row],[Roll]]=InputRoll,InputPitch=Table1[[#This Row],[Pitch]]),1,NA()) -> 
A9: Roll right Pitch down | B9: -1 | C9: -1 | D9: =IF(AND(Table1[[#This Row],[Roll]]=Roll,Pitch=Table1[[#This Row],[Pitch]]),1,NA()) ->  | E9: =IF(AND(Table1[[#This Row],[Roll]]=InputRoll,InputPitch=Table1[[#This Row],[Pitch]]),1,NA()) -> 
A10: Roll right Pitch up | B10: -1 | C10: 1 | D10: =IF(AND(Table1[[#This Row],[Roll]]=Roll,Pitch=Table1[[#This Row],[Pitch]]),1,NA()) ->  | E10: =IF(AND(Table1[[#This Row],[Roll]]=InputRoll,InputPitch=Table1[[#This Row],[Pitch]]),1,NA()) -> 
A13: Name | B13: Yaw | C13: Visible | D13: Test Visible
A14: Yaw left | B14: 1 | C14: =IF(Table5[[#This Row],[Yaw]]=Yaw,1,NA()) ->  | D14: =IF(Table5[[#This Row],[Yaw]]=InputYaw,1,NA()) -> 
A15: Mid | B15: 0 | C15: =IF(Table5[[#This Row],[Yaw]]=Yaw,1,NA()) -> 1 | D15: =IF(Table5[[#This Row],[Yaw]]=InputYaw,1,NA()) -> 1
A16: Yaw right | B16: -1 | C16: =IF(Table5[[#This Row],[Yaw]]=Yaw,1,NA()) ->  | D16: =IF(Table5[[#This Row],[Yaw]]=InputYaw,1,NA()) -> 
